Workbook

Sheet INTRO
B2: Joint request for selected PC medicines v.4.2 (Loa)
B4: As part of global efforts to accelerate expansion of preventive chemotherapy (PC) for control and elimination of lymphatic filariasis, schistosomiasis and soil-transmitted helminthiases, the World Health Organization (WHO) facilitates the supply of albendazole 400 mg tablets (GSK) to national lymphatic filariasis elimination programmes and national soil-transmitted helminth control programmes; diethylcarbamazine citrate 100 mg tablets (Eisai) to national lymphatic filariasis elimination programmes; mebendazole 500 mg tablets (J&J) for national soil-transmitted helminth control programmes; and praziquantel 600 mg tablets (Merck KGaA) for school-age children to national schistosomiasis control programmes. WHO also collaborates to supply ivermectin 3 mg tablets (Merck) for onchocerciasis and lymphatic filariasis donation programmes. This Excel-based tool is designed to assist countries in quantifying the number of tablets of relevant PC medicines required to reach the planned target population and districts for the year of request. Output of the tool is a joint request for PC medicines, which can be printed, signed and submitted to WHO to request these medicines.
B6: Structure of the application (worksheets):
B8: INTRO | C8: This worksheet includes guides on how to complete the joint request for selected PC medicines and information about the status of PC for endemic diseases in the country.
B9: COUNTRY_INFO | C9: This worksheet includes information about administrative structure of the country, population by age group, status of endemicity for each disease, population requiring PC and planned interventions.
B10: DEC, ALB_MBD, PZQ and IVM | C10: These worksheets include information about endemic districts targeted for treatment with specified PC medicines, treatment plan, and number of tablets required and requested.
B11: SUMMARY | C11: This worksheet includes summary of number of tablets requested, information about stock, and date for submission of requested medicines. Before generating the report (run macros) please select the medicine for which the report is needed. Follow the same rule to see the number of people to be treated for the specific disease. This worksheet should be printed and submitted as a joint request for selected PC medicines (see the instruction for submission in the SUMMARY worksheet).
B13: Instruction for data entry
B15: Most of the cells in the above-mentioned worksheets include formula that are calculated automatically according to the treatment policy recommended by WHO for each disease. See the link https://www.who.int/publications/i/item/9789241599993.
B17: Please enter your data into the cells according to their colour code:
C19: White - cell is not protected. Please enter the value of the requested indicator.
C21: Yellow - cell is protected and includes name of indicator. No data entry required.
C23: Orange - cell is not protected and includes a drop-down menu. Please select the value from the drop-down list.
C26: Green - cell is not protected and includes formula. Please change the value only if your data are different from those that are calculated automatically.
C29: Blue - cell is protected and includes formula. No data entry required.
B31: Country data
B33: COUNTRY | E33: Tchad | G33: TD | H33: TCD
E34: 5
B35: Year for request of the medicine | E35: 2024
B37: Is country endemic for lymphatic filariasis (LF)? | E37: Endemic
B39: Is country endemic for onchocerciasis (ONCHO)? | E39: Endemic
B41: Is country endemic for soil-transmitted helminthiases (STH)? | E41: Endemic
B43: Is country endemic for schistosomiasis (SCH)? | E43: Endemic
B45: How many administrative units in the country? | E45: 130
B47: If demographical data at the second administrative level are not available by age group, please enter the proportion (%) of population by age group in the country. If data are available, please leave these cells blank.
B48: 1-4 years age | C48: Preschool-age children (PreSAC) | E48: 0.1466
B49: 5-14 years age | C49: School-age children (SAC) | E49: 0.2893
B50: 15 years + | C50: Adults | E50: 0.5234
B51: 15-49 years | C51: Women of reproductive age (WRA) | E51: 0.2218847317

Sheet COUNTRY_INFO
A1: COUNTRY INFORMATION
A2: Administrative structure, population by age group, status of endemicity and planned interventions
A4: TOTAL | D4: =SUBTOTAL(9,D$10:D$1010) -> 19060615 | E4: =SUBTOTAL(9,E$10:E$1010) -> 2794289 | F4: 5514232 | G4: 9976324 | M4: =SUBTOTAL(9,M$10:M$1010) -> 5209888 | N4: 6375978 | O4: 192350 | P4: 379584 | Q4: 291130 | R4: 863064 | S4: 232356 | T4: 623821 | U4: 1128642 | V4: 1984819
A6: Country administrative structure | D6: Population | H6: Endemicity | M6: Population requiring PC | W6: Number of treatment rounds planned for the year | AA6: Epidemiological surveys planned for the year
A7: Country | B7: Province/State | C7: District | D7: Total | E7: PreSAC | F7: SAC | G7: Adults | H7: LF | I7: Oncho | J7: STH | K7: SCH | L7: Loa | M7: LF | N7: ONCHO | O7: STH | S7: SCH | W7: LF | X7: Oncho | Y7: STH | Z7: SCH | AA7: LF | AB7: Oncho | AC7: STH | AD7: SCH
O8: PreSAC | P8: SAC | Q8: WRA | R8: TOTAL | S8: PreSAC | T8: SAC | U8: Adults | V8: TOTAL | AH8: IU_ID | AI8: IU_Name | AJ8: End | AK8: EndJRF2022 | AL8: PlanMDA23
A10: =IF(INTRO!$E$33<>0,INTRO!$E$33, " ") -> Tchad | B10: Bahr El Gazel | C10: Chadra | D10: 107912 | E10: =IF(INTRO!$E$48="","",ROUND($D10*INTRO!$E$48,0)) -> 15820 | F10: =IF(INTRO!$E$49="","",ROUND($D10*INTRO!$E$49,0)) -> 31219 | G10: =IF(INTRO!$E$50="","",ROUND($D10*INTRO!$E$50,0)) -> 56481 | H10: 0 | I10: 0 | J10: 2 | K10: 3 | L10: 0 | M10: =IF(INTRO!$E$37="Endemic",IF($H10>0,IF($H10=4,"Unknown",IF($H10=99,"Stopped",$D10)),0),"Not required") -> 0 | N10: =IF(INTRO!$E$39="Endemic", IF($I10>0, IF($I10=4,"Unknown",IF($I10=99,"Stopped",$D10)), 0),"Not required") -> 0 | O10: =IF(INTRO!$E$41="Endemic", IF($J10>1, IF($J10=4, "Unknown", IF($J10=99, "Surveillance", E10)), 0),"Not required") -> 15820 | P10: =IF(INTRO!$E$41="Endemic", IF($J10>1, IF($J10=4, "Unknown", IF($J10=99, "Surveillance", F10)), 0),"Not required") -> 31219 | Q10: =IF(INTRO!$E$41="Endemic", IF($J10>1, IF($J10=4, "Unknown", IF($J10=99, "Surveillance", ROUND(D10*INTRO!$E$51,0))), 0),"Not required") -> 23944 | R10: =IF(INTRO!$E$41="Endemic", IF($J10>1, IF($J10=4, "Unknown", IF($J10=99, "Surveillance", SUM($O10:$Q10))), 0),"Not required") -> 70983 | S10: 4468 | T10: 11995 | U10: 21702 | V10: =IF(INTRO!$E$43="Endemic", IF($K10>1, IF($K10=4, "Unknown", IF($K10=99, "Surveillance", SUM($S10:$U10))), 0),"Not required") -> 38165 | W10: 0 | X10: 0 | Y10: 1 | Z10: 1 | AH10: 10660 | AI10: Chadra | AJ10: 3 | AK10: 2 | AL10: 1
A11: =IF(INTRO!$E$33<>0,INTRO!$E$33, " ") -> Tchad | B11: Bahr El Gazel | C11: Michemire | D11: 54713 | E11: =IF(INTRO!$E$48="","",ROUND($D11*INTRO!$E$48,0)) -> 8021 | F11: =IF(INTRO!$E$49="","",ROUND($D11*INTRO!$E$49,0)) -> 15828 | G11: =IF(INTRO!$E$50="","",ROUND($D11*INTRO!$E$50,0)) -> 28637 | H11: 0 | I11: 0 | J11: 1 | K11: 1 | L11: 0 | M11: =IF(INTRO!$E$37="Endemic",IF($H11>0,IF($H11=4,"Unknown",IF($H11=99,"Stopped",$D11)),0),"Not required") -> 0 | N11: =IF(INTRO!$E$39="Endemic", IF($I11>0, IF($I11=4,"Unknown",IF($I11=99,"Stopped",$D11)), 0),"Not required") -> 0 | O11: =IF(INTRO!$E$41="Endemic", IF($J11>1, IF($J11=4, "Unknown", IF($J11=99, "Surveillance", E11)), 0),"Not required") -> 0 | P11: =IF(INTRO!$E$41="Endemic", IF($J11>1, IF($J11=4, "Unknown", IF($J11=99, "Surveillance", F11)), 0),"Not required") -> 0 | Q11: =IF(INTRO!$E$41="Endemic", IF($J11>1, IF($J11=4, "Unknown", IF($J11=99, "Surveillance", ROUND(D11*INTRO!$E$51,0))), 0),"Not required") -> 0 | R11: =IF(INTRO!$E$41="Endemic", IF($J11>1, IF($J11=4, "Unknown", IF($J11=99, "Surveillance", SUM($O11:$Q11))), 0),"Not required") -> 0 | S11: 0 | T11: 0 | U11: 0 | V11: =IF(INTRO!$E$43="Endemic", IF($K11>1, IF($K11=4, "Unknown", IF($K11=99, "Surveillance", SUM($S11:$U11))), 0),"Not required") -> 0 | W11: 0 | X11: 0 | Y11: 0 | Z11: 0 | AH11: 10670 | AI11: Michemire | AJ11: 1 | AK11: 2 | AL11: 1
A12: =IF(INTRO!$E$33<>0,INTRO!$E$33, " ") -> Tchad | B12: Bahr El Gazel | C12: Moussoro | D12: 206416 | E12: =IF(INTRO!$E$48="","",ROUND($D12*INTRO!$E$48,0)) -> 30261 | F12: =IF(INTRO!$E$49="","",ROUND($D12*INTRO!$E$49,0)) -> 59716 | G12: =IF(INTRO!$E$50="","",ROUND($D12*INTRO!$E$50,0)) -> 108038 | H12: 0 | I12: 0 | J12: 1 | K12: 2 | L12: 0 | M12: =IF(INTRO!$E$37="Endemic",IF($H12>0,IF($H12=4,"Unknown",IF($H12=99,"Stopped",$D12)),0),"Not required") -> 0 | N12: =IF(INTRO!$E$39="Endemic", IF($I12>0, IF($I12=4,"Unknown",IF($I12=99,"Stopped",$D12)), 0),"Not required") -> 0 | O12: =IF(INTRO!$E$41="Endemic", IF($J12>1, IF($J12=4, "Unknown", IF($J12=99, "Surveillance", E12)), 0),"Not required") -> 0 | P12: =IF(INTRO!$E$41="Endemic", IF($J12>1, IF($J12=4, "Unknown", IF($J12=99, "Surveillance", F12)), 0),"Not required") -> 0 | Q12: =IF(INTRO!$E$41="Endemic", IF($J12>1, IF($J12=4, "Unknown", IF($J12=99, "Surveillance", ROUND(D12*INTRO!$E$51,0))), 0),"Not required") -> 0 | R12: =IF(INTRO!$E$41="Endemic", IF($J12>1, IF($J12=4, "Unknown", IF($J12=99, "Surveillance", SUM($O12:$Q12))), 0),"Not required") -> 0 | S12: 2823 | T12: 7579 | U12: 13713 | V12: =IF(INTRO!$E$43="Endemic", IF($K12>1, IF($K12=4, "Unknown", IF($K12=99, "Surveillance", SUM($S12:$U12))), 0),"Not required") -> 24115 | W12: 0 | X12: 0 | Y12: 0 | Z12: 1 | AH12: 10661 | AI12: Moussoro | AJ12: 2 | AK12: 2 | AL12: 0
A13: =IF(INTRO!$E$33<>0,INTRO!$E$33, " ") -> Tchad | B13: Bahr El Gazel | C13: Salal | D13: 56105 | E13: =IF(INTRO!$E$48="","",ROUND($D13*INTRO!$E$48,0)) -> 8225 | F13: =IF(INTRO!$E$49="","",ROUND($D13*INTRO!$E$49,0)) -> 16231 | G13: =IF(INTRO!$E$50="","",ROUND($D13*INTRO!$E$50,0)) -> 29365 | H13: 0 | I13: 0 | J13: 1 | K13: 1 | L13: 0 | M13: =IF(INTRO!$E$37="Endemic",IF($H13>0,IF($H13=4,"Unknown",IF($H13=99,"Stopped",$D13)),0),"Not required") -> 0 | N13: =IF(INTRO!$E$39="Endemic", IF($I13>0, IF($I13=4,"Unknown",IF($I13=99,"Stopped",$D13)), 0),"Not required") -> 0 | O13: =IF(INTRO!$E$41="Endemic", IF($J13>1, IF($J13=4, "Unknown", IF($J13=99, "Surveillance", E13)), 0),"Not required") -> 0 | P13: =IF(INTRO!$E$41="Endemic", IF($J13>1, IF($J13=4, "Unknown", IF($J13=99, "Surveillance", F13)), 0),"Not required") -> 0 | Q13: =IF(INTRO!$E$41="Endemic", IF($J13>1, IF($J13=4, "Unknown", IF($J13=99, "Surveillance", ROUND(D13*INTRO!$E$51,0))), 0),"Not required") -> 0 | R13: =IF(INTRO!$E$41="Endemic", IF($J13>1, IF($J13=4, "Unknown", IF($J13=99, "Surveillance", SUM($O13:$Q13))), 0),"Not required") -> 0 | S13: 0 | T13: 0 | U13: 0 | V13: =IF(INTRO!$E$43="Endemic", IF($K13>1, IF($K13=4, "Unknown", IF($K13=99, "Surveillance", SUM($S13:$U13))), 0),"Not required") -> 0 | W13: 0 | X13: 0 | Y13: 0 | Z13: 0 | AH13: 10711 | AI13: Salal | AJ13: 1 | AK13: 2 | AL13: 0
A14: =IF(INTRO!$E$33<>0,INTRO!$E$33, " ") -> Tchad | B14: Batha | C14: Alifa | D14: 131639 | E14: =IF(INTRO!$E$48="","",ROUND($D14*INTRO!$E$48,0)) -> 19298 | F14: =IF(INTRO!$E$49="","",ROUND($D14*INTRO!$E$49,0)) -> 38083 | G14: =IF(INTRO!$E$50="","",ROUND($D14*INTRO!$E$50,0)) -> 68900 | H14: 0 | I14: 0 | J14: 0 | K14: 1 | L14: 0 | M14: =IF(INTRO!$E$37="Endemic",IF($H14>0,IF($H14=4,"Unknown",IF($H14=99,"Stopped",$D14)),0),"Not required") -> 0 | N14: =IF(INTRO!$E$39="Endemic", IF($I14>0, IF($I14=4,"Unknown",IF($I14=99,"Stopped",$D14)), 0),"Not required") -> 0 | O14: =IF(INTRO!$E$41="Endemic", IF($J14>1, IF($J14=4, "Unknown", IF($J14=99, "Surveillance", E14)), 0),"Not required") -> 0 | P14: =IF(INTRO!$E$41="Endemic", IF($J14>1, IF($J14=4, "Unknown", IF($J14=99, "Surveillance", F14)), 0),"Not required") -> 0 | Q14: =IF(INTRO!$E$41="Endemic", IF($J14>1, IF($J14=4, "Unknown", IF($J14=99, "Surveillance", ROUND(D14*INTRO!$E$51,0))), 0),"Not required") -> 0 | R14: =IF(INTRO!$E$41="Endemic", IF($J14>1, IF($J14=4, "Unknown", IF($J14=99, "Surveillance", SUM($O14:$Q14))), 0),"Not required") -> 0 | S14: 0 | T14: 0 | U14: 0 | V14: =IF(INTRO!$E$43="Endemic", IF($K14>1, IF($K14=4, "Unknown", IF($K14=99, "Surveillance", SUM($S14:$U14))), 0),"Not required") -> 0 | W14: 0 | X14: 0 | Y14: 0 | Z14: 0 | AH14: 10739 | AI14: Alifa | AJ14: 1 | AK14: 2 | AL14: 0
A15: =IF(INTRO!$E$33<>0,INTRO!$E$33, " ") -> Tchad | B15: Batha | C15: Assinet | D15: 110766 | E15: =IF(INTRO!$E$48="","",ROUND($D15*INTRO!$E$48,0)) -> 16238 | F15: =IF(INTRO!$E$49="","",ROUND($D15*INTRO!$E$49,0)) -> 32045 | G15: =IF(INTRO!$E$50="","",ROUND($D15*INTRO!$E$50,0)) -> 57975 | H15: 0 | I15: 0 | J15: 0 | K15: 1 | L15: 0 | M15: =IF(INTRO!$E$37="Endemic",IF($H15>0,IF($H15=4,"Unknown",IF($H15=99,"Stopped",$D15)),0),"Not required") -> 0 | N15: =IF(INTRO!$E$39="Endemic", IF($I15>0, IF($I15=4,"Unknown",IF($I15=99,"Stopped",$D15)), 0),"Not required") -> 0 | O15: =IF(INTRO!$E$41="Endemic", IF($J15>1, IF($J15=4, "Unknown", IF($J15=99, "Surveillance", E15)), 0),"Not required") -> 0 | P15: =IF(INTRO!$E$41="Endemic", IF($J15>1, IF($J15=4, "Unknown", IF($J15=99, "Surveillance", F15)), 0),"Not required") -> 0 | Q15: =IF(INTRO!$E$41="Endemic", IF($J15>1, IF($J15=4, "Unknown", IF($J15=99, "Surveillance", ROUND(D15*INTRO!$E$51,0))), 0),"Not required") -> 0 | R15: =IF(INTRO!$E$41="Endemic", IF($J15>1, IF($J15=4, "Unknown", IF($J15=99, "Surveillance", SUM($O15:$Q15))), 0),"Not required") -> 0 | S15: 0 | T15: 0 | U15: 0 | V15: =IF(INTRO!$E$43="Endemic", IF($K15>1, IF($K15=4, "Unknown", IF($K15=99, "Surveillance", SUM($S15:$U15))), 0),"Not required") -> 0 | W15: 0 | X15: 0 | Y15: 0 | Z15: 0 | AH15: 10745 | AI15: Assinet | AJ15: 1 | AK15: 2 | AL15: 0
A16: =IF(INTRO!$E$33<>0,INTRO!$E$33, " ") -> Tchad | B16: Batha | C16: Ati | D16: 71312 | E16: =IF(INTRO!$E$48="","",ROUND($D16*INTRO!$E$48,0)) -> 10454 | F16: =IF(INTRO!$E$49="","",ROUND($D16*INTRO!$E$49,0)) -> 20631 | G16: =IF(INTRO!$E$50="","",ROUND($D16*INTRO!$E$50,0)) -> 37325 | H16: 0 | I16: 0 | J16: 0 | K16: 2 | L16: 0 | M16: =IF(INTRO!$E$37="Endemic",IF($H16>0,IF($H16=4,"Unknown",IF($H16=99,"Stopped",$D16)),0),"Not required") -> 0 | N16: =IF(INTRO!$E$39="Endemic", IF($I16>0, IF($I16=4,"Unknown",IF($I16=99,"Stopped",$D16)), 0),"Not required") -> 0 | O16: =IF(INTRO!$E$41="Endemic", IF($J16>1, IF($J16=4, "Unknown", IF($J16=99, "Surveillance", E16)), 0),"Not required") -> 0 | P16: =IF(INTRO!$E$41="Endemic", IF($J16>1, IF($J16=4, "Unknown", IF($J16=99, "Surveillance", F16)), 0),"Not required") -> 0 | Q16: =IF(INTRO!$E$41="Endemic", IF($J16>1, IF($J16=4, "Unknown", IF($J16=99, "Surveillance", ROUND(D16*INTRO!$E$51,0))), 0),"Not required") -> 0 | R16: =IF(INTRO!$E$41="Endemic", IF($J16>1, IF($J16=4, "Unknown", IF($J16=99, "Surveillance", SUM($O16:$Q16))), 0),"Not required") -> 0 | S16: 3580 | T16: 9611 | U16: 17388 | V16: =IF(INTRO!$E$43="Endemic", IF($K16>1, IF($K16=4, "Unknown", IF($K16=99, "Surveillance", SUM($S16:$U16))), 0),"Not required") -> 30579 | W16: 0 | X16: 0 | Y16: 0 | Z16: 1 | AH16: 10662 | AI16: Ati | AJ16: 2 | AK16: 2 | AL16: 0
A17: =IF(INTRO!$E$33<>0,INTRO!$E$33, " ") -> Tchad | B17: Batha | C17: Djedda | D17: 63150 | E17: =IF(INTRO!$E$48="","",ROUND($D17*INTRO!$E$48,0)) -> 9258 | F17: =IF(INTRO!$E$49="","",ROUND($D17*INTRO!$E$49,0)) -> 18269 | G17: =IF(INTRO!$E$50="","",ROUND($D17*INTRO!$E$50,0)) -> 33053 | H17: 0 | I17: 0 | J17: 0 | K17: 1 | L17: 0 | M17: =IF(INTRO!$E$37="Endemic",IF($H17>0,IF($H17=4,"Unknown",IF($H17=99,"Stopped",$D17)),0),"Not required") -> 0 | N17: =IF(INTRO!$E$39="Endemic", IF($I17>0, IF($I17=4,"Unknown",IF($I17=99,"Stopped",$D17)), 0),"Not required") -> 0 | O17: =IF(INTRO!$E$41="Endemic", IF($J17>1, IF($J17=4, "Unknown", IF($J17=99, "Surveillance", E17)), 0),"Not required") -> 0 | P17: =IF(INTRO!$E$41="Endemic", IF($J17>1, IF($J17=4, "Unknown", IF($J17=99, "Surveillance", F17)), 0),"Not required") -> 0 | Q17: =IF(INTRO!$E$41="Endemic", IF($J17>1, IF($J17=4, "Unknown", IF($J17=99, "Surveillance", ROUND(D17*INTRO!$E$51,0))), 0),"Not required") -> 0 | R17: =IF(INTRO!$E$41="Endemic", IF($J17>1, IF($J17=4, "Unknown", IF($J17=99, "Surveillance", SUM($O17:$Q17))), 0),"Not required") -> 0 | S17: 0 | T17: 0 | U17: 0 | V17: =IF(INTRO!$E$43="Endemic", IF($K17>1, IF($K17=4, "Unknown", IF($K17=99, "Surveillance", SUM($S17:$U17))), 0),"Not required") -> 0 | W17: 0 | X17: 0 | Y17: 0 | Z17: 0 | AH17: 10761 | AI17: Djedda | AJ17: 1 | AK17: 2 | AL17: 0
A18: =IF(INTRO!$E$33<>0,INTRO!$E$33, " ") -> Tchad | B18: Batha | C18: Koundjourou | D18: 99475 | E18: =IF(INTRO!$E$48="","",ROUND($D18*INTRO!$E$48,0)) -> 14583 | F18: =IF(INTRO!$E$49="","",ROUND($D18*INTRO!$E$49,0)) -> 28778 | G18: =IF(INTRO!$E$50="","",ROUND($D18*INTRO!$E$50,0)) -> 52065 | H18: 0 | I18: 0 | J18: 0 | K18: 1 | L18: 0 | M18: =IF(INTRO!$E$37="Endemic",IF($H18>0,IF($H18=4,"Unknown",IF($H18=99,"Stopped",$D18)),0),"Not required") -> 0 | N18: =IF(INTRO!$E$39="Endemic", IF($I18>0, IF($I18=4,"Unknown",IF($I18=99,"Stopped",$D18)), 0),"Not required") -> 0 | O18: =IF(INTRO!$E$41="Endemic", IF($J18>1, IF($J18=4, "Unknown", IF($J18=99, "Surveillance", E18)), 0),"Not required") -> 0 | P18: =IF(INTRO!$E$41="Endemic", IF($J18>1, IF($J18=4, "Unknown", IF($J18=99, "Surveillance", F18)), 0),"Not required") -> 0 | Q18: =IF(INTRO!$E$41="Endemic", IF($J18>1, IF($J18=4, "Unknown", IF($J18=99, "Surveillance", ROUND(D18*INTRO!$E$51,0))), 0),"Not required") -> 0 | R18: =IF(INTRO!$E$41="Endemic", IF($J18>1, IF($J18=4, "Unknown", IF($J18=99, "Surveillance", SUM($O18:$Q18))), 0),"Not required") -> 0 | S18: 0 | T18: 0 | U18: 0 | V18: =IF(INTRO!$E$43="Endemic", IF($K18>1, IF($K18=4, "Unknown", IF($K18=99, "Surveillance", SUM($S18:$U18))), 0),"Not required") -> 0 | W18: 0 | X18: 0 | Y18: 0 | Z18: 0 | AH18: 10762 | AI18: Koundjourou | AJ18: 1 | AK18: 2 | AL18: 0
A19: =IF(INTRO!$E$33<>0,INTRO!$E$33, " ") -> Tchad | B19: Batha | C19: Oum-Hadjer | D19: 178468 | E19: =IF(INTRO!$E$48="","",ROUND($D19*INTRO!$E$48,0)) -> 26163 | F19: =IF(INTRO!$E$49="","",ROUND($D19*INTRO!$E$49,0)) -> 51631 | G19: =IF(INTRO!$E$50="","",ROUND($D19*INTRO!$E$50,0)) -> 93410 | H19: 0 | I19: 0 | J19: 0 | K19: 2 | L19: 0 | M19: =IF(INTRO!$E$37="Endemic",IF($H19>0,IF($H19=4,"Unknown",IF($H19=99,"Stopped",$D19)),0),"Not required") -> 0 | N19: =IF(INTRO!$E$39="Endemic", IF($I19>0, IF($I19=4,"Unknown",IF($I19=99,"Stopped",$D19)), 0),"Not required") -> 0 | O19: =IF(INTRO!$E$41="Endemic", IF($J19>1, IF($J19=4, "Unknown", IF($J19=99, "Surveillance", E19)), 0),"Not required") -> 0 | P19: =IF(INTRO!$E$41="Endemic", IF($J19>1, IF($J19=4, "Unknown", IF($J19=99, "Surveillance", F19)), 0),"Not required") -> 0 | Q19: =IF(INTRO!$E$41="Endemic", IF($J19>1, IF($J19=4, "Unknown", IF($J19=99, "Surveillance", ROUND(D19*INTRO!$E$51,0))), 0),"Not required") -> 0 | R19: =IF(INTRO!$E$41="Endemic", IF($J19>1, IF($J19=4, "Unknown", IF($J19=99, "Surveillance", SUM($O19:$Q19))), 0),"Not required") -> 0 | S19: 8159 | T19: 21904 | U19: 39631 | V19: =IF(INTRO!$E$43="Endemic", IF($K19>1, IF($K19=4, "Unknown", IF($K19=99, "Surveillance", SUM($S19:$U19))), 0),"Not required") -> 69694 | W19: 0 | X19: 0 | Y19: 0 | Z19: 1 | AH19: 10663 | AI19: Oum-Hadjer | AJ19: 2 | AK19: 2 | AL19: 0
A20: =IF(INTRO!$E$33<>0,INTRO!$E$33, " ") -> Tchad | B20: Batha | C20: Yao | D20: 129681 | E20: =IF(INTRO!$E$48="","",ROUND($D20*INTRO!$E$48,0)) -> 19011 | F20: =IF(INTRO!$E$49="","",ROUND($D20*INTRO!$E$49,0)) -> 37517 | G20: =IF(INTRO!$E$50="","",ROUND($D20*INTRO!$E$50,0)) -> 67875 | H20: 0 | I20: 0 | J20: 1 | K20: 3 | L20: 0 | M20: =IF(INTRO!$E$37="Endemic",IF($H20>0,IF($H20=4,"Unknown",IF($H20=99,"Stopped",$D20)),0),"Not required") -> 0 | N20: =IF(INTRO!$E$39="Endemic", IF($I20>0, IF($I20=4,"Unknown",IF($I20=99,"Stopped",$D20)), 0),"Not required") -> 0 | O20: =IF(INTRO!$E$41="Endemic", IF($J20>1, IF($J20=4, "Unknown", IF($J20=99, "Surveillance", E20)), 0),"Not required") -> 0 | P20: =IF(INTRO!$E$41="Endemic", IF($J20>1, IF($J20=4, "Unknown", IF($J20=99, "Surveillance", F20)), 0),"Not required") -> 0 | Q20: =IF(INTRO!$E$41="Endemic", IF($J20>1, IF($J20=4, "Unknown", IF($J20=99, "Surveillance", ROUND(D20*INTRO!$E$51,0))), 0),"Not required") -> 0 | R20: =IF(INTRO!$E$41="Endemic", IF($J20>1, IF($J20=4, "Unknown", IF($J20=99, "Surveillance", SUM($O20:$Q20))), 0),"Not required") -> 0 | S20: 4367 | T20: 11726 | U20: 21215 | V20: =IF(INTRO!$E$43="Endemic", IF($K20>1, IF($K20=4, "Unknown", IF($K20=99, "Surveillance", SUM($S20:$U20))), 0),"Not required") -> 37308 | W20: 0 | X20: 0 | Y20: 0 | Z20: 1 | AH20: 10664 | AI20: Yao | AJ20: 3 | AK20: 2 | AL20: 0
A21: =IF(INTRO!$E$33<>0,INTRO!$E$33, " ") -> Tchad | B21: Borkou | C21: Faya | D21: 51096 | E21: =IF(INTRO!$E$48="","",ROUND($D21*INTRO!$E$48,0)) -> 7491 | F21: =IF(INTRO!$E$49="","",ROUND($D21*INTRO!$E$49,0)) -> 14782 | G21: =IF(INTRO!$E$50="","",ROUND($D21*INTRO!$E$50,0)) -> 26744 | H21: 0 | I21: 0 | J21: 1 | K21: 1 | L21: 0 | M21: =IF(INTRO!$E$37="Endemic",IF($H21>0,IF($H21=4,"Unknown",IF($H21=99,"Stopped",$D21)),0),"Not required") -> 0 | N21: =IF(INTRO!$E$39="Endemic", IF($I21>0, IF($I21=4,"Unknown",IF($I21=99,"Stopped",$D21)), 0),"Not required") -> 0 | O21: =IF(INTRO!$E$41="Endemic", IF($J21>1, IF($J21=4, "Unknown", IF($J21=99, "Surveillance", E21)), 0),"Not required") -> 0 | P21: =IF(INTRO!$E$41="Endemic", IF($J21>1, IF($J21=4, "Unknown", IF($J21=99, "Surveillance", F21)), 0),"Not required") -> 0 | Q21: =IF(INTRO!$E$41="Endemic", IF($J21>1, IF($J21=4, "Unknown", IF($J21=99, "Surveillance", ROUND(D21*INTRO!$E$51,0))), 0),"Not required") -> 0 | R21: =IF(INTRO!$E$41="Endemic", IF($J21>1, IF($J21=4, "Unknown", IF($J21=99, "Surveillance", SUM($O21:$Q21))), 0),"Not required") -> 0 | S21: 0 | T21: 0 | U21: 0 | V21: =IF(INTRO!$E$43="Endemic", IF($K21>1, IF($K21=4, "Unknown", IF($K21=99, "Surveillance", SUM($S21:$U21))), 0),"Not required") -> 0 | W21: 0 | X21: 0 | Y21: 0 | Z21: 0 | AH21: 10666 | AI21: Faya | AJ21: 1 | AK21: 1 | AL21: 0
A22: =IF(INTRO!$E$33<>0,INTRO!$E$33, " ") -> Tchad | B22: Borkou | C22: Kirdimi | D22: 42452 | E22: =IF(INTRO!$E$48="","",ROUND($D22*INTRO!$E$48,0)) -> 6223 | F22: =IF(INTRO!$E$49="","",ROUND($D22*INTRO!$E$49,0)) -> 12281 | G22: =IF(INTRO!$E$50="","",ROUND($D22*INTRO!$E$50,0)) -> 22219 | H22: 0 | I22: 0 | J22: 1 | K22: 1 | L22: 0 | M22: =IF(INTRO!$E$37="Endemic",IF($H22>0,IF($H22=4,"Unknown",IF($H22=99,"Stopped",$D22)),0),"Not required") -> 0 | N22: =IF(INTRO!$E$39="Endemic", IF($I22>0, IF($I22=4,"Unknown",IF($I22=99,"Stopped",$D22)), 0),"Not required") -> 0 | O22: =IF(INTRO!$E$41="Endemic", IF($J22>1, IF($J22=4, "Unknown", IF($J22=99, "Surveillance", E22)), 0),"Not required") -> 0 | P22: =IF(INTRO!$E$41="Endemic", IF($J22>1, IF($J22=4, "Unknown", IF($J22=99, "Surveillance", F22)), 0),"Not required") -> 0 | Q22: =IF(INTRO!$E$41="Endemic", IF($J22>1, IF($J22=4, "Unknown", IF($J22=99, "Surveillance", ROUND(D22*INTRO!$E$51,0))), 0),"Not required") -> 0 | R22: =IF(INTRO!$E$41="Endemic", IF($J22>1, IF($J22=4, "Unknown", IF($J22=99, "Surveillance", SUM($O22:$Q22))), 0),"Not required") -> 0 | S22: 0 | T22: 0 | U22: 0 | V22: =IF(INTRO!$E$43="Endemic", IF($K22>1, IF($K22=4, "Unknown", IF($K22=99, "Surveillance", SUM($S22:$U22))), 0),"Not required") -> 0 | W22: 0 | X22: 0 | Y22: 0 | Z22: 0 | AH22: 10746 | AI22: Kirdimi | AJ22: 1 | AK22: 1 | AL22: 0
A23: =IF(INTRO!$E$33<>0,INTRO!$E$33, " ") -> Tchad | B23: Borkou | C23: Kouba Olanga | D23: 63674 | E23: =IF(INTRO!$E$48="","",ROUND($D23*INTRO!$E$48,0)) -> 9335 | F23: =IF(INTRO!$E$49="","",ROUND($D23*INTRO!$E$49,0)) -> 18421 | G23: =IF(INTRO!$E$50="","",ROUND($D23*INTRO!$E$50,0)) -> 33327 | H23: 0 | I23: 0 | J23: 1 | K23: 1 | L23: 0 | M23: =IF(INTRO!$E$37="Endemic",IF($H23>0,IF($H23=4,"Unknown",IF($H23=99,"Stopped",$D23)),0),"Not required") -> 0 | N23: =IF(INTRO!$E$39="Endemic", IF($I23>0, IF($I23=4,"Unknown",IF($I23=99,"Stopped",$D23)), 0),"Not required") -> 0 | O23: =IF(INTRO!$E$41="Endemic", IF($J23>1, IF($J23=4, "Unknown", IF($J23=99, "Surveillance", E23)), 0),"Not required") -> 0 | P23: =IF(INTRO!$E$41="Endemic", IF($J23>1, IF($J23=4, "Unknown", IF($J23=99, "Surveillance", F23)), 0),"Not required") -> 0 | Q23: =IF(INTRO!$E$41="Endemic", IF($J23>1, IF($J23=4, "Unknown", IF($J23=99, "Surveillance", ROUND(D23*INTRO!$E$51,0))), 0),"Not required") -> 0 | R23: =IF(INTRO!$E$41="Endemic", IF($J23>1, IF($J23=4, "Unknown", IF($J23=99, "Surveillance", SUM($O23:$Q23))), 0),"Not required") -> 0 | S23: 0 | T23: 0 | U23: 0 | V23: =IF(INTRO!$E$43="Endemic", IF($K23>1, IF($K23=4, "Unknown", IF($K23=99, "Surveillance", SUM($S23:$U23))), 0),"Not required") -> 0 | W23: 0 | X23: 0 | Y23: 0 | Z23: 0 | AH23: 10783 | AI23: Kouba Olanga | AJ23: 1 | AK23: 1 | AL23: 0
A24: =IF(INTRO!$E$33<>0,INTRO!$E$33, " ") -> Tchad | B24: Chari Baguirmi | C24: Ba-Illi | D24: 152018 | E24: =IF(INTRO!$E$48="","",ROUND($D24*INTRO!$E$48,0)) -> 22286 | F24: =IF(INTRO!$E$49="","",ROUND($D24*INTRO!$E$49,0)) -> 43979 | G24: =IF(INTRO!$E$50="","",ROUND($D24*INTRO!$E$50,0)) -> 79566 | H24: 0 | I24: 4 | J24: 1 | K24: 2 | L24: 0 | M24: =IF(INTRO!$E$37="Endemic",IF($H24>0,IF($H24=4,"Unknown",IF($H24=99,"Stopped",$D24)),0),"Not required") -> 0 | N24: =IF(INTRO!$E$39="Endemic", IF($I24>0, IF($I24=4,"Unknown",IF($I24=99,"Stopped",$D24)), 0),"Not required") -> Unknown | O24: =IF(INTRO!$E$41="Endemic", IF($J24>1, IF($J24=4, "Unknown", IF($J24=99, "Surveillance", E24)), 0),"Not required") -> 0 | P24: =IF(INTRO!$E$41="Endemic", IF($J24>1, IF($J24=4, "Unknown", IF($J24=99, "Surveillance", F24)), 0),"Not required") -> 0 | Q24: =IF(INTRO!$E$41="Endemic", IF($J24>1, IF($J24=4, "Unknown", IF($J24=99, "Surveillance", ROUND(D24*INTRO!$E$51,0))), 0),"Not required") -> 0 | R24: =IF(INTRO!$E$41="Endemic", IF($J24>1, IF($J24=4, "Unknown", IF($J24=99, "Surveillance", SUM($O24:$Q24))), 0),"Not required") -> 0 | S24: 3132 | T24: 8410 | U24: 15216 | V24: =IF(INTRO!$E$43="Endemic", IF($K24>1, IF($K24=4, "Unknown", IF($K24=99, "Surveillance", SUM($S24:$U24))), 0),"Not required") -> 26758 | W24: 0 | X24: 0 | Y24: 0 | Z24: 1 | AH24: 10667 | AI24: Ba-Illi | AJ24: 2 | AK24: 2 | AL24: 1
A25: =IF(INTRO!$E$33<>0,INTRO!$E$33, " ") -> Tchad | B25: Chari Baguirmi | C25: Bousso | D25: 137882 | E25: =IF(INTRO!$E$48="","",ROUND($D25*INTRO!$E$48,0)) -> 20214 | F25: =IF(INTRO!$E$49="","",ROUND($D25*INTRO!$E$49,0)) -> 39889 | G25: =IF(INTRO!$E$50="","",ROUND($D25*INTRO!$E$50,0)) -> 72167 | H25: 0 | I25: 4 | J25: 1 | K25: 3 | L25: 0 | M25: =IF(INTRO!$E$37="Endemic",IF($H25>0,IF($H25=4,"Unknown",IF($H25=99,"Stopped",$D25)),0),"Not required") -> 0 | N25: =IF(INTRO!$E$39="Endemic", IF($I25>0, IF($I25=4,"Unknown",IF($I25=99,"Stopped",$D25)), 0),"Not required") -> Unknown | O25: =IF(INTRO!$E$41="Endemic", IF($J25>1, IF($J25=4, "Unknown", IF($J25=99, "Surveillance", E25)), 0),"Not required") -> 0 | P25: =IF(INTRO!$E$41="Endemic", IF($J25>1, IF($J25=4, "Unknown", IF($J25=99, "Surveillance", F25)), 0),"Not required") -> 0 | Q25: =IF(INTRO!$E$41="Endemic", IF($J25>1, IF($J25=4, "Unknown", IF($J25=99, "Surveillance", ROUND(D25*INTRO!$E$51,0))), 0),"Not required") -> 0 | R25: =IF(INTRO!$E$41="Endemic", IF($J25>1, IF($J25=4, "Unknown", IF($J25=99, "Surveillance", SUM($O25:$Q25))), 0),"Not required") -> 0 | S25: 6271 | T25: 16834 | U25: 30457 | V25: =IF(INTRO!$E$43="Endemic", IF($K25>1, IF($K25=4, "Unknown", IF($K25=99, "Surveillance", SUM($S25:$U25))), 0),"Not required") -> 53562 | W25: 0 | X25: 0 | Y25: 0 | Z25: 1 | AH25: 10668 | AI25: Bousso | AJ25: 3 | AK25: 2 | AL25: 1
A26: =IF(INTRO!$E$33<>0,INTRO!$E$33, " ") -> Tchad | B26: Chari Baguirmi | C26: Dourbali | D26: 213596 | E26: =IF(INTRO!$E$48="","",ROUND($D26*INTRO!$E$48,0)) -> 31313 | F26: =IF(INTRO!$E$49="","",ROUND($D26*INTRO!$E$49,0)) -> 61793 | G26: =IF(INTRO!$E$50="","",ROUND($D26*INTRO!$E$50,0)) -> 111796 | H26: 0 | I26: 4 | J26: 1 | K26: 2 | L26: 0 | M26: =IF(INTRO!$E$37="Endemic",IF($H26>0,IF($H26=4,"Unknown",IF($H26=99,"Stopped",$D26)),0),"Not required") -> 0 | N26: =IF(INTRO!$E$39="Endemic", IF($I26>0, IF($I26=4,"Unknown",IF($I26=99,"Stopped",$D26)), 0),"Not required") -> Unknown | O26: =IF(INTRO!$E$41="Endemic", IF($J26>1, IF($J26=4, "Unknown", IF($J26=99, "Surveillance", E26)), 0),"Not required") -> 0 | P26: =IF(INTRO!$E$41="Endemic", IF($J26>1, IF($J26=4, "Unknown", IF($J26=99, "Surveillance", F26)), 0),"Not required") -> 0 | Q26: =IF(INTRO!$E$41="Endemic", IF($J26>1, IF($J26=4, "Unknown", IF($J26=99, "Surveillance", ROUND(D26*INTRO!$E$51,0))), 0),"Not required") -> 0 | R26: =IF(INTRO!$E$41="Endemic", IF($J26>1, IF($J26=4, "Unknown", IF($J26=99, "Surveillance", SUM($O26:$Q26))), 0),"Not required") -> 0 | S26: 4364 | T26: 11716 | U26: 21196 | V26: =IF(INTRO!$E$43="Endemic", IF($K26>1, IF($K26=4, "Unknown", IF($K26=99, "Surveillance", SUM($S26:$U26))), 0),"Not required") -> 37276 | W26: 0 | X26: 0 | Y26: 0 | Z26: 1 | AH26: 10669 | AI26: Dourbali | AJ26: 2 | AK26: 2 | AL26: 1
A27: =IF(INTRO!$E$33<>0,INTRO!$E$33, " ") -> Tchad | B27: Chari Baguirmi | C27: Koulno | D27: 50611 | E27: =IF(INTRO!$E$48="","",ROUND($D27*INTRO!$E$48,0)) -> 7420 | F27: =IF(INTRO!$E$49="","",ROUND($D27*INTRO!$E$49,0)) -> 14642 | G27: =IF(INTRO!$E$50="","",ROUND($D27*INTRO!$E$50,0)) -> 26490 | H27: 0 | I27: 4 | J27: 1 | K27: 1 | L27: 0 | M27: =IF(INTRO!$E$37="Endemic",IF($H27>0,IF($H27=4,"Unknown",IF($H27=99,"Stopped",$D27)),0),"Not required") -> 0 | N27: =IF(INTRO!$E$39="Endemic", IF($I27>0, IF($I27=4,"Unknown",IF($I27=99,"Stopped",$D27)), 0),"Not required") -> Unknown | O27: =IF(INTRO!$E$41="Endemic", IF($J27>1, IF($J27=4, "Unknown", IF($J27=99, "Surveillance", E27)), 0),"Not required") -> 0 | P27: =IF(INTRO!$E$41="Endemic", IF($J27>1, IF($J27=4, "Unknown", IF($J27=99, "Surveillance", F27)), 0),"Not required") -> 0 | Q27: =IF(INTRO!$E$41="Endemic", IF($J27>1, IF($J27=4, "Unknown", IF($J27=99, "Surveillance", ROUND(D27*INTRO!$E$51,0))), 0),"Not required") -> 0 | R27: =IF(INTRO!$E$41="Endemic", IF($J27>1, IF($J27=4, "Unknown", IF($J27=99, "Surveillance", SUM($O27:$Q27))), 0),"Not required") -> 0 | S27: 0 | T27: 0 | U27: 0 | V27: =IF(INTRO!$E$43="Endemic", IF($K27>1, IF($K27=4, "Unknown", IF($K27=99, "Surveillance", SUM($S27:$U27))), 0),"Not required") -> 0 | W27: 0 | X27: 0 | Y27: 0 | Z27: 0 | AH27: 10747 | AI27: Koulno | AJ27: 1 | AK27: 2 | AL27: 0
A28: =IF(INTRO!$E$33<>0,INTRO!$E$33, " ") -> Tchad | B28: Chari Baguirmi | C28: Mandélia | D28: 207154 | E28: =IF(INTRO!$E$48="","",ROUND($D28*INTRO!$E$48,0)) -> 30369 | F28: =IF(INTRO!$E$49="","",ROUND($D28*INTRO!$E$49,0)) -> 59930 | G28: =IF(INTRO!$E$50="","",ROUND($D28*INTRO!$E$50,0)) -> 108424 | H28: 0 | I28: 4 | J28: 1 | K28: 2 | L28: 0 | M28: =IF(INTRO!$E$37="Endemic",IF($H28>0,IF($H28=4,"Unknown",IF($H28=99,"Stopped",$D28)),0),"Not required") -> 0 | N28: =IF(INTRO!$E$39="Endemic", IF($I28>0, IF($I28=4,"Unknown",IF($I28=99,"Stopped",$D28)), 0),"Not required") -> Unknown | O28: =IF(INTRO!$E$41="Endemic", IF($J28>1, IF($J28=4, "Unknown", IF($J28=99, "Surveillance", E28)), 0),"Not required") -> 0 | P28: =IF(INTRO!$E$41="Endemic", IF($J28>1, IF($J28=4, "Unknown", IF($J28=99, "Surveillance", F28)), 0),"Not required") -> 0 | Q28: =IF(INTRO!$E$41="Endemic", IF($J28>1, IF($J28=4, "Unknown", IF($J28=99, "Surveillance", ROUND(D28*INTRO!$E$51,0))), 0),"Not required") -> 0 | R28: =IF(INTRO!$E$41="Endemic", IF($J28>1, IF($J28=4, "Unknown", IF($J28=99, "Surveillance", SUM($O28:$Q28))), 0),"Not required") -> 0 | S28: 5204 | T28: 13971 | U28: 25277 | V28: =IF(INTRO!$E$43="Endemic", IF($K28>1, IF($K28=4, "Unknown", IF($K28=99, "Surveillance", SUM($S28:$U28))), 0),"Not required") -> 44452 | W28: 0 | X28: 0 | Y28: 0 | Z28: 1 | AH28: 10671 | AI28: Mandélia | AJ28: 2 | AK28: 2 | AL28: 0
A29: =IF(INTRO!$E$33<>0,INTRO!$E$33, " ") -> Tchad | B29: Chari Baguirmi | C29: Massenya | D29: 200898 | E29: =IF(INTRO!$E$48="","",ROUND($D29*INTRO!$E$48,0)) -> 29452 | F29: =IF(INTRO!$E$49="","",ROUND($D29*INTRO!$E$49,0)) -> 58120 | G29: =IF(INTRO!$E$50="","",ROUND($D29*INTRO!$E$50,0)) -> 105150 | H29: 0 | I29: 4 | J29: 1 | K29: 3 | L29: 0 | M29: =IF(INTRO!$E$37="Endemic",IF($H29>0,IF($H29=4,"Unknown",IF($H29=99,"Stopped",$D29)),0),"Not required") -> 0 | N29: =IF(INTRO!$E$39="Endemic", IF($I29>0, IF($I29=4,"Unknown",IF($I29=99,"Stopped",$D29)), 0),"Not required") -> Unknown | O29: =IF(INTRO!$E$41="Endemic", IF($J29>1, IF($J29=4, "Unknown", IF($J29=99, "Surveillance", E29)), 0),"Not required") -> 0 | P29: =IF(INTRO!$E$41="Endemic", IF($J29>1, IF($J29=4, "Unknown", IF($J29=99, "Surveillance", F29)), 0),"Not required") -> 0 | Q29: =IF(INTRO!$E$41="Endemic", IF($J29>1, IF($J29=4, "Unknown", IF($J29=99, "Surveillance", ROUND(D29*INTRO!$E$51,0))), 0),"Not required") -> 0 | R29: =IF(INTRO!$E$41="Endemic", IF($J29>1, IF($J29=4, "Unknown", IF($J29=99, "Surveillance", SUM($O29:$Q29))), 0),"Not required") -> 0 | S29: 4241 | T29: 11388 | U29: 20602 | V29: =IF(INTRO!$E$43="Endemic", IF($K29>1, IF($K29=4, "Unknown", IF($K29=99, "Surveillance", SUM($S29:$U29))), 0),"Not required") -> 36231 | W29: 0 | X29: 0 | Y29: 0 | Z29: 1 | AH29: 10672 | AI29: Massenya | AJ29: 3 | AK29: 2 | AL29: 1
A30: =IF(INTRO!$E$33<>0,INTRO!$E$33, " ") -> Tchad | B30: Ennedi Est | C30: Amdjarass | D30: 54392 | E30: =IF(INTRO!$E$48="","",ROUND($D30*INTRO!$E$48,0)) -> 7974 | F30: =IF(INTRO!$E$49="","",ROUND($D30*INTRO!$E$49,0)) -> 15736 | G30: =IF(INTRO!$E$50="","",ROUND($D30*INTRO!$E$50,0)) -> 28469 | H30: 0 | I30: 0 | J30: 1 | K30: 0 | L30: 0 | M30: =IF(INTRO!$E$37="Endemic",IF($H30>0,IF($H30=4,"Unknown",IF($H30=99,"Stopped",$D30)),0),"Not required") -> 0 | N30: =IF(INTRO!$E$39="Endemic", IF($I30>0, IF($I30=4,"Unknown",IF($I30=99,"Stopped",$D30)), 0),"Not required") -> 0 | O30: =IF(INTRO!$E$41="Endemic", IF($J30>1, IF($J30=4, "Unknown", IF($J30=99, "Surveillance", E30)), 0),"Not required") -> 0 | P30: =IF(INTRO!$E$41="Endemic", IF($J30>1, IF($J30=4, "Unknown", IF($J30=99, "Surveillance", F30)), 0),"Not required") -> 0 | Q30: =IF(INTRO!$E$41="Endemic", IF($J30>1, IF($J30=4, "Unknown", IF($J30=99, "Surveillance", ROUND(D30*INTRO!$E$51,0))), 0),"Not required") -> 0 | R30: =IF(INTRO!$E$41="Endemic", IF($J30>1, IF($J30=4, "Unknown", IF($J30=99, "Surveillance", SUM($O30:$Q30))), 0),"Not required") -> 0 | S30: 0 | T30: 0 | U30: 0 | V30: =IF(INTRO!$E$43="Endemic", IF($K30>1, IF($K30=4, "Unknown", IF($K30=99, "Surveillance", SUM($S30:$U30))), 0),"Not required") -> 0 | W30: 0 | X30: 0 | Y30: 0 | Z30: 0 | AH30: 10675 | AI30: Amdjarass | AJ30: 0 | AK30: 0 | AL30: 0
A31: =IF(INTRO!$E$33<>0,INTRO!$E$33, " ") -> Tchad | B31: Ennedi Est | C31: Bahaï | D31: 72627 | E31: =IF(INTRO!$E$48="","",ROUND($D31*INTRO!$E$48,0)) -> 10647 | F31: =IF(INTRO!$E$49="","",ROUND($D31*INTRO!$E$49,0)) -> 21011 | G31: =IF(INTRO!$E$50="","",ROUND($D31*INTRO!$E$50,0)) -> 38013 | H31: 0 | I31: 0 | J31: 1 | K31: 0 | L31: 0 | M31: =IF(INTRO!$E$37="Endemic",IF($H31>0,IF($H31=4,"Unknown",IF($H31=99,"Stopped",$D31)),0),"Not required") -> 0 | N31: =IF(INTRO!$E$39="Endemic", IF($I31>0, IF($I31=4,"Unknown",IF($I31=99,"Stopped",$D31)), 0),"Not required") -> 0 | O31: =IF(INTRO!$E$41="Endemic", IF($J31>1, IF($J31=4, "Unknown", IF($J31=99, "Surveillance", E31)), 0),"Not required") -> 0 | P31: =IF(INTRO!$E$41="Endemic", IF($J31>1, IF($J31=4, "Unknown", IF($J31=99, "Surveillance", F31)), 0),"Not required") -> 0 | Q31: =IF(INTRO!$E$41="Endemic", IF($J31>1, IF($J31=4, "Unknown", IF($J31=99, "Surveillance", ROUND(D31*INTRO!$E$51,0))), 0),"Not required") -> 0 | R31: =IF(INTRO!$E$41="Endemic", IF($J31>1, IF($J31=4, "Unknown", IF($J31=99, "Surveillance", SUM($O31:$Q31))), 0),"Not required") -> 0 | S31: 0 | T31: 0 | U31: 0 | V31: =IF(INTRO!$E$43="Endemic", IF($K31>1, IF($K31=4, "Unknown", IF($K31=99, "Surveillance", SUM($S31:$U31))), 0),"Not required") -> 0 | W31: 0 | X31: 0 | Y31: 0 | Z31: 0 | AH31: 10676 | AI31: Bahaï | AJ31: 0 | AK31: 0 | AL31: 0
A32: =IF(INTRO!$E$33<>0,INTRO!$E$33, " ") -> Tchad | B32: Ennedi Est | C32: Kaoura | D32: 40763 | E32: =IF(INTRO!$E$48="","",ROUND($D32*INTRO!$E$48,0)) -> 5976 | F32: =IF(INTRO!$E$49="","",ROUND($D32*INTRO!$E$49,0)) -> 11793 | G32: =IF(INTRO!$E$50="","",ROUND($D32*INTRO!$E$50,0)) -> 21335 | H32: 0 | I32: 0 | J32: 1 | K32: 0 | L32: 0 | M32: =IF(INTRO!$E$37="Endemic",IF($H32>0,IF($H32=4,"Unknown",IF($H32=99,"Stopped",$D32)),0),"Not required") -> 0 | N32: =IF(INTRO!$E$39="Endemic", IF($I32>0, IF($I32=4,"Unknown",IF($I32=99,"Stopped",$D32)), 0),"Not required") -> 0 | O32: =IF(INTRO!$E$41="Endemic", IF($J32>1, IF($J32=4, "Unknown", IF($J32=99, "Surveillance", E32)), 0),"Not required") -> 0 | P32: =IF(INTRO!$E$41="Endemic", IF($J32>1, IF($J32=4, "Unknown", IF($J32=99, "Surveillance", F32)), 0),"Not required") -> 0 | Q32: =IF(INTRO!$E$41="Endemic", IF($J32>1, IF($J32=4, "Unknown", IF($J32=99, "Surveillance", ROUND(D32*INTRO!$E$51,0))), 0),"Not required") -> 0 | R32: =IF(INTRO!$E$41="Endemic", IF($J32>1, IF($J32=4, "Unknown", IF($J32=99, "Surveillance", SUM($O32:$Q32))), 0),"Not required") -> 0 | S32: 0 | T32: 0 | U32: 0 | V32: =IF(INTRO!$E$43="Endemic", IF($K32>1, IF($K32=4, "Unknown", IF($K32=99, "Surveillance", SUM($S32:$U32))), 0),"Not required") -> 0 | W32: 0 | X32: 0 | Y32: 0 | Z32: 0 | AH32: 10678 | AI32: Kaoura | AJ32: 0 | AK32: 1 | AL32: 0
A33: =IF(INTRO!$E$33<>0,INTRO!$E$33, " ") -> Tchad | B33: Ennedi Est | C33: Mourdi | D33: 14814 | E33: =IF(INTRO!$E$48="","",ROUND($D33*INTRO!$E$48,0)) -> 2172 | F33: =IF(INTRO!$E$49="","",ROUND($D33*INTRO!$E$49,0)) -> 4286 | G33: =IF(INTRO!$E$50="","",ROUND($D33*INTRO!$E$50,0)) -> 7754 | H33: 0 | I33: 0 | J33: 1 | K33: 1 | L33: 0 | M33: =IF(INTRO!$E$37="Endemic",IF($H33>0,IF($H33=4,"Unknown",IF($H33=99,"Stopped",$D33)),0),"Not required") -> 0 | N33: =IF(INTRO!$E$39="Endemic", IF($I33>0, IF($I33=4,"Unknown",IF($I33=99,"Stopped",$D33)), 0),"Not required") -> 0 | O33: =IF(INTRO!$E$41="Endemic", IF($J33>1, IF($J33=4, "Unknown", IF($J33=99, "Surveillance", E33)), 0),"Not required") -> 0 | P33: =IF(INTRO!$E$41="Endemic", IF($J33>1, IF($J33=4, "Unknown", IF($J33=99, "Surveillance", F33)), 0),"Not required") -> 0 | Q33: =IF(INTRO!$E$41="Endemic", IF($J33>1, IF($J33=4, "Unknown", IF($J33=99, "Surveillance", ROUND(D33*INTRO!$E$51,0))), 0),"Not required") -> 0 | R33: =IF(INTRO!$E$41="Endemic", IF($J33>1, IF($J33=4, "Unknown", IF($J33=99, "Surveillance", SUM($O33:$Q33))), 0),"Not required") -> 0 | S33: 0 | T33: 0 | U33: 0 | V33: =IF(INTRO!$E$43="Endemic", IF($K33>1, IF($K33=4, "Unknown", IF($K33=99, "Surveillance", SUM($S33:$U33))), 0),"Not required") -> 0 | W33: 0 | X33: 0 | Y33: 0 | Z33: 0 | AH33: 10784 | AI33: Mourdi | AJ33: 1 | AK33: 1 | AL33: 0
A34: =IF(INTRO!$E$33<>0,INTRO!$E$33, " ") -> Tchad | B34: Ennedi Ouest | C34: Fada | D34: 29045 | E34: =IF(INTRO!$E$48="","",ROUND($D34*INTRO!$E$48,0)) -> 4258 | F34: =IF(INTRO!$E$49="","",ROUND($D34*INTRO!$E$49,0)) -> 8403 | G34: =IF(INTRO!$E$50="","",ROUND($D34*INTRO!$E$50,0)) -> 15202 | H34: 0 | I34: 0 | J34: 1 | K34: 1 | L34: 0 | M34: =IF(INTRO!$E$37="Endemic",IF($H34>0,IF($H34=4,"Unknown",IF($H34=99,"Stopped",$D34)),0),"Not required") -> 0 | N34: =IF(INTRO!$E$39="Endemic", IF($I34>0, IF($I34=4,"Unknown",IF($I34=99,"Stopped",$D34)), 0),"Not required") -> 0 | O34: =IF(INTRO!$E$41="Endemic", IF($J34>1, IF($J34=4, "Unknown", IF($J34=99, "Surveillance", E34)), 0),"Not required") -> 0 | P34: =IF(INTRO!$E$41="Endemic", IF($J34>1, IF($J34=4, "Unknown", IF($J34=99, "Surveillance", F34)), 0),"Not required") -> 0 | Q34: =IF(INTRO!$E$41="Endemic", IF($J34>1, IF($J34=4, "Unknown", IF($J34=99, "Surveillance", ROUND(D34*INTRO!$E$51,0))), 0),"Not required") -> 0 | R34: =IF(INTRO!$E$41="Endemic", IF($J34>1, IF($J34=4, "Unknown", IF($J34=99, "Surveillance", SUM($O34:$Q34))), 0),"Not required") -> 0 | S34: 0 | T34: 0 | U34: 0 | V34: =IF(INTRO!$E$43="Endemic", IF($K34>1, IF($K34=4, "Unknown", IF($K34=99, "Surveillance", SUM($S34:$U34))), 0),"Not required") -> 0 | W34: 0 | X34: 0 | Y34: 0 | Z34: 0 | AH34: 10665 | AI34: Fada | AJ34: 1 | AK34: 1 | AL34: 0
A35: =IF(INTRO!$E$33<>0,INTRO!$E$33, " ") -> Tchad | B35: Ennedi Ouest | C35: Kalaït | D35: 34998 | E35: =IF(INTRO!$E$48="","",ROUND($D35*INTRO!$E$48,0)) -> 5131 | F35: =IF(INTRO!$E$49="","",ROUND($D35*INTRO!$E$49,0)) -> 10125 | G35: =IF(INTRO!$E$50="","",ROUND($D35*INTRO!$E$50,0)) -> 18318 | H35: 0 | I35: 0 | J35: 1 | K35: 1 | L35: 0 | M35: =IF(INTRO!$E$37="Endemic",IF($H35>0,IF($H35=4,"Unknown",IF($H35=99,"Stopped",$D35)),0),"Not required") -> 0 | N35: =IF(INTRO!$E$39="Endemic", IF($I35>0, IF($I35=4,"Unknown",IF($I35=99,"Stopped",$D35)), 0),"Not required") -> 0 | O35: =IF(INTRO!$E$41="Endemic", IF($J35>1, IF($J35=4, "Unknown", IF($J35=99, "Surveillance", E35)), 0),"Not required") -> 0 | P35: =IF(INTRO!$E$41="Endemic", IF($J35>1, IF($J35=4, "Unknown", IF($J35=99, "Surveillance", F35)), 0),"Not required") -> 0 | Q35: =IF(INTRO!$E$41="Endemic", IF($J35>1, IF($J35=4, "Unknown", IF($J35=99, "Surveillance", ROUND(D35*INTRO!$E$51,0))), 0),"Not required") -> 0 | R35: =IF(INTRO!$E$41="Endemic", IF($J35>1, IF($J35=4, "Unknown", IF($J35=99, "Surveillance", SUM($O35:$Q35))), 0),"Not required") -> 0 | S35: 0 | T35: 0 | U35: 0 | V35: =IF(INTRO!$E$43="Endemic", IF($K35>1, IF($K35=4, "Unknown", IF($K35=99, "Surveillance", SUM($S35:$U35))), 0),"Not required") -> 0 | W35: 0 | X35: 0 | Y35: 0 | Z35: 0 | AH35: 10677 | AI35: Kalaït | AJ35: 1 | AK35: 1 | AL35: 0
A36: =IF(INTRO!$E$33<>0,INTRO!$E$33, " ") -> Tchad | B36: Ennedi Ouest | C36: Ounianga Kebbir | D36: 35495 | E36: =IF(INTRO!$E$48="","",ROUND($D36*INTRO!$E$48,0)) -> 5204 | F36: =IF(INTRO!$E$49="","",ROUND($D36*INTRO!$E$49,0)) -> 10269 | G36: =IF(INTRO!$E$50="","",ROUND($D36*INTRO!$E$50,0)) -> 18578 | H36: 0 | I36: 0 | J36: 1 | K36: 2 | L36: 0 | M36: =IF(INTRO!$E$37="Endemic",IF($H36>0,IF($H36=4,"Unknown",IF($H36=99,"Stopped",$D36)),0),"Not required") -> 0 | N36: =IF(INTRO!$E$39="Endemic", IF($I36>0, IF($I36=4,"Unknown",IF($I36=99,"Stopped",$D36)), 0),"Not required") -> 0 | O36: =IF(INTRO!$E$41="Endemic", IF($J36>1, IF($J36=4, "Unknown", IF($J36=99, "Surveillance", E36)), 0),"Not required") -> 0 | P36: =IF(INTRO!$E$41="Endemic", IF($J36>1, IF($J36=4, "Unknown", IF($J36=99, "Surveillance", F36)), 0),"Not required") -> 0 | Q36: =IF(INTRO!$E$41="Endemic", IF($J36>1, IF($J36=4, "Unknown", IF($J36=99, "Surveillance", ROUND(D36*INTRO!$E$51,0))), 0),"Not required") -> 0 | R36: =IF(INTRO!$E$41="Endemic", IF($J36>1, IF($J36=4, "Unknown", IF($J36=99, "Surveillance", SUM($O36:$Q36))), 0),"Not required") -> 0 | S36: 1281 | T36: 3439 | U36: 6221 | V36: =IF(INTRO!$E$43="Endemic", IF($K36>1, IF($K36=4, "Unknown", IF($K36=99, "Surveillance", SUM($S36:$U36))), 0),"Not required") -> 10941 | W36: 0 | X36: 0 | Y36: 0 | Z36: 1 | AH36: 10785 | AI36: Ounianga Kebbir | AJ36: 2 | AK36: 1 | AL36: 0
A37: =IF(INTRO!$E$33<>0,INTRO!$E$33, " ") -> Tchad | B37: Guéra | C37: Barou | D37: 67769 | E37: =IF(INTRO!$E$48="","",ROUND($D37*INTRO!$E$48,0)) -> 9935 | F37: =IF(INTRO!$E$49="","",ROUND($D37*INTRO!$E$49,0)) -> 19606 | G37: =IF(INTRO!$E$50="","",ROUND($D37*INTRO!$E$50,0)) -> 35470 | H37: 0 | I37: 4 | J37: 0 | K37: 1 | L37: 0 | M37: =IF(INTRO!$E$37="Endemic",IF($H37>0,IF($H37=4,"Unknown",IF($H37=99,"Stopped",$D37)),0),"Not required") -> 0 | N37: =IF(INTRO!$E$39="Endemic", IF($I37>0, IF($I37=4,"Unknown",IF($I37=99,"Stopped",$D37)), 0),"Not required") -> Unknown | O37: =IF(INTRO!$E$41="Endemic", IF($J37>1, IF($J37=4, "Unknown", IF($J37=99, "Surveillance", E37)), 0),"Not required") -> 0 | P37: =IF(INTRO!$E$41="Endemic", IF($J37>1, IF($J37=4, "Unknown", IF($J37=99, "Surveillance", F37)), 0),"Not required") -> 0 | Q37: =IF(INTRO!$E$41="Endemic", IF($J37>1, IF($J37=4, "Unknown", IF($J37=99, "Surveillance", ROUND(D37*INTRO!$E$51,0))), 0),"Not required") -> 0 | R37: =IF(INTRO!$E$41="Endemic", IF($J37>1, IF($J37=4, "Unknown", IF($J37=99, "Surveillance", SUM($O37:$Q37))), 0),"Not required") -> 0 | S37: 0 | T37: 0 | U37: 0 | V37: =IF(INTRO!$E$43="Endemic", IF($K37>1, IF($K37=4, "Unknown", IF($K37=99, "Surveillance", SUM($S37:$U37))), 0),"Not required") -> 0 | W37: 0 | X37: 0 | Y37: 0 | Z37: 0 | AH37: 10763 | AI37: Barou | AJ37: 1 | AK37: 2 | AL37: 1
A38: =IF(INTRO!$E$33<>0,INTRO!$E$33, " ") -> Tchad | B38: Guéra | C38: Bitkine | D38: 253019 | E38: =IF(INTRO!$E$48="","",ROUND($D38*INTRO!$E$48,0)) -> 37093 | F38: =IF(INTRO!$E$49="","",ROUND($D38*INTRO!$E$49,0)) -> 73198 | G38: =IF(INTRO!$E$50="","",ROUND($D38*INTRO!$E$50,0)) -> 132430 | H38: 0 | I38: 4 | J38: 1 | K38: 3 | L38: 0 | M38: =IF(INTRO!$E$37="Endemic",IF($H38>0,IF($H38=4,"Unknown",IF($H38=99,"Stopped",$D38)),0),"Not required") -> 0 | N38: =IF(INTRO!$E$39="Endemic", IF($I38>0, IF($I38=4,"Unknown",IF($I38=99,"Stopped",$D38)), 0),"Not required") -> Unknown | O38: =IF(INTRO!$E$41="Endemic", IF($J38>1, IF($J38=4, "Unknown", IF($J38=99, "Surveillance", E38)), 0),"Not required") -> 0 | P38: =IF(INTRO!$E$41="Endemic", IF($J38>1, IF($J38=4, "Unknown", IF($J38=99, "Surveillance", F38)), 0),"Not required") -> 0 | Q38: =IF(INTRO!$E$41="Endemic", IF($J38>1, IF($J38=4, "Unknown", IF($J38=99, "Surveillance", ROUND(D38*INTRO!$E$51,0))), 0),"Not required") -> 0 | R38: =IF(INTRO!$E$41="Endemic", IF($J38>1, IF($J38=4, "Unknown", IF($J38=99, "Surveillance", SUM($O38:$Q38))), 0),"Not required") -> 0 | S38: 8110 | T38: 21775 | U38: 39396 | V38: =IF(INTRO!$E$43="Endemic", IF($K38>1, IF($K38=4, "Unknown", IF($K38=99, "Surveillance", SUM($S38:$U38))), 0),"Not required") -> 69281 | W38: 0 | X38: 0 | Y38: 0 | Z38: 1 | AH38: 10679 | AI38: Bitkine | AJ38: 3 | AK38: 2 | AL38: 1
A39: =IF(INTRO!$E$33<>0,INTRO!$E$33, " ") -> Tchad | B39: Guéra | C39: Mangalmé | D39: 142250 | E39: =IF(INTRO!$E$48="","",ROUND($D39*INTRO!$E$48,0)) -> 20854 | F39: =IF(INTRO!$E$49="","",ROUND($D39*INTRO!$E$49,0)) -> 41153 | G39: =IF(INTRO!$E$50="","",ROUND($D39*INTRO!$E$50,0)) -> 74454 | H39: 0 | I39: 4 | J39: 0 | K39: 3 | L39: 0 | M39: =IF(INTRO!$E$37="Endemic",IF($H39>0,IF($H39=4,"Unknown",IF($H39=99,"Stopped",$D39)),0),"Not required") -> 0 | N39: =IF(INTRO!$E$39="Endemic", IF($I39>0, IF($I39=4,"Unknown",IF($I39=99,"Stopped",$D39)), 0),"Not required") -> Unknown | O39: =IF(INTRO!$E$41="Endemic", IF($J39>1, IF($J39=4, "Unknown", IF($J39=99, "Surveillance", E39)), 0),"Not required") -> 0 | P39: =IF(INTRO!$E$41="Endemic", IF($J39>1, IF($J39=4, "Unknown", IF($J39=99, "Surveillance", F39)), 0),"Not required") -> 0 | Q39: =IF(INTRO!$E$41="Endemic", IF($J39>1, IF($J39=4, "Unknown", IF($J39=99, "Surveillance", ROUND(D39*INTRO!$E$51,0))), 0),"Not required") -> 0 | R39: =IF(INTRO!$E$41="Endemic", IF($J39>1, IF($J39=4, "Unknown", IF($J39=99, "Surveillance", SUM($O39:$Q39))), 0),"Not required") -> 0 | S39: 6820 | T39: 18312 | U39: 33131 | V39: =IF(INTRO!$E$43="Endemic", IF($K39>1, IF($K39=4, "Unknown", IF($K39=99, "Surveillance", SUM($S39:$U39))), 0),"Not required") -> 58263 | W39: 0 | X39: 0 | Y39: 0 | Z39: 1 | AH39: 10680 | AI39: Mangalmé | AJ39: 3 | AK39: 2 | AL39: 1
A40: =IF(INTRO!$E$33<>0,INTRO!$E$33, " ") -> Tchad | B40: Guéra | C40: Melfi | D40: 144807 | E40: =IF(INTRO!$E$48="","",ROUND($D40*INTRO!$E$48,0)) -> 21229 | F40: =IF(INTRO!$E$49="","",ROUND($D40*INTRO!$E$49,0)) -> 41893 | G40: =IF(INTRO!$E$50="","",ROUND($D40*INTRO!$E$50,0)) -> 75792 | H40: 0 | I40: 4 | J40: 1 | K40: 3 | L40: 0 | M40: =IF(INTRO!$E$37="Endemic",IF($H40>0,IF($H40=4,"Unknown",IF($H40=99,"Stopped",$D40)),0),"Not required") -> 0 | N40: =IF(INTRO!$E$39="Endemic", IF($I40>0, IF($I40=4,"Unknown",IF($I40=99,"Stopped",$D40)), 0),"Not required") -> Unknown | O40: =IF(INTRO!$E$41="Endemic", IF($J40>1, IF($J40=4, "Unknown", IF($J40=99, "Surveillance", E40)), 0),"Not required") -> 0 | P40: =IF(INTRO!$E$41="Endemic", IF($J40>1, IF($J40=4, "Unknown", IF($J40=99, "Surveillance", F40)), 0),"Not required") -> 0 | Q40: =IF(INTRO!$E$41="Endemic", IF($J40>1, IF($J40=4, "Unknown", IF($J40=99, "Surveillance", ROUND(D40*INTRO!$E$51,0))), 0),"Not required") -> 0 | R40: =IF(INTRO!$E$41="Endemic", IF($J40>1, IF($J40=4, "Unknown", IF($J40=99, "Surveillance", SUM($O40:$Q40))), 0),"Not required") -> 0 | S40: 2171 | T40: 5829 | U40: 10546 | V40: =IF(INTRO!$E$43="Endemic", IF($K40>1, IF($K40=4, "Unknown", IF($K40=99, "Surveillance", SUM($S40:$U40))), 0),"Not required") -> 18546 | W40: 0 | X40: 0 | Y40: 0 | Z40: 1 | AH40: 10681 | AI40: Melfi | AJ40: 3 | AK40: 2 | AL40: 1
A41: =IF(INTRO!$E$33<>0,INTRO!$E$33, " ") -> Tchad | B41: Guéra | C41: Mongo | D41: 191318 | E41: =IF(INTRO!$E$48="","",ROUND($D41*INTRO!$E$48,0)) -> 28047 | F41: =IF(INTRO!$E$49="","",ROUND($D41*INTRO!$E$49,0)) -> 55348 | G41: =IF(INTRO!$E$50="","",ROUND($D41*INTRO!$E$50,0)) -> 100136 | H41: 0 | I41: 4 | J41: 0 | K41: 2 | L41: 0 | M41: =IF(INTRO!$E$37="Endemic",IF($H41>0,IF($H41=4,"Unknown",IF($H41=99,"Stopped",$D41)),0),"Not required") -> 0 | N41: =IF(INTRO!$E$39="Endemic", IF($I41>0, IF($I41=4,"Unknown",IF($I41=99,"Stopped",$D41)), 0),"Not required") -> Unknown | O41: =IF(INTRO!$E$41="Endemic", IF($J41>1, IF($J41=4, "Unknown", IF($J41=99, "Surveillance", E41)), 0),"Not required") -> 0 | P41: =IF(INTRO!$E$41="Endemic", IF($J41>1, IF($J41=4, "Unknown", IF($J41=99, "Surveillance", F41)), 0),"Not required") -> 0 | Q41: =IF(INTRO!$E$41="Endemic", IF($J41>1, IF($J41=4, "Unknown", IF($J41=99, "Surveillance", ROUND(D41*INTRO!$E$51,0))), 0),"Not required") -> 0 | R41: =IF(INTRO!$E$41="Endemic", IF($J41>1, IF($J41=4, "Unknown", IF($J41=99, "Surveillance", SUM($O41:$Q41))), 0),"Not required") -> 0 | S41: 3237 | T41: 8690 | U41: 15722 | V41: =IF(INTRO!$E$43="Endemic", IF($K41>1, IF($K41=4, "Unknown", IF($K41=99, "Surveillance", SUM($S41:$U41))), 0),"Not required") -> 27649 | W41: 0 | X41: 0 | Y41: 0 | Z41: 1 | AH41: 10682 | AI41: Mongo | AJ41: 2 | AK41: 2 | AL41: 0
A42: =IF(INTRO!$E$33<>0,INTRO!$E$33, " ") -> Tchad | B42: Hadjer Lamis | C42: Bokoro | D42: 278109 | E42: =IF(INTRO!$E$48="","",ROUND($D42*INTRO!$E$48,0)) -> 40771 | F42: =IF(INTRO!$E$49="","",ROUND($D42*INTRO!$E$49,0)) -> 80457 | G42: =IF(INTRO!$E$50="","",ROUND($D42*INTRO!$E$50,0)) -> 145562 | H42: 0 | I42: 0 | J42: 1 | K42: 3 | L42: 0 | M42: =IF(INTRO!$E$37="Endemic",IF($H42>0,IF($H42=4,"Unknown",IF($H42=99,"Stopped",$D42)),0),"Not required") -> 0 | N42: =IF(INTRO!$E$39="Endemic", IF($I42>0, IF($I42=4,"Unknown",IF($I42=99,"Stopped",$D42)), 0),"Not required") -> 0 | O42: =IF(INTRO!$E$41="Endemic", IF($J42>1, IF($J42=4, "Unknown", IF($J42=99, "Surveillance", E42)), 0),"Not required") -> 0 | P42: =IF(INTRO!$E$41="Endemic", IF($J42>1, IF($J42=4, "Unknown", IF($J42=99, "Surveillance", F42)), 0),"Not required") -> 0 | Q42: =IF(INTRO!$E$41="Endemic", IF($J42>1, IF($J42=4, "Unknown", IF($J42=99, "Surveillance", ROUND(D42*INTRO!$E$51,0))), 0),"Not required") -> 0 | R42: =IF(INTRO!$E$41="Endemic", IF($J42>1, IF($J42=4, "Unknown", IF($J42=99, "Surveillance", SUM($O42:$Q42))), 0),"Not required") -> 0 | S42: 8750 | T42: 23493 | U42: 42507 | V42: =IF(INTRO!$E$43="Endemic", IF($K42>1, IF($K42=4, "Unknown", IF($K42=99, "Surveillance", SUM($S42:$U42))), 0),"Not required") -> 74750 | W42: 0 | X42: 0 | Y42: 0 | Z42: 1 | AH42: 10683 | AI42: Bokoro | AJ42: 3 | AK42: 3 | AL42: 1
A43: =IF(INTRO!$E$33<>0,INTRO!$E$33, " ") -> Tchad | B43: Hadjer Lamis | C43: Gama | D43: 95327 | E43: =IF(INTRO!$E$48="","",ROUND($D43*INTRO!$E$48,0)) -> 13975 | F43: =IF(INTRO!$E$49="","",ROUND($D43*INTRO!$E$49,0)) -> 27578 | G43: =IF(INTRO!$E$50="","",ROUND($D43*INTRO!$E$50,0)) -> 49894 | H43: 0 | I43: 0 | J43: 1 | K43: 1 | L43: 0 | M43: =IF(INTRO!$E$37="Endemic",IF($H43>0,IF($H43=4,"Unknown",IF($H43=99,"Stopped",$D43)),0),"Not required") -> 0 | N43: =IF(INTRO!$E$39="Endemic", IF($I43>0, IF($I43=4,"Unknown",IF($I43=99,"Stopped",$D43)), 0),"Not required") -> 0 | O43: =IF(INTRO!$E$41="Endemic", IF($J43>1, IF($J43=4, "Unknown", IF($J43=99, "Surveillance", E43)), 0),"Not required") -> 0 | P43: =IF(INTRO!$E$41="Endemic", IF($J43>1, IF($J43=4, "Unknown", IF($J43=99, "Surveillance", F43)), 0),"Not required") -> 0 | Q43: =IF(INTRO!$E$41="Endemic", IF($J43>1, IF($J43=4, "Unknown", IF($J43=99, "Surveillance", ROUND(D43*INTRO!$E$51,0))), 0),"Not required") -> 0 | R43: =IF(INTRO!$E$41="Endemic", IF($J43>1, IF($J43=4, "Unknown", IF($J43=99, "Surveillance", SUM($O43:$Q43))), 0),"Not required") -> 0 | S43: 0 | T43: 0 | U43: 0 | V43: =IF(INTRO!$E$43="Endemic", IF($K43>1, IF($K43=4, "Unknown", IF($K43=99, "Surveillance", SUM($S43:$U43))), 0),"Not required") -> 0 | W43: 0 | X43: 0 | Y43: 0 | Z43: 0 | AH43: 10748 | AI43: Gama | AJ43: 1 | AK43: 3 | AL43: 1
A44: =IF(INTRO!$E$33<>0,INTRO!$E$33, " ") -> Tchad | B44: Hadjar Lamis | C44: Karal | D44: 116645 | E44: =IF(INTRO!$E$48="","",ROUND($D44*INTRO!$E$48,0)) -> 17100 | F44: =IF(INTRO!$E$49="","",ROUND($D44*INTRO!$E$49,0)) -> 33745 | G44: =IF(INTRO!$E$50="","",ROUND($D44*INTRO!$E$50,0)) -> 61052 | H44: 0 | I44: 0 | J44: 1 | K44: 1 | L44: 0 | M44: =IF(INTRO!$E$37="Endemic",IF($H44>0,IF($H44=4,"Unknown",IF($H44=99,"Stopped",$D44)),0),"Not required") -> 0 | N44: =IF(INTRO!$E$39="Endemic", IF($I44>0, IF($I44=4,"Unknown",IF($I44=99,"Stopped",$D44)), 0),"Not required") -> 0 | O44: =IF(INTRO!$E$41="Endemic", IF($J44>1, IF($J44=4, "Unknown", IF($J44=99, "Surveillance", E44)), 0),"Not required") -> 0 | P44: =IF(INTRO!$E$41="Endemic", IF($J44>1, IF($J44=4, "Unknown", IF($J44=99, "Surveillance", F44)), 0),"Not required") -> 0 | Q44: =IF(INTRO!$E$41="Endemic", IF($J44>1, IF($J44=4, "Unknown", IF($J44=99, "Surveillance", ROUND(D44*INTRO!$E$51,0))), 0),"Not required") -> 0 | R44: =IF(INTRO!$E$41="Endemic", IF($J44>1, IF($J44=4, "Unknown", IF($J44=99, "Surveillance", SUM($O44:$Q44))), 0),"Not required") -> 0 | S44: 0 | T44: 0 | U44: 0 | V44: =IF(INTRO!$E$43="Endemic", IF($K44>1, IF($K44=4, "Unknown", IF($K44=99, "Surveillance", SUM($S44:$U44))), 0),"Not required") -> 0 | W44: 0 | X44: 0 | Y44: 0 | Z44: 0 | AH44: 10786 | AI44: Karal | AJ44: 1 | AK44: 2 | AL44: 1
A45: =IF(INTRO!$E$33<>0,INTRO!$E$33, " ") -> Tchad | B45: Hadjer Lamis | C45: Mani | D45: 113527 | E45: =IF(INTRO!$E$48="","",ROUND($D45*INTRO!$E$48,0)) -> 16643 | F45: =IF(INTRO!$E$49="","",ROUND($D45*INTRO!$E$49,0)) -> 32843 | G45: =IF(INTRO!$E$50="","",ROUND($D45*INTRO!$E$50,0)) -> 59420 | H45: 0 | I45: 0 | J45: 1 | K45: 3 | L45: 0 | M45: =IF(INTRO!$E$37="Endemic",IF($H45>0,IF($H45=4,"Unknown",IF($H45=99,"Stopped",$D45)),0),"Not required") -> 0 | N45: =IF(INTRO!$E$39="Endemic", IF($I45>0, IF($I45=4,"Unknown",IF($I45=99,"Stopped",$D45)), 0),"Not required") -> 0 | O45: =IF(INTRO!$E$41="Endemic", IF($J45>1, IF($J45=4, "Unknown", IF($J45=99, "Surveillance", E45)), 0),"Not required") -> 0 | P45: =IF(INTRO!$E$41="Endemic", IF($J45>1, IF($J45=4, "Unknown", IF($J45=99, "Surveillance", F45)), 0),"Not required") -> 0 | Q45: =IF(INTRO!$E$41="Endemic", IF($J45>1, IF($J45=4, "Unknown", IF($J45=99, "Surveillance", ROUND(D45*INTRO!$E$51,0))), 0),"Not required") -> 0 | R45: =IF(INTRO!$E$41="Endemic", IF($J45>1, IF($J45=4, "Unknown", IF($J45=99, "Surveillance", SUM($O45:$Q45))), 0),"Not required") -> 0 | S45: 4394 | T45: 11797 | U45: 21343 | V45: =IF(INTRO!$E$43="Endemic", IF($K45>1, IF($K45=4, "Unknown", IF($K45=99, "Surveillance", SUM($S45:$U45))), 0),"Not required") -> 37534 | W45: 0 | X45: 0 | Y45: 0 | Z45: 1 | AH45: 10684 | AI45: Mani | AJ45: 3 | AK45: 2 | AL45: 1
A46: =IF(INTRO!$E$33<>0,INTRO!$E$33, " ") -> Tchad | B46: Hadjer Lamis | C46: Massaguet | D46: 163054 | E46: =IF(INTRO!$E$48="","",ROUND($D46*INTRO!$E$48,0)) -> 23904 | F46: =IF(INTRO!$E$49="","",ROUND($D46*INTRO!$E$49,0)) -> 47172 | G46: =IF(INTRO!$E$50="","",ROUND($D46*INTRO!$E$50,0)) -> 85342 | H46: 0 | I46: 0 | J46: 1 | K46: 3 | L46: 0 | M46: =IF(INTRO!$E$37="Endemic",IF($H46>0,IF($H46=4,"Unknown",IF($H46=99,"Stopped",$D46)),0),"Not required") -> 0 | N46: =IF(INTRO!$E$39="Endemic", IF($I46>0, IF($I46=4,"Unknown",IF($I46=99,"Stopped",$D46)), 0),"Not required") -> 0 | O46: =IF(INTRO!$E$41="Endemic", IF($J46>1, IF($J46=4, "Unknown", IF($J46=99, "Surveillance", E46)), 0),"Not required") -> 0 | P46: =IF(INTRO!$E$41="Endemic", IF($J46>1, IF($J46=4, "Unknown", IF($J46=99, "Surveillance", F46)), 0),"Not required") -> 0 | Q46: =IF(INTRO!$E$41="Endemic", IF($J46>1, IF($J46=4, "Unknown", IF($J46=99, "Surveillance", ROUND(D46*INTRO!$E$51,0))), 0),"Not required") -> 0 | R46: =IF(INTRO!$E$41="Endemic", IF($J46>1, IF($J46=4, "Unknown", IF($J46=99, "Surveillance", SUM($O46:$Q46))), 0),"Not required") -> 0 | S46: 7508 | T46: 20159 | U46: 36472 | V46: =IF(INTRO!$E$43="Endemic", IF($K46>1, IF($K46=4, "Unknown", IF($K46=99, "Surveillance", SUM($S46:$U46))), 0),"Not required") -> 64139 | W46: 0 | X46: 0 | Y46: 0 | Z46: 1 | AH46: 10685 | AI46: Massaguet | AJ46: 3 | AK46: 2 | AL46: 1
A47: =IF(INTRO!$E$33<>0,INTRO!$E$33, " ") -> Tchad | B47: Hadjer Lamis | C47: Massakory | D47: 170939 | E47: =IF(INTRO!$E$48="","",ROUND($D47*INTRO!$E$48,0)) -> 25060 | F47: =IF(INTRO!$E$49="","",ROUND($D47*INTRO!$E$49,0)) -> 49453 | G47: =IF(INTRO!$E$50="","",ROUND($D47*INTRO!$E$50,0)) -> 89469 | H47: 0 | I47: 0 | J47: 1 | K47: 2 | L47: 0 | M47: =IF(INTRO!$E$37="Endemic",IF($H47>0,IF($H47=4,"Unknown",IF($H47=99,"Stopped",$D47)),0),"Not required") -> 0 | N47: =IF(INTRO!$E$39="Endemic", IF($I47>0, IF($I47=4,"Unknown",IF($I47=99,"Stopped",$D47)), 0),"Not required") -> 0 | O47: =IF(INTRO!$E$41="Endemic", IF($J47>1, IF($J47=4, "Unknown", IF($J47=99, "Surveillance", E47)), 0),"Not required") -> 0 | P47: =IF(INTRO!$E$41="Endemic", IF($J47>1, IF($J47=4, "Unknown", IF($J47=99, "Surveillance", F47)), 0),"Not required") -> 0 | Q47: =IF(INTRO!$E$41="Endemic", IF($J47>1, IF($J47=4, "Unknown", IF($J47=99, "Surveillance", ROUND(D47*INTRO!$E$51,0))), 0),"Not required") -> 0 | R47: =IF(INTRO!$E$41="Endemic", IF($J47>1, IF($J47=4, "Unknown", IF($J47=99, "Surveillance", SUM($O47:$Q47))), 0),"Not required") -> 0 | S47: 3287 | T47: 8825 | U47: 15966 | V47: =IF(INTRO!$E$43="Endemic", IF($K47>1, IF($K47=4, "Unknown", IF($K47=99, "Surveillance", SUM($S47:$U47))), 0),"Not required") -> 28078 | W47: 0 | X47: 0 | Y47: 0 | Z47: 1 | AH47: 10686 | AI47: Massakory | AJ47: 2 | AK47: 2 | AL47: 1
A48: =IF(INTRO!$E$33<>0,INTRO!$E$33, " ") -> Tchad | B48: Kanem | C48: Amdoback | D48: 29088 | E48: =IF(INTRO!$E$48="","",ROUND($D48*INTRO!$E$48,0)) -> 4264 | F48: =IF(INTRO!$E$49="","",ROUND($D48*INTRO!$E$49,0)) -> 8415 | G48: =IF(INTRO!$E$50="","",ROUND($D48*INTRO!$E$50,0)) -> 15225 | H48: 0 | I48: 0 | J48: 0 | K48: 1 | L48: 0 | M48: =IF(INTRO!$E$37="Endemic",IF($H48>0,IF($H48=4,"Unknown",IF($H48=99,"Stopped",$D48)),0),"Not required") -> 0 | N48: =IF(INTRO!$E$39="Endemic", IF($I48>0, IF($I48=4,"Unknown",IF($I48=99,"Stopped",$D48)), 0),"Not required") -> 0 | O48: =IF(INTRO!$E$41="Endemic", IF($J48>1, IF($J48=4, "Unknown", IF($J48=99, "Surveillance", E48)), 0),"Not required") -> 0 | P48: =IF(INTRO!$E$41="Endemic", IF($J48>1, IF($J48=4, "Unknown", IF($J48=99, "Surveillance", F48)), 0),"Not required") -> 0 | Q48: =IF(INTRO!$E$41="Endemic", IF($J48>1, IF($J48=4, "Unknown", IF($J48=99, "Surveillance", ROUND(D48*INTRO!$E$51,0))), 0),"Not required") -> 0 | R48: =IF(INTRO!$E$41="Endemic", IF($J48>1, IF($J48=4, "Unknown", IF($J48=99, "Surveillance", SUM($O48:$Q48))), 0),"Not required") -> 0 | S48: 0 | T48: 0 | U48: 0 | V48: =IF(INTRO!$E$43="Endemic", IF($K48>1, IF($K48=4, "Unknown", IF($K48=99, "Surveillance", SUM($S48:$U48))), 0),"Not required") -> 0 | W48: 0 | X48: 0 | Y48: 0 | Z48: 0 | AH48: 10787 | AI48: Amdoback | AJ48: 1 | AK48: 0 | AL48: 0
A49: =IF(INTRO!$E$33<>0,INTRO!$E$33, " ") -> Tchad | B49: Kanem | C49: Kekedina | D49: 28594 | E49: =IF(INTRO!$E$48="","",ROUND($D49*INTRO!$E$48,0)) -> 4192 | F49: =IF(INTRO!$E$49="","",ROUND($D49*INTRO!$E$49,0)) -> 8272 | G49: =IF(INTRO!$E$50="","",ROUND($D49*INTRO!$E$50,0)) -> 14966 | H49: 0 | I49: 0 | J49: 1 | K49: 1 | L49: 0 | M49: =IF(INTRO!$E$37="Endemic",IF($H49>0,IF($H49=4,"Unknown",IF($H49=99,"Stopped",$D49)),0),"Not required") -> 0 | N49: =IF(INTRO!$E$39="Endemic", IF($I49>0, IF($I49=4,"Unknown",IF($I49=99,"Stopped",$D49)), 0),"Not required") -> 0 | O49: =IF(INTRO!$E$41="Endemic", IF($J49>1, IF($J49=4, "Unknown", IF($J49=99, "Surveillance", E49)), 0),"Not required") -> 0 | P49: =IF(INTRO!$E$41="Endemic", IF($J49>1, IF($J49=4, "Unknown", IF($J49=99, "Surveillance", F49)), 0),"Not required") -> 0 | Q49: =IF(INTRO!$E$41="Endemic", IF($J49>1, IF($J49=4, "Unknown", IF($J49=99, "Surveillance", ROUND(D49*INTRO!$E$51,0))), 0),"Not required") -> 0 | R49: =IF(INTRO!$E$41="Endemic", IF($J49>1, IF($J49=4, "Unknown", IF($J49=99, "Surveillance", SUM($O49:$Q49))), 0),"Not required") -> 0 | S49: 0 | T49: 0 | U49: 0 | V49: =IF(INTRO!$E$43="Endemic", IF($K49>1, IF($K49=4, "Unknown", IF($K49=99, "Surveillance", SUM($S49:$U49))), 0),"Not required") -> 0 | W49: 0 | X49: 0 | Y49: 0 | Z49: 0 | AH49: 10788 | AI49: Kekedina | AJ49: 1 | AK49: 1 | AL49: 0
A50: =IF(INTRO!$E$33<>0,INTRO!$E$33, " ") -> Tchad | B50: Kanem | C50: Mao | D50: 222958 | E50: =IF(INTRO!$E$48="","",ROUND($D50*INTRO!$E$48,0)) -> 32686 | F50: =IF(INTRO!$E$49="","",ROUND($D50*INTRO!$E$49,0)) -> 64502 | G50: =IF(INTRO!$E$50="","",ROUND($D50*INTRO!$E$50,0)) -> 116696 | H50: 0 | I50: 0 | J50: 1 | K50: 1 | L50: 0 | M50: =IF(INTRO!$E$37="Endemic",IF($H50>0,IF($H50=4,"Unknown",IF($H50=99,"Stopped",$D50)),0),"Not required") -> 0 | N50: =IF(INTRO!$E$39="Endemic", IF($I50>0, IF($I50=4,"Unknown",IF($I50=99,"Stopped",$D50)), 0),"Not required") -> 0 | O50: =IF(INTRO!$E$41="Endemic", IF($J50>1, IF($J50=4, "Unknown", IF($J50=99, "Surveillance", E50)), 0),"Not required") -> 0 | P50: =IF(INTRO!$E$41="Endemic", IF($J50>1, IF($J50=4, "Unknown", IF($J50=99, "Surveillance", F50)), 0),"Not required") -> 0 | Q50: =IF(INTRO!$E$41="Endemic", IF($J50>1, IF($J50=4, "Unknown", IF($J50=99, "Surveillance", ROUND(D50*INTRO!$E$51,0))), 0),"Not required") -> 0 | R50: =IF(INTRO!$E$41="Endemic", IF($J50>1, IF($J50=4, "Unknown", IF($J50=99, "Surveillance", SUM($O50:$Q50))), 0),"Not required") -> 0 | S50: 0 | T50: 0 | U50: 0 | V50: =IF(INTRO!$E$43="Endemic", IF($K50>1, IF($K50=4, "Unknown", IF($K50=99, "Surveillance", SUM($S50:$U50))), 0),"Not required") -> 0 | W50: 0 | X50: 0 | Y50: 0 | Z50: 0 | AH50: 10687 | AI50: Mao | AJ50: 1 | AK50: 1 | AL50: 0
A51: =IF(INTRO!$E$33<>0,INTRO!$E$33, " ") -> Tchad | B51: Kanem | C51: Mondo | D51: 116600 | E51: =IF(INTRO!$E$48="","",ROUND($D51*INTRO!$E$48,0)) -> 17094 | F51: =IF(INTRO!$E$49="","",ROUND($D51*INTRO!$E$49,0)) -> 33732 | G51: =IF(INTRO!$E$50="","",ROUND($D51*INTRO!$E$50,0)) -> 61028 | H51: 0 | I51: 0 | J51: 0 | K51: 1 | L51: 0 | M51: =IF(INTRO!$E$37="Endemic",IF($H51>0,IF($H51=4,"Unknown",IF($H51=99,"Stopped",$D51)),0),"Not required") -> 0 | N51: =IF(INTRO!$E$39="Endemic", IF($I51>0, IF($I51=4,"Unknown",IF($I51=99,"Stopped",$D51)), 0),"Not required") -> 0 | O51: =IF(INTRO!$E$41="Endemic", IF($J51>1, IF($J51=4, "Unknown", IF($J51=99, "Surveillance", E51)), 0),"Not required") -> 0 | P51: =IF(INTRO!$E$41="Endemic", IF($J51>1, IF($J51=4, "Unknown", IF($J51=99, "Surveillance", F51)), 0),"Not required") -> 0 | Q51: =IF(INTRO!$E$41="Endemic", IF($J51>1, IF($J51=4, "Unknown", IF($J51=99, "Surveillance", ROUND(D51*INTRO!$E$51,0))), 0),"Not required") -> 0 | R51: =IF(INTRO!$E$41="Endemic", IF($J51>1, IF($J51=4, "Unknown", IF($J51=99, "Surveillance", SUM($O51:$Q51))), 0),"Not required") -> 0 | S51: 0 | T51: 0 | U51: 0 | V51: =IF(INTRO!$E$43="Endemic", IF($K51>1, IF($K51=4, "Unknown", IF($K51=99, "Surveillance", SUM($S51:$U51))), 0),"Not required") -> 0 | W51: 0 | X51: 0 | Y51: 0 | Z51: 0 | AH51: 10688 | AI51: Mondo | AJ51: 1 | AK51: 1 | AL51: 0
A52: =IF(INTRO!$E$33<>0,INTRO!$E$33, " ") -> Tchad | B52: Kanem | C52: Nokou | D52: 72669 | E52: =IF(INTRO!$E$48="","",ROUND($D52*INTRO!$E$48,0)) -> 10653 | F52: =IF(INTRO!$E$49="","",ROUND($D52*INTRO!$E$49,0)) -> 21023 | G52: =IF(INTRO!$E$50="","",ROUND($D52*INTRO!$E$50,0)) -> 38035 | H52: 0 | I52: 0 | J52: 0 | K52: 1 | L52: 0 | M52: =IF(INTRO!$E$37="Endemic",IF($H52>0,IF($H52=4,"Unknown",IF($H52=99,"Stopped",$D52)),0),"Not required") -> 0 | N52: =IF(INTRO!$E$39="Endemic", IF($I52>0, IF($I52=4,"Unknown",IF($I52=99,"Stopped",$D52)), 0),"Not required") -> 0 | O52: =IF(INTRO!$E$41="Endemic", IF($J52>1, IF($J52=4, "Unknown", IF($J52=99, "Surveillance", E52)), 0),"Not required") -> 0 | P52: =IF(INTRO!$E$41="Endemic", IF($J52>1, IF($J52=4, "Unknown", IF($J52=99, "Surveillance", F52)), 0),"Not required") -> 0 | Q52: =IF(INTRO!$E$41="Endemic", IF($J52>1, IF($J52=4, "Unknown", IF($J52=99, "Surveillance", ROUND(D52*INTRO!$E$51,0))), 0),"Not required") -> 0 | R52: =IF(INTRO!$E$41="Endemic", IF($J52>1, IF($J52=4, "Unknown", IF($J52=99, "Surveillance", SUM($O52:$Q52))), 0),"Not required") -> 0 | S52: 0 | T52: 0 | U52: 0 | V52: =IF(INTRO!$E$43="Endemic", IF($K52>1, IF($K52=4, "Unknown", IF($K52=99, "Surveillance", SUM($S52:$U52))), 0),"Not required") -> 0 | W52: 0 | X52: 0 | Y52: 0 | Z52: 0 | AH52: 10689 | AI52: Nokou | AJ52: 1 | AK52: 0 | AL52: 0
A53: =IF(INTRO!$E$33<>0,INTRO!$E$33, " ") -> Tchad | B53: Kanem | C53: Ntiona | D53: 21578 | E53: =IF(INTRO!$E$48="","",ROUND($D53*INTRO!$E$48,0)) -> 3163 | F53: =IF(INTRO!$E$49="","",ROUND($D53*INTRO!$E$49,0)) -> 6243 | G53: =IF(INTRO!$E$50="","",ROUND($D53*INTRO!$E$50,0)) -> 11294 | H53: 0 | I53: 0 | J53: 1 | K53: 1 | L53: 0 | M53: =IF(INTRO!$E$37="Endemic",IF($H53>0,IF($H53=4,"Unknown",IF($H53=99,"Stopped",$D53)),0),"Not required") -> 0 | N53: =IF(INTRO!$E$39="Endemic", IF($I53>0, IF($I53=4,"Unknown",IF($I53=99,"Stopped",$D53)), 0),"Not required") -> 0 | O53: =IF(INTRO!$E$41="Endemic", IF($J53>1, IF($J53=4, "Unknown", IF($J53=99, "Surveillance", E53)), 0),"Not required") -> 0 | P53: =IF(INTRO!$E$41="Endemic", IF($J53>1, IF($J53=4, "Unknown", IF($J53=99, "Surveillance", F53)), 0),"Not required") -> 0 | Q53: =IF(INTRO!$E$41="Endemic", IF($J53>1, IF($J53=4, "Unknown", IF($J53=99, "Surveillance", ROUND(D53*INTRO!$E$51,0))), 0),"Not required") -> 0 | R53: =IF(INTRO!$E$41="Endemic", IF($J53>1, IF($J53=4, "Unknown", IF($J53=99, "Surveillance", SUM($O53:$Q53))), 0),"Not required") -> 0 | S53: 0 | T53: 0 | U53: 0 | V53: =IF(INTRO!$E$43="Endemic", IF($K53>1, IF($K53=4, "Unknown", IF($K53=99, "Surveillance", SUM($S53:$U53))), 0),"Not required") -> 0 | W53: 0 | X53: 0 | Y53: 0 | Z53: 0 | AH53: 10764 | AI53: Ntiona | AJ53: 1 | AK53: 1 | AL53: 0
A54: =IF(INTRO!$E$33<>0,INTRO!$E$33, " ") -> Tchad | B54: Kanem | C54: Rig-Rig | D54: 75886 | E54: =IF(INTRO!$E$48="","",ROUND($D54*INTRO!$E$48,0)) -> 11125 | F54: =IF(INTRO!$E$49="","",ROUND($D54*INTRO!$E$49,0)) -> 21954 | G54: =IF(INTRO!$E$50="","",ROUND($D54*INTRO!$E$50,0)) -> 39719 | H54: 0 | I54: 0 | J54: 0 | K54: 0 | L54: 0 | M54: =IF(INTRO!$E$37="Endemic",IF($H54>0,IF($H54=4,"Unknown",IF($H54=99,"Stopped",$D54)),0),"Not required") -> 0 | N54: =IF(INTRO!$E$39="Endemic", IF($I54>0, IF($I54=4,"Unknown",IF($I54=99,"Stopped",$D54)), 0),"Not required") -> 0 | O54: =IF(INTRO!$E$41="Endemic", IF($J54>1, IF($J54=4, "Unknown", IF($J54=99, "Surveillance", E54)), 0),"Not required") -> 0 | P54: =IF(INTRO!$E$41="Endemic", IF($J54>1, IF($J54=4, "Unknown", IF($J54=99, "Surveillance", F54)), 0),"Not required") -> 0 | Q54: =IF(INTRO!$E$41="Endemic", IF($J54>1, IF($J54=4, "Unknown", IF($J54=99, "Surveillance", ROUND(D54*INTRO!$E$51,0))), 0),"Not required") -> 0 | R54: =IF(INTRO!$E$41="Endemic", IF($J54>1, IF($J54=4, "Unknown", IF($J54=99, "Surveillance", SUM($O54:$Q54))), 0),"Not required") -> 0 | S54: 0 | T54: 0 | U54: 0 | V54: =IF(INTRO!$E$43="Endemic", IF($K54>1, IF($K54=4, "Unknown", IF($K54=99, "Surveillance", SUM($S54:$U54))), 0),"Not required") -> 0 | W54: 0 | X54: 0 | Y54: 0 | Z54: 0 | AH54: 10690 | AI54: Rig-Rig | AJ54: 0 | AK54: 0 | AL54: 0
A55: =IF(INTRO!$E$33<>0,INTRO!$E$33, " ") -> Tchad | B55: Lac | C55: Bagassola | D55: 185185 | E55: =IF(INTRO!$E$48="","",ROUND($D55*INTRO!$E$48,0)) -> 27148 | F55: =IF(INTRO!$E$49="","",ROUND($D55*INTRO!$E$49,0)) -> 53574 | G55: =IF(INTRO!$E$50="","",ROUND($D55*INTRO!$E$50,0)) -> 96926 | H55: 0 | I55: 0 | J55: 1 | K55: 1 | L55: 0 | M55: =IF(INTRO!$E$37="Endemic",IF($H55>0,IF($H55=4,"Unknown",IF($H55=99,"Stopped",$D55)),0),"Not required") -> 0 | N55: =IF(INTRO!$E$39="Endemic", IF($I55>0, IF($I55=4,"Unknown",IF($I55=99,"Stopped",$D55)), 0),"Not required") -> 0 | O55: =IF(INTRO!$E$41="Endemic", IF($J55>1, IF($J55=4, "Unknown", IF($J55=99, "Surveillance", E55)), 0),"Not required") -> 0 | P55: =IF(INTRO!$E$41="Endemic", IF($J55>1, IF($J55=4, "Unknown", IF($J55=99, "Surveillance", F55)), 0),"Not required") -> 0 | Q55: =IF(INTRO!$E$41="Endemic", IF($J55>1, IF($J55=4, "Unknown", IF($J55=99, "Surveillance", ROUND(D55*INTRO!$E$51,0))), 0),"Not required") -> 0 | R55: =IF(INTRO!$E$41="Endemic", IF($J55>1, IF($J55=4, "Unknown", IF($J55=99, "Surveillance", SUM($O55:$Q55))), 0),"Not required") -> 0 | S55: 0 | T55: 0 | U55: 0 | V55: =IF(INTRO!$E$43="Endemic", IF($K55>1, IF($K55=4, "Unknown", IF($K55=99, "Surveillance", SUM($S55:$U55))), 0),"Not required") -> 0 | W55: 0 | X55: 0 | Y55: 0 | Z55: 0 | AH55: 10691 | AI55: Bagassola | AJ55: 1 | AK55: 2 | AL55: 0
A56: =IF(INTRO!$E$33<>0,INTRO!$E$33, " ") -> Tchad | B56: Lac | C56: Bol | D56: 181230 | E56: =IF(INTRO!$E$48="","",ROUND($D56*INTRO!$E$48,0)) -> 26568 | F56: =IF(INTRO!$E$49="","",ROUND($D56*INTRO!$E$49,0)) -> 52430 | G56: =IF(INTRO!$E$50="","",ROUND($D56*INTRO!$E$50,0)) -> 94856 | H56: 0 | I56: 0 | J56: 1 | K56: 3 | L56: 0 | M56: =IF(INTRO!$E$37="Endemic",IF($H56>0,IF($H56=4,"Unknown",IF($H56=99,"Stopped",$D56)),0),"Not required") -> 0 | N56: =IF(INTRO!$E$39="Endemic", IF($I56>0, IF($I56=4,"Unknown",IF($I56=99,"Stopped",$D56)), 0),"Not required") -> 0 | O56: =IF(INTRO!$E$41="Endemic", IF($J56>1, IF($J56=4, "Unknown", IF($J56=99, "Surveillance", E56)), 0),"Not required") -> 0 | P56: =IF(INTRO!$E$41="Endemic", IF($J56>1, IF($J56=4, "Unknown", IF($J56=99, "Surveillance", F56)), 0),"Not required") -> 0 | Q56: =IF(INTRO!$E$41="Endemic", IF($J56>1, IF($J56=4, "Unknown", IF($J56=99, "Surveillance", ROUND(D56*INTRO!$E$51,0))), 0),"Not required") -> 0 | R56: =IF(INTRO!$E$41="Endemic", IF($J56>1, IF($J56=4, "Unknown", IF($J56=99, "Surveillance", SUM($O56:$Q56))), 0),"Not required") -> 0 | S56: 5098 | T56: 13687 | U56: 24762 | V56: =IF(INTRO!$E$43="Endemic", IF($K56>1, IF($K56=4, "Unknown", IF($K56=99, "Surveillance", SUM($S56:$U56))), 0),"Not required") -> 43547 | W56: 0 | X56: 0 | Y56: 0 | Z56: 1 | AH56: 10692 | AI56: Bol | AJ56: 3 | AK56: 2 | AL56: 1
A57: =IF(INTRO!$E$33<>0,INTRO!$E$33, " ") -> Tchad | B57: Lac | C57: Isserom | D57: 108149 | E57: =IF(INTRO!$E$48="","",ROUND($D57*INTRO!$E$48,0)) -> 15855 | F57: =IF(INTRO!$E$49="","",ROUND($D57*INTRO!$E$49,0)) -> 31288 | G57: =IF(INTRO!$E$50="","",ROUND($D57*INTRO!$E$50,0)) -> 56605 | H57: 0 | I57: 0 | J57: 1 | K57: 1 | L57: 0 | M57: =IF(INTRO!$E$37="Endemic",IF($H57>0,IF($H57=4,"Unknown",IF($H57=99,"Stopped",$D57)),0),"Not required") -> 0 | N57: =IF(INTRO!$E$39="Endemic", IF($I57>0, IF($I57=4,"Unknown",IF($I57=99,"Stopped",$D57)), 0),"Not required") -> 0 | O57: =IF(INTRO!$E$41="Endemic", IF($J57>1, IF($J57=4, "Unknown", IF($J57=99, "Surveillance", E57)), 0),"Not required") -> 0 | P57: =IF(INTRO!$E$41="Endemic", IF($J57>1, IF($J57=4, "Unknown", IF($J57=99, "Surveillance", F57)), 0),"Not required") -> 0 | Q57: =IF(INTRO!$E$41="Endemic", IF($J57>1, IF($J57=4, "Unknown", IF($J57=99, "Surveillance", ROUND(D57*INTRO!$E$51,0))), 0),"Not required") -> 0 | R57: =IF(INTRO!$E$41="Endemic", IF($J57>1, IF($J57=4, "Unknown", IF($J57=99, "Surveillance", SUM($O57:$Q57))), 0),"Not required") -> 0 | S57: 0 | T57: 0 | U57: 0 | V57: =IF(INTRO!$E$43="Endemic", IF($K57>1, IF($K57=4, "Unknown", IF($K57=99, "Surveillance", SUM($S57:$U57))), 0),"Not required") -> 0 | W57: 0 | X57: 0 | Y57: 0 | Z57: 0 | AH57: 10749 | AI57: Isserom | AJ57: 1 | AK57: 1 | AL57: 0
A58: =IF(INTRO!$E$33<>0,INTRO!$E$33, " ") -> Tchad | B58: Lac | C58: Kouloudia | D58: 87326 | E58: =IF(INTRO!$E$48="","",ROUND($D58*INTRO!$E$48,0)) -> 12802 | F58: =IF(INTRO!$E$49="","",ROUND($D58*INTRO!$E$49,0)) -> 25263 | G58: =IF(INTRO!$E$50="","",ROUND($D58*INTRO!$E$50,0)) -> 45706 | H58: 0 | I58: 0 | J58: 1 | K58: 3 | L58: 0 | M58: =IF(INTRO!$E$37="Endemic",IF($H58>0,IF($H58=4,"Unknown",IF($H58=99,"Stopped",$D58)),0),"Not required") -> 0 | N58: =IF(INTRO!$E$39="Endemic", IF($I58>0, IF($I58=4,"Unknown",IF($I58=99,"Stopped",$D58)), 0),"Not required") -> 0 | O58: =IF(INTRO!$E$41="Endemic", IF($J58>1, IF($J58=4, "Unknown", IF($J58=99, "Surveillance", E58)), 0),"Not required") -> 0 | P58: =IF(INTRO!$E$41="Endemic", IF($J58>1, IF($J58=4, "Unknown", IF($J58=99, "Surveillance", F58)), 0),"Not required") -> 0 | Q58: =IF(INTRO!$E$41="Endemic", IF($J58>1, IF($J58=4, "Unknown", IF($J58=99, "Surveillance", ROUND(D58*INTRO!$E$51,0))), 0),"Not required") -> 0 | R58: =IF(INTRO!$E$41="Endemic", IF($J58>1, IF($J58=4, "Unknown", IF($J58=99, "Surveillance", SUM($O58:$Q58))), 0),"Not required") -> 0 | S58: 1179 | T58: 3165 | U58: 5726 | V58: =IF(INTRO!$E$43="Endemic", IF($K58>1, IF($K58=4, "Unknown", IF($K58=99, "Surveillance", SUM($S58:$U58))), 0),"Not required") -> 10070 | W58: 0 | X58: 0 | Y58: 0 | Z58: 1 | AH58: 10693 | AI58: Kouloudia | AJ58: 3 | AK58: 2 | AL58: 1
A59: =IF(INTRO!$E$33<>0,INTRO!$E$33, " ") -> Tchad | B59: Lac | C59: Liwa | D59: 92013 | E59: =IF(INTRO!$E$48="","",ROUND($D59*INTRO!$E$48,0)) -> 13489 | F59: =IF(INTRO!$E$49="","",ROUND($D59*INTRO!$E$49,0)) -> 26619 | G59: =IF(INTRO!$E$50="","",ROUND($D59*INTRO!$E$50,0)) -> 48160 | H59: 0 | I59: 0 | J59: 1 | K59: 2 | L59: 0 | M59: =IF(INTRO!$E$37="Endemic",IF($H59>0,IF($H59=4,"Unknown",IF($H59=99,"Stopped",$D59)),0),"Not required") -> 0 | N59: =IF(INTRO!$E$39="Endemic", IF($I59>0, IF($I59=4,"Unknown",IF($I59=99,"Stopped",$D59)), 0),"Not required") -> 0 | O59: =IF(INTRO!$E$41="Endemic", IF($J59>1, IF($J59=4, "Unknown", IF($J59=99, "Surveillance", E59)), 0),"Not required") -> 0 | P59: =IF(INTRO!$E$41="Endemic", IF($J59>1, IF($J59=4, "Unknown", IF($J59=99, "Surveillance", F59)), 0),"Not required") -> 0 | Q59: =IF(INTRO!$E$41="Endemic", IF($J59>1, IF($J59=4, "Unknown", IF($J59=99, "Surveillance", ROUND(D59*INTRO!$E$51,0))), 0),"Not required") -> 0 | R59: =IF(INTRO!$E$41="Endemic", IF($J59>1, IF($J59=4, "Unknown", IF($J59=99, "Surveillance", SUM($O59:$Q59))), 0),"Not required") -> 0 | S59: 899 | T59: 2414 | U59: 4367 | V59: =IF(INTRO!$E$43="Endemic", IF($K59>1, IF($K59=4, "Unknown", IF($K59=99, "Surveillance", SUM($S59:$U59))), 0),"Not required") -> 7680 | W59: 0 | X59: 0 | Y59: 0 | Z59: 1 | AH59: 10694 | AI59: Liwa | AJ59: 2 | AK59: 1 | AL59: 0
A60: =IF(INTRO!$E$33<>0,INTRO!$E$33, " ") -> Tchad | B60: Lac | C60: Ngouri | D60: 169137 | E60: =IF(INTRO!$E$48="","",ROUND($D60*INTRO!$E$48,0)) -> 24795 | F60: =IF(INTRO!$E$49="","",ROUND($D60*INTRO!$E$49,0)) -> 48931 | G60: =IF(INTRO!$E$50="","",ROUND($D60*INTRO!$E$50,0)) -> 88526 | H60: 0 | I60: 0 | J60: 1 | K60: 2 | L60: 0 | M60: =IF(INTRO!$E$37="Endemic",IF($H60>0,IF($H60=4,"Unknown",IF($H60=99,"Stopped",$D60)),0),"Not required") -> 0 | N60: =IF(INTRO!$E$39="Endemic", IF($I60>0, IF($I60=4,"Unknown",IF($I60=99,"Stopped",$D60)), 0),"Not required") -> 0 | O60: =IF(INTRO!$E$41="Endemic", IF($J60>1, IF($J60=4, "Unknown", IF($J60=99, "Surveillance", E60)), 0),"Not required") -> 0 | P60: =IF(INTRO!$E$41="Endemic", IF($J60>1, IF($J60=4, "Unknown", IF($J60=99, "Surveillance", F60)), 0),"Not required") -> 0 | Q60: =IF(INTRO!$E$41="Endemic", IF($J60>1, IF($J60=4, "Unknown", IF($J60=99, "Surveillance", ROUND(D60*INTRO!$E$51,0))), 0),"Not required") -> 0 | R60: =IF(INTRO!$E$41="Endemic", IF($J60>1, IF($J60=4, "Unknown", IF($J60=99, "Surveillance", SUM($O60:$Q60))), 0),"Not required") -> 0 | S60: 582 | T60: 1563 | U60: 2828 | V60: =IF(INTRO!$E$43="Endemic", IF($K60>1, IF($K60=4, "Unknown", IF($K60=99, "Surveillance", SUM($S60:$U60))), 0),"Not required") -> 4973 | W60: 0 | X60: 0 | Y60: 0 | Z60: 1 | AH60: 10695 | AI60: Ngouri | AJ60: 2 | AK60: 1 | AL60: 0
A61: =IF(INTRO!$E$33<>0,INTRO!$E$33, " ") -> Tchad | B61: Logone Occidental | C61: Benamar | D61: 109572 | E61: =IF(INTRO!$E$48="","",ROUND($D61*INTRO!$E$48,0)) -> 16063 | F61: =IF(INTRO!$E$49="","",ROUND($D61*INTRO!$E$49,0)) -> 31699 | G61: =IF(INTRO!$E$50="","",ROUND($D61*INTRO!$E$50,0)) -> 57350 | H61: 1 | I61: 1 | J61: 1 | K61: 1 | L61: 0 | M61: =IF(INTRO!$E$37="Endemic",IF($H61>0,IF($H61=4,"Unknown",IF($H61=99,"Stopped",$D61)),0),"Not required") -> 109572 | N61: =IF(INTRO!$E$39="Endemic", IF($I61>0, IF($I61=4,"Unknown",IF($I61=99,"Stopped",$D61)), 0),"Not required") -> 109572 | O61: =IF(INTRO!$E$41="Endemic", IF($J61>1, IF($J61=4, "Unknown", IF($J61=99, "Surveillance", E61)), 0),"Not required") -> 0 | P61: =IF(INTRO!$E$41="Endemic", IF($J61>1, IF($J61=4, "Unknown", IF($J61=99, "Surveillance", F61)), 0),"Not required") -> 0 | Q61: =IF(INTRO!$E$41="Endemic", IF($J61>1, IF($J61=4, "Unknown", IF($J61=99, "Surveillance", ROUND(D61*INTRO!$E$51,0))), 0),"Not required") -> 0 | R61: =IF(INTRO!$E$41="Endemic", IF($J61>1, IF($J61=4, "Unknown", IF($J61=99, "Surveillance", SUM($O61:$Q61))), 0),"Not required") -> 0 | S61: 0 | T61: 0 | U61: 0 | V61: =IF(INTRO!$E$43="Endemic", IF($K61>1, IF($K61=4, "Unknown", IF($K61=99, "Surveillance", SUM($S61:$U61))), 0),"Not required") -> 0 | W61: 1 | X61: 1 | Y61: 0 | Z61: 0 | AH61: 10765 | AI61: Benamar | AJ61: 1 | AK61: 2 | AL61: 1
A62: =IF(INTRO!$E$33<>0,INTRO!$E$33, " ") -> Tchad | B62: Logone Occidental | C62: Benoye | D62: 326604 | E62: =IF(INTRO!$E$48="","",ROUND($D62*INTRO!$E$48,0)) -> 47880 | F62: =IF(INTRO!$E$49="","",ROUND($D62*INTRO!$E$49,0)) -> 94487 | G62: =IF(INTRO!$E$50="","",ROUND($D62*INTRO!$E$50,0)) -> 170945 | H62: 19 | I62: 0 | J62: 1 | K62: 2 | L62: 0 | M62: =IF(INTRO!$E$37="Endemic",IF($H62>0,IF($H62=4,"Unknown",IF($H62=99,"Stopped",$D62)),0),"Not required") -> 326604 | N62: =IF(INTRO!$E$39="Endemic", IF($I62>0, IF($I62=4,"Unknown",IF($I62=99,"Stopped",$D62)), 0),"Not required") -> 0 | O62: =IF(INTRO!$E$41="Endemic", IF($J62>1, IF($J62=4, "Unknown", IF($J62=99, "Surveillance", E62)), 0),"Not required") -> 0 | P62: =IF(INTRO!$E$41="Endemic", IF($J62>1, IF($J62=4, "Unknown", IF($J62=99, "Surveillance", F62)), 0),"Not required") -> 0 | Q62: =IF(INTRO!$E$41="Endemic", IF($J62>1, IF($J62=4, "Unknown", IF($J62=99, "Surveillance", ROUND(D62*INTRO!$E$51,0))), 0),"Not required") -> 0 | R62: =IF(INTRO!$E$41="Endemic", IF($J62>1, IF($J62=4, "Unknown", IF($J62=99, "Surveillance", SUM($O62:$Q62))), 0),"Not required") -> 0 | S62: 7663 | T62: 20571 | U62: 37216 | V62: =IF(INTRO!$E$43="Endemic", IF($K62>1, IF($K62=4, "Unknown", IF($K62=99, "Surveillance", SUM($S62:$U62))), 0),"Not required") -> 65450 | W62: 0 | X62: 0 | Y62: 0 | Z62: 1 | AA62: TAS | AH62: 10696 | AI62: Benoye | AJ62: 2 | AK62: 2 | AL62: 0
A63: =IF(INTRO!$E$33<>0,INTRO!$E$33, " ") -> Tchad | B63: Logone Occidental | C63: Laokassy | D63: 210560 | E63: =IF(INTRO!$E$48="","",ROUND($D63*INTRO!$E$48,0)) -> 30868 | F63: =IF(INTRO!$E$49="","",ROUND($D63*INTRO!$E$49,0)) -> 60915 | G63: =IF(INTRO!$E$50="","",ROUND($D63*INTRO!$E$50,0)) -> 110207 | H63: 19 | I63: 1 | J63: 1 | K63: 2 | L63: 0 | M63: =IF(INTRO!$E$37="Endemic",IF($H63>0,IF($H63=4,"Unknown",IF($H63=99,"Stopped",$D63)),0),"Not required") -> 210560 | N63: =IF(INTRO!$E$39="Endemic", IF($I63>0, IF($I63=4,"Unknown",IF($I63=99,"Stopped",$D63)), 0),"Not required") -> 210560 | O63: =IF(INTRO!$E$41="Endemic", IF($J63>1, IF($J63=4, "Unknown", IF($J63=99, "Surveillance", E63)), 0),"Not required") -> 0 | P63: =IF(INTRO!$E$41="Endemic", IF($J63>1, IF($J63=4, "Unknown", IF($J63=99, "Surveillance", F63)), 0),"Not required") -> 0 | Q63: =IF(INTRO!$E$41="Endemic", IF($J63>1, IF($J63=4, "Unknown", IF($J63=99, "Surveillance", ROUND(D63*INTRO!$E$51,0))), 0),"Not required") -> 0 | R63: =IF(INTRO!$E$41="Endemic", IF($J63>1, IF($J63=4, "Unknown", IF($J63=99, "Surveillance", SUM($O63:$Q63))), 0),"Not required") -> 0 | S63: 7746 | T63: 20795 | U63: 37624 | V63: =IF(INTRO!$E$43="Endemic", IF($K63>1, IF($K63=4, "Unknown", IF($K63=99, "Surveillance", SUM($S63:$U63))), 0),"Not required") -> 66165 | W63: 0 | X63: 1 | Y63: 0 | Z63: 1 | AA63: TAS | AH63: 10697 | AI63: Laokassy | AJ63: 2 | AK63: 2 | AL63: 0
A64: =IF(INTRO!$E$33<>0,INTRO!$E$33, " ") -> Tchad | B64: Logone Occidental | C64: Moundou | D64: 528934 | E64: =IF(INTRO!$E$48="","",ROUND($D64*INTRO!$E$48,0)) -> 77542 | F64: =IF(INTRO!$E$49="","",ROUND($D64*INTRO!$E$49,0)) -> 153021 | G64: =IF(INTRO!$E$50="","",ROUND($D64*INTRO!$E$50,0)) -> 276844 | H64: 1 | I64: 1 | J64: 1 | K64: 1 | L64: 0 | M64: =IF(INTRO!$E$37="Endemic",IF($H64>0,IF($H64=4,"Unknown",IF($H64=99,"Stopped",$D64)),0),"Not required") -> 528934 | N64: =IF(INTRO!$E$39="Endemic", IF($I64>0, IF($I64=4,"Unknown",IF($I64=99,"Stopped",$D64)), 0),"Not required") -> 528934 | O64: =IF(INTRO!$E$41="Endemic", IF($J64>1, IF($J64=4, "Unknown", IF($J64=99, "Surveillance", E64)), 0),"Not required") -> 0 | P64: =IF(INTRO!$E$41="Endemic", IF($J64>1, IF($J64=4, "Unknown", IF($J64=99, "Surveillance", F64)), 0),"Not required") -> 0 | Q64: =IF(INTRO!$E$41="Endemic", IF($J64>1, IF($J64=4, "Unknown", IF($J64=99, "Surveillance", ROUND(D64*INTRO!$E$51,0))), 0),"Not required") -> 0 | R64: =IF(INTRO!$E$41="Endemic", IF($J64>1, IF($J64=4, "Unknown", IF($J64=99, "Surveillance", SUM($O64:$Q64))), 0),"Not required") -> 0 | S64: 0 | T64: 0 | U64: 0 | V64: =IF(INTRO!$E$43="Endemic", IF($K64>1, IF($K64=4, "Unknown", IF($K64=99, "Surveillance", SUM($S64:$U64))), 0),"Not required") -> 0 | W64: 1 | X64: 1 | Y64: 0 | Z64: 0 | AH64: 10698 | AI64: Moundou | AJ64: 1 | AK64: 1 | AL64: 0
A65: =IF(INTRO!$E$33<>0,INTRO!$E$33, " ") -> Tchad | B65: Logone Orientlal | C65: Baibokoum | D65: 83699 | E65: =IF(INTRO!$E$48="","",ROUND($D65*INTRO!$E$48,0)) -> 12270 | F65: =IF(INTRO!$E$49="","",ROUND($D65*INTRO!$E$49,0)) -> 24214 | G65: =IF(INTRO!$E$50="","",ROUND($D65*INTRO!$E$50,0)) -> 43808 | H65: 1 | I65: 1 | J65: 1 | K65: 1 | L65: 0 | M65: =IF(INTRO!$E$37="Endemic",IF($H65>0,IF($H65=4,"Unknown",IF($H65=99,"Stopped",$D65)),0),"Not required") -> 83699 | N65: =IF(INTRO!$E$39="Endemic", IF($I65>0, IF($I65=4,"Unknown",IF($I65=99,"Stopped",$D65)), 0),"Not required") -> 83699 | O65: =IF(INTRO!$E$41="Endemic", IF($J65>1, IF($J65=4, "Unknown", IF($J65=99, "Surveillance", E65)), 0),"Not required") -> 0 | P65: =IF(INTRO!$E$41="Endemic", IF($J65>1, IF($J65=4, "Unknown", IF($J65=99, "Surveillance", F65)), 0),"Not required") -> 0 | Q65: =IF(INTRO!$E$41="Endemic", IF($J65>1, IF($J65=4, "Unknown", IF($J65=99, "Surveillance", ROUND(D65*INTRO!$E$51,0))), 0),"Not required") -> 0 | R65: =IF(INTRO!$E$41="Endemic", IF($J65>1, IF($J65=4, "Unknown", IF($J65=99, "Surveillance", SUM($O65:$Q65))), 0),"Not required") -> 0 | S65: 0 | T65: 0 | U65: 0 | V65: =IF(INTRO!$E$43="Endemic", IF($K65>1, IF($K65=4, "Unknown", IF($K65=99, "Surveillance", SUM($S65:$U65))), 0),"Not required") -> 0 | W65: 1 | X65: 1 | Y65: 0 | Z65: 0 | AH65: 10766 | AI65: Baibokoum | AJ65: 1 | AK65: 2 | AL65: 1
A66: =IF(INTRO!$E$33<>0,INTRO!$E$33, " ") -> Tchad | B66: Logone Orientlal | C66: Bebedja | D66: 208917 | E66: =IF(INTRO!$E$48="","",ROUND($D66*INTRO!$E$48,0)) -> 30627 | F66: =IF(INTRO!$E$49="","",ROUND($D66*INTRO!$E$49,0)) -> 60440 | G66: =IF(INTRO!$E$50="","",ROUND($D66*INTRO!$E$50,0)) -> 109347 | H66: 1 | I66: 1 | J66: 1 | K66: 2 | L66: 0 | M66: =IF(INTRO!$E$37="Endemic",IF($H66>0,IF($H66=4,"Unknown",IF($H66=99,"Stopped",$D66)),0),"Not required") -> 208917 | N66: =IF(INTRO!$E$39="Endemic", IF($I66>0, IF($I66=4,"Unknown",IF($I66=99,"Stopped",$D66)), 0),"Not required") -> 208917 | O66: =IF(INTRO!$E$41="Endemic", IF($J66>1, IF($J66=4, "Unknown", IF($J66=99, "Surveillance", E66)), 0),"Not required") -> 0 | P66: =IF(INTRO!$E$41="Endemic", IF($J66>1, IF($J66=4, "Unknown", IF($J66=99, "Surveillance", F66)), 0),"Not required") -> 0 | Q66: =IF(INTRO!$E$41="Endemic", IF($J66>1, IF($J66=4, "Unknown", IF($J66=99, "Surveillance", ROUND(D66*INTRO!$E$51,0))), 0),"Not required") -> 0 | R66: =IF(INTRO!$E$41="Endemic", IF($J66>1, IF($J66=4, "Unknown", IF($J66=99, "Surveillance", SUM($O66:$Q66))), 0),"Not required") -> 0 | S66: 4296 | T66: 11533 | U66: 20866 | V66: =IF(INTRO!$E$43="Endemic", IF($K66>1, IF($K66=4, "Unknown", IF($K66=99, "Surveillance", SUM($S66:$U66))), 0),"Not required") -> 36695 | W66: 1 | X66: 1 | Y66: 0 | Z66: 1 | AH66: 10699 | AI66: Bebedja | AJ66: 2 | AK66: 2 | AL66: 0
A67: =IF(INTRO!$E$33<>0,INTRO!$E$33, " ") -> Tchad | B67: Logone Orientlal | C67: Beboto | D67: 77751 | E67: =IF(INTRO!$E$48="","",ROUND($D67*INTRO!$E$48,0)) -> 11398 | F67: =IF(INTRO!$E$49="","",ROUND($D67*INTRO!$E$49,0)) -> 22493 | G67: =IF(INTRO!$E$50="","",ROUND($D67*INTRO!$E$50,0)) -> 40695 | H67: 19 | I67: 1 | J67: 1 | K67: 2 | L67: 0 | M67: =IF(INTRO!$E$37="Endemic",IF($H67>0,IF($H67=4,"Unknown",IF($H67=99,"Stopped",$D67)),0),"Not required") -> 77751 | N67: =IF(INTRO!$E$39="Endemic", IF($I67>0, IF($I67=4,"Unknown",IF($I67=99,"Stopped",$D67)), 0),"Not required") -> 77751 | O67: =IF(INTRO!$E$41="Endemic", IF($J67>1, IF($J67=4, "Unknown", IF($J67=99, "Surveillance", E67)), 0),"Not required") -> 0 | P67: =IF(INTRO!$E$41="Endemic", IF($J67>1, IF($J67=4, "Unknown", IF($J67=99, "Surveillance", F67)), 0),"Not required") -> 0 | Q67: =IF(INTRO!$E$41="Endemic", IF($J67>1, IF($J67=4, "Unknown", IF($J67=99, "Surveillance", ROUND(D67*INTRO!$E$51,0))), 0),"Not required") -> 0 | R67: =IF(INTRO!$E$41="Endemic", IF($J67>1, IF($J67=4, "Unknown", IF($J67=99, "Surveillance", SUM($O67:$Q67))), 0),"Not required") -> 0 | S67: 833 | T67: 2237 | U67: 4049 | V67: =IF(INTRO!$E$43="Endemic", IF($K67>1, IF($K67=4, "Unknown", IF($K67=99, "Surveillance", SUM($S67:$U67))), 0),"Not required") -> 7119 | W67: 0 | X67: 1 | Y67: 0 | Z67: 1 | AA67: TAS | AH67: 10700 | AI67: Beboto | AJ67: 2 | AK67: 2 | AL67: 0
A68: =IF(INTRO!$E$33<>0,INTRO!$E$33, " ") -> Tchad | B68: Logone Orientlal | C68: Bessao | D68: 204049 | E68: =IF(INTRO!$E$48="","",ROUND($D68*INTRO!$E$48,0)) -> 29914 | F68: =IF(INTRO!$E$49="","",ROUND($D68*INTRO!$E$49,0)) -> 59031 | G68: =IF(INTRO!$E$50="","",ROUND($D68*INTRO!$E$50,0)) -> 106799 | H68: 19 | I68: 1 | J68: 1 | K68: 3 | L68: 0 | M68: =IF(INTRO!$E$37="Endemic",IF($H68>0,IF($H68=4,"Unknown",IF($H68=99,"Stopped",$D68)),0),"Not required") -> 204049 | N68: =IF(INTRO!$E$39="Endemic", IF($I68>0, IF($I68=4,"Unknown",IF($I68=99,"Stopped",$D68)), 0),"Not required") -> 204049 | O68: =IF(INTRO!$E$41="Endemic", IF($J68>1, IF($J68=4, "Unknown", IF($J68=99, "Surveillance", E68)), 0),"Not required") -> 0 | P68: =IF(INTRO!$E$41="Endemic", IF($J68>1, IF($J68=4, "Unknown", IF($J68=99, "Surveillance", F68)), 0),"Not required") -> 0 | Q68: =IF(INTRO!$E$41="Endemic", IF($J68>1, IF($J68=4, "Unknown", IF($J68=99, "Surveillance", ROUND(D68*INTRO!$E$51,0))), 0),"Not required") -> 0 | R68: =IF(INTRO!$E$41="Endemic", IF($J68>1, IF($J68=4, "Unknown", IF($J68=99, "Surveillance", SUM($O68:$Q68))), 0),"Not required") -> 0 | S68: 5387 | T68: 14461 | U68: 26164 | V68: =IF(INTRO!$E$43="Endemic", IF($K68>1, IF($K68=4, "Unknown", IF($K68=99, "Surveillance", SUM($S68:$U68))), 0),"Not required") -> 46012 | W68: 0 | X68: 1 | Y68: 0 | Z68: 1 | AA68: TAS | AH68: 10701 | AI68: Bessao | AJ68: 3 | AK68: 2 | AL68: 1
A69: =IF(INTRO!$E$33<>0,INTRO!$E$33, " ") -> Tchad | B69: Logone Orientlal | C69: Bodo | D69: 160236 | E69: =IF(INTRO!$E$48="","",ROUND($D69*INTRO!$E$48,0)) -> 23491 | F69: =IF(INTRO!$E$49="","",ROUND($D69*INTRO!$E$49,0)) -> 46356 | G69: =IF(INTRO!$E$50="","",ROUND($D69*INTRO!$E$50,0)) -> 83868 | H69: 1 | I69: 0 | J69: 1 | K69: 2 | L69: 0 | M69: =IF(INTRO!$E$37="Endemic",IF($H69>0,IF($H69=4,"Unknown",IF($H69=99,"Stopped",$D69)),0),"Not required") -> 160236 | N69: =IF(INTRO!$E$39="Endemic", IF($I69>0, IF($I69=4,"Unknown",IF($I69=99,"Stopped",$D69)), 0),"Not required") -> 0 | O69: =IF(INTRO!$E$41="Endemic", IF($J69>1, IF($J69=4, "Unknown", IF($J69=99, "Surveillance", E69)), 0),"Not required") -> 0 | P69: =IF(INTRO!$E$41="Endemic", IF($J69>1, IF($J69=4, "Unknown", IF($J69=99, "Surveillance", F69)), 0),"Not required") -> 0 | Q69: =IF(INTRO!$E$41="Endemic", IF($J69>1, IF($J69=4, "Unknown", IF($J69=99, "Surveillance", ROUND(D69*INTRO!$E$51,0))), 0),"Not required") -> 0 | R69: =IF(INTRO!$E$41="Endemic", IF($J69>1, IF($J69=4, "Unknown", IF($J69=99, "Surveillance", SUM($O69:$Q69))), 0),"Not required") -> 0 | S69: 1315 | T69: 3528 | U69: 6384 | V69: =IF(INTRO!$E$43="Endemic", IF($K69>1, IF($K69=4, "Unknown", IF($K69=99, "Surveillance", SUM($S69:$U69))), 0),"Not required") -> 11227 | W69: 1 | X69: 0 | Y69: 0 | Z69: 1 | AH69: 10702 | AI69: Bodo | AJ69: 2 | AK69: 2 | AL69: 1
A70: =IF(INTRO!$E$33<>0,INTRO!$E$33, " ") -> Tchad | B70: Logone Orientlal | C70: Doba | D70: 189849 | E70: =IF(INTRO!$E$48="","",ROUND($D70*INTRO!$E$48,0)) -> 27832 | F70: =IF(INTRO!$E$49="","",ROUND($D70*INTRO!$E$49,0)) -> 54923 | G70: =IF(INTRO!$E$50="","",ROUND($D70*INTRO!$E$50,0)) -> 99367 | H70: 19 | I70: 1 | J70: 1 | K70: 2 | L70: 0 | M70: =IF(INTRO!$E$37="Endemic",IF($H70>0,IF($H70=4,"Unknown",IF($H70=99,"Stopped",$D70)),0),"Not required") -> 189849 | N70: =IF(INTRO!$E$39="Endemic", IF($I70>0, IF($I70=4,"Unknown",IF($I70=99,"Stopped",$D70)), 0),"Not required") -> 189849 | O70: =IF(INTRO!$E$41="Endemic", IF($J70>1, IF($J70=4, "Unknown", IF($J70=99, "Surveillance", E70)), 0),"Not required") -> 0 | P70: =IF(INTRO!$E$41="Endemic", IF($J70>1, IF($J70=4, "Unknown", IF($J70=99, "Surveillance", F70)), 0),"Not required") -> 0 | Q70: =IF(INTRO!$E$41="Endemic", IF($J70>1, IF($J70=4, "Unknown", IF($J70=99, "Surveillance", ROUND(D70*INTRO!$E$51,0))), 0),"Not required") -> 0 | R70: =IF(INTRO!$E$41="Endemic", IF($J70>1, IF($J70=4, "Unknown", IF($J70=99, "Surveillance", SUM($O70:$Q70))), 0),"Not required") -> 0 | S70: 1893 | T70: 5082 | U70: 9194 | V70: =IF(INTRO!$E$43="Endemic", IF($K70>1, IF($K70=4, "Unknown", IF($K70=99, "Surveillance", SUM($S70:$U70))), 0),"Not required") -> 16169 | W70: 0 | X70: 1 | Y70: 0 | Z70: 1 | AA70: TAS | AH70: 10703 | AI70: Doba | AJ70: 2 | AK70: 1 | AL70: 0
A71: =IF(INTRO!$E$33<>0,INTRO!$E$33, " ") -> Tchad | B71: Logone Orientlal | C71: DONIA | D71: 98438 | E71: =IF(INTRO!$E$48="","",ROUND($D71*INTRO!$E$48,0)) -> 14431 | F71: =IF(INTRO!$E$49="","",ROUND($D71*INTRO!$E$49,0)) -> 28478 | G71: =IF(INTRO!$E$50="","",ROUND($D71*INTRO!$E$50,0)) -> 51522 | H71: 1 | I71: 1 | J71: 1 | K71: 1 | L71: 0 | M71: =IF(INTRO!$E$37="Endemic",IF($H71>0,IF($H71=4,"Unknown",IF($H71=99,"Stopped",$D71)),0),"Not required") -> 98438 | N71: =IF(INTRO!$E$39="Endemic", IF($I71>0, IF($I71=4,"Unknown",IF($I71=99,"Stopped",$D71)), 0),"Not required") -> 98438 | O71: =IF(INTRO!$E$41="Endemic", IF($J71>1, IF($J71=4, "Unknown", IF($J71=99, "Surveillance", E71)), 0),"Not required") -> 0 | P71: =IF(INTRO!$E$41="Endemic", IF($J71>1, IF($J71=4, "Unknown", IF($J71=99, "Surveillance", F71)), 0),"Not required") -> 0 | Q71: =IF(INTRO!$E$41="Endemic", IF($J71>1, IF($J71=4, "Unknown", IF($J71=99, "Surveillance", ROUND(D71*INTRO!$E$51,0))), 0),"Not required") -> 0 | R71: =IF(INTRO!$E$41="Endemic", IF($J71>1, IF($J71=4, "Unknown", IF($J71=99, "Surveillance", SUM($O71:$Q71))), 0),"Not required") -> 0 | S71: 0 | T71: 0 | U71: 0 | V71: =IF(INTRO!$E$43="Endemic", IF($K71>1, IF($K71=4, "Unknown", IF($K71=99, "Surveillance", SUM($S71:$U71))), 0),"Not required") -> 0 | W71: 1 | X71: 1 | Y71: 0 | Z71: 0 | AH71: 10767 | AI71: DONIA | AJ71: 1 | AK71: 2 | AL71: 1
A72: =IF(INTRO!$E$33<>0,INTRO!$E$33, " ") -> Tchad | B72: Logone Orientlal | C72: Goré | D72: 180113 | E72: =IF(INTRO!$E$48="","",ROUND($D72*INTRO!$E$48,0)) -> 26405 | F72: =IF(INTRO!$E$49="","",ROUND($D72*INTRO!$E$49,0)) -> 52107 | G72: =IF(INTRO!$E$50="","",ROUND($D72*INTRO!$E$50,0)) -> 94271 | H72: 19 | I72: 1 | J72: 1 | K72: 2 | L72: 0 | M72: =IF(INTRO!$E$37="Endemic",IF($H72>0,IF($H72=4,"Unknown",IF($H72=99,"Stopped",$D72)),0),"Not required") -> 180113 | N72: =IF(INTRO!$E$39="Endemic", IF($I72>0, IF($I72=4,"Unknown",IF($I72=99,"Stopped",$D72)), 0),"Not required") -> 180113 | O72: =IF(INTRO!$E$41="Endemic", IF($J72>1, IF($J72=4, "Unknown", IF($J72=99, "Surveillance", E72)), 0),"Not required") -> 0 | P72: =IF(INTRO!$E$41="Endemic", IF($J72>1, IF($J72=4, "Unknown", IF($J72=99, "Surveillance", F72)), 0),"Not required") -> 0 | Q72: =IF(INTRO!$E$41="Endemic", IF($J72>1, IF($J72=4, "Unknown", IF($J72=99, "Surveillance", ROUND(D72*INTRO!$E$51,0))), 0),"Not required") -> 0 | R72: =IF(INTRO!$E$41="Endemic", IF($J72>1, IF($J72=4, "Unknown", IF($J72=99, "Surveillance", SUM($O72:$Q72))), 0),"Not required") -> 0 | S72: 3147 | T72: 8447 | U72: 15284 | V72: =IF(INTRO!$E$43="Endemic", IF($K72>1, IF($K72=4, "Unknown", IF($K72=99, "Surveillance", SUM($S72:$U72))), 0),"Not required") -> 26878 | W72: 0 | X72: 1 | Y72: 0 | Z72: 1 | AA72: TAS | AH72: 10704 | AI72: Goré | AJ72: 2 | AK72: 2 | AL72: 1
A73: =IF(INTRO!$E$33<>0,INTRO!$E$33, " ") -> Tchad | B73: Logone Orientlal | C73: Kara | D73: 73829 | E73: =IF(INTRO!$E$48="","",ROUND($D73*INTRO!$E$48,0)) -> 10823 | F73: =IF(INTRO!$E$49="","",ROUND($D73*INTRO!$E$49,0)) -> 21359 | G73: =IF(INTRO!$E$50="","",ROUND($D73*INTRO!$E$50,0)) -> 38642 | H73: 1 | I73: 1 | J73: 1 | K73: 1 | L73: 0 | M73: =IF(INTRO!$E$37="Endemic",IF($H73>0,IF($H73=4,"Unknown",IF($H73=99,"Stopped",$D73)),0),"Not required") -> 73829 | N73: =IF(INTRO!$E$39="Endemic", IF($I73>0, IF($I73=4,"Unknown",IF($I73=99,"Stopped",$D73)), 0),"Not required") -> 73829 | O73: =IF(INTRO!$E$41="Endemic", IF($J73>1, IF($J73=4, "Unknown", IF($J73=99, "Surveillance", E73)), 0),"Not required") -> 0 | P73: =IF(INTRO!$E$41="Endemic", IF($J73>1, IF($J73=4, "Unknown", IF($J73=99, "Surveillance", F73)), 0),"Not required") -> 0 | Q73: =IF(INTRO!$E$41="Endemic", IF($J73>1, IF($J73=4, "Unknown", IF($J73=99, "Surveillance", ROUND(D73*INTRO!$E$51,0))), 0),"Not required") -> 0 | R73: =IF(INTRO!$E$41="Endemic", IF($J73>1, IF($J73=4, "Unknown", IF($J73=99, "Surveillance", SUM($O73:$Q73))), 0),"Not required") -> 0 | S73: 0 | T73: 0 | U73: 0 | V73: =IF(INTRO!$E$43="Endemic", IF($K73>1, IF($K73=4, "Unknown", IF($K73=99, "Surveillance", SUM($S73:$U73))), 0),"Not required") -> 0 | W73: 1 | X73: 1 | Y73: 0 | Z73: 0 | AH73: 10768 | AI73: Kara | AJ73: 1 | AK73: 1 | AL73: 0
A74: =IF(INTRO!$E$33<>0,INTRO!$E$33, " ") -> Tchad | B74: Logone Orientlal | C74: Larmanaye | D74: 75317 | E74: =IF(INTRO!$E$48="","",ROUND($D74*INTRO!$E$48,0)) -> 11041 | F74: =IF(INTRO!$E$49="","",ROUND($D74*INTRO!$E$49,0)) -> 21789 | G74: =IF(INTRO!$E$50="","",ROUND($D74*INTRO!$E$50,0)) -> 39421 | H74: 19 | I74: 1 | J74: 2 | K74: 2 | L74: 0 | M74: =IF(INTRO!$E$37="Endemic",IF($H74>0,IF($H74=4,"Unknown",IF($H74=99,"Stopped",$D74)),0),"Not required") -> 75317 | N74: =IF(INTRO!$E$39="Endemic", IF($I74>0, IF($I74=4,"Unknown",IF($I74=99,"Stopped",$D74)), 0),"Not required") -> 75317 | O74: =IF(INTRO!$E$41="Endemic", IF($J74>1, IF($J74=4, "Unknown", IF($J74=99, "Surveillance", E74)), 0),"Not required") -> 11041 | P74: =IF(INTRO!$E$41="Endemic", IF($J74>1, IF($J74=4, "Unknown", IF($J74=99, "Surveillance", F74)), 0),"Not required") -> 21789 | Q74: =IF(INTRO!$E$41="Endemic", IF($J74>1, IF($J74=4, "Unknown", IF($J74=99, "Surveillance", ROUND(D74*INTRO!$E$51,0))), 0),"Not required") -> 16712 | R74: =IF(INTRO!$E$41="Endemic", IF($J74>1, IF($J74=4, "Unknown", IF($J74=99, "Surveillance", SUM($O74:$Q74))), 0),"Not required") -> 49542 | S74: 5292 | T74: 14206 | U74: 25703 | V74: =IF(INTRO!$E$43="Endemic", IF($K74>1, IF($K74=4, "Unknown", IF($K74=99, "Surveillance", SUM($S74:$U74))), 0),"Not required") -> 45201 | W74: 0 | X74: 1 | Y74: 1 | Z74: 1 | AA74: TAS | AH74: 10705 | AI74: Larmanaye | AJ74: 2 | AK74: 2 | AL74: 0
A75: =IF(INTRO!$E$33<>0,INTRO!$E$33, " ") -> Tchad | B75: Mandoul | C75: Bedaya | D75: 80226 | E75: =IF(INTRO!$E$48="","",ROUND($D75*INTRO!$E$48,0)) -> 11761 | F75: =IF(INTRO!$E$49="","",ROUND($D75*INTRO!$E$49,0)) -> 23209 | G75: =IF(INTRO!$E$50="","",ROUND($D75*INTRO!$E$50,0)) -> 41990 | H75: 1 | I75: 1 | J75: 1 | K75: 1 | L75: 0 | M75: =IF(INTRO!$E$37="Endemic",IF($H75>0,IF($H75=4,"Unknown",IF($H75=99,"Stopped",$D75)),0),"Not required") -> 80226 | N75: =IF(INTRO!$E$39="Endemic", IF($I75>0, IF($I75=4,"Unknown",IF($I75=99,"Stopped",$D75)), 0),"Not required") -> 80226 | O75: =IF(INTRO!$E$41="Endemic", IF($J75>1, IF($J75=4, "Unknown", IF($J75=99, "Surveillance", E75)), 0),"Not required") -> 0 | P75: =IF(INTRO!$E$41="Endemic", IF($J75>1, IF($J75=4, "Unknown", IF($J75=99, "Surveillance", F75)), 0),"Not required") -> 0 | Q75: =IF(INTRO!$E$41="Endemic", IF($J75>1, IF($J75=4, "Unknown", IF($J75=99, "Surveillance", ROUND(D75*INTRO!$E$51,0))), 0),"Not required") -> 0 | R75: =IF(INTRO!$E$41="Endemic", IF($J75>1, IF($J75=4, "Unknown", IF($J75=99, "Surveillance", SUM($O75:$Q75))), 0),"Not required") -> 0 | S75: 0 | T75: 0 | U75: 0 | V75: =IF(INTRO!$E$43="Endemic", IF($K75>1, IF($K75=4, "Unknown", IF($K75=99, "Surveillance", SUM($S75:$U75))), 0),"Not required") -> 0 | W75: 1 | X75: 1 | Y75: 0 | Z75: 0 | AH75: 10769 | AI75: Bedaya | AJ75: 1 | AK75: 1 | AL75: 0
A76: =IF(INTRO!$E$33<>0,INTRO!$E$33, " ") -> Tchad | B76: Mandoul | C76: Bedjondo | D76: 276284 | E76: =IF(INTRO!$E$48="","",ROUND($D76*INTRO!$E$48,0)) -> 40503 | F76: =IF(INTRO!$E$49="","",ROUND($D76*INTRO!$E$49,0)) -> 79929 | G76: =IF(INTRO!$E$50="","",ROUND($D76*INTRO!$E$50,0)) -> 144607 | H76: 0 | I76: 1 | J76: 0 | K76: 2 | L76: 0 | M76: =IF(INTRO!$E$37="Endemic",IF($H76>0,IF($H76=4,"Unknown",IF($H76=99,"Stopped",$D76)),0),"Not required") -> 0 | N76: =IF(INTRO!$E$39="Endemic", IF($I76>0, IF($I76=4,"Unknown",IF($I76=99,"Stopped",$D76)), 0),"Not required") -> 276284 | O76: =IF(INTRO!$E$41="Endemic", IF($J76>1, IF($J76=4, "Unknown", IF($J76=99, "Surveillance", E76)), 0),"Not required") -> 0 | P76: =IF(INTRO!$E$41="Endemic", IF($J76>1, IF($J76=4, "Unknown", IF($J76=99, "Surveillance", F76)), 0),"Not required") -> 0 | Q76: =IF(INTRO!$E$41="Endemic", IF($J76>1, IF($J76=4, "Unknown", IF($J76=99, "Surveillance", ROUND(D76*INTRO!$E$51,0))), 0),"Not required") -> 0 | R76: =IF(INTRO!$E$41="Endemic", IF($J76>1, IF($J76=4, "Unknown", IF($J76=99, "Surveillance", SUM($O76:$Q76))), 0),"Not required") -> 0 | S76: 2580 | T76: 6926 | U76: 12531 | V76: =IF(INTRO!$E$43="Endemic", IF($K76>1, IF($K76=4, "Unknown", IF($K76=99, "Surveillance", SUM($S76:$U76))), 0),"Not required") -> 22037 | W76: 0 | X76: 1 | Y76: 0 | Z76: 1 | AH76: 10706 | AI76: Bedjondo | AJ76: 2 | AK76: 1 | AL76: 0
A77: =IF(INTRO!$E$33<>0,INTRO!$E$33, " ") -> Tchad | B77: Mandoul | C77: Bekourou | D77: 60285 | E77: =IF(INTRO!$E$48="","",ROUND($D77*INTRO!$E$48,0)) -> 8838 | F77: =IF(INTRO!$E$49="","",ROUND($D77*INTRO!$E$49,0)) -> 17440 | G77: =IF(INTRO!$E$50="","",ROUND($D77*INTRO!$E$50,0)) -> 31553 | H77: 0 | I77: 1 | J77: 0 | K77: 1 | L77: 0 | M77: =IF(INTRO!$E$37="Endemic",IF($H77>0,IF($H77=4,"Unknown",IF($H77=99,"Stopped",$D77)),0),"Not required") -> 0 | N77: =IF(INTRO!$E$39="Endemic", IF($I77>0, IF($I77=4,"Unknown",IF($I77=99,"Stopped",$D77)), 0),"Not required") -> 60285 | O77: =IF(INTRO!$E$41="Endemic", IF($J77>1, IF($J77=4, "Unknown", IF($J77=99, "Surveillance", E77)), 0),"Not required") -> 0 | P77: =IF(INTRO!$E$41="Endemic", IF($J77>1, IF($J77=4, "Unknown", IF($J77=99, "Surveillance", F77)), 0),"Not required") -> 0 | Q77: =IF(INTRO!$E$41="Endemic", IF($J77>1, IF($J77=4, "Unknown", IF($J77=99, "Surveillance", ROUND(D77*INTRO!$E$51,0))), 0),"Not required") -> 0 | R77: =IF(INTRO!$E$41="Endemic", IF($J77>1, IF($J77=4, "Unknown", IF($J77=99, "Surveillance", SUM($O77:$Q77))), 0),"Not required") -> 0 | S77: 0 | T77: 0 | U77: 0 | V77: =IF(INTRO!$E$43="Endemic", IF($K77>1, IF($K77=4, "Unknown", IF($K77=99, "Surveillance", SUM($S77:$U77))), 0),"Not required") -> 0 | W77: 0 | X77: 1 | Y77: 0 | Z77: 0 | AH77: 10770 | AI77: Bekourou | AJ77: 1 | AK77: 0 | AL77: 0
A78: =IF(INTRO!$E$33<>0,INTRO!$E$33, " ") -> Tchad | B78: Mandoul | C78: Bouna | D78: 119296 | E78: =IF(INTRO!$E$48="","",ROUND($D78*INTRO!$E$48,0)) -> 17489 | F78: =IF(INTRO!$E$49="","",ROUND($D78*INTRO!$E$49,0)) -> 34512 | G78: =IF(INTRO!$E$50="","",ROUND($D78*INTRO!$E$50,0)) -> 62440 | H78: 0 | I78: 1 | J78: 1 | K78: 1 | L78: 0 | M78: =IF(INTRO!$E$37="Endemic",IF($H78>0,IF($H78=4,"Unknown",IF($H78=99,"Stopped",$D78)),0),"Not required") -> 0 | N78: =IF(INTRO!$E$39="Endemic", IF($I78>0, IF($I78=4,"Unknown",IF($I78=99,"Stopped",$D78)), 0),"Not required") -> 119296 | O78: =IF(INTRO!$E$41="Endemic", IF($J78>1, IF($J78=4, "Unknown", IF($J78=99, "Surveillance", E78)), 0),"Not required") -> 0 | P78: =IF(INTRO!$E$41="Endemic", IF($J78>1, IF($J78=4, "Unknown", IF($J78=99, "Surveillance", F78)), 0),"Not required") -> 0 | Q78: =IF(INTRO!$E$41="Endemic", IF($J78>1, IF($J78=4, "Unknown", IF($J78=99, "Surveillance", ROUND(D78*INTRO!$E$51,0))), 0),"Not required") -> 0 | R78: =IF(INTRO!$E$41="Endemic", IF($J78>1, IF($J78=4, "Unknown", IF($J78=99, "Surveillance", SUM($O78:$Q78))), 0),"Not required") -> 0 | S78: 0 | T78: 0 | U78: 0 | V78: =IF(INTRO!$E$43="Endemic", IF($K78>1, IF($K78=4, "Unknown", IF($K78=99, "Surveillance", SUM($S78:$U78))), 0),"Not required") -> 0 | W78: 0 | X78: 1 | Y78: 0 | Z78: 0 | AH78: 10707 | AI78: Bouna | AJ78: 1 | AK78: 0 | AL78: 1
A79: =IF(INTRO!$E$33<>0,INTRO!$E$33, " ") -> Tchad | B79: Mandoul | C79: Goundi | D79: 230025 | E79: =IF(INTRO!$E$48="","",ROUND($D79*INTRO!$E$48,0)) -> 33722 | F79: =IF(INTRO!$E$49="","",ROUND($D79*INTRO!$E$49,0)) -> 66546 | G79: =IF(INTRO!$E$50="","",ROUND($D79*INTRO!$E$50,0)) -> 120395 | H79: 0 | I79: 0 | J79: 1 | K79: 1 | L79: 0 | M79: =IF(INTRO!$E$37="Endemic",IF($H79>0,IF($H79=4,"Unknown",IF($H79=99,"Stopped",$D79)),0),"Not required") -> 0 | N79: =IF(INTRO!$E$39="Endemic", IF($I79>0, IF($I79=4,"Unknown",IF($I79=99,"Stopped",$D79)), 0),"Not required") -> 0 | O79: =IF(INTRO!$E$41="Endemic", IF($J79>1, IF($J79=4, "Unknown", IF($J79=99, "Surveillance", E79)), 0),"Not required") -> 0 | P79: =IF(INTRO!$E$41="Endemic", IF($J79>1, IF($J79=4, "Unknown", IF($J79=99, "Surveillance", F79)), 0),"Not required") -> 0 | Q79: =IF(INTRO!$E$41="Endemic", IF($J79>1, IF($J79=4, "Unknown", IF($J79=99, "Surveillance", ROUND(D79*INTRO!$E$51,0))), 0),"Not required") -> 0 | R79: =IF(INTRO!$E$41="Endemic", IF($J79>1, IF($J79=4, "Unknown", IF($J79=99, "Surveillance", SUM($O79:$Q79))), 0),"Not required") -> 0 | S79: 0 | T79: 0 | U79: 0 | V79: =IF(INTRO!$E$43="Endemic", IF($K79>1, IF($K79=4, "Unknown", IF($K79=99, "Surveillance", SUM($S79:$U79))), 0),"Not required") -> 0 | W79: 0 | X79: 0 | Y79: 0 | Z79: 0 | AH79: 10708 | AI79: Goundi | AJ79: 1 | AK79: 1 | AL79: 1
A80: =IF(INTRO!$E$33<>0,INTRO!$E$33, " ") -> Tchad | B80: Mandoul | C80: Koumra | D80: 190708 | E80: =IF(INTRO!$E$48="","",ROUND($D80*INTRO!$E$48,0)) -> 27958 | F80: =IF(INTRO!$E$49="","",ROUND($D80*INTRO!$E$49,0)) -> 55172 | G80: =IF(INTRO!$E$50="","",ROUND($D80*INTRO!$E$50,0)) -> 99817 | H80: 1 | I80: 1 | J80: 1 | K80: 1 | L80: 0 | M80: =IF(INTRO!$E$37="Endemic",IF($H80>0,IF($H80=4,"Unknown",IF($H80=99,"Stopped",$D80)),0),"Not required") -> 190708 | N80: =IF(INTRO!$E$39="Endemic", IF($I80>0, IF($I80=4,"Unknown",IF($I80=99,"Stopped",$D80)), 0),"Not required") -> 190708 | O80: =IF(INTRO!$E$41="Endemic", IF($J80>1, IF($J80=4, "Unknown", IF($J80=99, "Surveillance", E80)), 0),"Not required") -> 0 | P80: =IF(INTRO!$E$41="Endemic", IF($J80>1, IF($J80=4, "Unknown", IF($J80=99, "Surveillance", F80)), 0),"Not required") -> 0 | Q80: =IF(INTRO!$E$41="Endemic", IF($J80>1, IF($J80=4, "Unknown", IF($J80=99, "Surveillance", ROUND(D80*INTRO!$E$51,0))), 0),"Not required") -> 0 | R80: =IF(INTRO!$E$41="Endemic", IF($J80>1, IF($J80=4, "Unknown", IF($J80=99, "Surveillance", SUM($O80:$Q80))), 0),"Not required") -> 0 | S80: 0 | T80: 0 | U80: 0 | V80: =IF(INTRO!$E$43="Endemic", IF($K80>1, IF($K80=4, "Unknown", IF($K80=99, "Surveillance", SUM($S80:$U80))), 0),"Not required") -> 0 | W80: 1 | X80: 1 | Y80: 0 | Z80: 0 | AH80: 10709 | AI80: Koumra | AJ80: 1 | AK80: 1 | AL80: 1
A81: =IF(INTRO!$E$33<>0,INTRO!$E$33, " ") -> Tchad | B81: Mandoul | C81: Moissala | D81: 202557 | E81: =IF(INTRO!$E$48="","",ROUND($D81*INTRO!$E$48,0)) -> 29695 | F81: =IF(INTRO!$E$49="","",ROUND($D81*INTRO!$E$49,0)) -> 58600 | G81: =IF(INTRO!$E$50="","",ROUND($D81*INTRO!$E$50,0)) -> 106018 | H81: 0 | I81: 1 | J81: 0 | K81: 1 | L81: 0 | M81: =IF(INTRO!$E$37="Endemic",IF($H81>0,IF($H81=4,"Unknown",IF($H81=99,"Stopped",$D81)),0),"Not required") -> 0 | N81: =IF(INTRO!$E$39="Endemic", IF($I81>0, IF($I81=4,"Unknown",IF($I81=99,"Stopped",$D81)), 0),"Not required") -> 202557 | O81: =IF(INTRO!$E$41="Endemic", IF($J81>1, IF($J81=4, "Unknown", IF($J81=99, "Surveillance", E81)), 0),"Not required") -> 0 | P81: =IF(INTRO!$E$41="Endemic", IF($J81>1, IF($J81=4, "Unknown", IF($J81=99, "Surveillance", F81)), 0),"Not required") -> 0 | Q81: =IF(INTRO!$E$41="Endemic", IF($J81>1, IF($J81=4, "Unknown", IF($J81=99, "Surveillance", ROUND(D81*INTRO!$E$51,0))), 0),"Not required") -> 0 | R81: =IF(INTRO!$E$41="Endemic", IF($J81>1, IF($J81=4, "Unknown", IF($J81=99, "Surveillance", SUM($O81:$Q81))), 0),"Not required") -> 0 | S81: 0 | T81: 0 | U81: 0 | V81: =IF(INTRO!$E$43="Endemic", IF($K81>1, IF($K81=4, "Unknown", IF($K81=99, "Surveillance", SUM($S81:$U81))), 0),"Not required") -> 0 | W81: 0 | X81: 1 | Y81: 0 | Z81: 0 | AH81: 10710 | AI81: Moissala | AJ81: 1 | AK81: 0 | AL81: 1
A82: =IF(INTRO!$E$33<>0,INTRO!$E$33, " ") -> Tchad | B82: Mayo Kebbi Est | C82: Bongor | D82: 292635 | E82: =IF(INTRO!$E$48="","",ROUND($D82*INTRO!$E$48,0)) -> 42900 | F82: =IF(INTRO!$E$49="","",ROUND($D82*INTRO!$E$49,0)) -> 84659 | G82: =IF(INTRO!$E$50="","",ROUND($D82*INTRO!$E$50,0)) -> 153165 | H82: 0 | I82: 0 | J82: 1 | K82: 3 | L82: 0 | M82: =IF(INTRO!$E$37="Endemic",IF($H82>0,IF($H82=4,"Unknown",IF($H82=99,"Stopped",$D82)),0),"Not required") -> 0 | N82: =IF(INTRO!$E$39="Endemic", IF($I82>0, IF($I82=4,"Unknown",IF($I82=99,"Stopped",$D82)), 0),"Not required") -> 0 | O82: =IF(INTRO!$E$41="Endemic", IF($J82>1, IF($J82=4, "Unknown", IF($J82=99, "Surveillance", E82)), 0),"Not required") -> 0 | P82: =IF(INTRO!$E$41="Endemic", IF($J82>1, IF($J82=4, "Unknown", IF($J82=99, "Surveillance", F82)), 0),"Not required") -> 0 | Q82: =IF(INTRO!$E$41="Endemic", IF($J82>1, IF($J82=4, "Unknown", IF($J82=99, "Surveillance", ROUND(D82*INTRO!$E$51,0))), 0),"Not required") -> 0 | R82: =IF(INTRO!$E$41="Endemic", IF($J82>1, IF($J82=4, "Unknown", IF($J82=99, "Surveillance", SUM($O82:$Q82))), 0),"Not required") -> 0 | S82: 7114 | T82: 19097 | U82: 34554 | V82: =IF(INTRO!$E$43="Endemic", IF($K82>1, IF($K82=4, "Unknown", IF($K82=99, "Surveillance", SUM($S82:$U82))), 0),"Not required") -> 60765 | W82: 0 | X82: 0 | Y82: 0 | Z82: 1 | AH82: 10753 | AI82: Bongor | AJ82: 3 | AK82: 2 | AL82: 1
A83: =IF(INTRO!$E$33<>0,INTRO!$E$33, " ") -> Tchad | B83: Mayo Kebbi Est | C83: Fianga | D83: 245949 | E83: =IF(INTRO!$E$48="","",ROUND($D83*INTRO!$E$48,0)) -> 36056 | F83: =IF(INTRO!$E$49="","",ROUND($D83*INTRO!$E$49,0)) -> 71153 | G83: =IF(INTRO!$E$50="","",ROUND($D83*INTRO!$E$50,0)) -> 128730 | H83: 0 | I83: 1 | J83: 1 | K83: 3 | L83: 0 | M83: =IF(INTRO!$E$37="Endemic",IF($H83>0,IF($H83=4,"Unknown",IF($H83=99,"Stopped",$D83)),0),"Not required") -> 0 | N83: =IF(INTRO!$E$39="Endemic", IF($I83>0, IF($I83=4,"Unknown",IF($I83=99,"Stopped",$D83)), 0),"Not required") -> 245949 | O83: =IF(INTRO!$E$41="Endemic", IF($J83>1, IF($J83=4, "Unknown", IF($J83=99, "Surveillance", E83)), 0),"Not required") -> 0 | P83: =IF(INTRO!$E$41="Endemic", IF($J83>1, IF($J83=4, "Unknown", IF($J83=99, "Surveillance", F83)), 0),"Not required") -> 0 | Q83: =IF(INTRO!$E$41="Endemic", IF($J83>1, IF($J83=4, "Unknown", IF($J83=99, "Surveillance", ROUND(D83*INTRO!$E$51,0))), 0),"Not required") -> 0 | R83: =IF(INTRO!$E$41="Endemic", IF($J83>1, IF($J83=4, "Unknown", IF($J83=99, "Surveillance", SUM($O83:$Q83))), 0),"Not required") -> 0 | S83: 7131 | T83: 19148 | U83: 34643 | V83: =IF(INTRO!$E$43="Endemic", IF($K83>1, IF($K83=4, "Unknown", IF($K83=99, "Surveillance", SUM($S83:$U83))), 0),"Not required") -> 60922 | W83: 0 | X83: 1 | Y83: 0 | Z83: 1 | AH83: 10712 | AI83: Fianga | AJ83: 3 | AK83: 3 | AL83: 1
A84: =IF(INTRO!$E$33<>0,INTRO!$E$33, " ") -> Tchad | B84: Mayo Kebbi Est | C84: Gounou Gaya | D84: 252776 | E84: =IF(INTRO!$E$48="","",ROUND($D84*INTRO!$E$48,0)) -> 37057 | F84: =IF(INTRO!$E$49="","",ROUND($D84*INTRO!$E$49,0)) -> 73128 | G84: =IF(INTRO!$E$50="","",ROUND($D84*INTRO!$E$50,0)) -> 132303 | H84: 0 | I84: 1 | J84: 2 | K84: 2 | L84: 0 | M84: =IF(INTRO!$E$37="Endemic",IF($H84>0,IF($H84=4,"Unknown",IF($H84=99,"Stopped",$D84)),0),"Not required") -> 0 | N84: =IF(INTRO!$E$39="Endemic", IF($I84>0, IF($I84=4,"Unknown",IF($I84=99,"Stopped",$D84)), 0),"Not required") -> 252776 | O84: =IF(INTRO!$E$41="Endemic", IF($J84>1, IF($J84=4, "Unknown", IF($J84=99, "Surveillance", E84)), 0),"Not required") -> 37057 | P84: =IF(INTRO!$E$41="Endemic", IF($J84>1, IF($J84=4, "Unknown", IF($J84=99, "Surveillance", F84)), 0),"Not required") -> 73128 | Q84: =IF(INTRO!$E$41="Endemic", IF($J84>1, IF($J84=4, "Unknown", IF($J84=99, "Surveillance", ROUND(D84*INTRO!$E$51,0))), 0),"Not required") -> 56087 | R84: =IF(INTRO!$E$41="Endemic", IF($J84>1, IF($J84=4, "Unknown", IF($J84=99, "Surveillance", SUM($O84:$Q84))), 0),"Not required") -> 166272 | S84: 4840 | T84: 12996 | U84: 23512 | V84: =IF(INTRO!$E$43="Endemic", IF($K84>1, IF($K84=4, "Unknown", IF($K84=99, "Surveillance", SUM($S84:$U84))), 0),"Not required") -> 41348 | W84: 0 | X84: 1 | Y84: 1 | Z84: 1 | AH84: 10713 | AI84: Gounou Gaya | AJ84: 2 | AK84: 2 | AL84: 0
A85: =IF(INTRO!$E$33<>0,INTRO!$E$33, " ") -> Tchad | B85: Mayo Kebbi Est | C85: Guelinding | D85: 132087 | E85: =IF(INTRO!$E$48="","",ROUND($D85*INTRO!$E$48,0)) -> 19364 | F85: =IF(INTRO!$E$49="","",ROUND($D85*INTRO!$E$49,0)) -> 38213 | G85: =IF(INTRO!$E$50="","",ROUND($D85*INTRO!$E$50,0)) -> 69134 | H85: 1 | I85: 0 | J85: 1 | K85: 2 | L85: 0 | M85: =IF(INTRO!$E$37="Endemic",IF($H85>0,IF($H85=4,"Unknown",IF($H85=99,"Stopped",$D85)),0),"Not required") -> 132087 | N85: =IF(INTRO!$E$39="Endemic", IF($I85>0, IF($I85=4,"Unknown",IF($I85=99,"Stopped",$D85)), 0),"Not required") -> 0 | O85: =IF(INTRO!$E$41="Endemic", IF($J85>1, IF($J85=4, "Unknown", IF($J85=99, "Surveillance", E85)), 0),"Not required") -> 0 | P85: =IF(INTRO!$E$41="Endemic", IF($J85>1, IF($J85=4, "Unknown", IF($J85=99, "Surveillance", F85)), 0),"Not required") -> 0 | Q85: =IF(INTRO!$E$41="Endemic", IF($J85>1, IF($J85=4, "Unknown", IF($J85=99, "Surveillance", ROUND(D85*INTRO!$E$51,0))), 0),"Not required") -> 0 | R85: =IF(INTRO!$E$41="Endemic", IF($J85>1, IF($J85=4, "Unknown", IF($J85=99, "Surveillance", SUM($O85:$Q85))), 0),"Not required") -> 0 | S85: 1435 | T85: 3853 | U85: 6971 | V85: =IF(INTRO!$E$43="Endemic", IF($K85>1, IF($K85=4, "Unknown", IF($K85=99, "Surveillance", SUM($S85:$U85))), 0),"Not required") -> 12259 | W85: 1 | X85: 0 | Y85: 0 | Z85: 1 | AH85: 10714 | AI85: Guelinding | AJ85: 2 | AK85: 1 | AL85: 1
A86: =IF(INTRO!$E$33<>0,INTRO!$E$33, " ") -> Tchad | B86: Mayo Kebbi Est | C86: Moulkou | D86: 145207 | E86: =IF(INTRO!$E$48="","",ROUND($D86*INTRO!$E$48,0)) -> 21287 | F86: =IF(INTRO!$E$49="","",ROUND($D86*INTRO!$E$49,0)) -> 42008 | G86: =IF(INTRO!$E$50="","",ROUND($D86*INTRO!$E$50,0)) -> 76001 | H86: 1 | I86: 0 | J86: 1 | K86: 1 | L86: 0 | M86: =IF(INTRO!$E$37="Endemic",IF($H86>0,IF($H86=4,"Unknown",IF($H86=99,"Stopped",$D86)),0),"Not required") -> 145207 | N86: =IF(INTRO!$E$39="Endemic", IF($I86>0, IF($I86=4,"Unknown",IF($I86=99,"Stopped",$D86)), 0),"Not required") -> 0 | O86: =IF(INTRO!$E$41="Endemic", IF($J86>1, IF($J86=4, "Unknown", IF($J86=99, "Surveillance", E86)), 0),"Not required") -> 0 | P86: =IF(INTRO!$E$41="Endemic", IF($J86>1, IF($J86=4, "Unknown", IF($J86=99, "Surveillance", F86)), 0),"Not required") -> 0 | Q86: =IF(INTRO!$E$41="Endemic", IF($J86>1, IF($J86=4, "Unknown", IF($J86=99, "Surveillance", ROUND(D86*INTRO!$E$51,0))), 0),"Not required") -> 0 | R86: =IF(INTRO!$E$41="Endemic", IF($J86>1, IF($J86=4, "Unknown", IF($J86=99, "Surveillance", SUM($O86:$Q86))), 0),"Not required") -> 0 | S86: 0 | T86: 0 | U86: 0 | V86: =IF(INTRO!$E$43="Endemic", IF($K86>1, IF($K86=4, "Unknown", IF($K86=99, "Surveillance", SUM($S86:$U86))), 0),"Not required") -> 0 | W86: 1 | X86: 0 | Y86: 0 | Z86: 0 | AH86: 10750 | AI86: Moulkou | AJ86: 1 | AK86: 1 | AL86: 1
A87: =IF(INTRO!$E$33<>0,INTRO!$E$33, " ") -> Tchad | B87: Mayo Kebbi Est | C87: Pont Carol | D87: 115827 | E87: =IF(INTRO!$E$48="","",ROUND($D87*INTRO!$E$48,0)) -> 16980 | F87: =IF(INTRO!$E$49="","",ROUND($D87*INTRO!$E$49,0)) -> 33509 | G87: =IF(INTRO!$E$50="","",ROUND($D87*INTRO!$E$50,0)) -> 60624 | H87: 0 | I87: 1 | J87: 2 | K87: 1 | L87: 0 | M87: =IF(INTRO!$E$37="Endemic",IF($H87>0,IF($H87=4,"Unknown",IF($H87=99,"Stopped",$D87)),0),"Not required") -> 0 | N87: =IF(INTRO!$E$39="Endemic", IF($I87>0, IF($I87=4,"Unknown",IF($I87=99,"Stopped",$D87)), 0),"Not required") -> 115827 | O87: =IF(INTRO!$E$41="Endemic", IF($J87>1, IF($J87=4, "Unknown", IF($J87=99, "Surveillance", E87)), 0),"Not required") -> 16980 | P87: =IF(INTRO!$E$41="Endemic", IF($J87>1, IF($J87=4, "Unknown", IF($J87=99, "Surveillance", F87)), 0),"Not required") -> 33509 | Q87: =IF(INTRO!$E$41="Endemic", IF($J87>1, IF($J87=4, "Unknown", IF($J87=99, "Surveillance", ROUND(D87*INTRO!$E$51,0))), 0),"Not required") -> 25700 | R87: =IF(INTRO!$E$41="Endemic", IF($J87>1, IF($J87=4, "Unknown", IF($J87=99, "Surveillance", SUM($O87:$Q87))), 0),"Not required") -> 76189 | S87: 0 | T87: 0 | U87: 0 | V87: =IF(INTRO!$E$43="Endemic", IF($K87>1, IF($K87=4, "Unknown", IF($K87=99, "Surveillance", SUM($S87:$U87))), 0),"Not required") -> 0 | W87: 0 | X87: 1 | Y87: 1 | Z87: 0 | AH87: 10751 | AI87: Pont Carol | AJ87: 1 | AK87: 2 | AL87: 0
A88: =IF(INTRO!$E$33<>0,INTRO!$E$33, " ") -> Tchad | B88: Mayo Kebbi Est | C88: Youé | D88: 121203 | E88: =IF(INTRO!$E$48="","",ROUND($D88*INTRO!$E$48,0)) -> 17768 | F88: =IF(INTRO!$E$49="","",ROUND($D88*INTRO!$E$49,0)) -> 35064 | G88: =IF(INTRO!$E$50="","",ROUND($D88*INTRO!$E$50,0)) -> 63438 | H88: 0 | I88: 1 | J88: 1 | K88: 1 | L88: 0 | M88: =IF(INTRO!$E$37="Endemic",IF($H88>0,IF($H88=4,"Unknown",IF($H88=99,"Stopped",$D88)),0),"Not required") -> 0 | N88: =IF(INTRO!$E$39="Endemic", IF($I88>0, IF($I88=4,"Unknown",IF($I88=99,"Stopped",$D88)), 0),"Not required") -> 121203 | O88: =IF(INTRO!$E$41="Endemic", IF($J88>1, IF($J88=4, "Unknown", IF($J88=99, "Surveillance", E88)), 0),"Not required") -> 0 | P88: =IF(INTRO!$E$41="Endemic", IF($J88>1, IF($J88=4, "Unknown", IF($J88=99, "Surveillance", F88)), 0),"Not required") -> 0 | Q88: =IF(INTRO!$E$41="Endemic", IF($J88>1, IF($J88=4, "Unknown", IF($J88=99, "Surveillance", ROUND(D88*INTRO!$E$51,0))), 0),"Not required") -> 0 | R88: =IF(INTRO!$E$41="Endemic", IF($J88>1, IF($J88=4, "Unknown", IF($J88=99, "Surveillance", SUM($O88:$Q88))), 0),"Not required") -> 0 | S88: 0 | T88: 0 | U88: 0 | V88: =IF(INTRO!$E$43="Endemic", IF($K88>1, IF($K88=4, "Unknown", IF($K88=99, "Surveillance", SUM($S88:$U88))), 0),"Not required") -> 0 | W88: 0 | X88: 1 | Y88: 0 | Z88: 0 | AH88: 10752 | AI88: Youé | AJ88: 1 | AK88: 3 | AL88: 1
A89: =IF(INTRO!$E$33<>0,INTRO!$E$33, " ") -> Tchad | B89: Mayo Kebbi Ouest | C89: Binder | D89: 92051 | E89: =IF(INTRO!$E$48="","",ROUND($D89*INTRO!$E$48,0)) -> 13495 | F89: =IF(INTRO!$E$49="","",ROUND($D89*INTRO!$E$49,0)) -> 26630 | G89: =IF(INTRO!$E$50="","",ROUND($D89*INTRO!$E$50,0)) -> 48179 | H89: 0 | I89: 1 | J89: 1 | K89: 1 | L89: 0 | M89: =IF(INTRO!$E$37="Endemic",IF($H89>0,IF($H89=4,"Unknown",IF($H89=99,"Stopped",$D89)),0),"Not required") -> 0 | N89: =IF(INTRO!$E$39="Endemic", IF($I89>0, IF($I89=4,"Unknown",IF($I89=99,"Stopped",$D89)), 0),"Not required") -> 92051 | O89: =IF(INTRO!$E$41="Endemic", IF($J89>1, IF($J89=4, "Unknown", IF($J89=99, "Surveillance", E89)), 0),"Not required") -> 0 | P89: =IF(INTRO!$E$41="Endemic", IF($J89>1, IF($J89=4, "Unknown", IF($J89=99, "Surveillance", F89)), 0),"Not required") -> 0 | Q89: =IF(INTRO!$E$41="Endemic", IF($J89>1, IF($J89=4, "Unknown", IF($J89=99, "Surveillance", ROUND(D89*INTRO!$E$51,0))), 0),"Not required") -> 0 | R89: =IF(INTRO!$E$41="Endemic", IF($J89>1, IF($J89=4, "Unknown", IF($J89=99, "Surveillance", SUM($O89:$Q89))), 0),"Not required") -> 0 | S89: 0 | T89: 0 | U89: 0 | V89: =IF(INTRO!$E$43="Endemic", IF($K89>1, IF($K89=4, "Unknown", IF($K89=99, "Surveillance", SUM($S89:$U89))), 0),"Not required") -> 0 | W89: 0 | X89: 1 | Y89: 0 | Z89: 0 | AH89: 10754 | AI89: Binder | AJ89: 1 | AK89: 3 | AL89: 1
A90: =IF(INTRO!$E$33<>0,INTRO!$E$33, " ") -> Tchad | B90: Mayo Kebbi Ouest | C90: Gagal | D90: 157976 | E90: =IF(INTRO!$E$48="","",ROUND($D90*INTRO!$E$48,0)) -> 23159 | F90: =IF(INTRO!$E$49="","",ROUND($D90*INTRO!$E$49,0)) -> 45702 | G90: =IF(INTRO!$E$50="","",ROUND($D90*INTRO!$E$50,0)) -> 82685 | H90: 0 | I90: 1 | J90: 1 | K90: 1 | L90: 0 | M90: =IF(INTRO!$E$37="Endemic",IF($H90>0,IF($H90=4,"Unknown",IF($H90=99,"Stopped",$D90)),0),"Not required") -> 0 | N90: =IF(INTRO!$E$39="Endemic", IF($I90>0, IF($I90=4,"Unknown",IF($I90=99,"Stopped",$D90)), 0),"Not required") -> 157976 | O90: =IF(INTRO!$E$41="Endemic", IF($J90>1, IF($J90=4, "Unknown", IF($J90=99, "Surveillance", E90)), 0),"Not required") -> 0 | P90: =IF(INTRO!$E$41="Endemic", IF($J90>1, IF($J90=4, "Unknown", IF($J90=99, "Surveillance", F90)), 0),"Not required") -> 0 | Q90: =IF(INTRO!$E$41="Endemic", IF($J90>1, IF($J90=4, "Unknown", IF($J90=99, "Surveillance", ROUND(D90*INTRO!$E$51,0))), 0),"Not required") -> 0 | R90: =IF(INTRO!$E$41="Endemic", IF($J90>1, IF($J90=4, "Unknown", IF($J90=99, "Surveillance", SUM($O90:$Q90))), 0),"Not required") -> 0 | S90: 0 | T90: 0 | U90: 0 | V90: =IF(INTRO!$E$43="Endemic", IF($K90>1, IF($K90=4, "Unknown", IF($K90=99, "Surveillance", SUM($S90:$U90))), 0),"Not required") -> 0 | W90: 0 | X90: 1 | Y90: 0 | Z90: 0 | AH90: 10755 | AI90: Gagal | AJ90: 1 | AK90: 2 | AL90: 0
A91: =IF(INTRO!$E$33<>0,INTRO!$E$33, " ") -> Tchad | B91: Mayo Kebbi Ouest | C91: Guegou | D91: 46144 | E91: =IF(INTRO!$E$48="","",ROUND($D91*INTRO!$E$48,0)) -> 6765 | F91: =IF(INTRO!$E$49="","",ROUND($D91*INTRO!$E$49,0)) -> 13349 | G91: =IF(INTRO!$E$50="","",ROUND($D91*INTRO!$E$50,0)) -> 24152 | H91: 0 | I91: 1 | J91: 1 | K91: 1 | L91: 0 | M91: =IF(INTRO!$E$37="Endemic",IF($H91>0,IF($H91=4,"Unknown",IF($H91=99,"Stopped",$D91)),0),"Not required") -> 0 | N91: =IF(INTRO!$E$39="Endemic", IF($I91>0, IF($I91=4,"Unknown",IF($I91=99,"Stopped",$D91)), 0),"Not required") -> 46144 | O91: =IF(INTRO!$E$41="Endemic", IF($J91>1, IF($J91=4, "Unknown", IF($J91=99, "Surveillance", E91)), 0),"Not required") -> 0 | P91: =IF(INTRO!$E$41="Endemic", IF($J91>1, IF($J91=4, "Unknown", IF($J91=99, "Surveillance", F91)), 0),"Not required") -> 0 | Q91: =IF(INTRO!$E$41="Endemic", IF($J91>1, IF($J91=4, "Unknown", IF($J91=99, "Surveillance", ROUND(D91*INTRO!$E$51,0))), 0),"Not required") -> 0 | R91: =IF(INTRO!$E$41="Endemic", IF($J91>1, IF($J91=4, "Unknown", IF($J91=99, "Surveillance", SUM($O91:$Q91))), 0),"Not required") -> 0 | S91: 0 | T91: 0 | U91: 0 | V91: =IF(INTRO!$E$43="Endemic", IF($K91>1, IF($K91=4, "Unknown", IF($K91=99, "Surveillance", SUM($S91:$U91))), 0),"Not required") -> 0 | W91: 0 | X91: 1 | Y91: 0 | Z91: 0 | AH91: 10771 | AI91: Guegou | AJ91: 1 | AK91: 3 | AL91: 1
A92: =IF(INTRO!$E$33<>0,INTRO!$E$33, " ") -> Tchad | B92: Mayo Kebbi Ouest | C92: GUELO | D92: 58275 | E92: =IF(INTRO!$E$48="","",ROUND($D92*INTRO!$E$48,0)) -> 8543 | F92: =IF(INTRO!$E$49="","",ROUND($D92*INTRO!$E$49,0)) -> 16859 | G92: =IF(INTRO!$E$50="","",ROUND($D92*INTRO!$E$50,0)) -> 30501 | H92: 0 | I92: 1 | J92: 1 | K92: 1 | L92: 0 | M92: =IF(INTRO!$E$37="Endemic",IF($H92>0,IF($H92=4,"Unknown",IF($H92=99,"Stopped",$D92)),0),"Not required") -> 0 | N92: =IF(INTRO!$E$39="Endemic", IF($I92>0, IF($I92=4,"Unknown",IF($I92=99,"Stopped",$D92)), 0),"Not required") -> 58275 | O92: =IF(INTRO!$E$41="Endemic", IF($J92>1, IF($J92=4, "Unknown", IF($J92=99, "Surveillance", E92)), 0),"Not required") -> 0 | P92: =IF(INTRO!$E$41="Endemic", IF($J92>1, IF($J92=4, "Unknown", IF($J92=99, "Surveillance", F92)), 0),"Not required") -> 0 | Q92: =IF(INTRO!$E$41="Endemic", IF($J92>1, IF($J92=4, "Unknown", IF($J92=99, "Surveillance", ROUND(D92*INTRO!$E$51,0))), 0),"Not required") -> 0 | R92: =IF(INTRO!$E$41="Endemic", IF($J92>1, IF($J92=4, "Unknown", IF($J92=99, "Surveillance", SUM($O92:$Q92))), 0),"Not required") -> 0 | S92: 0 | T92: 0 | U92: 0 | V92: =IF(INTRO!$E$43="Endemic", IF($K92>1, IF($K92=4, "Unknown", IF($K92=99, "Surveillance", SUM($S92:$U92))), 0),"Not required") -> 0 | W92: 0 | X92: 1 | Y92: 0 | Z92: 0 | AH92: 10772 | AI92: GUELO | AJ92: 1 | AK92: 3 | AL92: 1
A93: =IF(INTRO!$E$33<>0,INTRO!$E$33, " ") -> Tchad | B93: Mayo Kebbi Ouest | C93: Lagon | D93: 107465 | E93: =IF(INTRO!$E$48="","",ROUND($D93*INTRO!$E$48,0)) -> 15754 | F93: =IF(INTRO!$E$49="","",ROUND($D93*INTRO!$E$49,0)) -> 31090 | G93: =IF(INTRO!$E$50="","",ROUND($D93*INTRO!$E$50,0)) -> 56247 | H93: 0 | I93: 1 | J93: 1 | K93: 1 | L93: 0 | M93: =IF(INTRO!$E$37="Endemic",IF($H93>0,IF($H93=4,"Unknown",IF($H93=99,"Stopped",$D93)),0),"Not required") -> 0 | N93: =IF(INTRO!$E$39="Endemic", IF($I93>0, IF($I93=4,"Unknown",IF($I93=99,"Stopped",$D93)), 0),"Not required") -> 107465 | O93: =IF(INTRO!$E$41="Endemic", IF($J93>1, IF($J93=4, "Unknown", IF($J93=99, "Surveillance", E93)), 0),"Not required") -> 0 | P93: =IF(INTRO!$E$41="Endemic", IF($J93>1, IF($J93=4, "Unknown", IF($J93=99, "Surveillance", F93)), 0),"Not required") -> 0 | Q93: =IF(INTRO!$E$41="Endemic", IF($J93>1, IF($J93=4, "Unknown", IF($J93=99, "Surveillance", ROUND(D93*INTRO!$E$51,0))), 0),"Not required") -> 0 | R93: =IF(INTRO!$E$41="Endemic", IF($J93>1, IF($J93=4, "Unknown", IF($J93=99, "Surveillance", SUM($O93:$Q93))), 0),"Not required") -> 0 | S93: 0 | T93: 0 | U93: 0 | V93: =IF(INTRO!$E$43="Endemic", IF($K93>1, IF($K93=4, "Unknown", IF($K93=99, "Surveillance", SUM($S93:$U93))), 0),"Not required") -> 0 | W93: 0 | X93: 1 | Y93: 0 | Z93: 0 | AH93: 10756 | AI93: Lagon | AJ93: 1 | AK93: 3 | AL93: 1
A94: =IF(INTRO!$E$33<>0,INTRO!$E$33, " ") -> Tchad | B94: Mayo Kebbi Ouest | C94: Lamé | D94: 112581 | E94: =IF(INTRO!$E$48="","",ROUND($D94*INTRO!$E$48,0)) -> 16504 | F94: =IF(INTRO!$E$49="","",ROUND($D94*INTRO!$E$49,0)) -> 32570 | G94: =IF(INTRO!$E$50="","",ROUND($D94*INTRO!$E$50,0)) -> 58925 | H94: 0 | I94: 1 | J94: 1 | K94: 1 | L94: 0 | M94: =IF(INTRO!$E$37="Endemic",IF($H94>0,IF($H94=4,"Unknown",IF($H94=99,"Stopped",$D94)),0),"Not required") -> 0 | N94: =IF(INTRO!$E$39="Endemic", IF($I94>0, IF($I94=4,"Unknown",IF($I94=99,"Stopped",$D94)), 0),"Not required") -> 112581 | O94: =IF(INTRO!$E$41="Endemic", IF($J94>1, IF($J94=4, "Unknown", IF($J94=99, "Surveillance", E94)), 0),"Not required") -> 0 | P94: =IF(INTRO!$E$41="Endemic", IF($J94>1, IF($J94=4, "Unknown", IF($J94=99, "Surveillance", F94)), 0),"Not required") -> 0 | Q94: =IF(INTRO!$E$41="Endemic", IF($J94>1, IF($J94=4, "Unknown", IF($J94=99, "Surveillance", ROUND(D94*INTRO!$E$51,0))), 0),"Not required") -> 0 | R94: =IF(INTRO!$E$41="Endemic", IF($J94>1, IF($J94=4, "Unknown", IF($J94=99, "Surveillance", SUM($O94:$Q94))), 0),"Not required") -> 0 | S94: 0 | T94: 0 | U94: 0 | V94: =IF(INTRO!$E$43="Endemic", IF($K94>1, IF($K94=4, "Unknown", IF($K94=99, "Surveillance", SUM($S94:$U94))), 0),"Not required") -> 0 | W94: 0 | X94: 1 | Y94: 0 | Z94: 0 | AH94: 10757 | AI94: Lamé | AJ94: 1 | AK94: 2 | AL94: 0
A95: =IF(INTRO!$E$33<>0,INTRO!$E$33, " ") -> Tchad | B95: Mayo Kebbi Ouest | C95: Lere | D95: 118906 | E95: =IF(INTRO!$E$48="","",ROUND($D95*INTRO!$E$48,0)) -> 17432 | F95: =IF(INTRO!$E$49="","",ROUND($D95*INTRO!$E$49,0)) -> 34400 | G95: =IF(INTRO!$E$50="","",ROUND($D95*INTRO!$E$50,0)) -> 62235 | H95: 0 | I95: 1 | J95: 1 | K95: 3 | L95: 0 | M95: =IF(INTRO!$E$37="Endemic",IF($H95>0,IF($H95=4,"Unknown",IF($H95=99,"Stopped",$D95)),0),"Not required") -> 0 | N95: =IF(INTRO!$E$39="Endemic", IF($I95>0, IF($I95=4,"Unknown",IF($I95=99,"Stopped",$D95)), 0),"Not required") -> 118906 | O95: =IF(INTRO!$E$41="Endemic", IF($J95>1, IF($J95=4, "Unknown", IF($J95=99, "Surveillance", E95)), 0),"Not required") -> 0 | P95: =IF(INTRO!$E$41="Endemic", IF($J95>1, IF($J95=4, "Unknown", IF($J95=99, "Surveillance", F95)), 0),"Not required") -> 0 | Q95: =IF(INTRO!$E$41="Endemic", IF($J95>1, IF($J95=4, "Unknown", IF($J95=99, "Surveillance", ROUND(D95*INTRO!$E$51,0))), 0),"Not required") -> 0 | R95: =IF(INTRO!$E$41="Endemic", IF($J95>1, IF($J95=4, "Unknown", IF($J95=99, "Surveillance", SUM($O95:$Q95))), 0),"Not required") -> 0 | S95: 4368 | T95: 11729 | U95: 21220 | V95: =IF(INTRO!$E$43="Endemic", IF($K95>1, IF($K95=4, "Unknown", IF($K95=99, "Surveillance", SUM($S95:$U95))), 0),"Not required") -> 37317 | W95: 0 | X95: 1 | Y95: 0 | Z95: 1 | AH95: 10715 | AI95: Lere | AJ95: 3 | AK95: 3 | AL95: 1
A96: =IF(INTRO!$E$33<>0,INTRO!$E$33, " ") -> Tchad | B96: Mayo Kebbi Ouest | C96: Pala | D96: 181886 | E96: =IF(INTRO!$E$48="","",ROUND($D96*INTRO!$E$48,0)) -> 26664 | F96: =IF(INTRO!$E$49="","",ROUND($D96*INTRO!$E$49,0)) -> 52620 | G96: =IF(INTRO!$E$50="","",ROUND($D96*INTRO!$E$50,0)) -> 95199 | H96: 0 | I96: 1 | J96: 1 | K96: 2 | L96: 0 | M96: =IF(INTRO!$E$37="Endemic",IF($H96>0,IF($H96=4,"Unknown",IF($H96=99,"Stopped",$D96)),0),"Not required") -> 0 | N96: =IF(INTRO!$E$39="Endemic", IF($I96>0, IF($I96=4,"Unknown",IF($I96=99,"Stopped",$D96)), 0),"Not required") -> 181886 | O96: =IF(INTRO!$E$41="Endemic", IF($J96>1, IF($J96=4, "Unknown", IF($J96=99, "Surveillance", E96)), 0),"Not required") -> 0 | P96: =IF(INTRO!$E$41="Endemic", IF($J96>1, IF($J96=4, "Unknown", IF($J96=99, "Surveillance", F96)), 0),"Not required") -> 0 | Q96: =IF(INTRO!$E$41="Endemic", IF($J96>1, IF($J96=4, "Unknown", IF($J96=99, "Surveillance", ROUND(D96*INTRO!$E$51,0))), 0),"Not required") -> 0 | R96: =IF(INTRO!$E$41="Endemic", IF($J96>1, IF($J96=4, "Unknown", IF($J96=99, "Surveillance", SUM($O96:$Q96))), 0),"Not required") -> 0 | S96: 5786 | T96: 15535 | U96: 28106 | V96: =IF(INTRO!$E$43="Endemic", IF($K96>1, IF($K96=4, "Unknown", IF($K96=99, "Surveillance", SUM($S96:$U96))), 0),"Not required") -> 49427 | W96: 0 | X96: 1 | Y96: 0 | Z96: 1 | AH96: 10716 | AI96: Pala | AJ96: 2 | AK96: 2 | AL96: 1
A97: =IF(INTRO!$E$33<>0,INTRO!$E$33, " ") -> Tchad | B97: Mayo Kebbi Ouest | C97: Torrock | D97: 85766 | E97: =IF(INTRO!$E$48="","",ROUND($D97*INTRO!$E$48,0)) -> 12573 | F97: =IF(INTRO!$E$49="","",ROUND($D97*INTRO!$E$49,0)) -> 24812 | G97: =IF(INTRO!$E$50="","",ROUND($D97*INTRO!$E$50,0)) -> 44890 | H97: 0 | I97: 1 | J97: 1 | K97: 1 | L97: 0 | M97: =IF(INTRO!$E$37="Endemic",IF($H97>0,IF($H97=4,"Unknown",IF($H97=99,"Stopped",$D97)),0),"Not required") -> 0 | N97: =IF(INTRO!$E$39="Endemic", IF($I97>0, IF($I97=4,"Unknown",IF($I97=99,"Stopped",$D97)), 0),"Not required") -> 85766 | O97: =IF(INTRO!$E$41="Endemic", IF($J97>1, IF($J97=4, "Unknown", IF($J97=99, "Surveillance", E97)), 0),"Not required") -> 0 | P97: =IF(INTRO!$E$41="Endemic", IF($J97>1, IF($J97=4, "Unknown", IF($J97=99, "Surveillance", F97)), 0),"Not required") -> 0 | Q97: =IF(INTRO!$E$41="Endemic", IF($J97>1, IF($J97=4, "Unknown", IF($J97=99, "Surveillance", ROUND(D97*INTRO!$E$51,0))), 0),"Not required") -> 0 | R97: =IF(INTRO!$E$41="Endemic", IF($J97>1, IF($J97=4, "Unknown", IF($J97=99, "Surveillance", SUM($O97:$Q97))), 0),"Not required") -> 0 | S97: 0 | T97: 0 | U97: 0 | V97: =IF(INTRO!$E$43="Endemic", IF($K97>1, IF($K97=4, "Unknown", IF($K97=99, "Surveillance", SUM($S97:$U97))), 0),"Not required") -> 0 | W97: 0 | X97: 1 | Y97: 0 | Z97: 0 | AH97: 10758 | AI97: Torrock | AJ97: 1 | AK97: 2 | AL97: 0
A98: =IF(INTRO!$E$33<>0,INTRO!$E$33, " ") -> Tchad | B98: Moyen Chari | C98: Balimba | D98: 68763 | E98: =IF(INTRO!$E$48="","",ROUND($D98*INTRO!$E$48,0)) -> 10081 | F98: =IF(INTRO!$E$49="","",ROUND($D98*INTRO!$E$49,0)) -> 19893 | G98: =IF(INTRO!$E$50="","",ROUND($D98*INTRO!$E$50,0)) -> 35991 | H98: 1 | I98: 1 | J98: 2 | K98: 1 | L98: 0 | M98: =IF(INTRO!$E$37="Endemic",IF($H98>0,IF($H98=4,"Unknown",IF($H98=99,"Stopped",$D98)),0),"Not required") -> 68763 | N98: =IF(INTRO!$E$39="Endemic", IF($I98>0, IF($I98=4,"Unknown",IF($I98=99,"Stopped",$D98)), 0),"Not required") -> 68763 | O98: =IF(INTRO!$E$41="Endemic", IF($J98>1, IF($J98=4, "Unknown", IF($J98=99, "Surveillance", E98)), 0),"Not required") -> 10081 | P98: =IF(INTRO!$E$41="Endemic", IF($J98>1, IF($J98=4, "Unknown", IF($J98=99, "Surveillance", F98)), 0),"Not required") -> 19893 | Q98: =IF(INTRO!$E$41="Endemic", IF($J98>1, IF($J98=4, "Unknown", IF($J98=99, "Surveillance", ROUND(D98*INTRO!$E$51,0))), 0),"Not required") -> 15257 | R98: =IF(INTRO!$E$41="Endemic", IF($J98>1, IF($J98=4, "Unknown", IF($J98=99, "Surveillance", SUM($O98:$Q98))), 0),"Not required") -> 45231 | S98: 0 | T98: 0 | U98: 0 | V98: =IF(INTRO!$E$43="Endemic", IF($K98>1, IF($K98=4, "Unknown", IF($K98=99, "Surveillance", SUM($S98:$U98))), 0),"Not required") -> 0 | W98: 1 | X98: 1 | Y98: 1 | Z98: 0 | AH98: 10780 | AI98: Balimba | AJ98: 1 | AK98: 2 | AL98: 1
A99: =IF(INTRO!$E$33<>0,INTRO!$E$33, " ") -> Tchad | B99: Moyen Chari | C99: Biobe Singako | D99: 109356 | E99: =IF(INTRO!$E$48="","",ROUND($D99*INTRO!$E$48,0)) -> 16032 | F99: =IF(INTRO!$E$49="","",ROUND($D99*INTRO!$E$49,0)) -> 31637 | G99: =IF(INTRO!$E$50="","",ROUND($D99*INTRO!$E$50,0)) -> 57237 | H99: 19 | I99: 1 | J99: 1 | K99: 3 | L99: 0 | M99: =IF(INTRO!$E$37="Endemic",IF($H99>0,IF($H99=4,"Unknown",IF($H99=99,"Stopped",$D99)),0),"Not required") -> 109356 | N99: =IF(INTRO!$E$39="Endemic", IF($I99>0, IF($I99=4,"Unknown",IF($I99=99,"Stopped",$D99)), 0),"Not required") -> 109356 | O99: =IF(INTRO!$E$41="Endemic", IF($J99>1, IF($J99=4, "Unknown", IF($J99=99, "Surveillance", E99)), 0),"Not required") -> 0 | P99: =IF(INTRO!$E$41="Endemic", IF($J99>1, IF($J99=4, "Unknown", IF($J99=99, "Surveillance", F99)), 0),"Not required") -> 0 | Q99: =IF(INTRO!$E$41="Endemic", IF($J99>1, IF($J99=4, "Unknown", IF($J99=99, "Surveillance", ROUND(D99*INTRO!$E$51,0))), 0),"Not required") -> 0 | R99: =IF(INTRO!$E$41="Endemic", IF($J99>1, IF($J99=4, "Unknown", IF($J99=99, "Surveillance", SUM($O99:$Q99))), 0),"Not required") -> 0 | S99: 1940 | T99: 5207 | U99: 9422 | V99: =IF(INTRO!$E$43="Endemic", IF($K99>1, IF($K99=4, "Unknown", IF($K99=99, "Surveillance", SUM($S99:$U99))), 0),"Not required") -> 16569 | W99: 0 | X99: 1 | Y99: 0 | Z99: 1 | AA99: TAS | AH99: 10717 | AI99: Biobe Singako | AJ99: 3 | AK99: 2 | AL99: 1
A100: =IF(INTRO!$E$33<>0,INTRO!$E$33, " ") -> Tchad | B100: Moyen Chari | C100: Danamadji | D100: 133741 | E100: =IF(INTRO!$E$48="","",ROUND($D100*INTRO!$E$48,0)) -> 19606 | F100: =IF(INTRO!$E$49="","",ROUND($D100*INTRO!$E$49,0)) -> 38691 | G100: =IF(INTRO!$E$50="","",ROUND($D100*INTRO!$E$50,0)) -> 70000 | H100: 1 | I100: 1 | J100: 1 | K100: 2 | L100: 0 | M100: =IF(INTRO!$E$37="Endemic",IF($H100>0,IF($H100=4,"Unknown",IF($H100=99,"Stopped",$D100)),0),"Not required") -> 133741 | N100: =IF(INTRO!$E$39="Endemic", IF($I100>0, IF($I100=4,"Unknown",IF($I100=99,"Stopped",$D100)), 0),"Not required") -> 133741 | O100: =IF(INTRO!$E$41="Endemic", IF($J100>1, IF($J100=4, "Unknown", IF($J100=99, "Surveillance", E100)), 0),"Not required") -> 0 | P100: =IF(INTRO!$E$41="Endemic", IF($J100>1, IF($J100=4, "Unknown", IF($J100=99, "Surveillance", F100)), 0),"Not required") -> 0 | Q100: =IF(INTRO!$E$41="Endemic", IF($J100>1, IF($J100=4, "Unknown", IF($J100=99, "Surveillance", ROUND(D100*INTRO!$E$51,0))), 0),"Not required") -> 0 | R100: =IF(INTRO!$E$41="Endemic", IF($J100>1, IF($J100=4, "Unknown", IF($J100=99, "Surveillance", SUM($O100:$Q100))), 0),"Not required") -> 0 | S100: 3012 | T100: 8086 | U100: 14630 | V100: =IF(INTRO!$E$43="Endemic", IF($K100>1, IF($K100=4, "Unknown", IF($K100=99, "Surveillance", SUM($S100:$U100))), 0),"Not required") -> 25728 | W100: 1 | X100: 1 | Y100: 0 | Z100: 1 | AH100: 10718 | AI100: Danamadji | AJ100: 2 | AK100: 1 | AL100: 1
A101: =IF(INTRO!$E$33<>0,INTRO!$E$33, " ") -> Tchad | B101: Moyen Chari | C101: Korbol | D101: 55289 | E101: =IF(INTRO!$E$48="","",ROUND($D101*INTRO!$E$48,0)) -> 8105 | F101: =IF(INTRO!$E$49="","",ROUND($D101*INTRO!$E$49,0)) -> 15995 | G101: =IF(INTRO!$E$50="","",ROUND($D101*INTRO!$E$50,0)) -> 28938 | H101: 1 | I101: 1 | J101: 2 | K101: 1 | L101: 0 | M101: =IF(INTRO!$E$37="Endemic",IF($H101>0,IF($H101=4,"Unknown",IF($H101=99,"Stopped",$D101)),0),"Not required") -> 55289 | N101: =IF(INTRO!$E$39="Endemic", IF($I101>0, IF($I101=4,"Unknown",IF($I101=99,"Stopped",$D101)), 0),"Not required") -> 55289 | O101: =IF(INTRO!$E$41="Endemic", IF($J101>1, IF($J101=4, "Unknown", IF($J101=99, "Surveillance", E101)), 0),"Not required") -> 8105 | P101: =IF(INTRO!$E$41="Endemic", IF($J101>1, IF($J101=4, "Unknown", IF($J101=99, "Surveillance", F101)), 0),"Not required") -> 15995 | Q101: =IF(INTRO!$E$41="Endemic", IF($J101>1, IF($J101=4, "Unknown", IF($J101=99, "Surveillance", ROUND(D101*INTRO!$E$51,0))), 0),"Not required") -> 12268 | R101: =IF(INTRO!$E$41="Endemic", IF($J101>1, IF($J101=4, "Unknown", IF($J101=99, "Surveillance", SUM($O101:$Q101))), 0),"Not required") -> 36368 | S101: 0 | T101: 0 | U101: 0 | V101: =IF(INTRO!$E$43="Endemic", IF($K101>1, IF($K101=4, "Unknown", IF($K101=99, "Surveillance", SUM($S101:$U101))), 0),"Not required") -> 0 | W101: 1 | X101: 1 | Y101: 1 | Z101: 0 | AH101: 10773 | AI101: Korbol | AJ101: 1 | AK101: 2 | AL101: 1
A102: =IF(INTRO!$E$33<>0,INTRO!$E$33, " ") -> Tchad | B102: Moyen Chari | C102: Koumogo | D102: 97461 | E102: =IF(INTRO!$E$48="","",ROUND($D102*INTRO!$E$48,0)) -> 14288 | F102: =IF(INTRO!$E$49="","",ROUND($D102*INTRO!$E$49,0)) -> 28195 | G102: =IF(INTRO!$E$50="","",ROUND($D102*INTRO!$E$50,0)) -> 51011 | H102: 1 | I102: 1 | J102: 1 | K102: 1 | L102: 0 | M102: =IF(INTRO!$E$37="Endemic",IF($H102>0,IF($H102=4,"Unknown",IF($H102=99,"Stopped",$D102)),0),"Not required") -> 97461 | N102: =IF(INTRO!$E$39="Endemic", IF($I102>0, IF($I102=4,"Unknown",IF($I102=99,"Stopped",$D102)), 0),"Not required") -> 97461 | O102: =IF(INTRO!$E$41="Endemic", IF($J102>1, IF($J102=4, "Unknown", IF($J102=99, "Surveillance", E102)), 0),"Not required") -> 0 | P102: =IF(INTRO!$E$41="Endemic", IF($J102>1, IF($J102=4, "Unknown", IF($J102=99, "Surveillance", F102)), 0),"Not required") -> 0 | Q102: =IF(INTRO!$E$41="Endemic", IF($J102>1, IF($J102=4, "Unknown", IF($J102=99, "Surveillance", ROUND(D102*INTRO!$E$51,0))), 0),"Not required") -> 0 | R102: =IF(INTRO!$E$41="Endemic", IF($J102>1, IF($J102=4, "Unknown", IF($J102=99, "Surveillance", SUM($O102:$Q102))), 0),"Not required") -> 0 | S102: 0 | T102: 0 | U102: 0 | V102: =IF(INTRO!$E$43="Endemic", IF($K102>1, IF($K102=4, "Unknown", IF($K102=99, "Surveillance", SUM($S102:$U102))), 0),"Not required") -> 0 | W102: 1 | X102: 1 | Y102: 0 | Z102: 0 | AH102: 10781 | AI102: Koumogo | AJ102: 1 | AK102: 2 | AL102: 1
A103: =IF(INTRO!$E$33<>0,INTRO!$E$33, " ") -> Tchad | B103: Moyen Chari | C103: Kyabe | D103: 177262 | E103: =IF(INTRO!$E$48="","",ROUND($D103*INTRO!$E$48,0)) -> 25987 | F103: =IF(INTRO!$E$49="","",ROUND($D103*INTRO!$E$49,0)) -> 51282 | G103: =IF(INTRO!$E$50="","",ROUND($D103*INTRO!$E$50,0)) -> 92779 | H103: 19 | I103: 1 | J103: 1 | K103: 2 | L103: 0 | M103: =IF(INTRO!$E$37="Endemic",IF($H103>0,IF($H103=4,"Unknown",IF($H103=99,"Stopped",$D103)),0),"Not required") -> 177262 | N103: =IF(INTRO!$E$39="Endemic", IF($I103>0, IF($I103=4,"Unknown",IF($I103=99,"Stopped",$D103)), 0),"Not required") -> 177262 | O103: =IF(INTRO!$E$41="Endemic", IF($J103>1, IF($J103=4, "Unknown", IF($J103=99, "Surveillance", E103)), 0),"Not required") -> 0 | P103: =IF(INTRO!$E$41="Endemic", IF($J103>1, IF($J103=4, "Unknown", IF($J103=99, "Surveillance", F103)), 0),"Not required") -> 0 | Q103: =IF(INTRO!$E$41="Endemic", IF($J103>1, IF($J103=4, "Unknown", IF($J103=99, "Surveillance", ROUND(D103*INTRO!$E$51,0))), 0),"Not required") -> 0 | R103: =IF(INTRO!$E$41="Endemic", IF($J103>1, IF($J103=4, "Unknown", IF($J103=99, "Surveillance", SUM($O103:$Q103))), 0),"Not required") -> 0 | S103: 1806 | T103: 4848 | U103: 8771 | V103: =IF(INTRO!$E$43="Endemic", IF($K103>1, IF($K103=4, "Unknown", IF($K103=99, "Surveillance", SUM($S103:$U103))), 0),"Not required") -> 15425 | W103: 0 | X103: 1 | Y103: 0 | Z103: 1 | AA103: TAS | AH103: 10719 | AI103: Kyabe | AJ103: 2 | AK103: 2 | AL103: 0
A104: =IF(INTRO!$E$33<>0,INTRO!$E$33, " ") -> Tchad | B104: Moyen Chari | C104: Maro | D104: 130242 | E104: =IF(INTRO!$E$48="","",ROUND($D104*INTRO!$E$48,0)) -> 19093 | F104: =IF(INTRO!$E$49="","",ROUND($D104*INTRO!$E$49,0)) -> 37679 | G104: =IF(INTRO!$E$50="","",ROUND($D104*INTRO!$E$50,0)) -> 68169 | H104: 1 | I104: 1 | J104: 1 | K104: 1 | L104: 0 | M104: =IF(INTRO!$E$37="Endemic",IF($H104>0,IF($H104=4,"Unknown",IF($H104=99,"Stopped",$D104)),0),"Not required") -> 130242 | N104: =IF(INTRO!$E$39="Endemic", IF($I104>0, IF($I104=4,"Unknown",IF($I104=99,"Stopped",$D104)), 0),"Not required") -> 130242 | O104: =IF(INTRO!$E$41="Endemic", IF($J104>1, IF($J104=4, "Unknown", IF($J104=99, "Surveillance", E104)), 0),"Not required") -> 0 | P104: =IF(INTRO!$E$41="Endemic", IF($J104>1, IF($J104=4, "Unknown", IF($J104=99, "Surveillance", F104)), 0),"Not required") -> 0 | Q104: =IF(INTRO!$E$41="Endemic", IF($J104>1, IF($J104=4, "Unknown", IF($J104=99, "Surveillance", ROUND(D104*INTRO!$E$51,0))), 0),"Not required") -> 0 | R104: =IF(INTRO!$E$41="Endemic", IF($J104>1, IF($J104=4, "Unknown", IF($J104=99, "Surveillance", SUM($O104:$Q104))), 0),"Not required") -> 0 | S104: 0 | T104: 0 | U104: 0 | V104: =IF(INTRO!$E$43="Endemic", IF($K104>1, IF($K104=4, "Unknown", IF($K104=99, "Surveillance", SUM($S104:$U104))), 0),"Not required") -> 0 | W104: 1 | X104: 1 | Y104: 0 | Z104: 0 | AH104: 10774 | AI104: Maro | AJ104: 1 | AK104: 1 | AL104: 1
A105: =IF(INTRO!$E$33<>0,INTRO!$E$33, " ") -> Tchad | B105: Moyen Chari | C105: Sarh | D105: 227309 | E105: =IF(INTRO!$E$48="","",ROUND($D105*INTRO!$E$48,0)) -> 33323 | F105: =IF(INTRO!$E$49="","",ROUND($D105*INTRO!$E$49,0)) -> 65760 | G105: =IF(INTRO!$E$50="","",ROUND($D105*INTRO!$E$50,0)) -> 118974 | H105: 19 | I105: 1 | J105: 2 | K105: 2 | L105: 0 | M105: =IF(INTRO!$E$37="Endemic",IF($H105>0,IF($H105=4,"Unknown",IF($H105=99,"Stopped",$D105)),0),"Not required") -> 227309 | N105: =IF(INTRO!$E$39="Endemic", IF($I105>0, IF($I105=4,"Unknown",IF($I105=99,"Stopped",$D105)), 0),"Not required") -> 227309 | O105: =IF(INTRO!$E$41="Endemic", IF($J105>1, IF($J105=4, "Unknown", IF($J105=99, "Surveillance", E105)), 0),"Not required") -> 33323 | P105: =IF(INTRO!$E$41="Endemic", IF($J105>1, IF($J105=4, "Unknown", IF($J105=99, "Surveillance", F105)), 0),"Not required") -> 65760 | Q105: =IF(INTRO!$E$41="Endemic", IF($J105>1, IF($J105=4, "Unknown", IF($J105=99, "Surveillance", ROUND(D105*INTRO!$E$51,0))), 0),"Not required") -> 50436 | R105: =IF(INTRO!$E$41="Endemic", IF($J105>1, IF($J105=4, "Unknown", IF($J105=99, "Surveillance", SUM($O105:$Q105))), 0),"Not required") -> 149519 | S105: 4311 | T105: 11572 | U105: 20937 | V105: =IF(INTRO!$E$43="Endemic", IF($K105>1, IF($K105=4, "Unknown", IF($K105=99, "Surveillance", SUM($S105:$U105))), 0),"Not required") -> 36820 | W105: 0 | X105: 1 | Y105: 1 | Z105: 1 | AA105: TAS | AH105: 10720 | AI105: Sarh | AJ105: 2 | AK105: 2 | AL105: 1
A106: =IF(INTRO!$E$33<>0,INTRO!$E$33, " ") -> Tchad | B106: N'Djaména | C106: N'Djaména Centre | D106: 479851 | E106: =IF(INTRO!$E$48="","",ROUND($D106*INTRO!$E$48,0)) -> 70346 | F106: =IF(INTRO!$E$49="","",ROUND($D106*INTRO!$E$49,0)) -> 138821 | G106: =IF(INTRO!$E$50="","",ROUND($D106*INTRO!$E$50,0)) -> 251154 | H106: 0 | I106: 0 | J106: 1 | K106: 1 | L106: 0 | M106: =IF(INTRO!$E$37="Endemic",IF($H106>0,IF($H106=4,"Unknown",IF($H106=99,"Stopped",$D106)),0),"Not required") -> 0 | N106: =IF(INTRO!$E$39="Endemic", IF($I106>0, IF($I106=4,"Unknown",IF($I106=99,"Stopped",$D106)), 0),"Not required") -> 0 | O106: =IF(INTRO!$E$41="Endemic", IF($J106>1, IF($J106=4, "Unknown", IF($J106=99, "Surveillance", E106)), 0),"Not required") -> 0 | P106: =IF(INTRO!$E$41="Endemic", IF($J106>1, IF($J106=4, "Unknown", IF($J106=99, "Surveillance", F106)), 0),"Not required") -> 0 | Q106: =IF(INTRO!$E$41="Endemic", IF($J106>1, IF($J106=4, "Unknown", IF($J106=99, "Surveillance", ROUND(D106*INTRO!$E$51,0))), 0),"Not required") -> 0 | R106: =IF(INTRO!$E$41="Endemic", IF($J106>1, IF($J106=4, "Unknown", IF($J106=99, "Surveillance", SUM($O106:$Q106))), 0),"Not required") -> 0 | S106: 0 | T106: 0 | U106: 0 | V106: =IF(INTRO!$E$43="Endemic", IF($K106>1, IF($K106=4, "Unknown", IF($K106=99, "Surveillance", SUM($S106:$U106))), 0),"Not required") -> 0 | W106: 0 | X106: 0 | Y106: 0 | Z106: 0 | AH106: 10721 | AI106: N'Djaména Centre | AJ106: 1 | AK106: 1 | AL106: 0
A107: =IF(INTRO!$E$33<>0,INTRO!$E$33, " ") -> Tchad | B107: N'Djaména | C107: N'Djaména Est | D107: 468974 | E107: =IF(INTRO!$E$48="","",ROUND($D107*INTRO!$E$48,0)) -> 68752 | F107: =IF(INTRO!$E$49="","",ROUND($D107*INTRO!$E$49,0)) -> 135674 | G107: =IF(INTRO!$E$50="","",ROUND($D107*INTRO!$E$50,0)) -> 245461 | H107: 0 | I107: 0 | J107: 0 | K107: 2 | L107: 0 | M107: =IF(INTRO!$E$37="Endemic",IF($H107>0,IF($H107=4,"Unknown",IF($H107=99,"Stopped",$D107)),0),"Not required") -> 0 | N107: =IF(INTRO!$E$39="Endemic", IF($I107>0, IF($I107=4,"Unknown",IF($I107=99,"Stopped",$D107)), 0),"Not required") -> 0 | O107: =IF(INTRO!$E$41="Endemic", IF($J107>1, IF($J107=4, "Unknown", IF($J107=99, "Surveillance", E107)), 0),"Not required") -> 0 | P107: =IF(INTRO!$E$41="Endemic", IF($J107>1, IF($J107=4, "Unknown", IF($J107=99, "Surveillance", F107)), 0),"Not required") -> 0 | Q107: =IF(INTRO!$E$41="Endemic", IF($J107>1, IF($J107=4, "Unknown", IF($J107=99, "Surveillance", ROUND(D107*INTRO!$E$51,0))), 0),"Not required") -> 0 | R107: =IF(INTRO!$E$41="Endemic", IF($J107>1, IF($J107=4, "Unknown", IF($J107=99, "Surveillance", SUM($O107:$Q107))), 0),"Not required") -> 0 | S107: 3049 | T107: 8185 | U107: 14809 | V107: =IF(INTRO!$E$43="Endemic", IF($K107>1, IF($K107=4, "Unknown", IF($K107=99, "Surveillance", SUM($S107:$U107))), 0),"Not required") -> 26043 | W107: 0 | X107: 0 | Y107: 0 | Z107: 1 | AH107: 10722 | AI107: N'Djaména Est | AJ107: 2 | AK107: 1 | AL107: 0
A108: =IF(INTRO!$E$33<>0,INTRO!$E$33, " ") -> Tchad | B108: N'Djaména | C108: N'Djaména Nord | D108: 210136 | E108: =IF(INTRO!$E$48="","",ROUND($D108*INTRO!$E$48,0)) -> 30806 | F108: =IF(INTRO!$E$49="","",ROUND($D108*INTRO!$E$49,0)) -> 60792 | G108: =IF(INTRO!$E$50="","",ROUND($D108*INTRO!$E$50,0)) -> 109985 | H108: 0 | I108: 0 | J108: 0 | K108: 1 | L108: 0 | M108: =IF(INTRO!$E$37="Endemic",IF($H108>0,IF($H108=4,"Unknown",IF($H108=99,"Stopped",$D108)),0),"Not required") -> 0 | N108: =IF(INTRO!$E$39="Endemic", IF($I108>0, IF($I108=4,"Unknown",IF($I108=99,"Stopped",$D108)), 0),"Not required") -> 0 | O108: =IF(INTRO!$E$41="Endemic", IF($J108>1, IF($J108=4, "Unknown", IF($J108=99, "Surveillance", E108)), 0),"Not required") -> 0 | P108: =IF(INTRO!$E$41="Endemic", IF($J108>1, IF($J108=4, "Unknown", IF($J108=99, "Surveillance", F108)), 0),"Not required") -> 0 | Q108: =IF(INTRO!$E$41="Endemic", IF($J108>1, IF($J108=4, "Unknown", IF($J108=99, "Surveillance", ROUND(D108*INTRO!$E$51,0))), 0),"Not required") -> 0 | R108: =IF(INTRO!$E$41="Endemic", IF($J108>1, IF($J108=4, "Unknown", IF($J108=99, "Surveillance", SUM($O108:$Q108))), 0),"Not required") -> 0 | S108: 0 | T108: 0 | U108: 0 | V108: =IF(INTRO!$E$43="Endemic", IF($K108>1, IF($K108=4, "Unknown", IF($K108=99, "Surveillance", SUM($S108:$U108))), 0),"Not required") -> 0 | W108: 0 | X108: 0 | Y108: 0 | Z108: 0 | AH108: 10723 | AI108: N'Djaména Nord | AJ108: 1 | AK108: 1 | AL108: 0
A109: =IF(INTRO!$E$33<>0,INTRO!$E$33, " ") -> Tchad | B109: N'Djaména | C109: N'Djaména Sud | D109: 505687 | E109: =IF(INTRO!$E$48="","",ROUND($D109*INTRO!$E$48,0)) -> 74134 | F109: =IF(INTRO!$E$49="","",ROUND($D109*INTRO!$E$49,0)) -> 146295 | G109: =IF(INTRO!$E$50="","",ROUND($D109*INTRO!$E$50,0)) -> 264677 | H109: 0 | I109: 0 | J109: 1 | K109: 1 | L109: 0 | M109: =IF(INTRO!$E$37="Endemic",IF($H109>0,IF($H109=4,"Unknown",IF($H109=99,"Stopped",$D109)),0),"Not required") -> 0 | N109: =IF(INTRO!$E$39="Endemic", IF($I109>0, IF($I109=4,"Unknown",IF($I109=99,"Stopped",$D109)), 0),"Not required") -> 0 | O109: =IF(INTRO!$E$41="Endemic", IF($J109>1, IF($J109=4, "Unknown", IF($J109=99, "Surveillance", E109)), 0),"Not required") -> 0 | P109: =IF(INTRO!$E$41="Endemic", IF($J109>1, IF($J109=4, "Unknown", IF($J109=99, "Surveillance", F109)), 0),"Not required") -> 0 | Q109: =IF(INTRO!$E$41="Endemic", IF($J109>1, IF($J109=4, "Unknown", IF($J109=99, "Surveillance", ROUND(D109*INTRO!$E$51,0))), 0),"Not required") -> 0 | R109: =IF(INTRO!$E$41="Endemic", IF($J109>1, IF($J109=4, "Unknown", IF($J109=99, "Surveillance", SUM($O109:$Q109))), 0),"Not required") -> 0 | S109: 0 | T109: 0 | U109: 0 | V109: =IF(INTRO!$E$43="Endemic", IF($K109>1, IF($K109=4, "Unknown", IF($K109=99, "Surveillance", SUM($S109:$U109))), 0),"Not required") -> 0 | W109: 0 | X109: 0 | Y109: 0 | Z109: 0 | AH109: 10724 | AI109: N'Djaména Sud | AJ109: 1 | AK109: 1 | AL109: 0
A110: =IF(INTRO!$E$33<>0,INTRO!$E$33, " ") -> Tchad | B110: N'Djamena | C110: 9eme Arrondissement | D110: 180248 | E110: =IF(INTRO!$E$48="","",ROUND($D110*INTRO!$E$48,0)) -> 26424 | F110: =IF(INTRO!$E$49="","",ROUND($D110*INTRO!$E$49,0)) -> 52146 | G110: =IF(INTRO!$E$50="","",ROUND($D110*INTRO!$E$50,0)) -> 94342 | H110: 0 | I110: 0 | J110: 1 | K110: 1 | L110: 0 | M110: =IF(INTRO!$E$37="Endemic",IF($H110>0,IF($H110=4,"Unknown",IF($H110=99,"Stopped",$D110)),0),"Not required") -> 0 | N110: =IF(INTRO!$E$39="Endemic", IF($I110>0, IF($I110=4,"Unknown",IF($I110=99,"Stopped",$D110)), 0),"Not required") -> 0 | O110: =IF(INTRO!$E$41="Endemic", IF($J110>1, IF($J110=4, "Unknown", IF($J110=99, "Surveillance", E110)), 0),"Not required") -> 0 | P110: =IF(INTRO!$E$41="Endemic", IF($J110>1, IF($J110=4, "Unknown", IF($J110=99, "Surveillance", F110)), 0),"Not required") -> 0 | Q110: =IF(INTRO!$E$41="Endemic", IF($J110>1, IF($J110=4, "Unknown", IF($J110=99, "Surveillance", ROUND(D110*INTRO!$E$51,0))), 0),"Not required") -> 0 | R110: =IF(INTRO!$E$41="Endemic", IF($J110>1, IF($J110=4, "Unknown", IF($J110=99, "Surveillance", SUM($O110:$Q110))), 0),"Not required") -> 0 | S110: 0 | T110: 0 | U110: 0 | V110: =IF(INTRO!$E$43="Endemic", IF($K110>1, IF($K110=4, "Unknown", IF($K110=99, "Surveillance", SUM($S110:$U110))), 0),"Not required") -> 0 | W110: 0 | X110: 0 | Y110: 0 | Z110: 0 | AH110: 10789 | AI110: 9eme Arrondissement | AJ110: 1 | AK110: 1 | AL110: 0
A111: =IF(INTRO!$E$33<>0,INTRO!$E$33, " ") -> Tchad | B111: Ouaddai | C111: Abdi | D111: 490727 | E111: =IF(INTRO!$E$48="","",ROUND($D111*INTRO!$E$48,0)) -> 71941 | F111: =IF(INTRO!$E$49="","",ROUND($D111*INTRO!$E$49,0)) -> 141967 | G111: =IF(INTRO!$E$50="","",ROUND($D111*INTRO!$E$50,0)) -> 256847 | H111: 0 | I111: 0 | J111: 1 | K111: 2 | L111: 0 | M111: =IF(INTRO!$E$37="Endemic",IF($H111>0,IF($H111=4,"Unknown",IF($H111=99,"Stopped",$D111)),0),"Not required") -> 0 | N111: =IF(INTRO!$E$39="Endemic", IF($I111>0, IF($I111=4,"Unknown",IF($I111=99,"Stopped",$D111)), 0),"Not required") -> 0 | O111: =IF(INTRO!$E$41="Endemic", IF($J111>1, IF($J111=4, "Unknown", IF($J111=99, "Surveillance", E111)), 0),"Not required") -> 0 | P111: =IF(INTRO!$E$41="Endemic", IF($J111>1, IF($J111=4, "Unknown", IF($J111=99, "Surveillance", F111)), 0),"Not required") -> 0 | Q111: =IF(INTRO!$E$41="Endemic", IF($J111>1, IF($J111=4, "Unknown", IF($J111=99, "Surveillance", ROUND(D111*INTRO!$E$51,0))), 0),"Not required") -> 0 | R111: =IF(INTRO!$E$41="Endemic", IF($J111>1, IF($J111=4, "Unknown", IF($J111=99, "Surveillance", SUM($O111:$Q111))), 0),"Not required") -> 0 | S111: 3204 | T111: 8603 | U111: 15564 | V111: =IF(INTRO!$E$43="Endemic", IF($K111>1, IF($K111=4, "Unknown", IF($K111=99, "Surveillance", SUM($S111:$U111))), 0),"Not required") -> 27371 | W111: 0 | X111: 0 | Y111: 0 | Z111: 1 | AH111: 10727 | AI111: Abdi | AJ111: 2 | AK111: 2 | AL111: 1
A112: =IF(INTRO!$E$33<>0,INTRO!$E$33, " ") -> Tchad | B112: Ouaddai | C112: Abeche | D112: 126657 | E112: =IF(INTRO!$E$48="","",ROUND($D112*INTRO!$E$48,0)) -> 18568 | F112: =IF(INTRO!$E$49="","",ROUND($D112*INTRO!$E$49,0)) -> 36642 | G112: =IF(INTRO!$E$50="","",ROUND($D112*INTRO!$E$50,0)) -> 66292 | H112: 0 | I112: 0 | J112: 1 | K112: 3 | L112: 0 | M112: =IF(INTRO!$E$37="Endemic",IF($H112>0,IF($H112=4,"Unknown",IF($H112=99,"Stopped",$D112)),0),"Not required") -> 0 | N112: =IF(INTRO!$E$39="Endemic", IF($I112>0, IF($I112=4,"Unknown",IF($I112=99,"Stopped",$D112)), 0),"Not required") -> 0 | O112: =IF(INTRO!$E$41="Endemic", IF($J112>1, IF($J112=4, "Unknown", IF($J112=99, "Surveillance", E112)), 0),"Not required") -> 0 | P112: =IF(INTRO!$E$41="Endemic", IF($J112>1, IF($J112=4, "Unknown", IF($J112=99, "Surveillance", F112)), 0),"Not required") -> 0 | Q112: =IF(INTRO!$E$41="Endemic", IF($J112>1, IF($J112=4, "Unknown", IF($J112=99, "Surveillance", ROUND(D112*INTRO!$E$51,0))), 0),"Not required") -> 0 | R112: =IF(INTRO!$E$41="Endemic", IF($J112>1, IF($J112=4, "Unknown", IF($J112=99, "Surveillance", SUM($O112:$Q112))), 0),"Not required") -> 0 | S112: 5325 | T112: 14298 | U112: 25867 | V112: =IF(INTRO!$E$43="Endemic", IF($K112>1, IF($K112=4, "Unknown", IF($K112=99, "Surveillance", SUM($S112:$U112))), 0),"Not required") -> 45490 | W112: 0 | X112: 0 | Y112: 0 | Z112: 1 | AH112: 10728 | AI112: Abeche | AJ112: 3 | AK112: 2 | AL112: 1
A113: =IF(INTRO!$E$33<>0,INTRO!$E$33, " ") -> Tchad | B113: Ouaddai | C113: Abougoudam | D113: 492708 | E113: =IF(INTRO!$E$48="","",ROUND($D113*INTRO!$E$48,0)) -> 72231 | F113: =IF(INTRO!$E$49="","",ROUND($D113*INTRO!$E$49,0)) -> 142540 | G113: =IF(INTRO!$E$50="","",ROUND($D113*INTRO!$E$50,0)) -> 257883 | H113: 0 | I113: 0 | J113: 0 | K113: 1 | L113: 0 | M113: =IF(INTRO!$E$37="Endemic",IF($H113>0,IF($H113=4,"Unknown",IF($H113=99,"Stopped",$D113)),0),"Not required") -> 0 | N113: =IF(INTRO!$E$39="Endemic", IF($I113>0, IF($I113=4,"Unknown",IF($I113=99,"Stopped",$D113)), 0),"Not required") -> 0 | O113: =IF(INTRO!$E$41="Endemic", IF($J113>1, IF($J113=4, "Unknown", IF($J113=99, "Surveillance", E113)), 0),"Not required") -> 0 | P113: =IF(INTRO!$E$41="Endemic", IF($J113>1, IF($J113=4, "Unknown", IF($J113=99, "Surveillance", F113)), 0),"Not required") -> 0 | Q113: =IF(INTRO!$E$41="Endemic", IF($J113>1, IF($J113=4, "Unknown", IF($J113=99, "Surveillance", ROUND(D113*INTRO!$E$51,0))), 0),"Not required") -> 0 | R113: =IF(INTRO!$E$41="Endemic", IF($J113>1, IF($J113=4, "Unknown", IF($J113=99, "Surveillance", SUM($O113:$Q113))), 0),"Not required") -> 0 | S113: 0 | T113: 0 | U113: 0 | V113: =IF(INTRO!$E$43="Endemic", IF($K113>1, IF($K113=4, "Unknown", IF($K113=99, "Surveillance", SUM($S113:$U113))), 0),"Not required") -> 0 | W113: 0 | X113: 0 | Y113: 0 | Z113: 0 | AH113: 10729 | AI113: Abougoudam | AJ113: 1 | AK113: 2 | AL113: 1
A114: =IF(INTRO!$E$33<>0,INTRO!$E$33, " ") -> Tchad | B114: Ouaddai | C114: Adré | D114: 135346 | E114: =IF(INTRO!$E$48="","",ROUND($D114*INTRO!$E$48,0)) -> 19842 | F114: =IF(INTRO!$E$49="","",ROUND($D114*INTRO!$E$49,0)) -> 39156 | G114: =IF(INTRO!$E$50="","",ROUND($D114*INTRO!$E$50,0)) -> 70840 | H114: 0 | I114: 0 | J114: 1 | K114: 2 | L114: 0 | M114: =IF(INTRO!$E$37="Endemic",IF($H114>0,IF($H114=4,"Unknown",IF($H114=99,"Stopped",$D114)),0),"Not required") -> 0 | N114: =IF(INTRO!$E$39="Endemic", IF($I114>0, IF($I114=4,"Unknown",IF($I114=99,"Stopped",$D114)), 0),"Not required") -> 0 | O114: =IF(INTRO!$E$41="Endemic", IF($J114>1, IF($J114=4, "Unknown", IF($J114=99, "Surveillance", E114)), 0),"Not required") -> 0 | P114: =IF(INTRO!$E$41="Endemic", IF($J114>1, IF($J114=4, "Unknown", IF($J114=99, "Surveillance", F114)), 0),"Not required") -> 0 | Q114: =IF(INTRO!$E$41="Endemic", IF($J114>1, IF($J114=4, "Unknown", IF($J114=99, "Surveillance", ROUND(D114*INTRO!$E$51,0))), 0),"Not required") -> 0 | R114: =IF(INTRO!$E$41="Endemic", IF($J114>1, IF($J114=4, "Unknown", IF($J114=99, "Surveillance", SUM($O114:$Q114))), 0),"Not required") -> 0 | S114: 4631 | T114: 12433 | U114: 22493 | V114: =IF(INTRO!$E$43="Endemic", IF($K114>1, IF($K114=4, "Unknown", IF($K114=99, "Surveillance", SUM($S114:$U114))), 0),"Not required") -> 39557 | W114: 0 | X114: 0 | Y114: 0 | Z114: 1 | AH114: 10730 | AI114: Adré | AJ114: 2 | AK114: 2 | AL114: 1
A115: =IF(INTRO!$E$33<>0,INTRO!$E$33, " ") -> Tchad | B115: Salamat | C115: Aboudeia | D115: 113930 | E115: =IF(INTRO!$E$48="","",ROUND($D115*INTRO!$E$48,0)) -> 16702 | F115: =IF(INTRO!$E$49="","",ROUND($D115*INTRO!$E$49,0)) -> 32960 | G115: =IF(INTRO!$E$50="","",ROUND($D115*INTRO!$E$50,0)) -> 59631 | H115: 0 | I115: 4 | J115: 2 | K115: 3 | L115: 0 | M115: =IF(INTRO!$E$37="Endemic",IF($H115>0,IF($H115=4,"Unknown",IF($H115=99,"Stopped",$D115)),0),"Not required") -> 0 | N115: =IF(INTRO!$E$39="Endemic", IF($I115>0, IF($I115=4,"Unknown",IF($I115=99,"Stopped",$D115)), 0),"Not required") -> Unknown | O115: =IF(INTRO!$E$41="Endemic", IF($J115>1, IF($J115=4, "Unknown", IF($J115=99, "Surveillance", E115)), 0),"Not required") -> 16702 | P115: =IF(INTRO!$E$41="Endemic", IF($J115>1, IF($J115=4, "Unknown", IF($J115=99, "Surveillance", F115)), 0),"Not required") -> 32960 | Q115: =IF(INTRO!$E$41="Endemic", IF($J115>1, IF($J115=4, "Unknown", IF($J115=99, "Surveillance", ROUND(D115*INTRO!$E$51,0))), 0),"Not required") -> 25279 | R115: =IF(INTRO!$E$41="Endemic", IF($J115>1, IF($J115=4, "Unknown", IF($J115=99, "Surveillance", SUM($O115:$Q115))), 0),"Not required") -> 74941 | S115: 4259 | T115: 11434 | U115: 20685 | V115: =IF(INTRO!$E$43="Endemic", IF($K115>1, IF($K115=4, "Unknown", IF($K115=99, "Surveillance", SUM($S115:$U115))), 0),"Not required") -> 36378 | W115: 0 | X115: 0 | Y115: 1 | Z115: 1 | AH115: 10731 | AI115: Aboudeia | AJ115: 3 | AK115: 3 | AL115: 1
A116: =IF(INTRO!$E$33<>0,INTRO!$E$33, " ") -> Tchad | B116: Salamat | C116: Am-Timan | D116: 294958 | E116: =IF(INTRO!$E$48="","",ROUND($D116*INTRO!$E$48,0)) -> 43241 | F116: =IF(INTRO!$E$49="","",ROUND($D116*INTRO!$E$49,0)) -> 85331 | G116: =IF(INTRO!$E$50="","",ROUND($D116*INTRO!$E$50,0)) -> 154381 | H116: 0 | I116: 4 | J116: 2 | K116: 2 | L116: 0 | M116: =IF(INTRO!$E$37="Endemic",IF($H116>0,IF($H116=4,"Unknown",IF($H116=99,"Stopped",$D116)),0),"Not required") -> 0 | N116: =IF(INTRO!$E$39="Endemic", IF($I116>0, IF($I116=4,"Unknown",IF($I116=99,"Stopped",$D116)), 0),"Not required") -> Unknown | O116: =IF(INTRO!$E$41="Endemic", IF($J116>1, IF($J116=4, "Unknown", IF($J116=99, "Surveillance", E116)), 0),"Not required") -> 43241 | P116: =IF(INTRO!$E$41="Endemic", IF($J116>1, IF($J116=4, "Unknown", IF($J116=99, "Surveillance", F116)), 0),"Not required") -> 85331 | Q116: =IF(INTRO!$E$41="Endemic", IF($J116>1, IF($J116=4, "Unknown", IF($J116=99, "Surveillance", ROUND(D116*INTRO!$E$51,0))), 0),"Not required") -> 65447 | R116: =IF(INTRO!$E$41="Endemic", IF($J116>1, IF($J116=4, "Unknown", IF($J116=99, "Surveillance", SUM($O116:$Q116))), 0),"Not required") -> 194019 | S116: 1855 | T116: 4980 | U116: 9009 | V116: =IF(INTRO!$E$43="Endemic", IF($K116>1, IF($K116=4, "Unknown", IF($K116=99, "Surveillance", SUM($S116:$U116))), 0),"Not required") -> 15844 | W116: 0 | X116: 0 | Y116: 1 | Z116: 1 | AH116: 10732 | AI116: Am-Timan | AJ116: 2 | AK116: 1 | AL116: 1
A117: =IF(INTRO!$E$33<>0,INTRO!$E$33, " ") -> Tchad | B117: Salamat | C117: Haraze | D117: 104081 | E117: =IF(INTRO!$E$48="","",ROUND($D117*INTRO!$E$48,0)) -> 15258 | F117: =IF(INTRO!$E$49="","",ROUND($D117*INTRO!$E$49,0)) -> 30111 | G117: =IF(INTRO!$E$50="","",ROUND($D117*INTRO!$E$50,0)) -> 54476 | H117: 0 | I117: 4 | J117: 1 | K117: 2 | L117: 0 | M117: =IF(INTRO!$E$37="Endemic",IF($H117>0,IF($H117=4,"Unknown",IF($H117=99,"Stopped",$D117)),0),"Not required") -> 0 | N117: =IF(INTRO!$E$39="Endemic", IF($I117>0, IF($I117=4,"Unknown",IF($I117=99,"Stopped",$D117)), 0),"Not required") -> Unknown | O117: =IF(INTRO!$E$41="Endemic", IF($J117>1, IF($J117=4, "Unknown", IF($J117=99, "Surveillance", E117)), 0),"Not required") -> 0 | P117: =IF(INTRO!$E$41="Endemic", IF($J117>1, IF($J117=4, "Unknown", IF($J117=99, "Surveillance", F117)), 0),"Not required") -> 0 | Q117: =IF(INTRO!$E$41="Endemic", IF($J117>1, IF($J117=4, "Unknown", IF($J117=99, "Surveillance", ROUND(D117*INTRO!$E$51,0))), 0),"Not required") -> 0 | R117: =IF(INTRO!$E$41="Endemic", IF($J117>1, IF($J117=4, "Unknown", IF($J117=99, "Surveillance", SUM($O117:$Q117))), 0),"Not required") -> 0 | S117: 3954 | T117: 10614 | U117: 19204 | V117: =IF(INTRO!$E$43="Endemic", IF($K117>1, IF($K117=4, "Unknown", IF($K117=99, "Surveillance", SUM($S117:$U117))), 0),"Not required") -> 33772 | W117: 0 | X117: 0 | Y117: 0 | Z117: 1 | AH117: 10733 | AI117: Haraze | AJ117: 2 | AK117: 2 | AL117: 0
A118: =IF(INTRO!$E$33<>0,INTRO!$E$33, " ") -> Tchad | B118: Sila | C118: Am-dam | D118: 155900 | E118: =IF(INTRO!$E$48="","",ROUND($D118*INTRO!$E$48,0)) -> 22855 | F118: =IF(INTRO!$E$49="","",ROUND($D118*INTRO!$E$49,0)) -> 45102 | G118: =IF(INTRO!$E$50="","",ROUND($D118*INTRO!$E$50,0)) -> 81598 | H118: 0 | I118: 4 | J118: 0 | K118: 2 | L118: 0 | M118: =IF(INTRO!$E$37="Endemic",IF($H118>0,IF($H118=4,"Unknown",IF($H118=99,"Stopped",$D118)),0),"Not required") -> 0 | N118: =IF(INTRO!$E$39="Endemic", IF($I118>0, IF($I118=4,"Unknown",IF($I118=99,"Stopped",$D118)), 0),"Not required") -> Unknown | O118: =IF(INTRO!$E$41="Endemic", IF($J118>1, IF($J118=4, "Unknown", IF($J118=99, "Surveillance", E118)), 0),"Not required") -> 0 | P118: =IF(INTRO!$E$41="Endemic", IF($J118>1, IF($J118=4, "Unknown", IF($J118=99, "Surveillance", F118)), 0),"Not required") -> 0 | Q118: =IF(INTRO!$E$41="Endemic", IF($J118>1, IF($J118=4, "Unknown", IF($J118=99, "Surveillance", ROUND(D118*INTRO!$E$51,0))), 0),"Not required") -> 0 | R118: =IF(INTRO!$E$41="Endemic", IF($J118>1, IF($J118=4, "Unknown", IF($J118=99, "Surveillance", SUM($O118:$Q118))), 0),"Not required") -> 0 | S118: 1947 | T118: 5227 | U118: 9459 | V118: =IF(INTRO!$E$43="Endemic", IF($K118>1, IF($K118=4, "Unknown", IF($K118=99, "Surveillance", SUM($S118:$U118))), 0),"Not required") -> 16633 | W118: 0 | X118: 0 | Y118: 0 | Z118: 1 | AH118: 10725 | AI118: Am-dam | AJ118: 2 | AK118: 2 | AL118: 1
A119: =IF(INTRO!$E$33<>0,INTRO!$E$33, " ") -> Tchad | B119: Sila | C119: Goz-beida | D119: 295088 | E119: =IF(INTRO!$E$48="","",ROUND($D119*INTRO!$E$48,0)) -> 43260 | F119: =IF(INTRO!$E$49="","",ROUND($D119*INTRO!$E$49,0)) -> 85369 | G119: =IF(INTRO!$E$50="","",ROUND($D119*INTRO!$E$50,0)) -> 154449 | H119: 0 | I119: 4 | J119: 1 | K119: 2 | L119: 0 | M119: =IF(INTRO!$E$37="Endemic",IF($H119>0,IF($H119=4,"Unknown",IF($H119=99,"Stopped",$D119)),0),"Not required") -> 0 | N119: =IF(INTRO!$E$39="Endemic", IF($I119>0, IF($I119=4,"Unknown",IF($I119=99,"Stopped",$D119)), 0),"Not required") -> Unknown | O119: =IF(INTRO!$E$41="Endemic", IF($J119>1, IF($J119=4, "Unknown", IF($J119=99, "Surveillance", E119)), 0),"Not required") -> 0 | P119: =IF(INTRO!$E$41="Endemic", IF($J119>1, IF($J119=4, "Unknown", IF($J119=99, "Surveillance", F119)), 0),"Not required") -> 0 | Q119: =IF(INTRO!$E$41="Endemic", IF($J119>1, IF($J119=4, "Unknown", IF($J119=99, "Surveillance", ROUND(D119*INTRO!$E$51,0))), 0),"Not required") -> 0 | R119: =IF(INTRO!$E$41="Endemic", IF($J119>1, IF($J119=4, "Unknown", IF($J119=99, "Surveillance", SUM($O119:$Q119))), 0),"Not required") -> 0 | S119: 1851 | T119: 4969 | U119: 8991 | V119: =IF(INTRO!$E$43="Endemic", IF($K119>1, IF($K119=4, "Unknown", IF($K119=99, "Surveillance", SUM($S119:$U119))), 0),"Not required") -> 15811 | W119: 0 | X119: 0 | Y119: 0 | Z119: 1 | AH119: 10726 | AI119: Goz-beida | AJ119: 2 | AK119: 2 | AL119: 0
A120: =IF(INTRO!$E$33<>0,INTRO!$E$33, " ") -> Tchad | B120: Sila | C120: Koukou | D120: 175530 | E120: =IF(INTRO!$E$48="","",ROUND($D120*INTRO!$E$48,0)) -> 25733 | F120: =IF(INTRO!$E$49="","",ROUND($D120*INTRO!$E$49,0)) -> 50781 | G120: =IF(INTRO!$E$50="","",ROUND($D120*INTRO!$E$50,0)) -> 91872 | H120: 0 | I120: 4 | J120: 1 | K120: 2 | L120: 0 | M120: =IF(INTRO!$E$37="Endemic",IF($H120>0,IF($H120=4,"Unknown",IF($H120=99,"Stopped",$D120)),0),"Not required") -> 0 | N120: =IF(INTRO!$E$39="Endemic", IF($I120>0, IF($I120=4,"Unknown",IF($I120=99,"Stopped",$D120)), 0),"Not required") -> Unknown | O120: =IF(INTRO!$E$41="Endemic", IF($J120>1, IF($J120=4, "Unknown", IF($J120=99, "Surveillance", E120)), 0),"Not required") -> 0 | P120: =IF(INTRO!$E$41="Endemic", IF($J120>1, IF($J120=4, "Unknown", IF($J120=99, "Surveillance", F120)), 0),"Not required") -> 0 | Q120: =IF(INTRO!$E$41="Endemic", IF($J120>1, IF($J120=4, "Unknown", IF($J120=99, "Surveillance", ROUND(D120*INTRO!$E$51,0))), 0),"Not required") -> 0 | R120: =IF(INTRO!$E$41="Endemic", IF($J120>1, IF($J120=4, "Unknown", IF($J120=99, "Surveillance", SUM($O120:$Q120))), 0),"Not required") -> 0 | S120: 5429 | T120: 14576 | U120: 26370 | V120: =IF(INTRO!$E$43="Endemic", IF($K120>1, IF($K120=4, "Unknown", IF($K120=99, "Surveillance", SUM($S120:$U120))), 0),"Not required") -> 46375 | W120: 0 | X120: 0 | Y120: 0 | Z120: 1 | AH120: 10673 | AI120: Koukou | AJ120: 2 | AK120: 2 | AL120: 0
A121: =IF(INTRO!$E$33<>0,INTRO!$E$33, " ") -> Tchad | B121: Sila | C121: Tissi | D121: 102238 | E121: =IF(INTRO!$E$48="","",ROUND($D121*INTRO!$E$48,0)) -> 14988 | F121: =IF(INTRO!$E$49="","",ROUND($D121*INTRO!$E$49,0)) -> 29577 | G121: =IF(INTRO!$E$50="","",ROUND($D121*INTRO!$E$50,0)) -> 53511 | H121: 0 | I121: 4 | J121: 4 | K121: 4 | L121: 0 | M121: =IF(INTRO!$E$37="Endemic",IF($H121>0,IF($H121=4,"Unknown",IF($H121=99,"Stopped",$D121)),0),"Not required") -> 0 | N121: =IF(INTRO!$E$39="Endemic", IF($I121>0, IF($I121=4,"Unknown",IF($I121=99,"Stopped",$D121)), 0),"Not required") -> Unknown | O121: =IF(INTRO!$E$41="Endemic", IF($J121>1, IF($J121=4, "Unknown", IF($J121=99, "Surveillance", E121)), 0),"Not required") -> Unknown | P121: =IF(INTRO!$E$41="Endemic", IF($J121>1, IF($J121=4, "Unknown", IF($J121=99, "Surveillance", F121)), 0),"Not required") -> Unknown | Q121: =IF(INTRO!$E$41="Endemic", IF($J121>1, IF($J121=4, "Unknown", IF($J121=99, "Surveillance", ROUND(D121*INTRO!$E$51,0))), 0),"Not required") -> Unknown | R121: =IF(INTRO!$E$41="Endemic", IF($J121>1, IF($J121=4, "Unknown", IF($J121=99, "Surveillance", SUM($O121:$Q121))), 0),"Not required") -> Unknown | S121: 0 | T121: 0 | U121: 0 | V121: 0 | W121: 0 | X121: 0 | Y121: 0 | Z121: 0 | AH121: 10674 | AI121: Tissi | AJ121: 4 | AK121: 4 | AL121: 0
A122: =IF(INTRO!$E$33<>0,INTRO!$E$33, " ") -> Tchad | B122: Tandjile | C122: Batchoro | D122: 111936 | E122: =IF(INTRO!$E$48="","",ROUND($D122*INTRO!$E$48,0)) -> 16410 | F122: =IF(INTRO!$E$49="","",ROUND($D122*INTRO!$E$49,0)) -> 32383 | G122: =IF(INTRO!$E$50="","",ROUND($D122*INTRO!$E$50,0)) -> 58587 | H122: 1 | I122: 1 | J122: 1 | K122: 1 | L122: 0 | M122: =IF(INTRO!$E$37="Endemic",IF($H122>0,IF($H122=4,"Unknown",IF($H122=99,"Stopped",$D122)),0),"Not required") -> 111936 | N122: =IF(INTRO!$E$39="Endemic", IF($I122>0, IF($I122=4,"Unknown",IF($I122=99,"Stopped",$D122)), 0),"Not required") -> 111936 | O122: =IF(INTRO!$E$41="Endemic", IF($J122>1, IF($J122=4, "Unknown", IF($J122=99, "Surveillance", E122)), 0),"Not required") -> 0 | P122: =IF(INTRO!$E$41="Endemic", IF($J122>1, IF($J122=4, "Unknown", IF($J122=99, "Surveillance", F122)), 0),"Not required") -> 0 | Q122: =IF(INTRO!$E$41="Endemic", IF($J122>1, IF($J122=4, "Unknown", IF($J122=99, "Surveillance", ROUND(D122*INTRO!$E$51,0))), 0),"Not required") -> 0 | R122: =IF(INTRO!$E$41="Endemic", IF($J122>1, IF($J122=4, "Unknown", IF($J122=99, "Surveillance", SUM($O122:$Q122))), 0),"Not required") -> 0 | S122: 0 | T122: 0 | U122: 0 | V122: =IF(INTRO!$E$43="Endemic", IF($K122>1, IF($K122=4, "Unknown", IF($K122=99, "Surveillance", SUM($S122:$U122))), 0),"Not required") -> 0 | W122: 1 | X122: 1 | Y122: 0 | Z122: 0 | AH122: 10775 | AI122: Batchoro | AJ122: 1 | AK122: 2 | AL122: 1
A123: =IF(INTRO!$E$33<>0,INTRO!$E$33, " ") -> Tchad | B123: Tandjile | C123: Bere | D123: 132797 | E123: =IF(INTRO!$E$48="","",ROUND($D123*INTRO!$E$48,0)) -> 19468 | F123: =IF(INTRO!$E$49="","",ROUND($D123*INTRO!$E$49,0)) -> 38418 | G123: =IF(INTRO!$E$50="","",ROUND($D123*INTRO!$E$50,0)) -> 69506 | H123: 1 | I123: 1 | J123: 1 | K123: 3 | L123: 0 | M123: =IF(INTRO!$E$37="Endemic",IF($H123>0,IF($H123=4,"Unknown",IF($H123=99,"Stopped",$D123)),0),"Not required") -> 132797 | N123: =IF(INTRO!$E$39="Endemic", IF($I123>0, IF($I123=4,"Unknown",IF($I123=99,"Stopped",$D123)), 0),"Not required") -> 132797 | O123: =IF(INTRO!$E$41="Endemic", IF($J123>1, IF($J123=4, "Unknown", IF($J123=99, "Surveillance", E123)), 0),"Not required") -> 0 | P123: =IF(INTRO!$E$41="Endemic", IF($J123>1, IF($J123=4, "Unknown", IF($J123=99, "Surveillance", F123)), 0),"Not required") -> 0 | Q123: =IF(INTRO!$E$41="Endemic", IF($J123>1, IF($J123=4, "Unknown", IF($J123=99, "Surveillance", ROUND(D123*INTRO!$E$51,0))), 0),"Not required") -> 0 | R123: =IF(INTRO!$E$41="Endemic", IF($J123>1, IF($J123=4, "Unknown", IF($J123=99, "Surveillance", SUM($O123:$Q123))), 0),"Not required") -> 0 | S123: 2234 | T123: 6001 | U123: 10858 | V123: =IF(INTRO!$E$43="Endemic", IF($K123>1, IF($K123=4, "Unknown", IF($K123=99, "Surveillance", SUM($S123:$U123))), 0),"Not required") -> 19093 | W123: 1 | X123: 1 | Y123: 0 | Z123: 1 | AH123: 10734 | AI123: Bere | AJ123: 3 | AK123: 3 | AL123: 1
A124: =IF(INTRO!$E$33<>0,INTRO!$E$33, " ") -> Tchad | B124: Tandjile | C124: Bologo | D124: 78092 | E124: =IF(INTRO!$E$48="","",ROUND($D124*INTRO!$E$48,0)) -> 11448 | F124: =IF(INTRO!$E$49="","",ROUND($D124*INTRO!$E$49,0)) -> 22592 | G124: =IF(INTRO!$E$50="","",ROUND($D124*INTRO!$E$50,0)) -> 40873 | H124: 1 | I124: 1 | J124: 1 | K124: 2 | L124: 0 | M124: =IF(INTRO!$E$37="Endemic",IF($H124>0,IF($H124=4,"Unknown",IF($H124=99,"Stopped",$D124)),0),"Not required") -> 78092 | N124: =IF(INTRO!$E$39="Endemic", IF($I124>0, IF($I124=4,"Unknown",IF($I124=99,"Stopped",$D124)), 0),"Not required") -> 78092 | O124: =IF(INTRO!$E$41="Endemic", IF($J124>1, IF($J124=4, "Unknown", IF($J124=99, "Surveillance", E124)), 0),"Not required") -> 0 | P124: =IF(INTRO!$E$41="Endemic", IF($J124>1, IF($J124=4, "Unknown", IF($J124=99, "Surveillance", F124)), 0),"Not required") -> 0 | Q124: =IF(INTRO!$E$41="Endemic", IF($J124>1, IF($J124=4, "Unknown", IF($J124=99, "Surveillance", ROUND(D124*INTRO!$E$51,0))), 0),"Not required") -> 0 | R124: =IF(INTRO!$E$41="Endemic", IF($J124>1, IF($J124=4, "Unknown", IF($J124=99, "Surveillance", SUM($O124:$Q124))), 0),"Not required") -> 0 | S124: 3283 | T124: 8816 | U124: 15950 | V124: =IF(INTRO!$E$43="Endemic", IF($K124>1, IF($K124=4, "Unknown", IF($K124=99, "Surveillance", SUM($S124:$U124))), 0),"Not required") -> 28049 | W124: 1 | X124: 1 | Y124: 0 | Z124: 1 | AH124: 10790 | AI124: Bologo | AJ124: 1 | AK124: 2 | AL124: 1
A125: =IF(INTRO!$E$33<>0,INTRO!$E$33, " ") -> Tchad | B125: Tandjile | C125: Dafra | D125: 70285 | E125: =IF(INTRO!$E$48="","",ROUND($D125*INTRO!$E$48,0)) -> 10304 | F125: =IF(INTRO!$E$49="","",ROUND($D125*INTRO!$E$49,0)) -> 20333 | G125: =IF(INTRO!$E$50="","",ROUND($D125*INTRO!$E$50,0)) -> 36787 | H125: 1 | I125: 1 | J125: 1 | K125: 1 | L125: 0 | M125: =IF(INTRO!$E$37="Endemic",IF($H125>0,IF($H125=4,"Unknown",IF($H125=99,"Stopped",$D125)),0),"Not required") -> 70285 | N125: =IF(INTRO!$E$39="Endemic", IF($I125>0, IF($I125=4,"Unknown",IF($I125=99,"Stopped",$D125)), 0),"Not required") -> 70285 | O125: =IF(INTRO!$E$41="Endemic", IF($J125>1, IF($J125=4, "Unknown", IF($J125=99, "Surveillance", E125)), 0),"Not required") -> 0 | P125: =IF(INTRO!$E$41="Endemic", IF($J125>1, IF($J125=4, "Unknown", IF($J125=99, "Surveillance", F125)), 0),"Not required") -> 0 | Q125: =IF(INTRO!$E$41="Endemic", IF($J125>1, IF($J125=4, "Unknown", IF($J125=99, "Surveillance", ROUND(D125*INTRO!$E$51,0))), 0),"Not required") -> 0 | R125: =IF(INTRO!$E$41="Endemic", IF($J125>1, IF($J125=4, "Unknown", IF($J125=99, "Surveillance", SUM($O125:$Q125))), 0),"Not required") -> 0 | S125: 0 | T125: 0 | U125: 0 | V125: =IF(INTRO!$E$43="Endemic", IF($K125>1, IF($K125=4, "Unknown", IF($K125=99, "Surveillance", SUM($S125:$U125))), 0),"Not required") -> 0 | W125: 1 | X125: 1 | Y125: 0 | Z125: 0 | AH125: 10759 | AI125: Dafra | AJ125: 1 | AK125: 2 | AL125: 0
A126: =IF(INTRO!$E$33<>0,INTRO!$E$33, " ") -> Tchad | B126: Tandjile | C126: Deressia | D126: 85034 | E126: =IF(INTRO!$E$48="","",ROUND($D126*INTRO!$E$48,0)) -> 12466 | F126: =IF(INTRO!$E$49="","",ROUND($D126*INTRO!$E$49,0)) -> 24600 | G126: =IF(INTRO!$E$50="","",ROUND($D126*INTRO!$E$50,0)) -> 44507 | H126: 1 | I126: 0 | J126: 1 | K126: 1 | L126: 0 | M126: =IF(INTRO!$E$37="Endemic",IF($H126>0,IF($H126=4,"Unknown",IF($H126=99,"Stopped",$D126)),0),"Not required") -> 85034 | N126: =IF(INTRO!$E$39="Endemic", IF($I126>0, IF($I126=4,"Unknown",IF($I126=99,"Stopped",$D126)), 0),"Not required") -> 0 | O126: =IF(INTRO!$E$41="Endemic", IF($J126>1, IF($J126=4, "Unknown", IF($J126=99, "Surveillance", E126)), 0),"Not required") -> 0 | P126: =IF(INTRO!$E$41="Endemic", IF($J126>1, IF($J126=4, "Unknown", IF($J126=99, "Surveillance", F126)), 0),"Not required") -> 0 | Q126: =IF(INTRO!$E$41="Endemic", IF($J126>1, IF($J126=4, "Unknown", IF($J126=99, "Surveillance", ROUND(D126*INTRO!$E$51,0))), 0),"Not required") -> 0 | R126: =IF(INTRO!$E$41="Endemic", IF($J126>1, IF($J126=4, "Unknown", IF($J126=99, "Surveillance", SUM($O126:$Q126))), 0),"Not required") -> 0 | S126: 0 | T126: 0 | U126: 0 | V126: =IF(INTRO!$E$43="Endemic", IF($K126>1, IF($K126=4, "Unknown", IF($K126=99, "Surveillance", SUM($S126:$U126))), 0),"Not required") -> 0 | W126: 1 | X126: 0 | Y126: 0 | Z126: 0 | AH126: 10782 | AI126: Deressia | AJ126: 1 | AK126: 3 | AL126: 1
A127: =IF(INTRO!$E$33<>0,INTRO!$E$33, " ") -> Tchad | B127: Tandjile | C127: Donamanga | D127: 118555 | E127: =IF(INTRO!$E$48="","",ROUND($D127*INTRO!$E$48,0)) -> 17380 | F127: =IF(INTRO!$E$49="","",ROUND($D127*INTRO!$E$49,0)) -> 34298 | G127: =IF(INTRO!$E$50="","",ROUND($D127*INTRO!$E$50,0)) -> 62052 | H127: 1 | I127: 0 | J127: 1 | K127: 3 | L127: 0 | M127: =IF(INTRO!$E$37="Endemic",IF($H127>0,IF($H127=4,"Unknown",IF($H127=99,"Stopped",$D127)),0),"Not required") -> 118555 | N127: =IF(INTRO!$E$39="Endemic", IF($I127>0, IF($I127=4,"Unknown",IF($I127=99,"Stopped",$D127)), 0),"Not required") -> 0 | O127: =IF(INTRO!$E$41="Endemic", IF($J127>1, IF($J127=4, "Unknown", IF($J127=99, "Surveillance", E127)), 0),"Not required") -> 0 | P127: =IF(INTRO!$E$41="Endemic", IF($J127>1, IF($J127=4, "Unknown", IF($J127=99, "Surveillance", F127)), 0),"Not required") -> 0 | Q127: =IF(INTRO!$E$41="Endemic", IF($J127>1, IF($J127=4, "Unknown", IF($J127=99, "Surveillance", ROUND(D127*INTRO!$E$51,0))), 0),"Not required") -> 0 | R127: =IF(INTRO!$E$41="Endemic", IF($J127>1, IF($J127=4, "Unknown", IF($J127=99, "Surveillance", SUM($O127:$Q127))), 0),"Not required") -> 0 | S127: 3432 | T127: 9214 | U127: 16669 | V127: =IF(INTRO!$E$43="Endemic", IF($K127>1, IF($K127=4, "Unknown", IF($K127=99, "Surveillance", SUM($S127:$U127))), 0),"Not required") -> 29315 | W127: 1 | X127: 0 | Y127: 0 | Z127: 1 | AH127: 10735 | AI127: Donamanga | AJ127: 3 | AK127: 2 | AL127: 1
A128: =IF(INTRO!$E$33<>0,INTRO!$E$33, " ") -> Tchad | B128: Tandjile | C128: Guidari | D128: 55748 | E128: =IF(INTRO!$E$48="","",ROUND($D128*INTRO!$E$48,0)) -> 8173 | F128: =IF(INTRO!$E$49="","",ROUND($D128*INTRO!$E$49,0)) -> 16128 | G128: =IF(INTRO!$E$50="","",ROUND($D128*INTRO!$E$50,0)) -> 29179 | H128: 1 | I128: 0 | J128: 1 | K128: 1 | L128: 0 | M128: =IF(INTRO!$E$37="Endemic",IF($H128>0,IF($H128=4,"Unknown",IF($H128=99,"Stopped",$D128)),0),"Not required") -> 55748 | N128: =IF(INTRO!$E$39="Endemic", IF($I128>0, IF($I128=4,"Unknown",IF($I128=99,"Stopped",$D128)), 0),"Not required") -> 0 | O128: =IF(INTRO!$E$41="Endemic", IF($J128>1, IF($J128=4, "Unknown", IF($J128=99, "Surveillance", E128)), 0),"Not required") -> 0 | P128: =IF(INTRO!$E$41="Endemic", IF($J128>1, IF($J128=4, "Unknown", IF($J128=99, "Surveillance", F128)), 0),"Not required") -> 0 | Q128: =IF(INTRO!$E$41="Endemic", IF($J128>1, IF($J128=4, "Unknown", IF($J128=99, "Surveillance", ROUND(D128*INTRO!$E$51,0))), 0),"Not required") -> 0 | R128: =IF(INTRO!$E$41="Endemic", IF($J128>1, IF($J128=4, "Unknown", IF($J128=99, "Surveillance", SUM($O128:$Q128))), 0),"Not required") -> 0 | S128: 0 | T128: 0 | U128: 0 | V128: =IF(INTRO!$E$43="Endemic", IF($K128>1, IF($K128=4, "Unknown", IF($K128=99, "Surveillance", SUM($S128:$U128))), 0),"Not required") -> 0 | W128: 1 | X128: 0 | Y128: 0 | Z128: 0 | AH128: 10776 | AI128: Guidari | AJ128: 1 | AK128: 2 | AL128: 0
A129: =IF(INTRO!$E$33<>0,INTRO!$E$33, " ") -> Tchad | B129: Tandjile | C129: Kelo | D129: 228288 | E129: =IF(INTRO!$E$48="","",ROUND($D129*INTRO!$E$48,0)) -> 33467 | F129: =IF(INTRO!$E$49="","",ROUND($D129*INTRO!$E$49,0)) -> 66044 | G129: =IF(INTRO!$E$50="","",ROUND($D129*INTRO!$E$50,0)) -> 119486 | H129: 1 | I129: 1 | J129: 1 | K129: 3 | L129: 0 | M129: =IF(INTRO!$E$37="Endemic",IF($H129>0,IF($H129=4,"Unknown",IF($H129=99,"Stopped",$D129)),0),"Not required") -> 228288 | N129: =IF(INTRO!$E$39="Endemic", IF($I129>0, IF($I129=4,"Unknown",IF($I129=99,"Stopped",$D129)), 0),"Not required") -> 228288 | O129: =IF(INTRO!$E$41="Endemic", IF($J129>1, IF($J129=4, "Unknown", IF($J129=99, "Surveillance", E129)), 0),"Not required") -> 0 | P129: =IF(INTRO!$E$41="Endemic", IF($J129>1, IF($J129=4, "Unknown", IF($J129=99, "Surveillance", F129)), 0),"Not required") -> 0 | Q129: =IF(INTRO!$E$41="Endemic", IF($J129>1, IF($J129=4, "Unknown", IF($J129=99, "Surveillance", ROUND(D129*INTRO!$E$51,0))), 0),"Not required") -> 0 | R129: =IF(INTRO!$E$41="Endemic", IF($J129>1, IF($J129=4, "Unknown", IF($J129=99, "Surveillance", SUM($O129:$Q129))), 0),"Not required") -> 0 | S129: 1705 | T129: 4577 | U129: 8282 | V129: =IF(INTRO!$E$43="Endemic", IF($K129>1, IF($K129=4, "Unknown", IF($K129=99, "Surveillance", SUM($S129:$U129))), 0),"Not required") -> 14564 | W129: 1 | X129: 1 | Y129: 0 | Z129: 1 | AH129: 10736 | AI129: Kelo | AJ129: 3 | AK129: 2 | AL129: 1
A130: =IF(INTRO!$E$33<>0,INTRO!$E$33, " ") -> Tchad | B130: Tandjile | C130: Kolon | D130: 87968 | E130: =IF(INTRO!$E$48="","",ROUND($D130*INTRO!$E$48,0)) -> 12896 | F130: =IF(INTRO!$E$49="","",ROUND($D130*INTRO!$E$49,0)) -> 25449 | G130: =IF(INTRO!$E$50="","",ROUND($D130*INTRO!$E$50,0)) -> 46042 | H130: 1 | I130: 1 | J130: 1 | K130: 1 | L130: 0 | M130: =IF(INTRO!$E$37="Endemic",IF($H130>0,IF($H130=4,"Unknown",IF($H130=99,"Stopped",$D130)),0),"Not required") -> 87968 | N130: =IF(INTRO!$E$39="Endemic", IF($I130>0, IF($I130=4,"Unknown",IF($I130=99,"Stopped",$D130)), 0),"Not required") -> 87968 | O130: =IF(INTRO!$E$41="Endemic", IF($J130>1, IF($J130=4, "Unknown", IF($J130=99, "Surveillance", E130)), 0),"Not required") -> 0 | P130: =IF(INTRO!$E$41="Endemic", IF($J130>1, IF($J130=4, "Unknown", IF($J130=99, "Surveillance", F130)), 0),"Not required") -> 0 | Q130: =IF(INTRO!$E$41="Endemic", IF($J130>1, IF($J130=4, "Unknown", IF($J130=99, "Surveillance", ROUND(D130*INTRO!$E$51,0))), 0),"Not required") -> 0 | R130: =IF(INTRO!$E$41="Endemic", IF($J130>1, IF($J130=4, "Unknown", IF($J130=99, "Surveillance", SUM($O130:$Q130))), 0),"Not required") -> 0 | S130: 0 | T130: 0 | U130: 0 | V130: =IF(INTRO!$E$43="Endemic", IF($K130>1, IF($K130=4, "Unknown", IF($K130=99, "Surveillance", SUM($S130:$U130))), 0),"Not required") -> 0 | W130: 1 | X130: 1 | Y130: 0 | Z130: 0 | AH130: 10777 | AI130: Kolon | AJ130: 1 | AK130: 3 | AL130: 1
A131: =IF(INTRO!$E$33<>0,INTRO!$E$33, " ") -> Tchad | B131: Tandjile | C131: Lai | D131: 165666 | E131: =IF(INTRO!$E$48="","",ROUND($D131*INTRO!$E$48,0)) -> 24287 | F131: =IF(INTRO!$E$49="","",ROUND($D131*INTRO!$E$49,0)) -> 47927 | G131: =IF(INTRO!$E$50="","",ROUND($D131*INTRO!$E$50,0)) -> 86710 | H131: 19 | I131: 0 | J131: 1 | K131: 3 | L131: 0 | M131: =IF(INTRO!$E$37="Endemic",IF($H131>0,IF($H131=4,"Unknown",IF($H131=99,"Stopped",$D131)),0),"Not required") -> 165666 | N131: =IF(INTRO!$E$39="Endemic", IF($I131>0, IF($I131=4,"Unknown",IF($I131=99,"Stopped",$D131)), 0),"Not required") -> 0 | O131: =IF(INTRO!$E$41="Endemic", IF($J131>1, IF($J131=4, "Unknown", IF($J131=99, "Surveillance", E131)), 0),"Not required") -> 0 | P131: =IF(INTRO!$E$41="Endemic", IF($J131>1, IF($J131=4, "Unknown", IF($J131=99, "Surveillance", F131)), 0),"Not required") -> 0 | Q131: =IF(INTRO!$E$41="Endemic", IF($J131>1, IF($J131=4, "Unknown", IF($J131=99, "Surveillance", ROUND(D131*INTRO!$E$51,0))), 0),"Not required") -> 0 | R131: =IF(INTRO!$E$41="Endemic", IF($J131>1, IF($J131=4, "Unknown", IF($J131=99, "Surveillance", SUM($O131:$Q131))), 0),"Not required") -> 0 | S131: 4378 | T131: 11755 | U131: 21267 | V131: =IF(INTRO!$E$43="Endemic", IF($K131>1, IF($K131=4, "Unknown", IF($K131=99, "Surveillance", SUM($S131:$U131))), 0),"Not required") -> 37400 | W131: 0 | X131: 0 | Y131: 0 | Z131: 1 | AA131: TAS | AH131: 10737 | AI131: Lai | AJ131: 3 | AK131: 2 | AL131: 1
A132: =IF(INTRO!$E$33<>0,INTRO!$E$33, " ") -> Tchad | B132: Tibesti | C132: Bardaï | D132: 30088 | E132: =IF(INTRO!$E$48="","",ROUND($D132*INTRO!$E$48,0)) -> 4411 | F132: =IF(INTRO!$E$49="","",ROUND($D132*INTRO!$E$49,0)) -> 8704 | G132: =IF(INTRO!$E$50="","",ROUND($D132*INTRO!$E$50,0)) -> 15748 | H132: 0 | I132: 0 | J132: 0 | K132: 0 | L132: 0 | M132: =IF(INTRO!$E$37="Endemic",IF($H132>0,IF($H132=4,"Unknown",IF($H132=99,"Stopped",$D132)),0),"Not required") -> 0 | N132: =IF(INTRO!$E$39="Endemic", IF($I132>0, IF($I132=4,"Unknown",IF($I132=99,"Stopped",$D132)), 0),"Not required") -> 0 | O132: =IF(INTRO!$E$41="Endemic", IF($J132>1, IF($J132=4, "Unknown", IF($J132=99, "Surveillance", E132)), 0),"Not required") -> 0 | P132: =IF(INTRO!$E$41="Endemic", IF($J132>1, IF($J132=4, "Unknown", IF($J132=99, "Surveillance", F132)), 0),"Not required") -> 0 | Q132: =IF(INTRO!$E$41="Endemic", IF($J132>1, IF($J132=4, "Unknown", IF($J132=99, "Surveillance", ROUND(D132*INTRO!$E$51,0))), 0),"Not required") -> 0 | R132: =IF(INTRO!$E$41="Endemic", IF($J132>1, IF($J132=4, "Unknown", IF($J132=99, "Surveillance", SUM($O132:$Q132))), 0),"Not required") -> 0 | S132: 0 | T132: 0 | U132: 0 | V132: =IF(INTRO!$E$43="Endemic", IF($K132>1, IF($K132=4, "Unknown", IF($K132=99, "Surveillance", SUM($S132:$U132))), 0),"Not required") -> 0 | W132: 0 | X132: 0 | Y132: 0 | Z132: 0 | AH132: 10738 | AI132: Bardaï | AJ132: 0 | AK132: 0 | AL132: 0
A133: =IF(INTRO!$E$33<>0,INTRO!$E$33, " ") -> Tchad | B133: Tibesti | C133: Zouar | D133: 12933 | E133: =IF(INTRO!$E$48="","",ROUND($D133*INTRO!$E$48,0)) -> 1896 | F133: =IF(INTRO!$E$49="","",ROUND($D133*INTRO!$E$49,0)) -> 3742 | G133: =IF(INTRO!$E$50="","",ROUND($D133*INTRO!$E$50,0)) -> 6769 | H133: 0 | I133: 0 | J133: 0 | K133: 1 | L133: 0 | M133: =IF(INTRO!$E$37="Endemic",IF($H133>0,IF($H133=4,"Unknown",IF($H133=99,"Stopped",$D133)),0),"Not required") -> 0 | N133: =IF(INTRO!$E$39="Endemic", IF($I133>0, IF($I133=4,"Unknown",IF($I133=99,"Stopped",$D133)), 0),"Not required") -> 0 | O133: =IF(INTRO!$E$41="Endemic", IF($J133>1, IF($J133=4, "Unknown", IF($J133=99, "Surveillance", E133)), 0),"Not required") -> 0 | P133: =IF(INTRO!$E$41="Endemic", IF($J133>1, IF($J133=4, "Unknown", IF($J133=99, "Surveillance", F133)), 0),"Not required") -> 0 | Q133: =IF(INTRO!$E$41="Endemic", IF($J133>1, IF($J133=4, "Unknown", IF($J133=99, "Surveillance", ROUND(D133*INTRO!$E$51,0))), 0),"Not required") -> 0 | R133: =IF(INTRO!$E$41="Endemic", IF($J133>1, IF($J133=4, "Unknown", IF($J133=99, "Surveillance", SUM($O133:$Q133))), 0),"Not required") -> 0 | S133: 0 | T133: 0 | U133: 0 | V133: =IF(INTRO!$E$43="Endemic", IF($K133>1, IF($K133=4, "Unknown", IF($K133=99, "Surveillance", SUM($S133:$U133))), 0),"Not required") -> 0 | W133: 0 | X133: 0 | Y133: 0 | Z133: 0 | AH133: 10760 | AI133: Zouar | AJ133: 1 | AK133: 0 | AL133: 0
A134: =IF(INTRO!$E$33<>0,INTRO!$E$33, " ") -> Tchad | B134: Wadi Fira | C134: amzoer | D134: 73211 | E134: =IF(INTRO!$E$48="","",ROUND($D134*INTRO!$E$48,0)) -> 10733 | F134: =IF(INTRO!$E$49="","",ROUND($D134*INTRO!$E$49,0)) -> 21180 | G134: =IF(INTRO!$E$50="","",ROUND($D134*INTRO!$E$50,0)) -> 38319 | H134: 0 | I134: 0 | J134: 1 | K134: 1 | L134: 0 | M134: =IF(INTRO!$E$37="Endemic",IF($H134>0,IF($H134=4,"Unknown",IF($H134=99,"Stopped",$D134)),0),"Not required") -> 0 | N134: =IF(INTRO!$E$39="Endemic", IF($I134>0, IF($I134=4,"Unknown",IF($I134=99,"Stopped",$D134)), 0),"Not required") -> 0 | O134: =IF(INTRO!$E$41="Endemic", IF($J134>1, IF($J134=4, "Unknown", IF($J134=99, "Surveillance", E134)), 0),"Not required") -> 0 | P134: =IF(INTRO!$E$41="Endemic", IF($J134>1, IF($J134=4, "Unknown", IF($J134=99, "Surveillance", F134)), 0),"Not required") -> 0 | Q134: =IF(INTRO!$E$41="Endemic", IF($J134>1, IF($J134=4, "Unknown", IF($J134=99, "Surveillance", ROUND(D134*INTRO!$E$51,0))), 0),"Not required") -> 0 | R134: =IF(INTRO!$E$41="Endemic", IF($J134>1, IF($J134=4, "Unknown", IF($J134=99, "Surveillance", SUM($O134:$Q134))), 0),"Not required") -> 0 | S134: 0 | T134: 0 | U134: 0 | V134: =IF(INTRO!$E$43="Endemic", IF($K134>1, IF($K134=4, "Unknown", IF($K134=99, "Surveillance", SUM($S134:$U134))), 0),"Not required") -> 0 | W134: 0 | X134: 0 | Y134: 0 | Z134: 0 | AH134: 10778 | AI134: amzoer | AJ134: 1 | AK134: 1 | AL134: 0
A135: =IF(INTRO!$E$33<>0,INTRO!$E$33, " ") -> Tchad | B135: Wadi Fira | C135: Arada | D135: 53077 | E135: =IF(INTRO!$E$48="","",ROUND($D135*INTRO!$E$48,0)) -> 7781 | F135: =IF(INTRO!$E$49="","",ROUND($D135*INTRO!$E$49,0)) -> 15355 | G135: =IF(INTRO!$E$50="","",ROUND($D135*INTRO!$E$50,0)) -> 27781 | H135: 0 | I135: 0 | J135: 1 | K135: 1 | L135: 0 | M135: =IF(INTRO!$E$37="Endemic",IF($H135>0,IF($H135=4,"Unknown",IF($H135=99,"Stopped",$D135)),0),"Not required") -> 0 | N135: =IF(INTRO!$E$39="Endemic", IF($I135>0, IF($I135=4,"Unknown",IF($I135=99,"Stopped",$D135)), 0),"Not required") -> 0 | O135: =IF(INTRO!$E$41="Endemic", IF($J135>1, IF($J135=4, "Unknown", IF($J135=99, "Surveillance", E135)), 0),"Not required") -> 0 | P135: =IF(INTRO!$E$41="Endemic", IF($J135>1, IF($J135=4, "Unknown", IF($J135=99, "Surveillance", F135)), 0),"Not required") -> 0 | Q135: =IF(INTRO!$E$41="Endemic", IF($J135>1, IF($J135=4, "Unknown", IF($J135=99, "Surveillance", ROUND(D135*INTRO!$E$51,0))), 0),"Not required") -> 0 | R135: =IF(INTRO!$E$41="Endemic", IF($J135>1, IF($J135=4, "Unknown", IF($J135=99, "Surveillance", SUM($O135:$Q135))), 0),"Not required") -> 0 | S135: 0 | T135: 0 | U135: 0 | V135: =IF(INTRO!$E$43="Endemic", IF($K135>1, IF($K135=4, "Unknown", IF($K135=99, "Surveillance", SUM($S135:$U135))), 0),"Not required") -> 0 | W135: 0 | X135: 0 | Y135: 0 | Z135: 0 | AH135: 10779 | AI135: Arada | AJ135: 1 | AK135: 1 | AL135: 0
A136: =IF(INTRO!$E$33<>0,INTRO!$E$33, " ") -> Tchad | B136: Wadi Fira | C136: Biltine | D136: 180648 | E136: =IF(INTRO!$E$48="","",ROUND($D136*INTRO!$E$48,0)) -> 26483 | F136: =IF(INTRO!$E$49="","",ROUND($D136*INTRO!$E$49,0)) -> 52261 | G136: =IF(INTRO!$E$50="","",ROUND($D136*INTRO!$E$50,0)) -> 94551 | H136: 0 | I136: 0 | J136: 1 | K136: 1 | L136: 0 | M136: =IF(INTRO!$E$37="Endemic",IF($H136>0,IF($H136=4,"Unknown",IF($H136=99,"Stopped",$D136)),0),"Not required") -> 0 | N136: =IF(INTRO!$E$39="Endemic", IF($I136>0, IF($I136=4,"Unknown",IF($I136=99,"Stopped",$D136)), 0),"Not required") -> 0 | O136: =IF(INTRO!$E$41="Endemic", IF($J136>1, IF($J136=4, "Unknown", IF($J136=99, "Surveillance", E136)), 0),"Not required") -> 0 | P136: =IF(INTRO!$E$41="Endemic", IF($J136>1, IF($J136=4, "Unknown", IF($J136=99, "Surveillance", F136)), 0),"Not required") -> 0 | Q136: =IF(INTRO!$E$41="Endemic", IF($J136>1, IF($J136=4, "Unknown", IF($J136=99, "Surveillance", ROUND(D136*INTRO!$E$51,0))), 0),"Not required") -> 0 | R136: =IF(INTRO!$E$41="Endemic", IF($J136>1, IF($J136=4, "Unknown", IF($J136=99, "Surveillance", SUM($O136:$Q136))), 0),"Not required") -> 0 | S136: 0 | T136: 0 | U136: 0 | V136: =IF(INTRO!$E$43="Endemic", IF($K136>1, IF($K136=4, "Unknown", IF($K136=99, "Surveillance", SUM($S136:$U136))), 0),"Not required") -> 0 | W136: 0 | X136: 0 | Y136: 0 | Z136: 0 | AH136: 10740 | AI136: Biltine | AJ136: 1 | AK136: 1 | AL136: 0
A137: =IF(INTRO!$E$33<>0,INTRO!$E$33, " ") -> Tchad | B137: Wadi Fira | C137: Guéréda | D137: 313088 | E137: =IF(INTRO!$E$48="","",ROUND($D137*INTRO!$E$48,0)) -> 45899 | F137: =IF(INTRO!$E$49="","",ROUND($D137*INTRO!$E$49,0)) -> 90576 | G137: =IF(INTRO!$E$50="","",ROUND($D137*INTRO!$E$50,0)) -> 163870 | H137: 0 | I137: 0 | J137: 1 | K137: 1 | L137: 0 | M137: =IF(INTRO!$E$37="Endemic",IF($H137>0,IF($H137=4,"Unknown",IF($H137=99,"Stopped",$D137)),0),"Not required") -> 0 | N137: =IF(INTRO!$E$39="Endemic", IF($I137>0, IF($I137=4,"Unknown",IF($I137=99,"Stopped",$D137)), 0),"Not required") -> 0 | O137: =IF(INTRO!$E$41="Endemic", IF($J137>1, IF($J137=4, "Unknown", IF($J137=99, "Surveillance", E137)), 0),"Not required") -> 0 | P137: =IF(INTRO!$E$41="Endemic", IF($J137>1, IF($J137=4, "Unknown", IF($J137=99, "Surveillance", F137)), 0),"Not required") -> 0 | Q137: =IF(INTRO!$E$41="Endemic", IF($J137>1, IF($J137=4, "Unknown", IF($J137=99, "Surveillance", ROUND(D137*INTRO!$E$51,0))), 0),"Not required") -> 0 | R137: =IF(INTRO!$E$41="Endemic", IF($J137>1, IF($J137=4, "Unknown", IF($J137=99, "Surveillance", SUM($O137:$Q137))), 0),"Not required") -> 0 | S137: 0 | T137: 0 | U137: 0 | V137: =IF(INTRO!$E$43="Endemic", IF($K137>1, IF($K137=4, "Unknown", IF($K137=99, "Surveillance", SUM($S137:$U137))), 0),"Not required") -> 0 | W137: 0 | X137: 0 | Y137: 0 | Z137: 0 | AH137: 10741 | AI137: Guéréda | AJ137: 1 | AK137: 1 | AL137: 0
A138: =IF(INTRO!$E$33<>0,INTRO!$E$33, " ") -> Tchad | B138: Wadi Fira | C138: Iriba | D138: 204170 | E138: =IF(INTRO!$E$48="","",ROUND($D138*INTRO!$E$48,0)) -> 29931 | F138: =IF(INTRO!$E$49="","",ROUND($D138*INTRO!$E$49,0)) -> 59066 | G138: =IF(INTRO!$E$50="","",ROUND($D138*INTRO!$E$50,0)) -> 106863 | H138: 0 | I138: 0 | J138: 1 | K138: 1 | L138: 0 | M138: =IF(INTRO!$E$37="Endemic",IF($H138>0,IF($H138=4,"Unknown",IF($H138=99,"Stopped",$D138)),0),"Not required") -> 0 | N138: =IF(INTRO!$E$39="Endemic", IF($I138>0, IF($I138=4,"Unknown",IF($I138=99,"Stopped",$D138)), 0),"Not required") -> 0 | O138: =IF(INTRO!$E$41="Endemic", IF($J138>1, IF($J138=4, "Unknown", IF($J138=99, "Surveillance", E138)), 0),"Not required") -> 0 | P138: =IF(INTRO!$E$41="Endemic", IF($J138>1, IF($J138=4, "Unknown", IF($J138=99, "Surveillance", F138)), 0),"Not required") -> 0 | Q138: =IF(INTRO!$E$41="Endemic", IF($J138>1, IF($J138=4, "Unknown", IF($J138=99, "Surveillance", ROUND(D138*INTRO!$E$51,0))), 0),"Not required") -> 0 | R138: =IF(INTRO!$E$41="Endemic", IF($J138>1, IF($J138=4, "Unknown", IF($J138=99, "Surveillance", SUM($O138:$Q138))), 0),"Not required") -> 0 | S138: 0 | T138: 0 | U138: 0 | V138: =IF(INTRO!$E$43="Endemic", IF($K138>1, IF($K138=4, "Unknown", IF($K138=99, "Surveillance", SUM($S138:$U138))), 0),"Not required") -> 0 | W138: 0 | X138: 0 | Y138: 0 | Z138: 0 | AH138: 10742 | AI138: Iriba | AJ138: 1 | AK138: 0 | AL138: 0
A139: =IF(INTRO!$E$33<>0,INTRO!$E$33, " ") -> Tchad | B139: Wadi Fira | C139: Matadjana | D139: 35237 | E139: =IF(INTRO!$E$48="","",ROUND($D139*INTRO!$E$48,0)) -> 5166 | F139: =IF(INTRO!$E$49="","",ROUND($D139*INTRO!$E$49,0)) -> 10194 | G139: =IF(INTRO!$E$50="","",ROUND($D139*INTRO!$E$50,0)) -> 18443 | H139: 0 | I139: 0 | J139: 1 | K139: 1 | L139: 0 | M139: =IF(INTRO!$E$37="Endemic",IF($H139>0,IF($H139=4,"Unknown",IF($H139=99,"Stopped",$D139)),0),"Not required") -> 0 | N139: =IF(INTRO!$E$39="Endemic", IF($I139>0, IF($I139=4,"Unknown",IF($I139=99,"Stopped",$D139)), 0),"Not required") -> 0 | O139: =IF(INTRO!$E$41="Endemic", IF($J139>1, IF($J139=4, "Unknown", IF($J139=99, "Surveillance", E139)), 0),"Not required") -> 0 | P139: =IF(INTRO!$E$41="Endemic", IF($J139>1, IF($J139=4, "Unknown", IF($J139=99, "Surveillance", F139)), 0),"Not required") -> 0 | Q139: =IF(INTRO!$E$41="Endemic", IF($J139>1, IF($J139=4, "Unknown", IF($J139=99, "Surveillance", ROUND(D139*INTRO!$E$51,0))), 0),"Not required") -> 0 | R139: =IF(INTRO!$E$41="Endemic", IF($J139>1, IF($J139=4, "Unknown", IF($J139=99, "Surveillance", SUM($O139:$Q139))), 0),"Not required") -> 0 | S139: 0 | T139: 0 | U139: 0 | V139: =IF(INTRO!$E$43="Endemic", IF($K139>1, IF($K139=4, "Unknown", IF($K139=99, "Surveillance", SUM($S139:$U139))), 0),"Not required") -> 0 | W139: 0 | X139: 0 | Y139: 0 | Z139: 0 | AH139: 10743 | AI139: Matadjana | AJ139: 1 | AK139: 1 | AL139: 0

Sheet ALB_MBD
A1: Albendazole (ALB) and Mebendazole (MBD) | I1: Select medicine for treatment of STH for each age group
A2: Administrative structure, eligible population by age group, treatment plan and information about tablets | I2: MBD | K2: ALB | L2: ALB
A4: TOTAL | F4: =SUBTOTAL(9,F$10:F$1010) -> 2654318 | G4: =SUBTOTAL(9,G$10:G$1010) -> 0 | J4: =SUBTOTAL(9,J$10:J$1010) -> 192350 | K4: 343696 | M4: 263605 | N4: 799651 | O4: 2654318 | P4: 0 | Q4: 2654318 | R4: 607301 | S4: 0 | T4: 607301 | U4: 192350 | V4: 0 | W4: 192350
A6: Country administrative structure | D6: Treatment plan | F6: People targeted by PELF with ALB | G6: Loa endemic areas | I6: Target population for STH | O6: Albendazole (ALB) | U6: Mebendazole (MBD)
A7: Country | B7: Province/State | C7: District | D7: LF | E7: STH | G7: Population | H7: Rounds planned | I7: PreSAC | K7: SAC | L7: WRA | N7: Total | O7: Total required | P7: Remaining in stock (LF) | Q7: Tablets to be procured (LF) | R7: Total required | S7: Remaining in stock (STH) | T7: Tablets to be procured (STH) | U7: Total required | V7: Remaining in stock | W7: Tablets to be procured
I8: Rounds | J8: People | K8: People | L8: Rounds | M8: People
A10: =IF(AND(INTRO!$E$37="Non-endemic",INTRO!$E$41="Non-endemic")," ",IF(COUNTRY_INFO!A10=0," ",COUNTRY_INFO!A10)) -> Tchad | B10: =IF(AND(INTRO!$E$37="Non-endemic",INTRO!$E$41="Non-endemic")," ",IF(COUNTRY_INFO!B10=0," ",COUNTRY_INFO!B10)) -> Bahr El Gazel | C10: =IF(AND(INTRO!$E$37="Non-endemic",INTRO!$E$41="Non-endemic")," ",IF(COUNTRY_INFO!C10=0," ",COUNTRY_INFO!C10)) -> Chadra | D10: =IF(AND(INTRO!$E$37="Non-endemic",INTRO!$E$41="Non-endemic"),0,COUNTRY_INFO!W10) -> 0 | E10: =IF(AND(INTRO!$E$37="Non-endemic",INTRO!$E$41="Non-endemic"),0,COUNTRY_INFO!Y10) -> 1 | F10: =IF($D10=1,IVM!G10,0) -> 0 | G10: =IF($D10=0, " ", IF(COUNTRY_INFO!$H10=1, IF(COUNTRY_INFO!$L10=1, 0," ")," ")) ->  | J10: =IF(OR(COUNTRY_INFO!O10="Unknown",COUNTRY_INFO!O10="Surveillance",COUNTRY_INFO!O10="Not required",COUNTRY_INFO!O10=0),0,IF(INTRO!$E$39="Non-endemic",IF(AND($E10<>0,$I10=""),IF($F10=0,COUNTRY_INFO!O10*$E10,COUNTRY_INFO!O10*($E10-$D10)),IF(AND($E10<>0,$I10<>0),IF($F10=0,COUNTRY_INFO!O10*$I10,COUNTRY_INFO!O10*($I10-$D10)),0)),IF($I10="",COUNTRY_INFO!O10*$E10,COUNTRY_INFO!O10*$I10))) -> 15820 | K10: =MAX(0,IF(OR(COUNTRY_INFO!P10="Unknown",COUNTRY_INFO!P10="Surveillance",COUNTRY_INFO!P10="Not required",COUNTRY_INFO!P10=0),0,IF($E10<>0,IF($D10=0,COUNTRY_INFO!P10*$E10,COUNTRY_INFO!P10*$E10-($F10*COUNTRY_INFO!$P10/(COUNTRY_INFO!$F10+COUNTRY_INFO!$G10)+IF($G10=" ",0,COUNTRY_INFO!$P10/(COUNTRY_INFO!$F10+COUNTRY_INFO!$G10)*$G10*$H10))),0))) -> 31219 | M10: =MAX(0,IF(OR(COUNTRY_INFO!Q10="Unknown",COUNTRY_INFO!Q10="Surveillance",COUNTRY_INFO!Q10="Not required",COUNTRY_INFO!Q10=0),0,IF($E10<>0,IF($D10=0,COUNTRY_INFO!Q10*MIN($E10,$L10),COUNTRY_INFO!Q10*MIN($E10,$L10)-($F10*COUNTRY_INFO!$Q10/(COUNTRY_INFO!$F10+COUNTRY_INFO!$G10)+IF($G10=" ",0,COUNTRY_INFO!$Q10/(COUNTRY_INFO!$F10+COUNTRY_INFO!$G10)*$G10*$H10))),0))) -> 23944 | N10: =ROUND($J10,0)+ROUND($K10,0)+ROUND($M10,0) -> 70983 | O10: =$F10+IF(OR(G10=0,G10=" "),0,G10*H10) -> 0 | Q10: =IF($O10>$P10, $O10-$P10,0) -> 0 | R10: =ROUND((IF($I$2="ALB",$J10,0)+IF($K$2="ALB",$K10,0)+IF($L$2="ALB",$M10,0)),0) -> 55163 | T10: =IF($R10>$S10,$R10-$S10,0) -> 55163 | U10: =ROUND((IF($I$2="MBD",$J10,0)+IF($K$2="MBD",$K10,0)+IF($L$2="MBD",$M10,0)),0) -> 15820 | W10: =IF($U10>$V10,$U10-$V10,0) -> 15820
A11: =IF(AND(INTRO!$E$37="Non-endemic",INTRO!$E$41="Non-endemic")," ",IF(COUNTRY_INFO!A11=0," ",COUNTRY_INFO!A11)) -> Tchad | B11: =IF(AND(INTRO!$E$37="Non-endemic",INTRO!$E$41="Non-endemic")," ",IF(COUNTRY_INFO!B11=0," ",COUNTRY_INFO!B11)) -> Bahr El Gazel | C11: =IF(AND(INTRO!$E$37="Non-endemic",INTRO!$E$41="Non-endemic")," ",IF(COUNTRY_INFO!C11=0," ",COUNTRY_INFO!C11)) -> Michemire | D11: =IF(AND(INTRO!$E$37="Non-endemic",INTRO!$E$41="Non-endemic"),0,COUNTRY_INFO!W11) -> 0 | E11: =IF(AND(INTRO!$E$37="Non-endemic",INTRO!$E$41="Non-endemic"),0,COUNTRY_INFO!Y11) -> 0 | F11: =IF($D11=1,IVM!G11,0) -> 0 | G11: =IF($D11=0, " ", IF(COUNTRY_INFO!$H11=1, IF(COUNTRY_INFO!$L11=1, 0," ")," ")) ->  | J11: =IF(OR(COUNTRY_INFO!O11="Unknown",COUNTRY_INFO!O11="Surveillance",COUNTRY_INFO!O11="Not required",COUNTRY_INFO!O11=0),0,IF(INTRO!$E$39="Non-endemic",IF(AND($E11<>0,$I11=""),IF($F11=0,COUNTRY_INFO!O11*$E11,COUNTRY_INFO!O11*($E11-$D11)),IF(AND($E11<>0,$I11<>0),IF($F11=0,COUNTRY_INFO!O11*$I11,COUNTRY_INFO!O11*($I11-$D11)),0)),IF($I11="",COUNTRY_INFO!O11*$E11,COUNTRY_INFO!O11*$I11))) -> 0 | K11: =MAX(0,IF(OR(COUNTRY_INFO!P11="Unknown",COUNTRY_INFO!P11="Surveillance",COUNTRY_INFO!P11="Not required",COUNTRY_INFO!P11=0),0,IF($E11<>0,IF($D11=0,COUNTRY_INFO!P11*$E11,COUNTRY_INFO!P11*$E11-($F11*COUNTRY_INFO!$P11/(COUNTRY_INFO!$F11+COUNTRY_INFO!$G11)+IF($G11=" ",0,COUNTRY_INFO!$P11/(COUNTRY_INFO!$F11+COUNTRY_INFO!$G11)*$G11*$H11))),0))) -> 0 | M11: =MAX(0,IF(OR(COUNTRY_INFO!Q11="Unknown",COUNTRY_INFO!Q11="Surveillance",COUNTRY_INFO!Q11="Not required",COUNTRY_INFO!Q11=0),0,IF($E11<>0,IF($D11=0,COUNTRY_INFO!Q11*MIN($E11,$L11),COUNTRY_INFO!Q11*MIN($E11,$L11)-($F11*COUNTRY_INFO!$Q11/(COUNTRY_INFO!$F11+COUNTRY_INFO!$G11)+IF($G11=" ",0,COUNTRY_INFO!$Q11/(COUNTRY_INFO!$F11+COUNTRY_INFO!$G11)*$G11*$H11))),0))) -> 0 | N11: 0 | O11: =$F11+IF(OR(G11=0,G11=" "),0,G11*H11) -> 0 | Q11: 0 | R11: 0 | T11: 0 | U11: 0 | W11: 0
A12: =IF(AND(INTRO!$E$37="Non-endemic",INTRO!$E$41="Non-endemic")," ",IF(COUNTRY_INFO!A12=0," ",COUNTRY_INFO!A12)) -> Tchad | B12: =IF(AND(INTRO!$E$37="Non-endemic",INTRO!$E$41="Non-endemic")," ",IF(COUNTRY_INFO!B12=0," ",COUNTRY_INFO!B12)) -> Bahr El Gazel | C12: =IF(AND(INTRO!$E$37="Non-endemic",INTRO!$E$41="Non-endemic")," ",IF(COUNTRY_INFO!C12=0," ",COUNTRY_INFO!C12)) -> Moussoro | D12: =IF(AND(INTRO!$E$37="Non-endemic",INTRO!$E$41="Non-endemic"),0,COUNTRY_INFO!W12) -> 0 | E12: =IF(AND(INTRO!$E$37="Non-endemic",INTRO!$E$41="Non-endemic"),0,COUNTRY_INFO!Y12) -> 0 | F12: =IF($D12=1,IVM!G12,0) -> 0 | G12: =IF($D12=0, " ", IF(COUNTRY_INFO!$H12=1, IF(COUNTRY_INFO!$L12=1, 0," ")," ")) ->  | J12: =IF(OR(COUNTRY_INFO!O12="Unknown",COUNTRY_INFO!O12="Surveillance",COUNTRY_INFO!O12="Not required",COUNTRY_INFO!O12=0),0,IF(INTRO!$E$39="Non-endemic",IF(AND($E12<>0,$I12=""),IF($F12=0,COUNTRY_INFO!O12*$E12,COUNTRY_INFO!O12*($E12-$D12)),IF(AND($E12<>0,$I12<>0),IF($F12=0,COUNTRY_INFO!O12*$I12,COUNTRY_INFO!O12*($I12-$D12)),0)),IF($I12="",COUNTRY_INFO!O12*$E12,COUNTRY_INFO!O12*$I12))) -> 0 | K12: =MAX(0,IF(OR(COUNTRY_INFO!P12="Unknown",COUNTRY_INFO!P12="Surveillance",COUNTRY_INFO!P12="Not required",COUNTRY_INFO!P12=0),0,IF($E12<>0,IF($D12=0,COUNTRY_INFO!P12*$E12,COUNTRY_INFO!P12*$E12-($F12*COUNTRY_INFO!$P12/(COUNTRY_INFO!$F12+COUNTRY_INFO!$G12)+IF($G12=" ",0,COUNTRY_INFO!$P12/(COUNTRY_INFO!$F12+COUNTRY_INFO!$G12)*$G12*$H12))),0))) -> 0 | M12: =MAX(0,IF(OR(COUNTRY_INFO!Q12="Unknown",COUNTRY_INFO!Q12="Surveillance",COUNTRY_INFO!Q12="Not required",COUNTRY_INFO!Q12=0),0,IF($E12<>0,IF($D12=0,COUNTRY_INFO!Q12*MIN($E12,$L12),COUNTRY_INFO!Q12*MIN($E12,$L12)-($F12*COUNTRY_INFO!$Q12/(COUNTRY_INFO!$F12+COUNTRY_INFO!$G12)+IF($G12=" ",0,COUNTRY_INFO!$Q12/(COUNTRY_INFO!$F12+COUNTRY_INFO!$G12)*$G12*$H12))),0))) -> 0 | N12: 0 | O12: 0 | Q12: 0 | R12: 0 | T12: 0 | U12: 0 | W12: 0
A13: =IF(AND(INTRO!$E$37="Non-endemic",INTRO!$E$41="Non-endemic")," ",IF(COUNTRY_INFO!A13=0," ",COUNTRY_INFO!A13)) -> Tchad | B13: =IF(AND(INTRO!$E$37="Non-endemic",INTRO!$E$41="Non-endemic")," ",IF(COUNTRY_INFO!B13=0," ",COUNTRY_INFO!B13)) -> Bahr El Gazel | C13: =IF(AND(INTRO!$E$37="Non-endemic",INTRO!$E$41="Non-endemic")," ",IF(COUNTRY_INFO!C13=0," ",COUNTRY_INFO!C13)) -> Salal | D13: =IF(AND(INTRO!$E$37="Non-endemic",INTRO!$E$41="Non-endemic"),0,COUNTRY_INFO!W13) -> 0 | E13: =IF(AND(INTRO!$E$37="Non-endemic",INTRO!$E$41="Non-endemic"),0,COUNTRY_INFO!Y13) -> 0 | F13: =IF($D13=1,IVM!G13,0) -> 0 | G13: =IF($D13=0, " ", IF(COUNTRY_INFO!$H13=1, IF(COUNTRY_INFO!$L13=1, 0," ")," ")) ->  | J13: =IF(OR(COUNTRY_INFO!O13="Unknown",COUNTRY_INFO!O13="Surveillance",COUNTRY_INFO!O13="Not required",COUNTRY_INFO!O13=0),0,IF(INTRO!$E$39="Non-endemic",IF(AND($E13<>0,$I13=""),IF($F13=0,COUNTRY_INFO!O13*$E13,COUNTRY_INFO!O13*($E13-$D13)),IF(AND($E13<>0,$I13<>0),IF($F13=0,COUNTRY_INFO!O13*$I13,COUNTRY_INFO!O13*($I13-$D13)),0)),IF($I13="",COUNTRY_INFO!O13*$E13,COUNTRY_INFO!O13*$I13))) -> 0 | K13: =MAX(0,IF(OR(COUNTRY_INFO!P13="Unknown",COUNTRY_INFO!P13="Surveillance",COUNTRY_INFO!P13="Not required",COUNTRY_INFO!P13=0),0,IF($E13<>0,IF($D13=0,COUNTRY_INFO!P13*$E13,COUNTRY_INFO!P13*$E13-($F13*COUNTRY_INFO!$P13/(COUNTRY_INFO!$F13+COUNTRY_INFO!$G13)+IF($G13=" ",0,COUNTRY_INFO!$P13/(COUNTRY_INFO!$F13+COUNTRY_INFO!$G13)*$G13*$H13))),0))) -> 0 | M13: =MAX(0,IF(OR(COUNTRY_INFO!Q13="Unknown",COUNTRY_INFO!Q13="Surveillance",COUNTRY_INFO!Q13="Not required",COUNTRY_INFO!Q13=0),0,IF($E13<>0,IF($D13=0,COUNTRY_INFO!Q13*MIN($E13,$L13),COUNTRY_INFO!Q13*MIN($E13,$L13)-($F13*COUNTRY_INFO!$Q13/(COUNTRY_INFO!$F13+COUNTRY_INFO!$G13)+IF($G13=" ",0,COUNTRY_INFO!$Q13/(COUNTRY_INFO!$F13+COUNTRY_INFO!$G13)*$G13*$H13))),0))) -> 0 | N13: 0 | O13: 0 | Q13: 0 | R13: 0 | T13: 0 | U13: 0 | W13: 0
A14: =IF(AND(INTRO!$E$37="Non-endemic",INTRO!$E$41="Non-endemic")," ",IF(COUNTRY_INFO!A14=0," ",COUNTRY_INFO!A14)) -> Tchad | B14: =IF(AND(INTRO!$E$37="Non-endemic",INTRO!$E$41="Non-endemic")," ",IF(COUNTRY_INFO!B14=0," ",COUNTRY_INFO!B14)) -> Batha | C14: =IF(AND(INTRO!$E$37="Non-endemic",INTRO!$E$41="Non-endemic")," ",IF(COUNTRY_INFO!C14=0," ",COUNTRY_INFO!C14)) -> Alifa | D14: =IF(AND(INTRO!$E$37="Non-endemic",INTRO!$E$41="Non-endemic"),0,COUNTRY_INFO!W14) -> 0 | E14: =IF(AND(INTRO!$E$37="Non-endemic",INTRO!$E$41="Non-endemic"),0,COUNTRY_INFO!Y14) -> 0 | F14: =IF($D14=1,IVM!G14,0) -> 0 | G14: =IF($D14=0, " ", IF(COUNTRY_INFO!$H14=1, IF(COUNTRY_INFO!$L14=1, 0," ")," ")) ->  | J14: =IF(OR(COUNTRY_INFO!O14="Unknown",COUNTRY_INFO!O14="Surveillance",COUNTRY_INFO!O14="Not required",COUNTRY_INFO!O14=0),0,IF(INTRO!$E$39="Non-endemic",IF(AND($E14<>0,$I14=""),IF($F14=0,COUNTRY_INFO!O14*$E14,COUNTRY_INFO!O14*($E14-$D14)),IF(AND($E14<>0,$I14<>0),IF($F14=0,COUNTRY_INFO!O14*$I14,COUNTRY_INFO!O14*($I14-$D14)),0)),IF($I14="",COUNTRY_INFO!O14*$E14,COUNTRY_INFO!O14*$I14))) -> 0 | K14: =MAX(0,IF(OR(COUNTRY_INFO!P14="Unknown",COUNTRY_INFO!P14="Surveillance",COUNTRY_INFO!P14="Not required",COUNTRY_INFO!P14=0),0,IF($E14<>0,IF($D14=0,COUNTRY_INFO!P14*$E14,COUNTRY_INFO!P14*$E14-($F14*COUNTRY_INFO!$P14/(COUNTRY_INFO!$F14+COUNTRY_INFO!$G14)+IF($G14=" ",0,COUNTRY_INFO!$P14/(COUNTRY_INFO!$F14+COUNTRY_INFO!$G14)*$G14*$H14))),0))) -> 0 | M14: =MAX(0,IF(OR(COUNTRY_INFO!Q14="Unknown",COUNTRY_INFO!Q14="Surveillance",COUNTRY_INFO!Q14="Not required",COUNTRY_INFO!Q14=0),0,IF($E14<>0,IF($D14=0,COUNTRY_INFO!Q14*MIN($E14,$L14),COUNTRY_INFO!Q14*MIN($E14,$L14)-($F14*COUNTRY_INFO!$Q14/(COUNTRY_INFO!$F14+COUNTRY_INFO!$G14)+IF($G14=" ",0,COUNTRY_INFO!$Q14/(COUNTRY_INFO!$F14+COUNTRY_INFO!$G14)*$G14*$H14))),0))) -> 0 | N14: 0 | O14: 0 | Q14: 0 | R14: 0 | T14: 0 | U14: 0 | W14: 0
A15: =IF(AND(INTRO!$E$37="Non-endemic",INTRO!$E$41="Non-endemic")," ",IF(COUNTRY_INFO!A15=0," ",COUNTRY_INFO!A15)) -> Tchad | B15: =IF(AND(INTRO!$E$37="Non-endemic",INTRO!$E$41="Non-endemic")," ",IF(COUNTRY_INFO!B15=0," ",COUNTRY_INFO!B15)) -> Batha | C15: =IF(AND(INTRO!$E$37="Non-endemic",INTRO!$E$41="Non-endemic")," ",IF(COUNTRY_INFO!C15=0," ",COUNTRY_INFO!C15)) -> Assinet | D15: =IF(AND(INTRO!$E$37="Non-endemic",INTRO!$E$41="Non-endemic"),0,COUNTRY_INFO!W15) -> 0 | E15: =IF(AND(INTRO!$E$37="Non-endemic",INTRO!$E$41="Non-endemic"),0,COUNTRY_INFO!Y15) -> 0 | F15: =IF($D15=1,IVM!G15,0) -> 0 | G15: =IF($D15=0, " ", IF(COUNTRY_INFO!$H15=1, IF(COUNTRY_INFO!$L15=1, 0," ")," ")) ->  | J15: =IF(OR(COUNTRY_INFO!O15="Unknown",COUNTRY_INFO!O15="Surveillance",COUNTRY_INFO!O15="Not required",COUNTRY_INFO!O15=0),0,IF(INTRO!$E$39="Non-endemic",IF(AND($E15<>0,$I15=""),IF($F15=0,COUNTRY_INFO!O15*$E15,COUNTRY_INFO!O15*($E15-$D15)),IF(AND($E15<>0,$I15<>0),IF($F15=0,COUNTRY_INFO!O15*$I15,COUNTRY_INFO!O15*($I15-$D15)),0)),IF($I15="",COUNTRY_INFO!O15*$E15,COUNTRY_INFO!O15*$I15))) -> 0 | K15: =MAX(0,IF(OR(COUNTRY_INFO!P15="Unknown",COUNTRY_INFO!P15="Surveillance",COUNTRY_INFO!P15="Not required",COUNTRY_INFO!P15=0),0,IF($E15<>0,IF($D15=0,COUNTRY_INFO!P15*$E15,COUNTRY_INFO!P15*$E15-($F15*COUNTRY_INFO!$P15/(COUNTRY_INFO!$F15+COUNTRY_INFO!$G15)+IF($G15=" ",0,COUNTRY_INFO!$P15/(COUNTRY_INFO!$F15+COUNTRY_INFO!$G15)*$G15*$H15))),0))) -> 0 | M15: =MAX(0,IF(OR(COUNTRY_INFO!Q15="Unknown",COUNTRY_INFO!Q15="Surveillance",COUNTRY_INFO!Q15="Not required",COUNTRY_INFO!Q15=0),0,IF($E15<>0,IF($D15=0,COUNTRY_INFO!Q15*MIN($E15,$L15),COUNTRY_INFO!Q15*MIN($E15,$L15)-($F15*COUNTRY_INFO!$Q15/(COUNTRY_INFO!$F15+COUNTRY_INFO!$G15)+IF($G15=" ",0,COUNTRY_INFO!$Q15/(COUNTRY_INFO!$F15+COUNTRY_INFO!$G15)*$G15*$H15))),0))) -> 0 | N15: 0 | O15: 0 | Q15: 0 | R15: 0 | T15: 0 | U15: 0 | W15: 0
A16: =IF(AND(INTRO!$E$37="Non-endemic",INTRO!$E$41="Non-endemic")," ",IF(COUNTRY_INFO!A16=0," ",COUNTRY_INFO!A16)) -> Tchad | B16: =IF(AND(INTRO!$E$37="Non-endemic",INTRO!$E$41="Non-endemic")," ",IF(COUNTRY_INFO!B16=0," ",COUNTRY_INFO!B16)) -> Batha | C16: =IF(AND(INTRO!$E$37="Non-endemic",INTRO!$E$41="Non-endemic")," ",IF(COUNTRY_INFO!C16=0," ",COUNTRY_INFO!C16)) -> Ati | D16: =IF(AND(INTRO!$E$37="Non-endemic",INTRO!$E$41="Non-endemic"),0,COUNTRY_INFO!W16) -> 0 | E16: =IF(AND(INTRO!$E$37="Non-endemic",INTRO!$E$41="Non-endemic"),0,COUNTRY_INFO!Y16) -> 0 | F16: =IF($D16=1,IVM!G16,0) -> 0 | G16: =IF($D16=0, " ", IF(COUNTRY_INFO!$H16=1, IF(COUNTRY_INFO!$L16=1, 0," ")," ")) ->  | J16: =IF(OR(COUNTRY_INFO!O16="Unknown",COUNTRY_INFO!O16="Surveillance",COUNTRY_INFO!O16="Not required",COUNTRY_INFO!O16=0),0,IF(INTRO!$E$39="Non-endemic",IF(AND($E16<>0,$I16=""),IF($F16=0,COUNTRY_INFO!O16*$E16,COUNTRY_INFO!O16*($E16-$D16)),IF(AND($E16<>0,$I16<>0),IF($F16=0,COUNTRY_INFO!O16*$I16,COUNTRY_INFO!O16*($I16-$D16)),0)),IF($I16="",COUNTRY_INFO!O16*$E16,COUNTRY_INFO!O16*$I16))) -> 0 | K16: =MAX(0,IF(OR(COUNTRY_INFO!P16="Unknown",COUNTRY_INFO!P16="Surveillance",COUNTRY_INFO!P16="Not required",COUNTRY_INFO!P16=0),0,IF($E16<>0,IF($D16=0,COUNTRY_INFO!P16*$E16,COUNTRY_INFO!P16*$E16-($F16*COUNTRY_INFO!$P16/(COUNTRY_INFO!$F16+COUNTRY_INFO!$G16)+IF($G16=" ",0,COUNTRY_INFO!$P16/(COUNTRY_INFO!$F16+COUNTRY_INFO!$G16)*$G16*$H16))),0))) -> 0 | M16: =MAX(0,IF(OR(COUNTRY_INFO!Q16="Unknown",COUNTRY_INFO!Q16="Surveillance",COUNTRY_INFO!Q16="Not required",COUNTRY_INFO!Q16=0),0,IF($E16<>0,IF($D16=0,COUNTRY_INFO!Q16*MIN($E16,$L16),COUNTRY_INFO!Q16*MIN($E16,$L16)-($F16*COUNTRY_INFO!$Q16/(COUNTRY_INFO!$F16+COUNTRY_INFO!$G16)+IF($G16=" ",0,COUNTRY_INFO!$Q16/(COUNTRY_INFO!$F16+COUNTRY_INFO!$G16)*$G16*$H16))),0))) -> 0 | N16: 0 | O16: 0 | Q16: 0 | R16: 0 | T16: 0 | U16: 0 | W16: 0
A17: =IF(AND(INTRO!$E$37="Non-endemic",INTRO!$E$41="Non-endemic")," ",IF(COUNTRY_INFO!A17=0," ",COUNTRY_INFO!A17)) -> Tchad | B17: =IF(AND(INTRO!$E$37="Non-endemic",INTRO!$E$41="Non-endemic")," ",IF(COUNTRY_INFO!B17=0," ",COUNTRY_INFO!B17)) -> Batha | C17: =IF(AND(INTRO!$E$37="Non-endemic",INTRO!$E$41="Non-endemic")," ",IF(COUNTRY_INFO!C17=0," ",COUNTRY_INFO!C17)) -> Djedda | D17: =IF(AND(INTRO!$E$37="Non-endemic",INTRO!$E$41="Non-endemic"),0,COUNTRY_INFO!W17) -> 0 | E17: =IF(AND(INTRO!$E$37="Non-endemic",INTRO!$E$41="Non-endemic"),0,COUNTRY_INFO!Y17) -> 0 | F17: =IF($D17=1,IVM!G17,0) -> 0 | G17: =IF($D17=0, " ", IF(COUNTRY_INFO!$H17=1, IF(COUNTRY_INFO!$L17=1, 0," ")," ")) ->  | J17: =IF(OR(COUNTRY_INFO!O17="Unknown",COUNTRY_INFO!O17="Surveillance",COUNTRY_INFO!O17="Not required",COUNTRY_INFO!O17=0),0,IF(INTRO!$E$39="Non-endemic",IF(AND($E17<>0,$I17=""),IF($F17=0,COUNTRY_INFO!O17*$E17,COUNTRY_INFO!O17*($E17-$D17)),IF(AND($E17<>0,$I17<>0),IF($F17=0,COUNTRY_INFO!O17*$I17,COUNTRY_INFO!O17*($I17-$D17)),0)),IF($I17="",COUNTRY_INFO!O17*$E17,COUNTRY_INFO!O17*$I17))) -> 0 | K17: =MAX(0,IF(OR(COUNTRY_INFO!P17="Unknown",COUNTRY_INFO!P17="Surveillance",COUNTRY_INFO!P17="Not required",COUNTRY_INFO!P17=0),0,IF($E17<>0,IF($D17=0,COUNTRY_INFO!P17*$E17,COUNTRY_INFO!P17*$E17-($F17*COUNTRY_INFO!$P17/(COUNTRY_INFO!$F17+COUNTRY_INFO!$G17)+IF($G17=" ",0,COUNTRY_INFO!$P17/(COUNTRY_INFO!$F17+COUNTRY_INFO!$G17)*$G17*$H17))),0))) -> 0 | M17: =MAX(0,IF(OR(COUNTRY_INFO!Q17="Unknown",COUNTRY_INFO!Q17="Surveillance",COUNTRY_INFO!Q17="Not required",COUNTRY_INFO!Q17=0),0,IF($E17<>0,IF($D17=0,COUNTRY_INFO!Q17*MIN($E17,$L17),COUNTRY_INFO!Q17*MIN($E17,$L17)-($F17*COUNTRY_INFO!$Q17/(COUNTRY_INFO!$F17+COUNTRY_INFO!$G17)+IF($G17=" ",0,COUNTRY_INFO!$Q17/(COUNTRY_INFO!$F17+COUNTRY_INFO!$G17)*$G17*$H17))),0))) -> 0 | N17: 0 | O17: 0 | Q17: 0 | R17: 0 | T17: 0 | U17: 0 | W17: 0
A18: =IF(AND(INTRO!$E$37="Non-endemic",INTRO!$E$41="Non-endemic")," ",IF(COUNTRY_INFO!A18=0," ",COUNTRY_INFO!A18)) -> Tchad | B18: =IF(AND(INTRO!$E$37="Non-endemic",INTRO!$E$41="Non-endemic")," ",IF(COUNTRY_INFO!B18=0," ",COUNTRY_INFO!B18)) -> Batha | C18: =IF(AND(INTRO!$E$37="Non-endemic",INTRO!$E$41="Non-endemic")," ",IF(COUNTRY_INFO!C18=0," ",COUNTRY_INFO!C18)) -> Koundjourou | D18: =IF(AND(INTRO!$E$37="Non-endemic",INTRO!$E$41="Non-endemic"),0,COUNTRY_INFO!W18) -> 0 | E18: =IF(AND(INTRO!$E$37="Non-endemic",INTRO!$E$41="Non-endemic"),0,COUNTRY_INFO!Y18) -> 0 | F18: =IF($D18=1,IVM!G18,0) -> 0 | G18: =IF($D18=0, " ", IF(COUNTRY_INFO!$H18=1, IF(COUNTRY_INFO!$L18=1, 0," ")," ")) ->  | J18: =IF(OR(COUNTRY_INFO!O18="Unknown",COUNTRY_INFO!O18="Surveillance",COUNTRY_INFO!O18="Not required",COUNTRY_INFO!O18=0),0,IF(INTRO!$E$39="Non-endemic",IF(AND($E18<>0,$I18=""),IF($F18=0,COUNTRY_INFO!O18*$E18,COUNTRY_INFO!O18*($E18-$D18)),IF(AND($E18<>0,$I18<>0),IF($F18=0,COUNTRY_INFO!O18*$I18,COUNTRY_INFO!O18*($I18-$D18)),0)),IF($I18="",COUNTRY_INFO!O18*$E18,COUNTRY_INFO!O18*$I18))) -> 0 | K18: =MAX(0,IF(OR(COUNTRY_INFO!P18="Unknown",COUNTRY_INFO!P18="Surveillance",COUNTRY_INFO!P18="Not required",COUNTRY_INFO!P18=0),0,IF($E18<>0,IF($D18=0,COUNTRY_INFO!P18*$E18,COUNTRY_INFO!P18*$E18-($F18*COUNTRY_INFO!$P18/(COUNTRY_INFO!$F18+COUNTRY_INFO!$G18)+IF($G18=" ",0,COUNTRY_INFO!$P18/(COUNTRY_INFO!$F18+COUNTRY_INFO!$G18)*$G18*$H18))),0))) -> 0 | M18: =MAX(0,IF(OR(COUNTRY_INFO!Q18="Unknown",COUNTRY_INFO!Q18="Surveillance",COUNTRY_INFO!Q18="Not required",COUNTRY_INFO!Q18=0),0,IF($E18<>0,IF($D18=0,COUNTRY_INFO!Q18*MIN($E18,$L18),COUNTRY_INFO!Q18*MIN($E18,$L18)-($F18*COUNTRY_INFO!$Q18/(COUNTRY_INFO!$F18+COUNTRY_INFO!$G18)+IF($G18=" ",0,COUNTRY_INFO!$Q18/(COUNTRY_INFO!$F18+COUNTRY_INFO!$G18)*$G18*$H18))),0))) -> 0 | N18: 0 | O18: 0 | Q18: 0 | R18: 0 | T18: 0 | U18: 0 | W18: 0
A19: =IF(AND(INTRO!$E$37="Non-endemic",INTRO!$E$41="Non-endemic")," ",IF(COUNTRY_INFO!A19=0," ",COUNTRY_INFO!A19)) -> Tchad | B19: =IF(AND(INTRO!$E$37="Non-endemic",INTRO!$E$41="Non-endemic")," ",IF(COUNTRY_INFO!B19=0," ",COUNTRY_INFO!B19)) -> Batha | C19: =IF(AND(INTRO!$E$37="Non-endemic",INTRO!$E$41="Non-endemic")," ",IF(COUNTRY_INFO!C19=0," ",COUNTRY_INFO!C19)) -> Oum-Hadjer | D19: =IF(AND(INTRO!$E$37="Non-endemic",INTRO!$E$41="Non-endemic"),0,COUNTRY_INFO!W19) -> 0 | E19: =IF(AND(INTRO!$E$37="Non-endemic",INTRO!$E$41="Non-endemic"),0,COUNTRY_INFO!Y19) -> 0 | F19: =IF($D19=1,IVM!G19,0) -> 0 | G19: =IF($D19=0, " ", IF(COUNTRY_INFO!$H19=1, IF(COUNTRY_INFO!$L19=1, 0," ")," ")) ->  | J19: =IF(OR(COUNTRY_INFO!O19="Unknown",COUNTRY_INFO!O19="Surveillance",COUNTRY_INFO!O19="Not required",COUNTRY_INFO!O19=0),0,IF(INTRO!$E$39="Non-endemic",IF(AND($E19<>0,$I19=""),IF($F19=0,COUNTRY_INFO!O19*$E19,COUNTRY_INFO!O19*($E19-$D19)),IF(AND($E19<>0,$I19<>0),IF($F19=0,COUNTRY_INFO!O19*$I19,COUNTRY_INFO!O19*($I19-$D19)),0)),IF($I19="",COUNTRY_INFO!O19*$E19,COUNTRY_INFO!O19*$I19))) -> 0 | K19: =MAX(0,IF(OR(COUNTRY_INFO!P19="Unknown",COUNTRY_INFO!P19="Surveillance",COUNTRY_INFO!P19="Not required",COUNTRY_INFO!P19=0),0,IF($E19<>0,IF($D19=0,COUNTRY_INFO!P19*$E19,COUNTRY_INFO!P19*$E19-($F19*COUNTRY_INFO!$P19/(COUNTRY_INFO!$F19+COUNTRY_INFO!$G19)+IF($G19=" ",0,COUNTRY_INFO!$P19/(COUNTRY_INFO!$F19+COUNTRY_INFO!$G19)*$G19*$H19))),0))) -> 0 | M19: =MAX(0,IF(OR(COUNTRY_INFO!Q19="Unknown",COUNTRY_INFO!Q19="Surveillance",COUNTRY_INFO!Q19="Not required",COUNTRY_INFO!Q19=0),0,IF($E19<>0,IF($D19=0,COUNTRY_INFO!Q19*MIN($E19,$L19),COUNTRY_INFO!Q19*MIN($E19,$L19)-($F19*COUNTRY_INFO!$Q19/(COUNTRY_INFO!$F19+COUNTRY_INFO!$G19)+IF($G19=" ",0,COUNTRY_INFO!$Q19/(COUNTRY_INFO!$F19+COUNTRY_INFO!$G19)*$G19*$H19))),0))) -> 0 | N19: 0 | O19: 0 | Q19: 0 | R19: 0 | T19: 0 | U19: 0 | W19: 0
A20: =IF(AND(INTRO!$E$37="Non-endemic",INTRO!$E$41="Non-endemic")," ",IF(COUNTRY_INFO!A20=0," ",COUNTRY_INFO!A20)) -> Tchad | B20: =IF(AND(INTRO!$E$37="Non-endemic",INTRO!$E$41="Non-endemic")," ",IF(COUNTRY_INFO!B20=0," ",COUNTRY_INFO!B20)) -> Batha | C20: =IF(AND(INTRO!$E$37="Non-endemic",INTRO!$E$41="Non-endemic")," ",IF(COUNTRY_INFO!C20=0," ",COUNTRY_INFO!C20)) -> Yao | D20: =IF(AND(INTRO!$E$37="Non-endemic",INTRO!$E$41="Non-endemic"),0,COUNTRY_INFO!W20) -> 0 | E20: =IF(AND(INTRO!$E$37="Non-endemic",INTRO!$E$41="Non-endemic"),0,COUNTRY_INFO!Y20) -> 0 | F20: =IF($D20=1,IVM!G20,0) -> 0 | G20: =IF($D20=0, " ", IF(COUNTRY_INFO!$H20=1, IF(COUNTRY_INFO!$L20=1, 0," ")," ")) ->  | J20: =IF(OR(COUNTRY_INFO!O20="Unknown",COUNTRY_INFO!O20="Surveillance",COUNTRY_INFO!O20="Not required",COUNTRY_INFO!O20=0),0,IF(INTRO!$E$39="Non-endemic",IF(AND($E20<>0,$I20=""),IF($F20=0,COUNTRY_INFO!O20*$E20,COUNTRY_INFO!O20*($E20-$D20)),IF(AND($E20<>0,$I20<>0),IF($F20=0,COUNTRY_INFO!O20*$I20,COUNTRY_INFO!O20*($I20-$D20)),0)),IF($I20="",COUNTRY_INFO!O20*$E20,COUNTRY_INFO!O20*$I20))) -> 0 | K20: =MAX(0,IF(OR(COUNTRY_INFO!P20="Unknown",COUNTRY_INFO!P20="Surveillance",COUNTRY_INFO!P20="Not required",COUNTRY_INFO!P20=0),0,IF($E20<>0,IF($D20=0,COUNTRY_INFO!P20*$E20,COUNTRY_INFO!P20*$E20-($F20*COUNTRY_INFO!$P20/(COUNTRY_INFO!$F20+COUNTRY_INFO!$G20)+IF($G20=" ",0,COUNTRY_INFO!$P20/(COUNTRY_INFO!$F20+COUNTRY_INFO!$G20)*$G20*$H20))),0))) -> 0 | M20: =MAX(0,IF(OR(COUNTRY_INFO!Q20="Unknown",COUNTRY_INFO!Q20="Surveillance",COUNTRY_INFO!Q20="Not required",COUNTRY_INFO!Q20=0),0,IF($E20<>0,IF($D20=0,COUNTRY_INFO!Q20*MIN($E20,$L20),COUNTRY_INFO!Q20*MIN($E20,$L20)-($F20*COUNTRY_INFO!$Q20/(COUNTRY_INFO!$F20+COUNTRY_INFO!$G20)+IF($G20=" ",0,COUNTRY_INFO!$Q20/(COUNTRY_INFO!$F20+COUNTRY_INFO!$G20)*$G20*$H20))),0))) -> 0 | N20: 0 | O20: 0 | Q20: 0 | R20: 0 | T20: 0 | U20: 0 | W20: 0
A21: =IF(AND(INTRO!$E$37="Non-endemic",INTRO!$E$41="Non-endemic")," ",IF(COUNTRY_INFO!A21=0," ",COUNTRY_INFO!A21)) -> Tchad | B21: =IF(AND(INTRO!$E$37="Non-endemic",INTRO!$E$41="Non-endemic")," ",IF(COUNTRY_INFO!B21=0," ",COUNTRY_INFO!B21)) -> Borkou | C21: =IF(AND(INTRO!$E$37="Non-endemic",INTRO!$E$41="Non-endemic")," ",IF(COUNTRY_INFO!C21=0," ",COUNTRY_INFO!C21)) -> Faya | D21: =IF(AND(INTRO!$E$37="Non-endemic",INTRO!$E$41="Non-endemic"),0,COUNTRY_INFO!W21) -> 0 | E21: =IF(AND(INTRO!$E$37="Non-endemic",INTRO!$E$41="Non-endemic"),0,COUNTRY_INFO!Y21) -> 0 | F21: =IF($D21=1,IVM!G21,0) -> 0 | G21: =IF($D21=0, " ", IF(COUNTRY_INFO!$H21=1, IF(COUNTRY_INFO!$L21=1, 0," ")," ")) ->  | J21: =IF(OR(COUNTRY_INFO!O21="Unknown",COUNTRY_INFO!O21="Surveillance",COUNTRY_INFO!O21="Not required",COUNTRY_INFO!O21=0),0,IF(INTRO!$E$39="Non-endemic",IF(AND($E21<>0,$I21=""),IF($F21=0,COUNTRY_INFO!O21*$E21,COUNTRY_INFO!O21*($E21-$D21)),IF(AND($E21<>0,$I21<>0),IF($F21=0,COUNTRY_INFO!O21*$I21,COUNTRY_INFO!O21*($I21-$D21)),0)),IF($I21="",COUNTRY_INFO!O21*$E21,COUNTRY_INFO!O21*$I21))) -> 0 | K21: =MAX(0,IF(OR(COUNTRY_INFO!P21="Unknown",COUNTRY_INFO!P21="Surveillance",COUNTRY_INFO!P21="Not required",COUNTRY_INFO!P21=0),0,IF($E21<>0,IF($D21=0,COUNTRY_INFO!P21*$E21,COUNTRY_INFO!P21*$E21-($F21*COUNTRY_INFO!$P21/(COUNTRY_INFO!$F21+COUNTRY_INFO!$G21)+IF($G21=" ",0,COUNTRY_INFO!$P21/(COUNTRY_INFO!$F21+COUNTRY_INFO!$G21)*$G21*$H21))),0))) -> 0 | M21: =MAX(0,IF(OR(COUNTRY_INFO!Q21="Unknown",COUNTRY_INFO!Q21="Surveillance",COUNTRY_INFO!Q21="Not required",COUNTRY_INFO!Q21=0),0,IF($E21<>0,IF($D21=0,COUNTRY_INFO!Q21*MIN($E21,$L21),COUNTRY_INFO!Q21*MIN($E21,$L21)-($F21*COUNTRY_INFO!$Q21/(COUNTRY_INFO!$F21+COUNTRY_INFO!$G21)+IF($G21=" ",0,COUNTRY_INFO!$Q21/(COUNTRY_INFO!$F21+COUNTRY_INFO!$G21)*$G21*$H21))),0))) -> 0 | N21: 0 | O21: 0 | Q21: 0 | R21: 0 | T21: 0 | U21: 0 | W21: 0
A22: =IF(AND(INTRO!$E$37="Non-endemic",INTRO!$E$41="Non-endemic")," ",IF(COUNTRY_INFO!A22=0," ",COUNTRY_INFO!A22)) -> Tchad | B22: =IF(AND(INTRO!$E$37="Non-endemic",INTRO!$E$41="Non-endemic")," ",IF(COUNTRY_INFO!B22=0," ",COUNTRY_INFO!B22)) -> Borkou | C22: =IF(AND(INTRO!$E$37="Non-endemic",INTRO!$E$41="Non-endemic")," ",IF(COUNTRY_INFO!C22=0," ",COUNTRY_INFO!C22)) -> Kirdimi | D22: =IF(AND(INTRO!$E$37="Non-endemic",INTRO!$E$41="Non-endemic"),0,COUNTRY_INFO!W22) -> 0 | E22: =IF(AND(INTRO!$E$37="Non-endemic",INTRO!$E$41="Non-endemic"),0,COUNTRY_INFO!Y22) -> 0 | F22: =IF($D22=1,IVM!G22,0) -> 0 | G22: =IF($D22=0, " ", IF(COUNTRY_INFO!$H22=1, IF(COUNTRY_INFO!$L22=1, 0," ")," ")) ->  | J22: =IF(OR(COUNTRY_INFO!O22="Unknown",COUNTRY_INFO!O22="Surveillance",COUNTRY_INFO!O22="Not required",COUNTRY_INFO!O22=0),0,IF(INTRO!$E$39="Non-endemic",IF(AND($E22<>0,$I22=""),IF($F22=0,COUNTRY_INFO!O22*$E22,COUNTRY_INFO!O22*($E22-$D22)),IF(AND($E22<>0,$I22<>0),IF($F22=0,COUNTRY_INFO!O22*$I22,COUNTRY_INFO!O22*($I22-$D22)),0)),IF($I22="",COUNTRY_INFO!O22*$E22,COUNTRY_INFO!O22*$I22))) -> 0 | K22: =MAX(0,IF(OR(COUNTRY_INFO!P22="Unknown",COUNTRY_INFO!P22="Surveillance",COUNTRY_INFO!P22="Not required",COUNTRY_INFO!P22=0),0,IF($E22<>0,IF($D22=0,COUNTRY_INFO!P22*$E22,COUNTRY_INFO!P22*$E22-($F22*COUNTRY_INFO!$P22/(COUNTRY_INFO!$F22+COUNTRY_INFO!$G22)+IF($G22=" ",0,COUNTRY_INFO!$P22/(COUNTRY_INFO!$F22+COUNTRY_INFO!$G22)*$G22*$H22))),0))) -> 0 | M22: =MAX(0,IF(OR(COUNTRY_INFO!Q22="Unknown",COUNTRY_INFO!Q22="Surveillance",COUNTRY_INFO!Q22="Not required",COUNTRY_INFO!Q22=0),0,IF($E22<>0,IF($D22=0,COUNTRY_INFO!Q22*MIN($E22,$L22),COUNTRY_INFO!Q22*MIN($E22,$L22)-($F22*COUNTRY_INFO!$Q22/(COUNTRY_INFO!$F22+COUNTRY_INFO!$G22)+IF($G22=" ",0,COUNTRY_INFO!$Q22/(COUNTRY_INFO!$F22+COUNTRY_INFO!$G22)*$G22*$H22))),0))) -> 0 | N22: 0 | O22: 0 | Q22: 0 | R22: 0 | T22: 0 | U22: 0 | W22: 0
A23: =IF(AND(INTRO!$E$37="Non-endemic",INTRO!$E$41="Non-endemic")," ",IF(COUNTRY_INFO!A23=0," ",COUNTRY_INFO!A23)) -> Tchad | B23: =IF(AND(INTRO!$E$37="Non-endemic",INTRO!$E$41="Non-endemic")," ",IF(COUNTRY_INFO!B23=0," ",COUNTRY_INFO!B23)) -> Borkou | C23: =IF(AND(INTRO!$E$37="Non-endemic",INTRO!$E$41="Non-endemic")," ",IF(COUNTRY_INFO!C23=0," ",COUNTRY_INFO!C23)) -> Kouba Olanga | D23: =IF(AND(INTRO!$E$37="Non-endemic",INTRO!$E$41="Non-endemic"),0,COUNTRY_INFO!W23) -> 0 | E23: =IF(AND(INTRO!$E$37="Non-endemic",INTRO!$E$41="Non-endemic"),0,COUNTRY_INFO!Y23) -> 0 | F23: =IF($D23=1,IVM!G23,0) -> 0 | G23: =IF($D23=0, " ", IF(COUNTRY_INFO!$H23=1, IF(COUNTRY_INFO!$L23=1, 0," ")," ")) ->  | J23: =IF(OR(COUNTRY_INFO!O23="Unknown",COUNTRY_INFO!O23="Surveillance",COUNTRY_INFO!O23="Not required",COUNTRY_INFO!O23=0),0,IF(INTRO!$E$39="Non-endemic",IF(AND($E23<>0,$I23=""),IF($F23=0,COUNTRY_INFO!O23*$E23,COUNTRY_INFO!O23*($E23-$D23)),IF(AND($E23<>0,$I23<>0),IF($F23=0,COUNTRY_INFO!O23*$I23,COUNTRY_INFO!O23*($I23-$D23)),0)),IF($I23="",COUNTRY_INFO!O23*$E23,COUNTRY_INFO!O23*$I23))) -> 0 | K23: =MAX(0,IF(OR(COUNTRY_INFO!P23="Unknown",COUNTRY_INFO!P23="Surveillance",COUNTRY_INFO!P23="Not required",COUNTRY_INFO!P23=0),0,IF($E23<>0,IF($D23=0,COUNTRY_INFO!P23*$E23,COUNTRY_INFO!P23*$E23-($F23*COUNTRY_INFO!$P23/(COUNTRY_INFO!$F23+COUNTRY_INFO!$G23)+IF($G23=" ",0,COUNTRY_INFO!$P23/(COUNTRY_INFO!$F23+COUNTRY_INFO!$G23)*$G23*$H23))),0))) -> 0 | M23: =MAX(0,IF(OR(COUNTRY_INFO!Q23="Unknown",COUNTRY_INFO!Q23="Surveillance",COUNTRY_INFO!Q23="Not required",COUNTRY_INFO!Q23=0),0,IF($E23<>0,IF($D23=0,COUNTRY_INFO!Q23*MIN($E23,$L23),COUNTRY_INFO!Q23*MIN($E23,$L23)-($F23*COUNTRY_INFO!$Q23/(COUNTRY_INFO!$F23+COUNTRY_INFO!$G23)+IF($G23=" ",0,COUNTRY_INFO!$Q23/(COUNTRY_INFO!$F23+COUNTRY_INFO!$G23)*$G23*$H23))),0))) -> 0 | N23: 0 | O23: 0 | Q23: 0 | R23: 0 | T23: 0 | U23: 0 | W23: 0
A24: =IF(AND(INTRO!$E$37="Non-endemic",INTRO!$E$41="Non-endemic")," ",IF(COUNTRY_INFO!A24=0," ",COUNTRY_INFO!A24)) -> Tchad | B24: =IF(AND(INTRO!$E$37="Non-endemic",INTRO!$E$41="Non-endemic")," ",IF(COUNTRY_INFO!B24=0," ",COUNTRY_INFO!B24)) -> Chari Baguirmi | C24: =IF(AND(INTRO!$E$37="Non-endemic",INTRO!$E$41="Non-endemic")," ",IF(COUNTRY_INFO!C24=0," ",COUNTRY_INFO!C24)) -> Ba-Illi | D24: =IF(AND(INTRO!$E$37="Non-endemic",INTRO!$E$41="Non-endemic"),0,COUNTRY_INFO!W24) -> 0 | E24: =IF(AND(INTRO!$E$37="Non-endemic",INTRO!$E$41="Non-endemic"),0,COUNTRY_INFO!Y24) -> 0 | F24: =IF($D24=1,IVM!G24,0) -> 0 | G24: =IF($D24=0, " ", IF(COUNTRY_INFO!$H24=1, IF(COUNTRY_INFO!$L24=1, 0," ")," ")) ->  | J24: =IF(OR(COUNTRY_INFO!O24="Unknown",COUNTRY_INFO!O24="Surveillance",COUNTRY_INFO!O24="Not required",COUNTRY_INFO!O24=0),0,IF(INTRO!$E$39="Non-endemic",IF(AND($E24<>0,$I24=""),IF($F24=0,COUNTRY_INFO!O24*$E24,COUNTRY_INFO!O24*($E24-$D24)),IF(AND($E24<>0,$I24<>0),IF($F24=0,COUNTRY_INFO!O24*$I24,COUNTRY_INFO!O24*($I24-$D24)),0)),IF($I24="",COUNTRY_INFO!O24*$E24,COUNTRY_INFO!O24*$I24))) -> 0 | K24: =MAX(0,IF(OR(COUNTRY_INFO!P24="Unknown",COUNTRY_INFO!P24="Surveillance",COUNTRY_INFO!P24="Not required",COUNTRY_INFO!P24=0),0,IF($E24<>0,IF($D24=0,COUNTRY_INFO!P24*$E24,COUNTRY_INFO!P24*$E24-($F24*COUNTRY_INFO!$P24/(COUNTRY_INFO!$F24+COUNTRY_INFO!$G24)+IF($G24=" ",0,COUNTRY_INFO!$P24/(COUNTRY_INFO!$F24+COUNTRY_INFO!$G24)*$G24*$H24))),0))) -> 0 | M24: =MAX(0,IF(OR(COUNTRY_INFO!Q24="Unknown",COUNTRY_INFO!Q24="Surveillance",COUNTRY_INFO!Q24="Not required",COUNTRY_INFO!Q24=0),0,IF($E24<>0,IF($D24=0,COUNTRY_INFO!Q24*MIN($E24,$L24),COUNTRY_INFO!Q24*MIN($E24,$L24)-($F24*COUNTRY_INFO!$Q24/(COUNTRY_INFO!$F24+COUNTRY_INFO!$G24)+IF($G24=" ",0,COUNTRY_INFO!$Q24/(COUNTRY_INFO!$F24+COUNTRY_INFO!$G24)*$G24*$H24))),0))) -> 0 | N24: 0 | O24: 0 | Q24: 0 | R24: 0 | T24: 0 | U24: 0 | W24: 0
A25: =IF(AND(INTRO!$E$37="Non-endemic",INTRO!$E$41="Non-endemic")," ",IF(COUNTRY_INFO!A25=0," ",COUNTRY_INFO!A25)) -> Tchad | B25: =IF(AND(INTRO!$E$37="Non-endemic",INTRO!$E$41="Non-endemic")," ",IF(COUNTRY_INFO!B25=0," ",COUNTRY_INFO!B25)) -> Chari Baguirmi | C25: =IF(AND(INTRO!$E$37="Non-endemic",INTRO!$E$41="Non-endemic")," ",IF(COUNTRY_INFO!C25=0," ",COUNTRY_INFO!C25)) -> Bousso | D25: =IF(AND(INTRO!$E$37="Non-endemic",INTRO!$E$41="Non-endemic"),0,COUNTRY_INFO!W25) -> 0 | E25: =IF(AND(INTRO!$E$37="Non-endemic",INTRO!$E$41="Non-endemic"),0,COUNTRY_INFO!Y25) -> 0 | F25: =IF($D25=1,IVM!G25,0) -> 0 | G25: =IF($D25=0, " ", IF(COUNTRY_INFO!$H25=1, IF(COUNTRY_INFO!$L25=1, 0," ")," ")) ->  | J25: =IF(OR(COUNTRY_INFO!O25="Unknown",COUNTRY_INFO!O25="Surveillance",COUNTRY_INFO!O25="Not required",COUNTRY_INFO!O25=0),0,IF(INTRO!$E$39="Non-endemic",IF(AND($E25<>0,$I25=""),IF($F25=0,COUNTRY_INFO!O25*$E25,COUNTRY_INFO!O25*($E25-$D25)),IF(AND($E25<>0,$I25<>0),IF($F25=0,COUNTRY_INFO!O25*$I25,COUNTRY_INFO!O25*($I25-$D25)),0)),IF($I25="",COUNTRY_INFO!O25*$E25,COUNTRY_INFO!O25*$I25))) -> 0 | K25: =MAX(0,IF(OR(COUNTRY_INFO!P25="Unknown",COUNTRY_INFO!P25="Surveillance",COUNTRY_INFO!P25="Not required",COUNTRY_INFO!P25=0),0,IF($E25<>0,IF($D25=0,COUNTRY_INFO!P25*$E25,COUNTRY_INFO!P25*$E25-($F25*COUNTRY_INFO!$P25/(COUNTRY_INFO!$F25+COUNTRY_INFO!$G25)+IF($G25=" ",0,COUNTRY_INFO!$P25/(COUNTRY_INFO!$F25+COUNTRY_INFO!$G25)*$G25*$H25))),0))) -> 0 | M25: =MAX(0,IF(OR(COUNTRY_INFO!Q25="Unknown",COUNTRY_INFO!Q25="Surveillance",COUNTRY_INFO!Q25="Not required",COUNTRY_INFO!Q25=0),0,IF($E25<>0,IF($D25=0,COUNTRY_INFO!Q25*MIN($E25,$L25),COUNTRY_INFO!Q25*MIN($E25,$L25)-($F25*COUNTRY_INFO!$Q25/(COUNTRY_INFO!$F25+COUNTRY_INFO!$G25)+IF($G25=" ",0,COUNTRY_INFO!$Q25/(COUNTRY_INFO!$F25+COUNTRY_INFO!$G25)*$G25*$H25))),0))) -> 0 | N25: 0 | O25: 0 | Q25: 0 | R25: 0 | T25: 0 | U25: 0 | W25: 0
A26: =IF(AND(INTRO!$E$37="Non-endemic",INTRO!$E$41="Non-endemic")," ",IF(COUNTRY_INFO!A26=0," ",COUNTRY_INFO!A26)) -> Tchad | B26: =IF(AND(INTRO!$E$37="Non-endemic",INTRO!$E$41="Non-endemic")," ",IF(COUNTRY_INFO!B26=0," ",COUNTRY_INFO!B26)) -> Chari Baguirmi | C26: =IF(AND(INTRO!$E$37="Non-endemic",INTRO!$E$41="Non-endemic")," ",IF(COUNTRY_INFO!C26=0," ",COUNTRY_INFO!C26)) -> Dourbali | D26: =IF(AND(INTRO!$E$37="Non-endemic",INTRO!$E$41="Non-endemic"),0,COUNTRY_INFO!W26) -> 0 | E26: =IF(AND(INTRO!$E$37="Non-endemic",INTRO!$E$41="Non-endemic"),0,COUNTRY_INFO!Y26) -> 0 | F26: =IF($D26=1,IVM!G26,0) -> 0 | G26: =IF($D26=0, " ", IF(COUNTRY_INFO!$H26=1, IF(COUNTRY_INFO!$L26=1, 0," ")," ")) ->  | J26: =IF(OR(COUNTRY_INFO!O26="Unknown",COUNTRY_INFO!O26="Surveillance",COUNTRY_INFO!O26="Not required",COUNTRY_INFO!O26=0),0,IF(INTRO!$E$39="Non-endemic",IF(AND($E26<>0,$I26=""),IF($F26=0,COUNTRY_INFO!O26*$E26,COUNTRY_INFO!O26*($E26-$D26)),IF(AND($E26<>0,$I26<>0),IF($F26=0,COUNTRY_INFO!O26*$I26,COUNTRY_INFO!O26*($I26-$D26)),0)),IF($I26="",COUNTRY_INFO!O26*$E26,COUNTRY_INFO!O26*$I26))) -> 0 | K26: =MAX(0,IF(OR(COUNTRY_INFO!P26="Unknown",COUNTRY_INFO!P26="Surveillance",COUNTRY_INFO!P26="Not required",COUNTRY_INFO!P26=0),0,IF($E26<>0,IF($D26=0,COUNTRY_INFO!P26*$E26,COUNTRY_INFO!P26*$E26-($F26*COUNTRY_INFO!$P26/(COUNTRY_INFO!$F26+COUNTRY_INFO!$G26)+IF($G26=" ",0,COUNTRY_INFO!$P26/(COUNTRY_INFO!$F26+COUNTRY_INFO!$G26)*$G26*$H26))),0))) -> 0 | M26: =MAX(0,IF(OR(COUNTRY_INFO!Q26="Unknown",COUNTRY_INFO!Q26="Surveillance",COUNTRY_INFO!Q26="Not required",COUNTRY_INFO!Q26=0),0,IF($E26<>0,IF($D26=0,COUNTRY_INFO!Q26*MIN($E26,$L26),COUNTRY_INFO!Q26*MIN($E26,$L26)-($F26*COUNTRY_INFO!$Q26/(COUNTRY_INFO!$F26+COUNTRY_INFO!$G26)+IF($G26=" ",0,COUNTRY_INFO!$Q26/(COUNTRY_INFO!$F26+COUNTRY_INFO!$G26)*$G26*$H26))),0))) -> 0 | N26: 0 | O26: 0 | Q26: 0 | R26: 0 | T26: 0 | U26: 0 | W26: 0
A27: =IF(AND(INTRO!$E$37="Non-endemic",INTRO!$E$41="Non-endemic")," ",IF(COUNTRY_INFO!A27=0," ",COUNTRY_INFO!A27)) -> Tchad | B27: =IF(AND(INTRO!$E$37="Non-endemic",INTRO!$E$41="Non-endemic")," ",IF(COUNTRY_INFO!B27=0," ",COUNTRY_INFO!B27)) -> Chari Baguirmi | C27: =IF(AND(INTRO!$E$37="Non-endemic",INTRO!$E$41="Non-endemic")," ",IF(COUNTRY_INFO!C27=0," ",COUNTRY_INFO!C27)) -> Koulno | D27: =IF(AND(INTRO!$E$37="Non-endemic",INTRO!$E$41="Non-endemic"),0,COUNTRY_INFO!W27) -> 0 | E27: =IF(AND(INTRO!$E$37="Non-endemic",INTRO!$E$41="Non-endemic"),0,COUNTRY_INFO!Y27) -> 0 | F27: =IF($D27=1,IVM!G27,0) -> 0 | G27: =IF($D27=0, " ", IF(COUNTRY_INFO!$H27=1, IF(COUNTRY_INFO!$L27=1, 0," ")," ")) ->  | J27: =IF(OR(COUNTRY_INFO!O27="Unknown",COUNTRY_INFO!O27="Surveillance",COUNTRY_INFO!O27="Not required",COUNTRY_INFO!O27=0),0,IF(INTRO!$E$39="Non-endemic",IF(AND($E27<>0,$I27=""),IF($F27=0,COUNTRY_INFO!O27*$E27,COUNTRY_INFO!O27*($E27-$D27)),IF(AND($E27<>0,$I27<>0),IF($F27=0,COUNTRY_INFO!O27*$I27,COUNTRY_INFO!O27*($I27-$D27)),0)),IF($I27="",COUNTRY_INFO!O27*$E27,COUNTRY_INFO!O27*$I27))) -> 0 | K27: =MAX(0,IF(OR(COUNTRY_INFO!P27="Unknown",COUNTRY_INFO!P27="Surveillance",COUNTRY_INFO!P27="Not required",COUNTRY_INFO!P27=0),0,IF($E27<>0,IF($D27=0,COUNTRY_INFO!P27*$E27,COUNTRY_INFO!P27*$E27-($F27*COUNTRY_INFO!$P27/(COUNTRY_INFO!$F27+COUNTRY_INFO!$G27)+IF($G27=" ",0,COUNTRY_INFO!$P27/(COUNTRY_INFO!$F27+COUNTRY_INFO!$G27)*$G27*$H27))),0))) -> 0 | M27: =MAX(0,IF(OR(COUNTRY_INFO!Q27="Unknown",COUNTRY_INFO!Q27="Surveillance",COUNTRY_INFO!Q27="Not required",COUNTRY_INFO!Q27=0),0,IF($E27<>0,IF($D27=0,COUNTRY_INFO!Q27*MIN($E27,$L27),COUNTRY_INFO!Q27*MIN($E27,$L27)-($F27*COUNTRY_INFO!$Q27/(COUNTRY_INFO!$F27+COUNTRY_INFO!$G27)+IF($G27=" ",0,COUNTRY_INFO!$Q27/(COUNTRY_INFO!$F27+COUNTRY_INFO!$G27)*$G27*$H27))),0))) -> 0 | N27: 0 | O27: 0 | Q27: 0 | R27: 0 | T27: 0 | U27: 0 | W27: 0
A28: =IF(AND(INTRO!$E$37="Non-endemic",INTRO!$E$41="Non-endemic")," ",IF(COUNTRY_INFO!A28=0," ",COUNTRY_INFO!A28)) -> Tchad | B28: =IF(AND(INTRO!$E$37="Non-endemic",INTRO!$E$41="Non-endemic")," ",IF(COUNTRY_INFO!B28=0," ",COUNTRY_INFO!B28)) -> Chari Baguirmi | C28: =IF(AND(INTRO!$E$37="Non-endemic",INTRO!$E$41="Non-endemic")," ",IF(COUNTRY_INFO!C28=0," ",COUNTRY_INFO!C28)) -> Mandélia | D28: =IF(AND(INTRO!$E$37="Non-endemic",INTRO!$E$41="Non-endemic"),0,COUNTRY_INFO!W28) -> 0 | E28: =IF(AND(INTRO!$E$37="Non-endemic",INTRO!$E$41="Non-endemic"),0,COUNTRY_INFO!Y28) -> 0 | F28: =IF($D28=1,IVM!G28,0) -> 0 | G28: =IF($D28=0, " ", IF(COUNTRY_INFO!$H28=1, IF(COUNTRY_INFO!$L28=1, 0," ")," ")) ->  | J28: =IF(OR(COUNTRY_INFO!O28="Unknown",COUNTRY_INFO!O28="Surveillance",COUNTRY_INFO!O28="Not required",COUNTRY_INFO!O28=0),0,IF(INTRO!$E$39="Non-endemic",IF(AND($E28<>0,$I28=""),IF($F28=0,COUNTRY_INFO!O28*$E28,COUNTRY_INFO!O28*($E28-$D28)),IF(AND($E28<>0,$I28<>0),IF($F28=0,COUNTRY_INFO!O28*$I28,COUNTRY_INFO!O28*($I28-$D28)),0)),IF($I28="",COUNTRY_INFO!O28*$E28,COUNTRY_INFO!O28*$I28))) -> 0 | K28: =MAX(0,IF(OR(COUNTRY_INFO!P28="Unknown",COUNTRY_INFO!P28="Surveillance",COUNTRY_INFO!P28="Not required",COUNTRY_INFO!P28=0),0,IF($E28<>0,IF($D28=0,COUNTRY_INFO!P28*$E28,COUNTRY_INFO!P28*$E28-($F28*COUNTRY_INFO!$P28/(COUNTRY_INFO!$F28+COUNTRY_INFO!$G28)+IF($G28=" ",0,COUNTRY_INFO!$P28/(COUNTRY_INFO!$F28+COUNTRY_INFO!$G28)*$G28*$H28))),0))) -> 0 | M28: =MAX(0,IF(OR(COUNTRY_INFO!Q28="Unknown",COUNTRY_INFO!Q28="Surveillance",COUNTRY_INFO!Q28="Not required",COUNTRY_INFO!Q28=0),0,IF($E28<>0,IF($D28=0,COUNTRY_INFO!Q28*MIN($E28,$L28),COUNTRY_INFO!Q28*MIN($E28,$L28)-($F28*COUNTRY_INFO!$Q28/(COUNTRY_INFO!$F28+COUNTRY_INFO!$G28)+IF($G28=" ",0,COUNTRY_INFO!$Q28/(COUNTRY_INFO!$F28+COUNTRY_INFO!$G28)*$G28*$H28))),0))) -> 0 | N28: 0 | O28: 0 | Q28: 0 | R28: 0 | T28: 0 | U28: 0 | W28: 0
A29: =IF(AND(INTRO!$E$37="Non-endemic",INTRO!$E$41="Non-endemic")," ",IF(COUNTRY_INFO!A29=0," ",COUNTRY_INFO!A29)) -> Tchad | B29: =IF(AND(INTRO!$E$37="Non-endemic",INTRO!$E$41="Non-endemic")," ",IF(COUNTRY_INFO!B29=0," ",COUNTRY_INFO!B29)) -> Chari Baguirmi | C29: =IF(AND(INTRO!$E$37="Non-endemic",INTRO!$E$41="Non-endemic")," ",IF(COUNTRY_INFO!C29=0," ",COUNTRY_INFO!C29)) -> Massenya | D29: =IF(AND(INTRO!$E$37="Non-endemic",INTRO!$E$41="Non-endemic"),0,COUNTRY_INFO!W29) -> 0 | E29: =IF(AND(INTRO!$E$37="Non-endemic",INTRO!$E$41="Non-endemic"),0,COUNTRY_INFO!Y29) -> 0 | F29: =IF($D29=1,IVM!G29,0) -> 0 | G29: =IF($D29=0, " ", IF(COUNTRY_INFO!$H29=1, IF(COUNTRY_INFO!$L29=1, 0," ")," ")) ->  | J29: =IF(OR(COUNTRY_INFO!O29="Unknown",COUNTRY_INFO!O29="Surveillance",COUNTRY_INFO!O29="Not required",COUNTRY_INFO!O29=0),0,IF(INTRO!$E$39="Non-endemic",IF(AND($E29<>0,$I29=""),IF($F29=0,COUNTRY_INFO!O29*$E29,COUNTRY_INFO!O29*($E29-$D29)),IF(AND($E29<>0,$I29<>0),IF($F29=0,COUNTRY_INFO!O29*$I29,COUNTRY_INFO!O29*($I29-$D29)),0)),IF($I29="",COUNTRY_INFO!O29*$E29,COUNTRY_INFO!O29*$I29))) -> 0 | K29: =MAX(0,IF(OR(COUNTRY_INFO!P29="Unknown",COUNTRY_INFO!P29="Surveillance",COUNTRY_INFO!P29="Not required",COUNTRY_INFO!P29=0),0,IF($E29<>0,IF($D29=0,COUNTRY_INFO!P29*$E29,COUNTRY_INFO!P29*$E29-($F29*COUNTRY_INFO!$P29/(COUNTRY_INFO!$F29+COUNTRY_INFO!$G29)+IF($G29=" ",0,COUNTRY_INFO!$P29/(COUNTRY_INFO!$F29+COUNTRY_INFO!$G29)*$G29*$H29))),0))) -> 0 | M29: =MAX(0,IF(OR(COUNTRY_INFO!Q29="Unknown",COUNTRY_INFO!Q29="Surveillance",COUNTRY_INFO!Q29="Not required",COUNTRY_INFO!Q29=0),0,IF($E29<>0,IF($D29=0,COUNTRY_INFO!Q29*MIN($E29,$L29),COUNTRY_INFO!Q29*MIN($E29,$L29)-($F29*COUNTRY_INFO!$Q29/(COUNTRY_INFO!$F29+COUNTRY_INFO!$G29)+IF($G29=" ",0,COUNTRY_INFO!$Q29/(COUNTRY_INFO!$F29+COUNTRY_INFO!$G29)*$G29*$H29))),0))) -> 0 | N29: 0 | O29: 0 | Q29: 0 | R29: 0 | T29: 0 | U29: 0 | W29: 0
A30: =IF(AND(INTRO!$E$37="Non-endemic",INTRO!$E$41="Non-endemic")," ",IF(COUNTRY_INFO!A30=0," ",COUNTRY_INFO!A30)) -> Tchad | B30: =IF(AND(INTRO!$E$37="Non-endemic",INTRO!$E$41="Non-endemic")," ",IF(COUNTRY_INFO!B30=0," ",COUNTRY_INFO!B30)) -> Ennedi Est | C30: =IF(AND(INTRO!$E$37="Non-endemic",INTRO!$E$41="Non-endemic")," ",IF(COUNTRY_INFO!C30=0," ",COUNTRY_INFO!C30)) -> Amdjarass | D30: =IF(AND(INTRO!$E$37="Non-endemic",INTRO!$E$41="Non-endemic"),0,COUNTRY_INFO!W30) -> 0 | E30: =IF(AND(INTRO!$E$37="Non-endemic",INTRO!$E$41="Non-endemic"),0,COUNTRY_INFO!Y30) -> 0 | F30: =IF($D30=1,IVM!G30,0) -> 0 | G30: =IF($D30=0, " ", IF(COUNTRY_INFO!$H30=1, IF(COUNTRY_INFO!$L30=1, 0," ")," ")) ->  | J30: =IF(OR(COUNTRY_INFO!O30="Unknown",COUNTRY_INFO!O30="Surveillance",COUNTRY_INFO!O30="Not required",COUNTRY_INFO!O30=0),0,IF(INTRO!$E$39="Non-endemic",IF(AND($E30<>0,$I30=""),IF($F30=0,COUNTRY_INFO!O30*$E30,COUNTRY_INFO!O30*($E30-$D30)),IF(AND($E30<>0,$I30<>0),IF($F30=0,COUNTRY_INFO!O30*$I30,COUNTRY_INFO!O30*($I30-$D30)),0)),IF($I30="",COUNTRY_INFO!O30*$E30,COUNTRY_INFO!O30*$I30))) -> 0 | K30: =MAX(0,IF(OR(COUNTRY_INFO!P30="Unknown",COUNTRY_INFO!P30="Surveillance",COUNTRY_INFO!P30="Not required",COUNTRY_INFO!P30=0),0,IF($E30<>0,IF($D30=0,COUNTRY_INFO!P30*$E30,COUNTRY_INFO!P30*$E30-($F30*COUNTRY_INFO!$P30/(COUNTRY_INFO!$F30+COUNTRY_INFO!$G30)+IF($G30=" ",0,COUNTRY_INFO!$P30/(COUNTRY_INFO!$F30+COUNTRY_INFO!$G30)*$G30*$H30))),0))) -> 0 | M30: =MAX(0,IF(OR(COUNTRY_INFO!Q30="Unknown",COUNTRY_INFO!Q30="Surveillance",COUNTRY_INFO!Q30="Not required",COUNTRY_INFO!Q30=0),0,IF($E30<>0,IF($D30=0,COUNTRY_INFO!Q30*MIN($E30,$L30),COUNTRY_INFO!Q30*MIN($E30,$L30)-($F30*COUNTRY_INFO!$Q30/(COUNTRY_INFO!$F30+COUNTRY_INFO!$G30)+IF($G30=" ",0,COUNTRY_INFO!$Q30/(COUNTRY_INFO!$F30+COUNTRY_INFO!$G30)*$G30*$H30))),0))) -> 0 | N30: 0 | O30: 0 | Q30: 0 | R30: 0 | T30: 0 | U30: 0 | W30: 0
A31: =IF(AND(INTRO!$E$37="Non-endemic",INTRO!$E$41="Non-endemic")," ",IF(COUNTRY_INFO!A31=0," ",COUNTRY_INFO!A31)) -> Tchad | B31: =IF(AND(INTRO!$E$37="Non-endemic",INTRO!$E$41="Non-endemic")," ",IF(COUNTRY_INFO!B31=0," ",COUNTRY_INFO!B31)) -> Ennedi Est | C31: =IF(AND(INTRO!$E$37="Non-endemic",INTRO!$E$41="Non-endemic")," ",IF(COUNTRY_INFO!C31=0," ",COUNTRY_INFO!C31)) -> Bahaï | D31: =IF(AND(INTRO!$E$37="Non-endemic",INTRO!$E$41="Non-endemic"),0,COUNTRY_INFO!W31) -> 0 | E31: =IF(AND(INTRO!$E$37="Non-endemic",INTRO!$E$41="Non-endemic"),0,COUNTRY_INFO!Y31) -> 0 | F31: =IF($D31=1,IVM!G31,0) -> 0 | G31: =IF($D31=0, " ", IF(COUNTRY_INFO!$H31=1, IF(COUNTRY_INFO!$L31=1, 0," ")," ")) ->  | J31: =IF(OR(COUNTRY_INFO!O31="Unknown",COUNTRY_INFO!O31="Surveillance",COUNTRY_INFO!O31="Not required",COUNTRY_INFO!O31=0),0,IF(INTRO!$E$39="Non-endemic",IF(AND($E31<>0,$I31=""),IF($F31=0,COUNTRY_INFO!O31*$E31,COUNTRY_INFO!O31*($E31-$D31)),IF(AND($E31<>0,$I31<>0),IF($F31=0,COUNTRY_INFO!O31*$I31,COUNTRY_INFO!O31*($I31-$D31)),0)),IF($I31="",COUNTRY_INFO!O31*$E31,COUNTRY_INFO!O31*$I31))) -> 0 | K31: =MAX(0,IF(OR(COUNTRY_INFO!P31="Unknown",COUNTRY_INFO!P31="Surveillance",COUNTRY_INFO!P31="Not required",COUNTRY_INFO!P31=0),0,IF($E31<>0,IF($D31=0,COUNTRY_INFO!P31*$E31,COUNTRY_INFO!P31*$E31-($F31*COUNTRY_INFO!$P31/(COUNTRY_INFO!$F31+COUNTRY_INFO!$G31)+IF($G31=" ",0,COUNTRY_INFO!$P31/(COUNTRY_INFO!$F31+COUNTRY_INFO!$G31)*$G31*$H31))),0))) -> 0 | M31: =MAX(0,IF(OR(COUNTRY_INFO!Q31="Unknown",COUNTRY_INFO!Q31="Surveillance",COUNTRY_INFO!Q31="Not required",COUNTRY_INFO!Q31=0),0,IF($E31<>0,IF($D31=0,COUNTRY_INFO!Q31*MIN($E31,$L31),COUNTRY_INFO!Q31*MIN($E31,$L31)-($F31*COUNTRY_INFO!$Q31/(COUNTRY_INFO!$F31+COUNTRY_INFO!$G31)+IF($G31=" ",0,COUNTRY_INFO!$Q31/(COUNTRY_INFO!$F31+COUNTRY_INFO!$G31)*$G31*$H31))),0))) -> 0 | N31: 0 | O31: 0 | Q31: 0 | R31: 0 | T31: 0 | U31: 0 | W31: 0
A32: =IF(AND(INTRO!$E$37="Non-endemic",INTRO!$E$41="Non-endemic")," ",IF(COUNTRY_INFO!A32=0," ",COUNTRY_INFO!A32)) -> Tchad | B32: =IF(AND(INTRO!$E$37="Non-endemic",INTRO!$E$41="Non-endemic")," ",IF(COUNTRY_INFO!B32=0," ",COUNTRY_INFO!B32)) -> Ennedi Est | C32: =IF(AND(INTRO!$E$37="Non-endemic",INTRO!$E$41="Non-endemic")," ",IF(COUNTRY_INFO!C32=0," ",COUNTRY_INFO!C32)) -> Kaoura | D32: =IF(AND(INTRO!$E$37="Non-endemic",INTRO!$E$41="Non-endemic"),0,COUNTRY_INFO!W32) -> 0 | E32: =IF(AND(INTRO!$E$37="Non-endemic",INTRO!$E$41="Non-endemic"),0,COUNTRY_INFO!Y32) -> 0 | F32: =IF($D32=1,IVM!G32,0) -> 0 | G32: =IF($D32=0, " ", IF(COUNTRY_INFO!$H32=1, IF(COUNTRY_INFO!$L32=1, 0," ")," ")) ->  | J32: =IF(OR(COUNTRY_INFO!O32="Unknown",COUNTRY_INFO!O32="Surveillance",COUNTRY_INFO!O32="Not required",COUNTRY_INFO!O32=0),0,IF(INTRO!$E$39="Non-endemic",IF(AND($E32<>0,$I32=""),IF($F32=0,COUNTRY_INFO!O32*$E32,COUNTRY_INFO!O32*($E32-$D32)),IF(AND($E32<>0,$I32<>0),IF($F32=0,COUNTRY_INFO!O32*$I32,COUNTRY_INFO!O32*($I32-$D32)),0)),IF($I32="",COUNTRY_INFO!O32*$E32,COUNTRY_INFO!O32*$I32))) -> 0 | K32: =MAX(0,IF(OR(COUNTRY_INFO!P32="Unknown",COUNTRY_INFO!P32="Surveillance",COUNTRY_INFO!P32="Not required",COUNTRY_INFO!P32=0),0,IF($E32<>0,IF($D32=0,COUNTRY_INFO!P32*$E32,COUNTRY_INFO!P32*$E32-($F32*COUNTRY_INFO!$P32/(COUNTRY_INFO!$F32+COUNTRY_INFO!$G32)+IF($G32=" ",0,COUNTRY_INFO!$P32/(COUNTRY_INFO!$F32+COUNTRY_INFO!$G32)*$G32*$H32))),0))) -> 0 | M32: =MAX(0,IF(OR(COUNTRY_INFO!Q32="Unknown",COUNTRY_INFO!Q32="Surveillance",COUNTRY_INFO!Q32="Not required",COUNTRY_INFO!Q32=0),0,IF($E32<>0,IF($D32=0,COUNTRY_INFO!Q32*MIN($E32,$L32),COUNTRY_INFO!Q32*MIN($E32,$L32)-($F32*COUNTRY_INFO!$Q32/(COUNTRY_INFO!$F32+COUNTRY_INFO!$G32)+IF($G32=" ",0,COUNTRY_INFO!$Q32/(COUNTRY_INFO!$F32+COUNTRY_INFO!$G32)*$G32*$H32))),0))) -> 0 | N32: 0 | O32: 0 | Q32: 0 | R32: 0 | T32: 0 | U32: 0 | W32: 0
A33: =IF(AND(INTRO!$E$37="Non-endemic",INTRO!$E$41="Non-endemic")," ",IF(COUNTRY_INFO!A33=0," ",COUNTRY_INFO!A33)) -> Tchad | B33: =IF(AND(INTRO!$E$37="Non-endemic",INTRO!$E$41="Non-endemic")," ",IF(COUNTRY_INFO!B33=0," ",COUNTRY_INFO!B33)) -> Ennedi Est | C33: =IF(AND(INTRO!$E$37="Non-endemic",INTRO!$E$41="Non-endemic")," ",IF(COUNTRY_INFO!C33=0," ",COUNTRY_INFO!C33)) -> Mourdi | D33: =IF(AND(INTRO!$E$37="Non-endemic",INTRO!$E$41="Non-endemic"),0,COUNTRY_INFO!W33) -> 0 | E33: =IF(AND(INTRO!$E$37="Non-endemic",INTRO!$E$41="Non-endemic"),0,COUNTRY_INFO!Y33) -> 0 | F33: =IF($D33=1,IVM!G33,0) -> 0 | G33: =IF($D33=0, " ", IF(COUNTRY_INFO!$H33=1, IF(COUNTRY_INFO!$L33=1, 0," ")," ")) ->  | J33: =IF(OR(COUNTRY_INFO!O33="Unknown",COUNTRY_INFO!O33="Surveillance",COUNTRY_INFO!O33="Not required",COUNTRY_INFO!O33=0),0,IF(INTRO!$E$39="Non-endemic",IF(AND($E33<>0,$I33=""),IF($F33=0,COUNTRY_INFO!O33*$E33,COUNTRY_INFO!O33*($E33-$D33)),IF(AND($E33<>0,$I33<>0),IF($F33=0,COUNTRY_INFO!O33*$I33,COUNTRY_INFO!O33*($I33-$D33)),0)),IF($I33="",COUNTRY_INFO!O33*$E33,COUNTRY_INFO!O33*$I33))) -> 0 | K33: =MAX(0,IF(OR(COUNTRY_INFO!P33="Unknown",COUNTRY_INFO!P33="Surveillance",COUNTRY_INFO!P33="Not required",COUNTRY_INFO!P33=0),0,IF($E33<>0,IF($D33=0,COUNTRY_INFO!P33*$E33,COUNTRY_INFO!P33*$E33-($F33*COUNTRY_INFO!$P33/(COUNTRY_INFO!$F33+COUNTRY_INFO!$G33)+IF($G33=" ",0,COUNTRY_INFO!$P33/(COUNTRY_INFO!$F33+COUNTRY_INFO!$G33)*$G33*$H33))),0))) -> 0 | M33: =MAX(0,IF(OR(COUNTRY_INFO!Q33="Unknown",COUNTRY_INFO!Q33="Surveillance",COUNTRY_INFO!Q33="Not required",COUNTRY_INFO!Q33=0),0,IF($E33<>0,IF($D33=0,COUNTRY_INFO!Q33*MIN($E33,$L33),COUNTRY_INFO!Q33*MIN($E33,$L33)-($F33*COUNTRY_INFO!$Q33/(COUNTRY_INFO!$F33+COUNTRY_INFO!$G33)+IF($G33=" ",0,COUNTRY_INFO!$Q33/(COUNTRY_INFO!$F33+COUNTRY_INFO!$G33)*$G33*$H33))),0))) -> 0 | N33: 0 | O33: 0 | Q33: 0 | R33: 0 | T33: 0 | U33: 0 | W33: 0
A34: =IF(AND(INTRO!$E$37="Non-endemic",INTRO!$E$41="Non-endemic")," ",IF(COUNTRY_INFO!A34=0," ",COUNTRY_INFO!A34)) -> Tchad | B34: =IF(AND(INTRO!$E$37="Non-endemic",INTRO!$E$41="Non-endemic")," ",IF(COUNTRY_INFO!B34=0," ",COUNTRY_INFO!B34)) -> Ennedi Ouest | C34: =IF(AND(INTRO!$E$37="Non-endemic",INTRO!$E$41="Non-endemic")," ",IF(COUNTRY_INFO!C34=0," ",COUNTRY_INFO!C34)) -> Fada | D34: =IF(AND(INTRO!$E$37="Non-endemic",INTRO!$E$41="Non-endemic"),0,COUNTRY_INFO!W34) -> 0 | E34: =IF(AND(INTRO!$E$37="Non-endemic",INTRO!$E$41="Non-endemic"),0,COUNTRY_INFO!Y34) -> 0 | F34: =IF($D34=1,IVM!G34,0) -> 0 | G34: =IF($D34=0, " ", IF(COUNTRY_INFO!$H34=1, IF(COUNTRY_INFO!$L34=1, 0," ")," ")) ->  | J34: =IF(OR(COUNTRY_INFO!O34="Unknown",COUNTRY_INFO!O34="Surveillance",COUNTRY_INFO!O34="Not required",COUNTRY_INFO!O34=0),0,IF(INTRO!$E$39="Non-endemic",IF(AND($E34<>0,$I34=""),IF($F34=0,COUNTRY_INFO!O34*$E34,COUNTRY_INFO!O34*($E34-$D34)),IF(AND($E34<>0,$I34<>0),IF($F34=0,COUNTRY_INFO!O34*$I34,COUNTRY_INFO!O34*($I34-$D34)),0)),IF($I34="",COUNTRY_INFO!O34*$E34,COUNTRY_INFO!O34*$I34))) -> 0 | K34: =MAX(0,IF(OR(COUNTRY_INFO!P34="Unknown",COUNTRY_INFO!P34="Surveillance",COUNTRY_INFO!P34="Not required",COUNTRY_INFO!P34=0),0,IF($E34<>0,IF($D34=0,COUNTRY_INFO!P34*$E34,COUNTRY_INFO!P34*$E34-($F34*COUNTRY_INFO!$P34/(COUNTRY_INFO!$F34+COUNTRY_INFO!$G34)+IF($G34=" ",0,COUNTRY_INFO!$P34/(COUNTRY_INFO!$F34+COUNTRY_INFO!$G34)*$G34*$H34))),0))) -> 0 | M34: =MAX(0,IF(OR(COUNTRY_INFO!Q34="Unknown",COUNTRY_INFO!Q34="Surveillance",COUNTRY_INFO!Q34="Not required",COUNTRY_INFO!Q34=0),0,IF($E34<>0,IF($D34=0,COUNTRY_INFO!Q34*MIN($E34,$L34),COUNTRY_INFO!Q34*MIN($E34,$L34)-($F34*COUNTRY_INFO!$Q34/(COUNTRY_INFO!$F34+COUNTRY_INFO!$G34)+IF($G34=" ",0,COUNTRY_INFO!$Q34/(COUNTRY_INFO!$F34+COUNTRY_INFO!$G34)*$G34*$H34))),0))) -> 0 | N34: 0 | O34: 0 | Q34: 0 | R34: 0 | T34: 0 | U34: 0 | W34: 0
A35: =IF(AND(INTRO!$E$37="Non-endemic",INTRO!$E$41="Non-endemic")," ",IF(COUNTRY_INFO!A35=0," ",COUNTRY_INFO!A35)) -> Tchad | B35: =IF(AND(INTRO!$E$37="Non-endemic",INTRO!$E$41="Non-endemic")," ",IF(COUNTRY_INFO!B35=0," ",COUNTRY_INFO!B35)) -> Ennedi Ouest | C35: =IF(AND(INTRO!$E$37="Non-endemic",INTRO!$E$41="Non-endemic")," ",IF(COUNTRY_INFO!C35=0," ",COUNTRY_INFO!C35)) -> Kalaït | D35: =IF(AND(INTRO!$E$37="Non-endemic",INTRO!$E$41="Non-endemic"),0,COUNTRY_INFO!W35) -> 0 | E35: =IF(AND(INTRO!$E$37="Non-endemic",INTRO!$E$41="Non-endemic"),0,COUNTRY_INFO!Y35) -> 0 | F35: =IF($D35=1,IVM!G35,0) -> 0 | G35: =IF($D35=0, " ", IF(COUNTRY_INFO!$H35=1, IF(COUNTRY_INFO!$L35=1, 0," ")," ")) ->  | J35: =IF(OR(COUNTRY_INFO!O35="Unknown",COUNTRY_INFO!O35="Surveillance",COUNTRY_INFO!O35="Not required",COUNTRY_INFO!O35=0),0,IF(INTRO!$E$39="Non-endemic",IF(AND($E35<>0,$I35=""),IF($F35=0,COUNTRY_INFO!O35*$E35,COUNTRY_INFO!O35*($E35-$D35)),IF(AND($E35<>0,$I35<>0),IF($F35=0,COUNTRY_INFO!O35*$I35,COUNTRY_INFO!O35*($I35-$D35)),0)),IF($I35="",COUNTRY_INFO!O35*$E35,COUNTRY_INFO!O35*$I35))) -> 0 | K35: =MAX(0,IF(OR(COUNTRY_INFO!P35="Unknown",COUNTRY_INFO!P35="Surveillance",COUNTRY_INFO!P35="Not required",COUNTRY_INFO!P35=0),0,IF($E35<>0,IF($D35=0,COUNTRY_INFO!P35*$E35,COUNTRY_INFO!P35*$E35-($F35*COUNTRY_INFO!$P35/(COUNTRY_INFO!$F35+COUNTRY_INFO!$G35)+IF($G35=" ",0,COUNTRY_INFO!$P35/(COUNTRY_INFO!$F35+COUNTRY_INFO!$G35)*$G35*$H35))),0))) -> 0 | M35: =MAX(0,IF(OR(COUNTRY_INFO!Q35="Unknown",COUNTRY_INFO!Q35="Surveillance",COUNTRY_INFO!Q35="Not required",COUNTRY_INFO!Q35=0),0,IF($E35<>0,IF($D35=0,COUNTRY_INFO!Q35*MIN($E35,$L35),COUNTRY_INFO!Q35*MIN($E35,$L35)-($F35*COUNTRY_INFO!$Q35/(COUNTRY_INFO!$F35+COUNTRY_INFO!$G35)+IF($G35=" ",0,COUNTRY_INFO!$Q35/(COUNTRY_INFO!$F35+COUNTRY_INFO!$G35)*$G35*$H35))),0))) -> 0 | N35: 0 | O35: 0 | Q35: 0 | R35: 0 | T35: 0 | U35: 0 | W35: 0
A36: =IF(AND(INTRO!$E$37="Non-endemic",INTRO!$E$41="Non-endemic")," ",IF(COUNTRY_INFO!A36=0," ",COUNTRY_INFO!A36)) -> Tchad | B36: =IF(AND(INTRO!$E$37="Non-endemic",INTRO!$E$41="Non-endemic")," ",IF(COUNTRY_INFO!B36=0," ",COUNTRY_INFO!B36)) -> Ennedi Ouest | C36: =IF(AND(INTRO!$E$37="Non-endemic",INTRO!$E$41="Non-endemic")," ",IF(COUNTRY_INFO!C36=0," ",COUNTRY_INFO!C36)) -> Ounianga Kebbir | D36: =IF(AND(INTRO!$E$37="Non-endemic",INTRO!$E$41="Non-endemic"),0,COUNTRY_INFO!W36) -> 0 | E36: =IF(AND(INTRO!$E$37="Non-endemic",INTRO!$E$41="Non-endemic"),0,COUNTRY_INFO!Y36) -> 0 | F36: =IF($D36=1,IVM!G36,0) -> 0 | G36: =IF($D36=0, " ", IF(COUNTRY_INFO!$H36=1, IF(COUNTRY_INFO!$L36=1, 0," ")," ")) ->  | J36: =IF(OR(COUNTRY_INFO!O36="Unknown",COUNTRY_INFO!O36="Surveillance",COUNTRY_INFO!O36="Not required",COUNTRY_INFO!O36=0),0,IF(INTRO!$E$39="Non-endemic",IF(AND($E36<>0,$I36=""),IF($F36=0,COUNTRY_INFO!O36*$E36,COUNTRY_INFO!O36*($E36-$D36)),IF(AND($E36<>0,$I36<>0),IF($F36=0,COUNTRY_INFO!O36*$I36,COUNTRY_INFO!O36*($I36-$D36)),0)),IF($I36="",COUNTRY_INFO!O36*$E36,COUNTRY_INFO!O36*$I36))) -> 0 | K36: =MAX(0,IF(OR(COUNTRY_INFO!P36="Unknown",COUNTRY_INFO!P36="Surveillance",COUNTRY_INFO!P36="Not required",COUNTRY_INFO!P36=0),0,IF($E36<>0,IF($D36=0,COUNTRY_INFO!P36*$E36,COUNTRY_INFO!P36*$E36-($F36*COUNTRY_INFO!$P36/(COUNTRY_INFO!$F36+COUNTRY_INFO!$G36)+IF($G36=" ",0,COUNTRY_INFO!$P36/(COUNTRY_INFO!$F36+COUNTRY_INFO!$G36)*$G36*$H36))),0))) -> 0 | M36: =MAX(0,IF(OR(COUNTRY_INFO!Q36="Unknown",COUNTRY_INFO!Q36="Surveillance",COUNTRY_INFO!Q36="Not required",COUNTRY_INFO!Q36=0),0,IF($E36<>0,IF($D36=0,COUNTRY_INFO!Q36*MIN($E36,$L36),COUNTRY_INFO!Q36*MIN($E36,$L36)-($F36*COUNTRY_INFO!$Q36/(COUNTRY_INFO!$F36+COUNTRY_INFO!$G36)+IF($G36=" ",0,COUNTRY_INFO!$Q36/(COUNTRY_INFO!$F36+COUNTRY_INFO!$G36)*$G36*$H36))),0))) -> 0 | N36: 0 | O36: 0 | Q36: 0 | R36: 0 | T36: 0 | U36: 0 | W36: 0
A37: =IF(AND(INTRO!$E$37="Non-endemic",INTRO!$E$41="Non-endemic")," ",IF(COUNTRY_INFO!A37=0," ",COUNTRY_INFO!A37)) -> Tchad | B37: =IF(AND(INTRO!$E$37="Non-endemic",INTRO!$E$41="Non-endemic")," ",IF(COUNTRY_INFO!B37=0," ",COUNTRY_INFO!B37)) -> Guéra | C37: =IF(AND(INTRO!$E$37="Non-endemic",INTRO!$E$41="Non-endemic")," ",IF(COUNTRY_INFO!C37=0," ",COUNTRY_INFO!C37)) -> Barou | D37: =IF(AND(INTRO!$E$37="Non-endemic",INTRO!$E$41="Non-endemic"),0,COUNTRY_INFO!W37) -> 0 | E37: =IF(AND(INTRO!$E$37="Non-endemic",INTRO!$E$41="Non-endemic"),0,COUNTRY_INFO!Y37) -> 0 | F37: =IF($D37=1,IVM!G37,0) -> 0 | G37: =IF($D37=0, " ", IF(COUNTRY_INFO!$H37=1, IF(COUNTRY_INFO!$L37=1, 0," ")," ")) ->  | J37: =IF(OR(COUNTRY_INFO!O37="Unknown",COUNTRY_INFO!O37="Surveillance",COUNTRY_INFO!O37="Not required",COUNTRY_INFO!O37=0),0,IF(INTRO!$E$39="Non-endemic",IF(AND($E37<>0,$I37=""),IF($F37=0,COUNTRY_INFO!O37*$E37,COUNTRY_INFO!O37*($E37-$D37)),IF(AND($E37<>0,$I37<>0),IF($F37=0,COUNTRY_INFO!O37*$I37,COUNTRY_INFO!O37*($I37-$D37)),0)),IF($I37="",COUNTRY_INFO!O37*$E37,COUNTRY_INFO!O37*$I37))) -> 0 | K37: =MAX(0,IF(OR(COUNTRY_INFO!P37="Unknown",COUNTRY_INFO!P37="Surveillance",COUNTRY_INFO!P37="Not required",COUNTRY_INFO!P37=0),0,IF($E37<>0,IF($D37=0,COUNTRY_INFO!P37*$E37,COUNTRY_INFO!P37*$E37-($F37*COUNTRY_INFO!$P37/(COUNTRY_INFO!$F37+COUNTRY_INFO!$G37)+IF($G37=" ",0,COUNTRY_INFO!$P37/(COUNTRY_INFO!$F37+COUNTRY_INFO!$G37)*$G37*$H37))),0))) -> 0 | M37: =MAX(0,IF(OR(COUNTRY_INFO!Q37="Unknown",COUNTRY_INFO!Q37="Surveillance",COUNTRY_INFO!Q37="Not required",COUNTRY_INFO!Q37=0),0,IF($E37<>0,IF($D37=0,COUNTRY_INFO!Q37*MIN($E37,$L37),COUNTRY_INFO!Q37*MIN($E37,$L37)-($F37*COUNTRY_INFO!$Q37/(COUNTRY_INFO!$F37+COUNTRY_INFO!$G37)+IF($G37=" ",0,COUNTRY_INFO!$Q37/(COUNTRY_INFO!$F37+COUNTRY_INFO!$G37)*$G37*$H37))),0))) -> 0 | N37: 0 | O37: 0 | Q37: 0 | R37: 0 | T37: 0 | U37: 0 | W37: 0
A38: =IF(AND(INTRO!$E$37="Non-endemic",INTRO!$E$41="Non-endemic")," ",IF(COUNTRY_INFO!A38=0," ",COUNTRY_INFO!A38)) -> Tchad | B38: =IF(AND(INTRO!$E$37="Non-endemic",INTRO!$E$41="Non-endemic")," ",IF(COUNTRY_INFO!B38=0," ",COUNTRY_INFO!B38)) -> Guéra | C38: =IF(AND(INTRO!$E$37="Non-endemic",INTRO!$E$41="Non-endemic")," ",IF(COUNTRY_INFO!C38=0," ",COUNTRY_INFO!C38)) -> Bitkine | D38: =IF(AND(INTRO!$E$37="Non-endemic",INTRO!$E$41="Non-endemic"),0,COUNTRY_INFO!W38) -> 0 | E38: =IF(AND(INTRO!$E$37="Non-endemic",INTRO!$E$41="Non-endemic"),0,COUNTRY_INFO!Y38) -> 0 | F38: =IF($D38=1,IVM!G38,0) -> 0 | G38: =IF($D38=0, " ", IF(COUNTRY_INFO!$H38=1, IF(COUNTRY_INFO!$L38=1, 0," ")," ")) ->  | J38: =IF(OR(COUNTRY_INFO!O38="Unknown",COUNTRY_INFO!O38="Surveillance",COUNTRY_INFO!O38="Not required",COUNTRY_INFO!O38=0),0,IF(INTRO!$E$39="Non-endemic",IF(AND($E38<>0,$I38=""),IF($F38=0,COUNTRY_INFO!O38*$E38,COUNTRY_INFO!O38*($E38-$D38)),IF(AND($E38<>0,$I38<>0),IF($F38=0,COUNTRY_INFO!O38*$I38,COUNTRY_INFO!O38*($I38-$D38)),0)),IF($I38="",COUNTRY_INFO!O38*$E38,COUNTRY_INFO!O38*$I38))) -> 0 | K38: =MAX(0,IF(OR(COUNTRY_INFO!P38="Unknown",COUNTRY_INFO!P38="Surveillance",COUNTRY_INFO!P38="Not required",COUNTRY_INFO!P38=0),0,IF($E38<>0,IF($D38=0,COUNTRY_INFO!P38*$E38,COUNTRY_INFO!P38*$E38-($F38*COUNTRY_INFO!$P38/(COUNTRY_INFO!$F38+COUNTRY_INFO!$G38)+IF($G38=" ",0,COUNTRY_INFO!$P38/(COUNTRY_INFO!$F38+COUNTRY_INFO!$G38)*$G38*$H38))),0))) -> 0 | M38: =MAX(0,IF(OR(COUNTRY_INFO!Q38="Unknown",COUNTRY_INFO!Q38="Surveillance",COUNTRY_INFO!Q38="Not required",COUNTRY_INFO!Q38=0),0,IF($E38<>0,IF($D38=0,COUNTRY_INFO!Q38*MIN($E38,$L38),COUNTRY_INFO!Q38*MIN($E38,$L38)-($F38*COUNTRY_INFO!$Q38/(COUNTRY_INFO!$F38+COUNTRY_INFO!$G38)+IF($G38=" ",0,COUNTRY_INFO!$Q38/(COUNTRY_INFO!$F38+COUNTRY_INFO!$G38)*$G38*$H38))),0))) -> 0 | N38: 0 | O38: 0 | Q38: 0 | R38: 0 | T38: 0 | U38: 0 | W38: 0
A39: =IF(AND(INTRO!$E$37="Non-endemic",INTRO!$E$41="Non-endemic")," ",IF(COUNTRY_INFO!A39=0," ",COUNTRY_INFO!A39)) -> Tchad | B39: =IF(AND(INTRO!$E$37="Non-endemic",INTRO!$E$41="Non-endemic")," ",IF(COUNTRY_INFO!B39=0," ",COUNTRY_INFO!B39)) -> Guéra | C39: =IF(AND(INTRO!$E$37="Non-endemic",INTRO!$E$41="Non-endemic")," ",IF(COUNTRY_INFO!C39=0," ",COUNTRY_INFO!C39)) -> Mangalmé | D39: =IF(AND(INTRO!$E$37="Non-endemic",INTRO!$E$41="Non-endemic"),0,COUNTRY_INFO!W39) -> 0 | E39: =IF(AND(INTRO!$E$37="Non-endemic",INTRO!$E$41="Non-endemic"),0,COUNTRY_INFO!Y39) -> 0 | F39: =IF($D39=1,IVM!G39,0) -> 0 | G39: =IF($D39=0, " ", IF(COUNTRY_INFO!$H39=1, IF(COUNTRY_INFO!$L39=1, 0," ")," ")) ->  | J39: =IF(OR(COUNTRY_INFO!O39="Unknown",COUNTRY_INFO!O39="Surveillance",COUNTRY_INFO!O39="Not required",COUNTRY_INFO!O39=0),0,IF(INTRO!$E$39="Non-endemic",IF(AND($E39<>0,$I39=""),IF($F39=0,COUNTRY_INFO!O39*$E39,COUNTRY_INFO!O39*($E39-$D39)),IF(AND($E39<>0,$I39<>0),IF($F39=0,COUNTRY_INFO!O39*$I39,COUNTRY_INFO!O39*($I39-$D39)),0)),IF($I39="",COUNTRY_INFO!O39*$E39,COUNTRY_INFO!O39*$I39))) -> 0 | K39: =MAX(0,IF(OR(COUNTRY_INFO!P39="Unknown",COUNTRY_INFO!P39="Surveillance",COUNTRY_INFO!P39="Not required",COUNTRY_INFO!P39=0),0,IF($E39<>0,IF($D39=0,COUNTRY_INFO!P39*$E39,COUNTRY_INFO!P39*$E39-($F39*COUNTRY_INFO!$P39/(COUNTRY_INFO!$F39+COUNTRY_INFO!$G39)+IF($G39=" ",0,COUNTRY_INFO!$P39/(COUNTRY_INFO!$F39+COUNTRY_INFO!$G39)*$G39*$H39))),0))) -> 0 | M39: =MAX(0,IF(OR(COUNTRY_INFO!Q39="Unknown",COUNTRY_INFO!Q39="Surveillance",COUNTRY_INFO!Q39="Not required",COUNTRY_INFO!Q39=0),0,IF($E39<>0,IF($D39=0,COUNTRY_INFO!Q39*MIN($E39,$L39),COUNTRY_INFO!Q39*MIN($E39,$L39)-($F39*COUNTRY_INFO!$Q39/(COUNTRY_INFO!$F39+COUNTRY_INFO!$G39)+IF($G39=" ",0,COUNTRY_INFO!$Q39/(COUNTRY_INFO!$F39+COUNTRY_INFO!$G39)*$G39*$H39))),0))) -> 0 | N39: 0 | O39: 0 | Q39: 0 | R39: 0 | T39: 0 | U39: 0 | W39: 0
A40: =IF(AND(INTRO!$E$37="Non-endemic",INTRO!$E$41="Non-endemic")," ",IF(COUNTRY_INFO!A40=0," ",COUNTRY_INFO!A40)) -> Tchad | B40: =IF(AND(INTRO!$E$37="Non-endemic",INTRO!$E$41="Non-endemic")," ",IF(COUNTRY_INFO!B40=0," ",COUNTRY_INFO!B40)) -> Guéra | C40: =IF(AND(INTRO!$E$37="Non-endemic",INTRO!$E$41="Non-endemic")," ",IF(COUNTRY_INFO!C40=0," ",COUNTRY_INFO!C40)) -> Melfi | D40: =IF(AND(INTRO!$E$37="Non-endemic",INTRO!$E$41="Non-endemic"),0,COUNTRY_INFO!W40) -> 0 | E40: =IF(AND(INTRO!$E$37="Non-endemic",INTRO!$E$41="Non-endemic"),0,COUNTRY_INFO!Y40) -> 0 | F40: =IF($D40=1,IVM!G40,0) -> 0 | G40: =IF($D40=0, " ", IF(COUNTRY_INFO!$H40=1, IF(COUNTRY_INFO!$L40=1, 0," ")," ")) ->  | J40: =IF(OR(COUNTRY_INFO!O40="Unknown",COUNTRY_INFO!O40="Surveillance",COUNTRY_INFO!O40="Not required",COUNTRY_INFO!O40=0),0,IF(INTRO!$E$39="Non-endemic",IF(AND($E40<>0,$I40=""),IF($F40=0,COUNTRY_INFO!O40*$E40,COUNTRY_INFO!O40*($E40-$D40)),IF(AND($E40<>0,$I40<>0),IF($F40=0,COUNTRY_INFO!O40*$I40,COUNTRY_INFO!O40*($I40-$D40)),0)),IF($I40="",COUNTRY_INFO!O40*$E40,COUNTRY_INFO!O40*$I40))) -> 0 | K40: =MAX(0,IF(OR(COUNTRY_INFO!P40="Unknown",COUNTRY_INFO!P40="Surveillance",COUNTRY_INFO!P40="Not required",COUNTRY_INFO!P40=0),0,IF($E40<>0,IF($D40=0,COUNTRY_INFO!P40*$E40,COUNTRY_INFO!P40*$E40-($F40*COUNTRY_INFO!$P40/(COUNTRY_INFO!$F40+COUNTRY_INFO!$G40)+IF($G40=" ",0,COUNTRY_INFO!$P40/(COUNTRY_INFO!$F40+COUNTRY_INFO!$G40)*$G40*$H40))),0))) -> 0 | M40: =MAX(0,IF(OR(COUNTRY_INFO!Q40="Unknown",COUNTRY_INFO!Q40="Surveillance",COUNTRY_INFO!Q40="Not required",COUNTRY_INFO!Q40=0),0,IF($E40<>0,IF($D40=0,COUNTRY_INFO!Q40*MIN($E40,$L40),COUNTRY_INFO!Q40*MIN($E40,$L40)-($F40*COUNTRY_INFO!$Q40/(COUNTRY_INFO!$F40+COUNTRY_INFO!$G40)+IF($G40=" ",0,COUNTRY_INFO!$Q40/(COUNTRY_INFO!$F40+COUNTRY_INFO!$G40)*$G40*$H40))),0))) -> 0 | N40: 0 | O40: 0 | Q40: 0 | R40: 0 | T40: 0 | U40: 0 | W40: 0
A41: =IF(AND(INTRO!$E$37="Non-endemic",INTRO!$E$41="Non-endemic")," ",IF(COUNTRY_INFO!A41=0," ",COUNTRY_INFO!A41)) -> Tchad | B41: =IF(AND(INTRO!$E$37="Non-endemic",INTRO!$E$41="Non-endemic")," ",IF(COUNTRY_INFO!B41=0," ",COUNTRY_INFO!B41)) -> Guéra | C41: =IF(AND(INTRO!$E$37="Non-endemic",INTRO!$E$41="Non-endemic")," ",IF(COUNTRY_INFO!C41=0," ",COUNTRY_INFO!C41)) -> Mongo | D41: =IF(AND(INTRO!$E$37="Non-endemic",INTRO!$E$41="Non-endemic"),0,COUNTRY_INFO!W41) -> 0 | E41: =IF(AND(INTRO!$E$37="Non-endemic",INTRO!$E$41="Non-endemic"),0,COUNTRY_INFO!Y41) -> 0 | F41: =IF($D41=1,IVM!G41,0) -> 0 | G41: =IF($D41=0, " ", IF(COUNTRY_INFO!$H41=1, IF(COUNTRY_INFO!$L41=1, 0," ")," ")) ->  | J41: =IF(OR(COUNTRY_INFO!O41="Unknown",COUNTRY_INFO!O41="Surveillance",COUNTRY_INFO!O41="Not required",COUNTRY_INFO!O41=0),0,IF(INTRO!$E$39="Non-endemic",IF(AND($E41<>0,$I41=""),IF($F41=0,COUNTRY_INFO!O41*$E41,COUNTRY_INFO!O41*($E41-$D41)),IF(AND($E41<>0,$I41<>0),IF($F41=0,COUNTRY_INFO!O41*$I41,COUNTRY_INFO!O41*($I41-$D41)),0)),IF($I41="",COUNTRY_INFO!O41*$E41,COUNTRY_INFO!O41*$I41))) -> 0 | K41: =MAX(0,IF(OR(COUNTRY_INFO!P41="Unknown",COUNTRY_INFO!P41="Surveillance",COUNTRY_INFO!P41="Not required",COUNTRY_INFO!P41=0),0,IF($E41<>0,IF($D41=0,COUNTRY_INFO!P41*$E41,COUNTRY_INFO!P41*$E41-($F41*COUNTRY_INFO!$P41/(COUNTRY_INFO!$F41+COUNTRY_INFO!$G41)+IF($G41=" ",0,COUNTRY_INFO!$P41/(COUNTRY_INFO!$F41+COUNTRY_INFO!$G41)*$G41*$H41))),0))) -> 0 | M41: =MAX(0,IF(OR(COUNTRY_INFO!Q41="Unknown",COUNTRY_INFO!Q41="Surveillance",COUNTRY_INFO!Q41="Not required",COUNTRY_INFO!Q41=0),0,IF($E41<>0,IF($D41=0,COUNTRY_INFO!Q41*MIN($E41,$L41),COUNTRY_INFO!Q41*MIN($E41,$L41)-($F41*COUNTRY_INFO!$Q41/(COUNTRY_INFO!$F41+COUNTRY_INFO!$G41)+IF($G41=" ",0,COUNTRY_INFO!$Q41/(COUNTRY_INFO!$F41+COUNTRY_INFO!$G41)*$G41*$H41))),0))) -> 0 | N41: 0 | O41: 0 | Q41: 0 | R41: 0 | T41: 0 | U41: 0 | W41: 0
A42: =IF(AND(INTRO!$E$37="Non-endemic",INTRO!$E$41="Non-endemic")," ",IF(COUNTRY_INFO!A42=0," ",COUNTRY_INFO!A42)) -> Tchad | B42: =IF(AND(INTRO!$E$37="Non-endemic",INTRO!$E$41="Non-endemic")," ",IF(COUNTRY_INFO!B42=0," ",COUNTRY_INFO!B42)) -> Hadjer Lamis | C42: =IF(AND(INTRO!$E$37="Non-endemic",INTRO!$E$41="Non-endemic")," ",IF(COUNTRY_INFO!C42=0," ",COUNTRY_INFO!C42)) -> Bokoro | D42: =IF(AND(INTRO!$E$37="Non-endemic",INTRO!$E$41="Non-endemic"),0,COUNTRY_INFO!W42) -> 0 | E42: =IF(AND(INTRO!$E$37="Non-endemic",INTRO!$E$41="Non-endemic"),0,COUNTRY_INFO!Y42) -> 0 | F42: =IF($D42=1,IVM!G42,0) -> 0 | G42: =IF($D42=0, " ", IF(COUNTRY_INFO!$H42=1, IF(COUNTRY_INFO!$L42=1, 0," ")," ")) ->  | J42: =IF(OR(COUNTRY_INFO!O42="Unknown",COUNTRY_INFO!O42="Surveillance",COUNTRY_INFO!O42="Not required",COUNTRY_INFO!O42=0),0,IF(INTRO!$E$39="Non-endemic",IF(AND($E42<>0,$I42=""),IF($F42=0,COUNTRY_INFO!O42*$E42,COUNTRY_INFO!O42*($E42-$D42)),IF(AND($E42<>0,$I42<>0),IF($F42=0,COUNTRY_INFO!O42*$I42,COUNTRY_INFO!O42*($I42-$D42)),0)),IF($I42="",COUNTRY_INFO!O42*$E42,COUNTRY_INFO!O42*$I42))) -> 0 | K42: =MAX(0,IF(OR(COUNTRY_INFO!P42="Unknown",COUNTRY_INFO!P42="Surveillance",COUNTRY_INFO!P42="Not required",COUNTRY_INFO!P42=0),0,IF($E42<>0,IF($D42=0,COUNTRY_INFO!P42*$E42,COUNTRY_INFO!P42*$E42-($F42*COUNTRY_INFO!$P42/(COUNTRY_INFO!$F42+COUNTRY_INFO!$G42)+IF($G42=" ",0,COUNTRY_INFO!$P42/(COUNTRY_INFO!$F42+COUNTRY_INFO!$G42)*$G42*$H42))),0))) -> 0 | M42: =MAX(0,IF(OR(COUNTRY_INFO!Q42="Unknown",COUNTRY_INFO!Q42="Surveillance",COUNTRY_INFO!Q42="Not required",COUNTRY_INFO!Q42=0),0,IF($E42<>0,IF($D42=0,COUNTRY_INFO!Q42*MIN($E42,$L42),COUNTRY_INFO!Q42*MIN($E42,$L42)-($F42*COUNTRY_INFO!$Q42/(COUNTRY_INFO!$F42+COUNTRY_INFO!$G42)+IF($G42=" ",0,COUNTRY_INFO!$Q42/(COUNTRY_INFO!$F42+COUNTRY_INFO!$G42)*$G42*$H42))),0))) -> 0 | N42: 0 | O42: 0 | Q42: 0 | R42: 0 | T42: 0 | U42: 0 | W42: 0
A43: =IF(AND(INTRO!$E$37="Non-endemic",INTRO!$E$41="Non-endemic")," ",IF(COUNTRY_INFO!A43=0," ",COUNTRY_INFO!A43)) -> Tchad | B43: =IF(AND(INTRO!$E$37="Non-endemic",INTRO!$E$41="Non-endemic")," ",IF(COUNTRY_INFO!B43=0," ",COUNTRY_INFO!B43)) -> Hadjer Lamis | C43: =IF(AND(INTRO!$E$37="Non-endemic",INTRO!$E$41="Non-endemic")," ",IF(COUNTRY_INFO!C43=0," ",COUNTRY_INFO!C43)) -> Gama | D43: =IF(AND(INTRO!$E$37="Non-endemic",INTRO!$E$41="Non-endemic"),0,COUNTRY_INFO!W43) -> 0 | E43: =IF(AND(INTRO!$E$37="Non-endemic",INTRO!$E$41="Non-endemic"),0,COUNTRY_INFO!Y43) -> 0 | F43: =IF($D43=1,IVM!G43,0) -> 0 | G43: =IF($D43=0, " ", IF(COUNTRY_INFO!$H43=1, IF(COUNTRY_INFO!$L43=1, 0," ")," ")) ->  | J43: =IF(OR(COUNTRY_INFO!O43="Unknown",COUNTRY_INFO!O43="Surveillance",COUNTRY_INFO!O43="Not required",COUNTRY_INFO!O43=0),0,IF(INTRO!$E$39="Non-endemic",IF(AND($E43<>0,$I43=""),IF($F43=0,COUNTRY_INFO!O43*$E43,COUNTRY_INFO!O43*($E43-$D43)),IF(AND($E43<>0,$I43<>0),IF($F43=0,COUNTRY_INFO!O43*$I43,COUNTRY_INFO!O43*($I43-$D43)),0)),IF($I43="",COUNTRY_INFO!O43*$E43,COUNTRY_INFO!O43*$I43))) -> 0 | K43: =MAX(0,IF(OR(COUNTRY_INFO!P43="Unknown",COUNTRY_INFO!P43="Surveillance",COUNTRY_INFO!P43="Not required",COUNTRY_INFO!P43=0),0,IF($E43<>0,IF($D43=0,COUNTRY_INFO!P43*$E43,COUNTRY_INFO!P43*$E43-($F43*COUNTRY_INFO!$P43/(COUNTRY_INFO!$F43+COUNTRY_INFO!$G43)+IF($G43=" ",0,COUNTRY_INFO!$P43/(COUNTRY_INFO!$F43+COUNTRY_INFO!$G43)*$G43*$H43))),0))) -> 0 | M43: =MAX(0,IF(OR(COUNTRY_INFO!Q43="Unknown",COUNTRY_INFO!Q43="Surveillance",COUNTRY_INFO!Q43="Not required",COUNTRY_INFO!Q43=0),0,IF($E43<>0,IF($D43=0,COUNTRY_INFO!Q43*MIN($E43,$L43),COUNTRY_INFO!Q43*MIN($E43,$L43)-($F43*COUNTRY_INFO!$Q43/(COUNTRY_INFO!$F43+COUNTRY_INFO!$G43)+IF($G43=" ",0,COUNTRY_INFO!$Q43/(COUNTRY_INFO!$F43+COUNTRY_INFO!$G43)*$G43*$H43))),0))) -> 0 | N43: 0 | O43: 0 | Q43: 0 | R43: 0 | T43: 0 | U43: 0 | W43: 0
A44: =IF(AND(INTRO!$E$37="Non-endemic",INTRO!$E$41="Non-endemic")," ",IF(COUNTRY_INFO!A44=0," ",COUNTRY_INFO!A44)) -> Tchad | B44: =IF(AND(INTRO!$E$37="Non-endemic",INTRO!$E$41="Non-endemic")," ",IF(COUNTRY_INFO!B44=0," ",COUNTRY_INFO!B44)) -> Hadjar Lamis | C44: =IF(AND(INTRO!$E$37="Non-endemic",INTRO!$E$41="Non-endemic")," ",IF(COUNTRY_INFO!C44=0," ",COUNTRY_INFO!C44)) -> Karal | D44: =IF(AND(INTRO!$E$37="Non-endemic",INTRO!$E$41="Non-endemic"),0,COUNTRY_INFO!W44) -> 0 | E44: =IF(AND(INTRO!$E$37="Non-endemic",INTRO!$E$41="Non-endemic"),0,COUNTRY_INFO!Y44) -> 0 | F44: =IF($D44=1,IVM!G44,0) -> 0 | G44: =IF($D44=0, " ", IF(COUNTRY_INFO!$H44=1, IF(COUNTRY_INFO!$L44=1, 0," ")," ")) ->  | J44: =IF(OR(COUNTRY_INFO!O44="Unknown",COUNTRY_INFO!O44="Surveillance",COUNTRY_INFO!O44="Not required",COUNTRY_INFO!O44=0),0,IF(INTRO!$E$39="Non-endemic",IF(AND($E44<>0,$I44=""),IF($F44=0,COUNTRY_INFO!O44*$E44,COUNTRY_INFO!O44*($E44-$D44)),IF(AND($E44<>0,$I44<>0),IF($F44=0,COUNTRY_INFO!O44*$I44,COUNTRY_INFO!O44*($I44-$D44)),0)),IF($I44="",COUNTRY_INFO!O44*$E44,COUNTRY_INFO!O44*$I44))) -> 0 | K44: =MAX(0,IF(OR(COUNTRY_INFO!P44="Unknown",COUNTRY_INFO!P44="Surveillance",COUNTRY_INFO!P44="Not required",COUNTRY_INFO!P44=0),0,IF($E44<>0,IF($D44=0,COUNTRY_INFO!P44*$E44,COUNTRY_INFO!P44*$E44-($F44*COUNTRY_INFO!$P44/(COUNTRY_INFO!$F44+COUNTRY_INFO!$G44)+IF($G44=" ",0,COUNTRY_INFO!$P44/(COUNTRY_INFO!$F44+COUNTRY_INFO!$G44)*$G44*$H44))),0))) -> 0 | M44: =MAX(0,IF(OR(COUNTRY_INFO!Q44="Unknown",COUNTRY_INFO!Q44="Surveillance",COUNTRY_INFO!Q44="Not required",COUNTRY_INFO!Q44=0),0,IF($E44<>0,IF($D44=0,COUNTRY_INFO!Q44*MIN($E44,$L44),COUNTRY_INFO!Q44*MIN($E44,$L44)-($F44*COUNTRY_INFO!$Q44/(COUNTRY_INFO!$F44+COUNTRY_INFO!$G44)+IF($G44=" ",0,COUNTRY_INFO!$Q44/(COUNTRY_INFO!$F44+COUNTRY_INFO!$G44)*$G44*$H44))),0))) -> 0 | N44: 0 | O44: 0 | Q44: 0 | R44: 0 | T44: 0 | U44: 0 | W44: 0
A45: =IF(AND(INTRO!$E$37="Non-endemic",INTRO!$E$41="Non-endemic")," ",IF(COUNTRY_INFO!A45=0," ",COUNTRY_INFO!A45)) -> Tchad | B45: =IF(AND(INTRO!$E$37="Non-endemic",INTRO!$E$41="Non-endemic")," ",IF(COUNTRY_INFO!B45=0," ",COUNTRY_INFO!B45)) -> Hadjer Lamis | C45: =IF(AND(INTRO!$E$37="Non-endemic",INTRO!$E$41="Non-endemic")," ",IF(COUNTRY_INFO!C45=0," ",COUNTRY_INFO!C45)) -> Mani | D45: =IF(AND(INTRO!$E$37="Non-endemic",INTRO!$E$41="Non-endemic"),0,COUNTRY_INFO!W45) -> 0 | E45: =IF(AND(INTRO!$E$37="Non-endemic",INTRO!$E$41="Non-endemic"),0,COUNTRY_INFO!Y45) -> 0 | F45: =IF($D45=1,IVM!G45,0) -> 0 | G45: =IF($D45=0, " ", IF(COUNTRY_INFO!$H45=1, IF(COUNTRY_INFO!$L45=1, 0," ")," ")) ->  | J45: =IF(OR(COUNTRY_INFO!O45="Unknown",COUNTRY_INFO!O45="Surveillance",COUNTRY_INFO!O45="Not required",COUNTRY_INFO!O45=0),0,IF(INTRO!$E$39="Non-endemic",IF(AND($E45<>0,$I45=""),IF($F45=0,COUNTRY_INFO!O45*$E45,COUNTRY_INFO!O45*($E45-$D45)),IF(AND($E45<>0,$I45<>0),IF($F45=0,COUNTRY_INFO!O45*$I45,COUNTRY_INFO!O45*($I45-$D45)),0)),IF($I45="",COUNTRY_INFO!O45*$E45,COUNTRY_INFO!O45*$I45))) -> 0 | K45: =MAX(0,IF(OR(COUNTRY_INFO!P45="Unknown",COUNTRY_INFO!P45="Surveillance",COUNTRY_INFO!P45="Not required",COUNTRY_INFO!P45=0),0,IF($E45<>0,IF($D45=0,COUNTRY_INFO!P45*$E45,COUNTRY_INFO!P45*$E45-($F45*COUNTRY_INFO!$P45/(COUNTRY_INFO!$F45+COUNTRY_INFO!$G45)+IF($G45=" ",0,COUNTRY_INFO!$P45/(COUNTRY_INFO!$F45+COUNTRY_INFO!$G45)*$G45*$H45))),0))) -> 0 | M45: =MAX(0,IF(OR(COUNTRY_INFO!Q45="Unknown",COUNTRY_INFO!Q45="Surveillance",COUNTRY_INFO!Q45="Not required",COUNTRY_INFO!Q45=0),0,IF($E45<>0,IF($D45=0,COUNTRY_INFO!Q45*MIN($E45,$L45),COUNTRY_INFO!Q45*MIN($E45,$L45)-($F45*COUNTRY_INFO!$Q45/(COUNTRY_INFO!$F45+COUNTRY_INFO!$G45)+IF($G45=" ",0,COUNTRY_INFO!$Q45/(COUNTRY_INFO!$F45+COUNTRY_INFO!$G45)*$G45*$H45))),0))) -> 0 | N45: 0 | O45: 0 | Q45: 0 | R45: 0 | T45: 0 | U45: 0 | W45: 0
A46: =IF(AND(INTRO!$E$37="Non-endemic",INTRO!$E$41="Non-endemic")," ",IF(COUNTRY_INFO!A46=0," ",COUNTRY_INFO!A46)) -> Tchad | B46: =IF(AND(INTRO!$E$37="Non-endemic",INTRO!$E$41="Non-endemic")," ",IF(COUNTRY_INFO!B46=0," ",COUNTRY_INFO!B46)) -> Hadjer Lamis | C46: =IF(AND(INTRO!$E$37="Non-endemic",INTRO!$E$41="Non-endemic")," ",IF(COUNTRY_INFO!C46=0," ",COUNTRY_INFO!C46)) -> Massaguet | D46: =IF(AND(INTRO!$E$37="Non-endemic",INTRO!$E$41="Non-endemic"),0,COUNTRY_INFO!W46) -> 0 | E46: =IF(AND(INTRO!$E$37="Non-endemic",INTRO!$E$41="Non-endemic"),0,COUNTRY_INFO!Y46) -> 0 | F46: =IF($D46=1,IVM!G46,0) -> 0 | G46: =IF($D46=0, " ", IF(COUNTRY_INFO!$H46=1, IF(COUNTRY_INFO!$L46=1, 0," ")," ")) ->  | J46: =IF(OR(COUNTRY_INFO!O46="Unknown",COUNTRY_INFO!O46="Surveillance",COUNTRY_INFO!O46="Not required",COUNTRY_INFO!O46=0),0,IF(INTRO!$E$39="Non-endemic",IF(AND($E46<>0,$I46=""),IF($F46=0,COUNTRY_INFO!O46*$E46,COUNTRY_INFO!O46*($E46-$D46)),IF(AND($E46<>0,$I46<>0),IF($F46=0,COUNTRY_INFO!O46*$I46,COUNTRY_INFO!O46*($I46-$D46)),0)),IF($I46="",COUNTRY_INFO!O46*$E46,COUNTRY_INFO!O46*$I46))) -> 0 | K46: =MAX(0,IF(OR(COUNTRY_INFO!P46="Unknown",COUNTRY_INFO!P46="Surveillance",COUNTRY_INFO!P46="Not required",COUNTRY_INFO!P46=0),0,IF($E46<>0,IF($D46=0,COUNTRY_INFO!P46*$E46,COUNTRY_INFO!P46*$E46-($F46*COUNTRY_INFO!$P46/(COUNTRY_INFO!$F46+COUNTRY_INFO!$G46)+IF($G46=" ",0,COUNTRY_INFO!$P46/(COUNTRY_INFO!$F46+COUNTRY_INFO!$G46)*$G46*$H46))),0))) -> 0 | M46: =MAX(0,IF(OR(COUNTRY_INFO!Q46="Unknown",COUNTRY_INFO!Q46="Surveillance",COUNTRY_INFO!Q46="Not required",COUNTRY_INFO!Q46=0),0,IF($E46<>0,IF($D46=0,COUNTRY_INFO!Q46*MIN($E46,$L46),COUNTRY_INFO!Q46*MIN($E46,$L46)-($F46*COUNTRY_INFO!$Q46/(COUNTRY_INFO!$F46+COUNTRY_INFO!$G46)+IF($G46=" ",0,COUNTRY_INFO!$Q46/(COUNTRY_INFO!$F46+COUNTRY_INFO!$G46)*$G46*$H46))),0))) -> 0 | N46: 0 | O46: 0 | Q46: 0 | R46: 0 | T46: 0 | U46: 0 | W46: 0
A47: =IF(AND(INTRO!$E$37="Non-endemic",INTRO!$E$41="Non-endemic")," ",IF(COUNTRY_INFO!A47=0," ",COUNTRY_INFO!A47)) -> Tchad | B47: =IF(AND(INTRO!$E$37="Non-endemic",INTRO!$E$41="Non-endemic")," ",IF(COUNTRY_INFO!B47=0," ",COUNTRY_INFO!B47)) -> Hadjer Lamis | C47: =IF(AND(INTRO!$E$37="Non-endemic",INTRO!$E$41="Non-endemic")," ",IF(COUNTRY_INFO!C47=0," ",COUNTRY_INFO!C47)) -> Massakory | D47: =IF(AND(INTRO!$E$37="Non-endemic",INTRO!$E$41="Non-endemic"),0,COUNTRY_INFO!W47) -> 0 | E47: =IF(AND(INTRO!$E$37="Non-endemic",INTRO!$E$41="Non-endemic"),0,COUNTRY_INFO!Y47) -> 0 | F47: =IF($D47=1,IVM!G47,0) -> 0 | G47: =IF($D47=0, " ", IF(COUNTRY_INFO!$H47=1, IF(COUNTRY_INFO!$L47=1, 0," ")," ")) ->  | J47: =IF(OR(COUNTRY_INFO!O47="Unknown",COUNTRY_INFO!O47="Surveillance",COUNTRY_INFO!O47="Not required",COUNTRY_INFO!O47=0),0,IF(INTRO!$E$39="Non-endemic",IF(AND($E47<>0,$I47=""),IF($F47=0,COUNTRY_INFO!O47*$E47,COUNTRY_INFO!O47*($E47-$D47)),IF(AND($E47<>0,$I47<>0),IF($F47=0,COUNTRY_INFO!O47*$I47,COUNTRY_INFO!O47*($I47-$D47)),0)),IF($I47="",COUNTRY_INFO!O47*$E47,COUNTRY_INFO!O47*$I47))) -> 0 | K47: =MAX(0,IF(OR(COUNTRY_INFO!P47="Unknown",COUNTRY_INFO!P47="Surveillance",COUNTRY_INFO!P47="Not required",COUNTRY_INFO!P47=0),0,IF($E47<>0,IF($D47=0,COUNTRY_INFO!P47*$E47,COUNTRY_INFO!P47*$E47-($F47*COUNTRY_INFO!$P47/(COUNTRY_INFO!$F47+COUNTRY_INFO!$G47)+IF($G47=" ",0,COUNTRY_INFO!$P47/(COUNTRY_INFO!$F47+COUNTRY_INFO!$G47)*$G47*$H47))),0))) -> 0 | M47: =MAX(0,IF(OR(COUNTRY_INFO!Q47="Unknown",COUNTRY_INFO!Q47="Surveillance",COUNTRY_INFO!Q47="Not required",COUNTRY_INFO!Q47=0),0,IF($E47<>0,IF($D47=0,COUNTRY_INFO!Q47*MIN($E47,$L47),COUNTRY_INFO!Q47*MIN($E47,$L47)-($F47*COUNTRY_INFO!$Q47/(COUNTRY_INFO!$F47+COUNTRY_INFO!$G47)+IF($G47=" ",0,COUNTRY_INFO!$Q47/(COUNTRY_INFO!$F47+COUNTRY_INFO!$G47)*$G47*$H47))),0))) -> 0 | N47: 0 | O47: 0 | Q47: 0 | R47: 0 | T47: 0 | U47: 0 | W47: 0
A48: =IF(AND(INTRO!$E$37="Non-endemic",INTRO!$E$41="Non-endemic")," ",IF(COUNTRY_INFO!A48=0," ",COUNTRY_INFO!A48)) -> Tchad | B48: =IF(AND(INTRO!$E$37="Non-endemic",INTRO!$E$41="Non-endemic")," ",IF(COUNTRY_INFO!B48=0," ",COUNTRY_INFO!B48)) -> Kanem | C48: =IF(AND(INTRO!$E$37="Non-endemic",INTRO!$E$41="Non-endemic")," ",IF(COUNTRY_INFO!C48=0," ",COUNTRY_INFO!C48)) -> Amdoback | D48: =IF(AND(INTRO!$E$37="Non-endemic",INTRO!$E$41="Non-endemic"),0,COUNTRY_INFO!W48) -> 0 | E48: =IF(AND(INTRO!$E$37="Non-endemic",INTRO!$E$41="Non-endemic"),0,COUNTRY_INFO!Y48) -> 0 | F48: =IF($D48=1,IVM!G48,0) -> 0 | G48: =IF($D48=0, " ", IF(COUNTRY_INFO!$H48=1, IF(COUNTRY_INFO!$L48=1, 0," ")," ")) ->  | J48: =IF(OR(COUNTRY_INFO!O48="Unknown",COUNTRY_INFO!O48="Surveillance",COUNTRY_INFO!O48="Not required",COUNTRY_INFO!O48=0),0,IF(INTRO!$E$39="Non-endemic",IF(AND($E48<>0,$I48=""),IF($F48=0,COUNTRY_INFO!O48*$E48,COUNTRY_INFO!O48*($E48-$D48)),IF(AND($E48<>0,$I48<>0),IF($F48=0,COUNTRY_INFO!O48*$I48,COUNTRY_INFO!O48*($I48-$D48)),0)),IF($I48="",COUNTRY_INFO!O48*$E48,COUNTRY_INFO!O48*$I48))) -> 0 | K48: =MAX(0,IF(OR(COUNTRY_INFO!P48="Unknown",COUNTRY_INFO!P48="Surveillance",COUNTRY_INFO!P48="Not required",COUNTRY_INFO!P48=0),0,IF($E48<>0,IF($D48=0,COUNTRY_INFO!P48*$E48,COUNTRY_INFO!P48*$E48-($F48*COUNTRY_INFO!$P48/(COUNTRY_INFO!$F48+COUNTRY_INFO!$G48)+IF($G48=" ",0,COUNTRY_INFO!$P48/(COUNTRY_INFO!$F48+COUNTRY_INFO!$G48)*$G48*$H48))),0))) -> 0 | M48: =MAX(0,IF(OR(COUNTRY_INFO!Q48="Unknown",COUNTRY_INFO!Q48="Surveillance",COUNTRY_INFO!Q48="Not required",COUNTRY_INFO!Q48=0),0,IF($E48<>0,IF($D48=0,COUNTRY_INFO!Q48*MIN($E48,$L48),COUNTRY_INFO!Q48*MIN($E48,$L48)-($F48*COUNTRY_INFO!$Q48/(COUNTRY_INFO!$F48+COUNTRY_INFO!$G48)+IF($G48=" ",0,COUNTRY_INFO!$Q48/(COUNTRY_INFO!$F48+COUNTRY_INFO!$G48)*$G48*$H48))),0))) -> 0 | N48: 0 | O48: 0 | Q48: 0 | R48: 0 | T48: 0 | U48: 0 | W48: 0
A49: =IF(AND(INTRO!$E$37="Non-endemic",INTRO!$E$41="Non-endemic")," ",IF(COUNTRY_INFO!A49=0," ",COUNTRY_INFO!A49)) -> Tchad | B49: =IF(AND(INTRO!$E$37="Non-endemic",INTRO!$E$41="Non-endemic")," ",IF(COUNTRY_INFO!B49=0," ",COUNTRY_INFO!B49)) -> Kanem | C49: =IF(AND(INTRO!$E$37="Non-endemic",INTRO!$E$41="Non-endemic")," ",IF(COUNTRY_INFO!C49=0," ",COUNTRY_INFO!C49)) -> Kekedina | D49: =IF(AND(INTRO!$E$37="Non-endemic",INTRO!$E$41="Non-endemic"),0,COUNTRY_INFO!W49) -> 0 | E49: =IF(AND(INTRO!$E$37="Non-endemic",INTRO!$E$41="Non-endemic"),0,COUNTRY_INFO!Y49) -> 0 | F49: =IF($D49=1,IVM!G49,0) -> 0 | G49: =IF($D49=0, " ", IF(COUNTRY_INFO!$H49=1, IF(COUNTRY_INFO!$L49=1, 0," ")," ")) ->  | J49: =IF(OR(COUNTRY_INFO!O49="Unknown",COUNTRY_INFO!O49="Surveillance",COUNTRY_INFO!O49="Not required",COUNTRY_INFO!O49=0),0,IF(INTRO!$E$39="Non-endemic",IF(AND($E49<>0,$I49=""),IF($F49=0,COUNTRY_INFO!O49*$E49,COUNTRY_INFO!O49*($E49-$D49)),IF(AND($E49<>0,$I49<>0),IF($F49=0,COUNTRY_INFO!O49*$I49,COUNTRY_INFO!O49*($I49-$D49)),0)),IF($I49="",COUNTRY_INFO!O49*$E49,COUNTRY_INFO!O49*$I49))) -> 0 | K49: =MAX(0,IF(OR(COUNTRY_INFO!P49="Unknown",COUNTRY_INFO!P49="Surveillance",COUNTRY_INFO!P49="Not required",COUNTRY_INFO!P49=0),0,IF($E49<>0,IF($D49=0,COUNTRY_INFO!P49*$E49,COUNTRY_INFO!P49*$E49-($F49*COUNTRY_INFO!$P49/(COUNTRY_INFO!$F49+COUNTRY_INFO!$G49)+IF($G49=" ",0,COUNTRY_INFO!$P49/(COUNTRY_INFO!$F49+COUNTRY_INFO!$G49)*$G49*$H49))),0))) -> 0 | M49: =MAX(0,IF(OR(COUNTRY_INFO!Q49="Unknown",COUNTRY_INFO!Q49="Surveillance",COUNTRY_INFO!Q49="Not required",COUNTRY_INFO!Q49=0),0,IF($E49<>0,IF($D49=0,COUNTRY_INFO!Q49*MIN($E49,$L49),COUNTRY_INFO!Q49*MIN($E49,$L49)-($F49*COUNTRY_INFO!$Q49/(COUNTRY_INFO!$F49+COUNTRY_INFO!$G49)+IF($G49=" ",0,COUNTRY_INFO!$Q49/(COUNTRY_INFO!$F49+COUNTRY_INFO!$G49)*$G49*$H49))),0))) -> 0 | N49: 0 | O49: 0 | Q49: 0 | R49: 0 | T49: 0 | U49: 0 | W49: 0
A50: =IF(AND(INTRO!$E$37="Non-endemic",INTRO!$E$41="Non-endemic")," ",IF(COUNTRY_INFO!A50=0," ",COUNTRY_INFO!A50)) -> Tchad | B50: =IF(AND(INTRO!$E$37="Non-endemic",INTRO!$E$41="Non-endemic")," ",IF(COUNTRY_INFO!B50=0," ",COUNTRY_INFO!B50)) -> Kanem | C50: =IF(AND(INTRO!$E$37="Non-endemic",INTRO!$E$41="Non-endemic")," ",IF(COUNTRY_INFO!C50=0," ",COUNTRY_INFO!C50)) -> Mao | D50: =IF(AND(INTRO!$E$37="Non-endemic",INTRO!$E$41="Non-endemic"),0,COUNTRY_INFO!W50) -> 0 | E50: =IF(AND(INTRO!$E$37="Non-endemic",INTRO!$E$41="Non-endemic"),0,COUNTRY_INFO!Y50) -> 0 | F50: =IF($D50=1,IVM!G50,0) -> 0 | G50: =IF($D50=0, " ", IF(COUNTRY_INFO!$H50=1, IF(COUNTRY_INFO!$L50=1, 0," ")," ")) ->  | J50: =IF(OR(COUNTRY_INFO!O50="Unknown",COUNTRY_INFO!O50="Surveillance",COUNTRY_INFO!O50="Not required",COUNTRY_INFO!O50=0),0,IF(INTRO!$E$39="Non-endemic",IF(AND($E50<>0,$I50=""),IF($F50=0,COUNTRY_INFO!O50*$E50,COUNTRY_INFO!O50*($E50-$D50)),IF(AND($E50<>0,$I50<>0),IF($F50=0,COUNTRY_INFO!O50*$I50,COUNTRY_INFO!O50*($I50-$D50)),0)),IF($I50="",COUNTRY_INFO!O50*$E50,COUNTRY_INFO!O50*$I50))) -> 0 | K50: =MAX(0,IF(OR(COUNTRY_INFO!P50="Unknown",COUNTRY_INFO!P50="Surveillance",COUNTRY_INFO!P50="Not required",COUNTRY_INFO!P50=0),0,IF($E50<>0,IF($D50=0,COUNTRY_INFO!P50*$E50,COUNTRY_INFO!P50*$E50-($F50*COUNTRY_INFO!$P50/(COUNTRY_INFO!$F50+COUNTRY_INFO!$G50)+IF($G50=" ",0,COUNTRY_INFO!$P50/(COUNTRY_INFO!$F50+COUNTRY_INFO!$G50)*$G50*$H50))),0))) -> 0 | M50: =MAX(0,IF(OR(COUNTRY_INFO!Q50="Unknown",COUNTRY_INFO!Q50="Surveillance",COUNTRY_INFO!Q50="Not required",COUNTRY_INFO!Q50=0),0,IF($E50<>0,IF($D50=0,COUNTRY_INFO!Q50*MIN($E50,$L50),COUNTRY_INFO!Q50*MIN($E50,$L50)-($F50*COUNTRY_INFO!$Q50/(COUNTRY_INFO!$F50+COUNTRY_INFO!$G50)+IF($G50=" ",0,COUNTRY_INFO!$Q50/(COUNTRY_INFO!$F50+COUNTRY_INFO!$G50)*$G50*$H50))),0))) -> 0 | N50: 0 | O50: 0 | Q50: 0 | R50: 0 | T50: 0 | U50: 0 | W50: 0
A51: =IF(AND(INTRO!$E$37="Non-endemic",INTRO!$E$41="Non-endemic")," ",IF(COUNTRY_INFO!A51=0," ",COUNTRY_INFO!A51)) -> Tchad | B51: =IF(AND(INTRO!$E$37="Non-endemic",INTRO!$E$41="Non-endemic")," ",IF(COUNTRY_INFO!B51=0," ",COUNTRY_INFO!B51)) -> Kanem | C51: =IF(AND(INTRO!$E$37="Non-endemic",INTRO!$E$41="Non-endemic")," ",IF(COUNTRY_INFO!C51=0," ",COUNTRY_INFO!C51)) -> Mondo | D51: =IF(AND(INTRO!$E$37="Non-endemic",INTRO!$E$41="Non-endemic"),0,COUNTRY_INFO!W51) -> 0 | E51: =IF(AND(INTRO!$E$37="Non-endemic",INTRO!$E$41="Non-endemic"),0,COUNTRY_INFO!Y51) -> 0 | F51: =IF($D51=1,IVM!G51,0) -> 0 | G51: =IF($D51=0, " ", IF(COUNTRY_INFO!$H51=1, IF(COUNTRY_INFO!$L51=1, 0," ")," ")) ->  | J51: =IF(OR(COUNTRY_INFO!O51="Unknown",COUNTRY_INFO!O51="Surveillance",COUNTRY_INFO!O51="Not required",COUNTRY_INFO!O51=0),0,IF(INTRO!$E$39="Non-endemic",IF(AND($E51<>0,$I51=""),IF($F51=0,COUNTRY_INFO!O51*$E51,COUNTRY_INFO!O51*($E51-$D51)),IF(AND($E51<>0,$I51<>0),IF($F51=0,COUNTRY_INFO!O51*$I51,COUNTRY_INFO!O51*($I51-$D51)),0)),IF($I51="",COUNTRY_INFO!O51*$E51,COUNTRY_INFO!O51*$I51))) -> 0 | K51: =MAX(0,IF(OR(COUNTRY_INFO!P51="Unknown",COUNTRY_INFO!P51="Surveillance",COUNTRY_INFO!P51="Not required",COUNTRY_INFO!P51=0),0,IF($E51<>0,IF($D51=0,COUNTRY_INFO!P51*$E51,COUNTRY_INFO!P51*$E51-($F51*COUNTRY_INFO!$P51/(COUNTRY_INFO!$F51+COUNTRY_INFO!$G51)+IF($G51=" ",0,COUNTRY_INFO!$P51/(COUNTRY_INFO!$F51+COUNTRY_INFO!$G51)*$G51*$H51))),0))) -> 0 | M51: =MAX(0,IF(OR(COUNTRY_INFO!Q51="Unknown",COUNTRY_INFO!Q51="Surveillance",COUNTRY_INFO!Q51="Not required",COUNTRY_INFO!Q51=0),0,IF($E51<>0,IF($D51=0,COUNTRY_INFO!Q51*MIN($E51,$L51),COUNTRY_INFO!Q51*MIN($E51,$L51)-($F51*COUNTRY_INFO!$Q51/(COUNTRY_INFO!$F51+COUNTRY_INFO!$G51)+IF($G51=" ",0,COUNTRY_INFO!$Q51/(COUNTRY_INFO!$F51+COUNTRY_INFO!$G51)*$G51*$H51))),0))) -> 0 | N51: 0 | O51: 0 | Q51: 0 | R51: 0 | T51: 0 | U51: 0 | W51: 0
A52: =IF(AND(INTRO!$E$37="Non-endemic",INTRO!$E$41="Non-endemic")," ",IF(COUNTRY_INFO!A52=0," ",COUNTRY_INFO!A52)) -> Tchad | B52: =IF(AND(INTRO!$E$37="Non-endemic",INTRO!$E$41="Non-endemic")," ",IF(COUNTRY_INFO!B52=0," ",COUNTRY_INFO!B52)) -> Kanem | C52: =IF(AND(INTRO!$E$37="Non-endemic",INTRO!$E$41="Non-endemic")," ",IF(COUNTRY_INFO!C52=0," ",COUNTRY_INFO!C52)) -> Nokou | D52: =IF(AND(INTRO!$E$37="Non-endemic",INTRO!$E$41="Non-endemic"),0,COUNTRY_INFO!W52) -> 0 | E52: =IF(AND(INTRO!$E$37="Non-endemic",INTRO!$E$41="Non-endemic"),0,COUNTRY_INFO!Y52) -> 0 | F52: =IF($D52=1,IVM!G52,0) -> 0 | G52: =IF($D52=0, " ", IF(COUNTRY_INFO!$H52=1, IF(COUNTRY_INFO!$L52=1, 0," ")," ")) ->  | J52: =IF(OR(COUNTRY_INFO!O52="Unknown",COUNTRY_INFO!O52="Surveillance",COUNTRY_INFO!O52="Not required",COUNTRY_INFO!O52=0),0,IF(INTRO!$E$39="Non-endemic",IF(AND($E52<>0,$I52=""),IF($F52=0,COUNTRY_INFO!O52*$E52,COUNTRY_INFO!O52*($E52-$D52)),IF(AND($E52<>0,$I52<>0),IF($F52=0,COUNTRY_INFO!O52*$I52,COUNTRY_INFO!O52*($I52-$D52)),0)),IF($I52="",COUNTRY_INFO!O52*$E52,COUNTRY_INFO!O52*$I52))) -> 0 | K52: =MAX(0,IF(OR(COUNTRY_INFO!P52="Unknown",COUNTRY_INFO!P52="Surveillance",COUNTRY_INFO!P52="Not required",COUNTRY_INFO!P52=0),0,IF($E52<>0,IF($D52=0,COUNTRY_INFO!P52*$E52,COUNTRY_INFO!P52*$E52-($F52*COUNTRY_INFO!$P52/(COUNTRY_INFO!$F52+COUNTRY_INFO!$G52)+IF($G52=" ",0,COUNTRY_INFO!$P52/(COUNTRY_INFO!$F52+COUNTRY_INFO!$G52)*$G52*$H52))),0))) -> 0 | M52: =MAX(0,IF(OR(COUNTRY_INFO!Q52="Unknown",COUNTRY_INFO!Q52="Surveillance",COUNTRY_INFO!Q52="Not required",COUNTRY_INFO!Q52=0),0,IF($E52<>0,IF($D52=0,COUNTRY_INFO!Q52*MIN($E52,$L52),COUNTRY_INFO!Q52*MIN($E52,$L52)-($F52*COUNTRY_INFO!$Q52/(COUNTRY_INFO!$F52+COUNTRY_INFO!$G52)+IF($G52=" ",0,COUNTRY_INFO!$Q52/(COUNTRY_INFO!$F52+COUNTRY_INFO!$G52)*$G52*$H52))),0))) -> 0 | N52: 0 | O52: 0 | Q52: 0 | R52: 0 | T52: 0 | U52: 0 | W52: 0
A53: =IF(AND(INTRO!$E$37="Non-endemic",INTRO!$E$41="Non-endemic")," ",IF(COUNTRY_INFO!A53=0," ",COUNTRY_INFO!A53)) -> Tchad | B53: =IF(AND(INTRO!$E$37="Non-endemic",INTRO!$E$41="Non-endemic")," ",IF(COUNTRY_INFO!B53=0," ",COUNTRY_INFO!B53)) -> Kanem | C53: =IF(AND(INTRO!$E$37="Non-endemic",INTRO!$E$41="Non-endemic")," ",IF(COUNTRY_INFO!C53=0," ",COUNTRY_INFO!C53)) -> Ntiona | D53: =IF(AND(INTRO!$E$37="Non-endemic",INTRO!$E$41="Non-endemic"),0,COUNTRY_INFO!W53) -> 0 | E53: =IF(AND(INTRO!$E$37="Non-endemic",INTRO!$E$41="Non-endemic"),0,COUNTRY_INFO!Y53) -> 0 | F53: =IF($D53=1,IVM!G53,0) -> 0 | G53: =IF($D53=0, " ", IF(COUNTRY_INFO!$H53=1, IF(COUNTRY_INFO!$L53=1, 0," ")," ")) ->  | J53: =IF(OR(COUNTRY_INFO!O53="Unknown",COUNTRY_INFO!O53="Surveillance",COUNTRY_INFO!O53="Not required",COUNTRY_INFO!O53=0),0,IF(INTRO!$E$39="Non-endemic",IF(AND($E53<>0,$I53=""),IF($F53=0,COUNTRY_INFO!O53*$E53,COUNTRY_INFO!O53*($E53-$D53)),IF(AND($E53<>0,$I53<>0),IF($F53=0,COUNTRY_INFO!O53*$I53,COUNTRY_INFO!O53*($I53-$D53)),0)),IF($I53="",COUNTRY_INFO!O53*$E53,COUNTRY_INFO!O53*$I53))) -> 0 | K53: =MAX(0,IF(OR(COUNTRY_INFO!P53="Unknown",COUNTRY_INFO!P53="Surveillance",COUNTRY_INFO!P53="Not required",COUNTRY_INFO!P53=0),0,IF($E53<>0,IF($D53=0,COUNTRY_INFO!P53*$E53,COUNTRY_INFO!P53*$E53-($F53*COUNTRY_INFO!$P53/(COUNTRY_INFO!$F53+COUNTRY_INFO!$G53)+IF($G53=" ",0,COUNTRY_INFO!$P53/(COUNTRY_INFO!$F53+COUNTRY_INFO!$G53)*$G53*$H53))),0))) -> 0 | M53: =MAX(0,IF(OR(COUNTRY_INFO!Q53="Unknown",COUNTRY_INFO!Q53="Surveillance",COUNTRY_INFO!Q53="Not required",COUNTRY_INFO!Q53=0),0,IF($E53<>0,IF($D53=0,COUNTRY_INFO!Q53*MIN($E53,$L53),COUNTRY_INFO!Q53*MIN($E53,$L53)-($F53*COUNTRY_INFO!$Q53/(COUNTRY_INFO!$F53+COUNTRY_INFO!$G53)+IF($G53=" ",0,COUNTRY_INFO!$Q53/(COUNTRY_INFO!$F53+COUNTRY_INFO!$G53)*$G53*$H53))),0))) -> 0 | N53: 0 | O53: 0 | Q53: 0 | R53: 0 | T53: 0 | U53: 0 | W53: 0
A54: =IF(AND(INTRO!$E$37="Non-endemic",INTRO!$E$41="Non-endemic")," ",IF(COUNTRY_INFO!A54=0," ",COUNTRY_INFO!A54)) -> Tchad | B54: =IF(AND(INTRO!$E$37="Non-endemic",INTRO!$E$41="Non-endemic")," ",IF(COUNTRY_INFO!B54=0," ",COUNTRY_INFO!B54)) -> Kanem | C54: =IF(AND(INTRO!$E$37="Non-endemic",INTRO!$E$41="Non-endemic")," ",IF(COUNTRY_INFO!C54=0," ",COUNTRY_INFO!C54)) -> Rig-Rig | D54: =IF(AND(INTRO!$E$37="Non-endemic",INTRO!$E$41="Non-endemic"),0,COUNTRY_INFO!W54) -> 0 | E54: =IF(AND(INTRO!$E$37="Non-endemic",INTRO!$E$41="Non-endemic"),0,COUNTRY_INFO!Y54) -> 0 | F54: =IF($D54=1,IVM!G54,0) -> 0 | G54: =IF($D54=0, " ", IF(COUNTRY_INFO!$H54=1, IF(COUNTRY_INFO!$L54=1, 0," ")," ")) ->  | J54: =IF(OR(COUNTRY_INFO!O54="Unknown",COUNTRY_INFO!O54="Surveillance",COUNTRY_INFO!O54="Not required",COUNTRY_INFO!O54=0),0,IF(INTRO!$E$39="Non-endemic",IF(AND($E54<>0,$I54=""),IF($F54=0,COUNTRY_INFO!O54*$E54,COUNTRY_INFO!O54*($E54-$D54)),IF(AND($E54<>0,$I54<>0),IF($F54=0,COUNTRY_INFO!O54*$I54,COUNTRY_INFO!O54*($I54-$D54)),0)),IF($I54="",COUNTRY_INFO!O54*$E54,COUNTRY_INFO!O54*$I54))) -> 0 | K54: =MAX(0,IF(OR(COUNTRY_INFO!P54="Unknown",COUNTRY_INFO!P54="Surveillance",COUNTRY_INFO!P54="Not required",COUNTRY_INFO!P54=0),0,IF($E54<>0,IF($D54=0,COUNTRY_INFO!P54*$E54,COUNTRY_INFO!P54*$E54-($F54*COUNTRY_INFO!$P54/(COUNTRY_INFO!$F54+COUNTRY_INFO!$G54)+IF($G54=" ",0,COUNTRY_INFO!$P54/(COUNTRY_INFO!$F54+COUNTRY_INFO!$G54)*$G54*$H54))),0))) -> 0 | M54: =MAX(0,IF(OR(COUNTRY_INFO!Q54="Unknown",COUNTRY_INFO!Q54="Surveillance",COUNTRY_INFO!Q54="Not required",COUNTRY_INFO!Q54=0),0,IF($E54<>0,IF($D54=0,COUNTRY_INFO!Q54*MIN($E54,$L54),COUNTRY_INFO!Q54*MIN($E54,$L54)-($F54*COUNTRY_INFO!$Q54/(COUNTRY_INFO!$F54+COUNTRY_INFO!$G54)+IF($G54=" ",0,COUNTRY_INFO!$Q54/(COUNTRY_INFO!$F54+COUNTRY_INFO!$G54)*$G54*$H54))),0))) -> 0 | N54: 0 | O54: 0 | Q54: 0 | R54: 0 | T54: 0 | U54: 0 | W54: 0
A55: =IF(AND(INTRO!$E$37="Non-endemic",INTRO!$E$41="Non-endemic")," ",IF(COUNTRY_INFO!A55=0," ",COUNTRY_INFO!A55)) -> Tchad | B55: =IF(AND(INTRO!$E$37="Non-endemic",INTRO!$E$41="Non-endemic")," ",IF(COUNTRY_INFO!B55=0," ",COUNTRY_INFO!B55)) -> Lac | C55: =IF(AND(INTRO!$E$37="Non-endemic",INTRO!$E$41="Non-endemic")," ",IF(COUNTRY_INFO!C55=0," ",COUNTRY_INFO!C55)) -> Bagassola | D55: =IF(AND(INTRO!$E$37="Non-endemic",INTRO!$E$41="Non-endemic"),0,COUNTRY_INFO!W55) -> 0 | E55: =IF(AND(INTRO!$E$37="Non-endemic",INTRO!$E$41="Non-endemic"),0,COUNTRY_INFO!Y55) -> 0 | F55: =IF($D55=1,IVM!G55,0) -> 0 | G55: =IF($D55=0, " ", IF(COUNTRY_INFO!$H55=1, IF(COUNTRY_INFO!$L55=1, 0," ")," ")) ->  | J55: =IF(OR(COUNTRY_INFO!O55="Unknown",COUNTRY_INFO!O55="Surveillance",COUNTRY_INFO!O55="Not required",COUNTRY_INFO!O55=0),0,IF(INTRO!$E$39="Non-endemic",IF(AND($E55<>0,$I55=""),IF($F55=0,COUNTRY_INFO!O55*$E55,COUNTRY_INFO!O55*($E55-$D55)),IF(AND($E55<>0,$I55<>0),IF($F55=0,COUNTRY_INFO!O55*$I55,COUNTRY_INFO!O55*($I55-$D55)),0)),IF($I55="",COUNTRY_INFO!O55*$E55,COUNTRY_INFO!O55*$I55))) -> 0 | K55: =MAX(0,IF(OR(COUNTRY_INFO!P55="Unknown",COUNTRY_INFO!P55="Surveillance",COUNTRY_INFO!P55="Not required",COUNTRY_INFO!P55=0),0,IF($E55<>0,IF($D55=0,COUNTRY_INFO!P55*$E55,COUNTRY_INFO!P55*$E55-($F55*COUNTRY_INFO!$P55/(COUNTRY_INFO!$F55+COUNTRY_INFO!$G55)+IF($G55=" ",0,COUNTRY_INFO!$P55/(COUNTRY_INFO!$F55+COUNTRY_INFO!$G55)*$G55*$H55))),0))) -> 0 | M55: =MAX(0,IF(OR(COUNTRY_INFO!Q55="Unknown",COUNTRY_INFO!Q55="Surveillance",COUNTRY_INFO!Q55="Not required",COUNTRY_INFO!Q55=0),0,IF($E55<>0,IF($D55=0,COUNTRY_INFO!Q55*MIN($E55,$L55),COUNTRY_INFO!Q55*MIN($E55,$L55)-($F55*COUNTRY_INFO!$Q55/(COUNTRY_INFO!$F55+COUNTRY_INFO!$G55)+IF($G55=" ",0,COUNTRY_INFO!$Q55/(COUNTRY_INFO!$F55+COUNTRY_INFO!$G55)*$G55*$H55))),0))) -> 0 | N55: 0 | O55: 0 | Q55: 0 | R55: 0 | T55: 0 | U55: 0 | W55: 0
A56: =IF(AND(INTRO!$E$37="Non-endemic",INTRO!$E$41="Non-endemic")," ",IF(COUNTRY_INFO!A56=0," ",COUNTRY_INFO!A56)) -> Tchad | B56: =IF(AND(INTRO!$E$37="Non-endemic",INTRO!$E$41="Non-endemic")," ",IF(COUNTRY_INFO!B56=0," ",COUNTRY_INFO!B56)) -> Lac | C56: =IF(AND(INTRO!$E$37="Non-endemic",INTRO!$E$41="Non-endemic")," ",IF(COUNTRY_INFO!C56=0," ",COUNTRY_INFO!C56)) -> Bol | D56: =IF(AND(INTRO!$E$37="Non-endemic",INTRO!$E$41="Non-endemic"),0,COUNTRY_INFO!W56) -> 0 | E56: =IF(AND(INTRO!$E$37="Non-endemic",INTRO!$E$41="Non-endemic"),0,COUNTRY_INFO!Y56) -> 0 | F56: =IF($D56=1,IVM!G56,0) -> 0 | G56: =IF($D56=0, " ", IF(COUNTRY_INFO!$H56=1, IF(COUNTRY_INFO!$L56=1, 0," ")," ")) ->  | J56: =IF(OR(COUNTRY_INFO!O56="Unknown",COUNTRY_INFO!O56="Surveillance",COUNTRY_INFO!O56="Not required",COUNTRY_INFO!O56=0),0,IF(INTRO!$E$39="Non-endemic",IF(AND($E56<>0,$I56=""),IF($F56=0,COUNTRY_INFO!O56*$E56,COUNTRY_INFO!O56*($E56-$D56)),IF(AND($E56<>0,$I56<>0),IF($F56=0,COUNTRY_INFO!O56*$I56,COUNTRY_INFO!O56*($I56-$D56)),0)),IF($I56="",COUNTRY_INFO!O56*$E56,COUNTRY_INFO!O56*$I56))) -> 0 | K56: =MAX(0,IF(OR(COUNTRY_INFO!P56="Unknown",COUNTRY_INFO!P56="Surveillance",COUNTRY_INFO!P56="Not required",COUNTRY_INFO!P56=0),0,IF($E56<>0,IF($D56=0,COUNTRY_INFO!P56*$E56,COUNTRY_INFO!P56*$E56-($F56*COUNTRY_INFO!$P56/(COUNTRY_INFO!$F56+COUNTRY_INFO!$G56)+IF($G56=" ",0,COUNTRY_INFO!$P56/(COUNTRY_INFO!$F56+COUNTRY_INFO!$G56)*$G56*$H56))),0))) -> 0 | M56: =MAX(0,IF(OR(COUNTRY_INFO!Q56="Unknown",COUNTRY_INFO!Q56="Surveillance",COUNTRY_INFO!Q56="Not required",COUNTRY_INFO!Q56=0),0,IF($E56<>0,IF($D56=0,COUNTRY_INFO!Q56*MIN($E56,$L56),COUNTRY_INFO!Q56*MIN($E56,$L56)-($F56*COUNTRY_INFO!$Q56/(COUNTRY_INFO!$F56+COUNTRY_INFO!$G56)+IF($G56=" ",0,COUNTRY_INFO!$Q56/(COUNTRY_INFO!$F56+COUNTRY_INFO!$G56)*$G56*$H56))),0))) -> 0 | N56: 0 | O56: 0 | Q56: 0 | R56: 0 | T56: 0 | U56: 0 | W56: 0
A57: =IF(AND(INTRO!$E$37="Non-endemic",INTRO!$E$41="Non-endemic")," ",IF(COUNTRY_INFO!A57=0," ",COUNTRY_INFO!A57)) -> Tchad | B57: =IF(AND(INTRO!$E$37="Non-endemic",INTRO!$E$41="Non-endemic")," ",IF(COUNTRY_INFO!B57=0," ",COUNTRY_INFO!B57)) -> Lac | C57: =IF(AND(INTRO!$E$37="Non-endemic",INTRO!$E$41="Non-endemic")," ",IF(COUNTRY_INFO!C57=0," ",COUNTRY_INFO!C57)) -> Isserom | D57: =IF(AND(INTRO!$E$37="Non-endemic",INTRO!$E$41="Non-endemic"),0,COUNTRY_INFO!W57) -> 0 | E57: =IF(AND(INTRO!$E$37="Non-endemic",INTRO!$E$41="Non-endemic"),0,COUNTRY_INFO!Y57) -> 0 | F57: =IF($D57=1,IVM!G57,0) -> 0 | G57: =IF($D57=0, " ", IF(COUNTRY_INFO!$H57=1, IF(COUNTRY_INFO!$L57=1, 0," ")," ")) ->  | J57: =IF(OR(COUNTRY_INFO!O57="Unknown",COUNTRY_INFO!O57="Surveillance",COUNTRY_INFO!O57="Not required",COUNTRY_INFO!O57=0),0,IF(INTRO!$E$39="Non-endemic",IF(AND($E57<>0,$I57=""),IF($F57=0,COUNTRY_INFO!O57*$E57,COUNTRY_INFO!O57*($E57-$D57)),IF(AND($E57<>0,$I57<>0),IF($F57=0,COUNTRY_INFO!O57*$I57,COUNTRY_INFO!O57*($I57-$D57)),0)),IF($I57="",COUNTRY_INFO!O57*$E57,COUNTRY_INFO!O57*$I57))) -> 0 | K57: =MAX(0,IF(OR(COUNTRY_INFO!P57="Unknown",COUNTRY_INFO!P57="Surveillance",COUNTRY_INFO!P57="Not required",COUNTRY_INFO!P57=0),0,IF($E57<>0,IF($D57=0,COUNTRY_INFO!P57*$E57,COUNTRY_INFO!P57*$E57-($F57*COUNTRY_INFO!$P57/(COUNTRY_INFO!$F57+COUNTRY_INFO!$G57)+IF($G57=" ",0,COUNTRY_INFO!$P57/(COUNTRY_INFO!$F57+COUNTRY_INFO!$G57)*$G57*$H57))),0))) -> 0 | M57: =MAX(0,IF(OR(COUNTRY_INFO!Q57="Unknown",COUNTRY_INFO!Q57="Surveillance",COUNTRY_INFO!Q57="Not required",COUNTRY_INFO!Q57=0),0,IF($E57<>0,IF($D57=0,COUNTRY_INFO!Q57*MIN($E57,$L57),COUNTRY_INFO!Q57*MIN($E57,$L57)-($F57*COUNTRY_INFO!$Q57/(COUNTRY_INFO!$F57+COUNTRY_INFO!$G57)+IF($G57=" ",0,COUNTRY_INFO!$Q57/(COUNTRY_INFO!$F57+COUNTRY_INFO!$G57)*$G57*$H57))),0))) -> 0 | N57: 0 | O57: 0 | Q57: 0 | R57: 0 | T57: 0 | U57: 0 | W57: 0
A58: =IF(AND(INTRO!$E$37="Non-endemic",INTRO!$E$41="Non-endemic")," ",IF(COUNTRY_INFO!A58=0," ",COUNTRY_INFO!A58)) -> Tchad | B58: =IF(AND(INTRO!$E$37="Non-endemic",INTRO!$E$41="Non-endemic")," ",IF(COUNTRY_INFO!B58=0," ",COUNTRY_INFO!B58)) -> Lac | C58: =IF(AND(INTRO!$E$37="Non-endemic",INTRO!$E$41="Non-endemic")," ",IF(COUNTRY_INFO!C58=0," ",COUNTRY_INFO!C58)) -> Kouloudia | D58: =IF(AND(INTRO!$E$37="Non-endemic",INTRO!$E$41="Non-endemic"),0,COUNTRY_INFO!W58) -> 0 | E58: =IF(AND(INTRO!$E$37="Non-endemic",INTRO!$E$41="Non-endemic"),0,COUNTRY_INFO!Y58) -> 0 | F58: =IF($D58=1,IVM!G58,0) -> 0 | G58: =IF($D58=0, " ", IF(COUNTRY_INFO!$H58=1, IF(COUNTRY_INFO!$L58=1, 0," ")," ")) ->  | J58: =IF(OR(COUNTRY_INFO!O58="Unknown",COUNTRY_INFO!O58="Surveillance",COUNTRY_INFO!O58="Not required",COUNTRY_INFO!O58=0),0,IF(INTRO!$E$39="Non-endemic",IF(AND($E58<>0,$I58=""),IF($F58=0,COUNTRY_INFO!O58*$E58,COUNTRY_INFO!O58*($E58-$D58)),IF(AND($E58<>0,$I58<>0),IF($F58=0,COUNTRY_INFO!O58*$I58,COUNTRY_INFO!O58*($I58-$D58)),0)),IF($I58="",COUNTRY_INFO!O58*$E58,COUNTRY_INFO!O58*$I58))) -> 0 | K58: =MAX(0,IF(OR(COUNTRY_INFO!P58="Unknown",COUNTRY_INFO!P58="Surveillance",COUNTRY_INFO!P58="Not required",COUNTRY_INFO!P58=0),0,IF($E58<>0,IF($D58=0,COUNTRY_INFO!P58*$E58,COUNTRY_INFO!P58*$E58-($F58*COUNTRY_INFO!$P58/(COUNTRY_INFO!$F58+COUNTRY_INFO!$G58)+IF($G58=" ",0,COUNTRY_INFO!$P58/(COUNTRY_INFO!$F58+COUNTRY_INFO!$G58)*$G58*$H58))),0))) -> 0 | M58: =MAX(0,IF(OR(COUNTRY_INFO!Q58="Unknown",COUNTRY_INFO!Q58="Surveillance",COUNTRY_INFO!Q58="Not required",COUNTRY_INFO!Q58=0),0,IF($E58<>0,IF($D58=0,COUNTRY_INFO!Q58*MIN($E58,$L58),COUNTRY_INFO!Q58*MIN($E58,$L58)-($F58*COUNTRY_INFO!$Q58/(COUNTRY_INFO!$F58+COUNTRY_INFO!$G58)+IF($G58=" ",0,COUNTRY_INFO!$Q58/(COUNTRY_INFO!$F58+COUNTRY_INFO!$G58)*$G58*$H58))),0))) -> 0 | N58: 0 | O58: 0 | Q58: 0 | R58: 0 | T58: 0 | U58: 0 | W58: 0
A59: =IF(AND(INTRO!$E$37="Non-endemic",INTRO!$E$41="Non-endemic")," ",IF(COUNTRY_INFO!A59=0," ",COUNTRY_INFO!A59)) -> Tchad | B59: =IF(AND(INTRO!$E$37="Non-endemic",INTRO!$E$41="Non-endemic")," ",IF(COUNTRY_INFO!B59=0," ",COUNTRY_INFO!B59)) -> Lac | C59: =IF(AND(INTRO!$E$37="Non-endemic",INTRO!$E$41="Non-endemic")," ",IF(COUNTRY_INFO!C59=0," ",COUNTRY_INFO!C59)) -> Liwa | D59: =IF(AND(INTRO!$E$37="Non-endemic",INTRO!$E$41="Non-endemic"),0,COUNTRY_INFO!W59) -> 0 | E59: =IF(AND(INTRO!$E$37="Non-endemic",INTRO!$E$41="Non-endemic"),0,COUNTRY_INFO!Y59) -> 0 | F59: =IF($D59=1,IVM!G59,0) -> 0 | G59: =IF($D59=0, " ", IF(COUNTRY_INFO!$H59=1, IF(COUNTRY_INFO!$L59=1, 0," ")," ")) ->  | J59: =IF(OR(COUNTRY_INFO!O59="Unknown",COUNTRY_INFO!O59="Surveillance",COUNTRY_INFO!O59="Not required",COUNTRY_INFO!O59=0),0,IF(INTRO!$E$39="Non-endemic",IF(AND($E59<>0,$I59=""),IF($F59=0,COUNTRY_INFO!O59*$E59,COUNTRY_INFO!O59*($E59-$D59)),IF(AND($E59<>0,$I59<>0),IF($F59=0,COUNTRY_INFO!O59*$I59,COUNTRY_INFO!O59*($I59-$D59)),0)),IF($I59="",COUNTRY_INFO!O59*$E59,COUNTRY_INFO!O59*$I59))) -> 0 | K59: =MAX(0,IF(OR(COUNTRY_INFO!P59="Unknown",COUNTRY_INFO!P59="Surveillance",COUNTRY_INFO!P59="Not required",COUNTRY_INFO!P59=0),0,IF($E59<>0,IF($D59=0,COUNTRY_INFO!P59*$E59,COUNTRY_INFO!P59*$E59-($F59*COUNTRY_INFO!$P59/(COUNTRY_INFO!$F59+COUNTRY_INFO!$G59)+IF($G59=" ",0,COUNTRY_INFO!$P59/(COUNTRY_INFO!$F59+COUNTRY_INFO!$G59)*$G59*$H59))),0))) -> 0 | M59: =MAX(0,IF(OR(COUNTRY_INFO!Q59="Unknown",COUNTRY_INFO!Q59="Surveillance",COUNTRY_INFO!Q59="Not required",COUNTRY_INFO!Q59=0),0,IF($E59<>0,IF($D59=0,COUNTRY_INFO!Q59*MIN($E59,$L59),COUNTRY_INFO!Q59*MIN($E59,$L59)-($F59*COUNTRY_INFO!$Q59/(COUNTRY_INFO!$F59+COUNTRY_INFO!$G59)+IF($G59=" ",0,COUNTRY_INFO!$Q59/(COUNTRY_INFO!$F59+COUNTRY_INFO!$G59)*$G59*$H59))),0))) -> 0 | N59: 0 | O59: 0 | Q59: 0 | R59: 0 | T59: 0 | U59: 0 | W59: 0
A60: =IF(AND(INTRO!$E$37="Non-endemic",INTRO!$E$41="Non-endemic")," ",IF(COUNTRY_INFO!A60=0," ",COUNTRY_INFO!A60)) -> Tchad | B60: =IF(AND(INTRO!$E$37="Non-endemic",INTRO!$E$41="Non-endemic")," ",IF(COUNTRY_INFO!B60=0," ",COUNTRY_INFO!B60)) -> Lac | C60: =IF(AND(INTRO!$E$37="Non-endemic",INTRO!$E$41="Non-endemic")," ",IF(COUNTRY_INFO!C60=0," ",COUNTRY_INFO!C60)) -> Ngouri | D60: =IF(AND(INTRO!$E$37="Non-endemic",INTRO!$E$41="Non-endemic"),0,COUNTRY_INFO!W60) -> 0 | E60: =IF(AND(INTRO!$E$37="Non-endemic",INTRO!$E$41="Non-endemic"),0,COUNTRY_INFO!Y60) -> 0 | F60: =IF($D60=1,IVM!G60,0) -> 0 | G60: =IF($D60=0, " ", IF(COUNTRY_INFO!$H60=1, IF(COUNTRY_INFO!$L60=1, 0," ")," ")) ->  | J60: =IF(OR(COUNTRY_INFO!O60="Unknown",COUNTRY_INFO!O60="Surveillance",COUNTRY_INFO!O60="Not required",COUNTRY_INFO!O60=0),0,IF(INTRO!$E$39="Non-endemic",IF(AND($E60<>0,$I60=""),IF($F60=0,COUNTRY_INFO!O60*$E60,COUNTRY_INFO!O60*($E60-$D60)),IF(AND($E60<>0,$I60<>0),IF($F60=0,COUNTRY_INFO!O60*$I60,COUNTRY_INFO!O60*($I60-$D60)),0)),IF($I60="",COUNTRY_INFO!O60*$E60,COUNTRY_INFO!O60*$I60))) -> 0 | K60: =MAX(0,IF(OR(COUNTRY_INFO!P60="Unknown",COUNTRY_INFO!P60="Surveillance",COUNTRY_INFO!P60="Not required",COUNTRY_INFO!P60=0),0,IF($E60<>0,IF($D60=0,COUNTRY_INFO!P60*$E60,COUNTRY_INFO!P60*$E60-($F60*COUNTRY_INFO!$P60/(COUNTRY_INFO!$F60+COUNTRY_INFO!$G60)+IF($G60=" ",0,COUNTRY_INFO!$P60/(COUNTRY_INFO!$F60+COUNTRY_INFO!$G60)*$G60*$H60))),0))) -> 0 | M60: =MAX(0,IF(OR(COUNTRY_INFO!Q60="Unknown",COUNTRY_INFO!Q60="Surveillance",COUNTRY_INFO!Q60="Not required",COUNTRY_INFO!Q60=0),0,IF($E60<>0,IF($D60=0,COUNTRY_INFO!Q60*MIN($E60,$L60),COUNTRY_INFO!Q60*MIN($E60,$L60)-($F60*COUNTRY_INFO!$Q60/(COUNTRY_INFO!$F60+COUNTRY_INFO!$G60)+IF($G60=" ",0,COUNTRY_INFO!$Q60/(COUNTRY_INFO!$F60+COUNTRY_INFO!$G60)*$G60*$H60))),0))) -> 0 | N60: 0 | O60: 0 | Q60: 0 | R60: 0 | T60: 0 | U60: 0 | W60: 0
A61: =IF(AND(INTRO!$E$37="Non-endemic",INTRO!$E$41="Non-endemic")," ",IF(COUNTRY_INFO!A61=0," ",COUNTRY_INFO!A61)) -> Tchad | B61: =IF(AND(INTRO!$E$37="Non-endemic",INTRO!$E$41="Non-endemic")," ",IF(COUNTRY_INFO!B61=0," ",COUNTRY_INFO!B61)) -> Logone Occidental | C61: =IF(AND(INTRO!$E$37="Non-endemic",INTRO!$E$41="Non-endemic")," ",IF(COUNTRY_INFO!C61=0," ",COUNTRY_INFO!C61)) -> Benamar | D61: =IF(AND(INTRO!$E$37="Non-endemic",INTRO!$E$41="Non-endemic"),0,COUNTRY_INFO!W61) -> 1 | E61: =IF(AND(INTRO!$E$37="Non-endemic",INTRO!$E$41="Non-endemic"),0,COUNTRY_INFO!Y61) -> 0 | F61: =IF($D61=1,IVM!G61,0) -> 89049 | G61: =IF($D61=0, " ", IF(COUNTRY_INFO!$H61=1, IF(COUNTRY_INFO!$L61=1, 0," ")," ")) ->  | J61: =IF(OR(COUNTRY_INFO!O61="Unknown",COUNTRY_INFO!O61="Surveillance",COUNTRY_INFO!O61="Not required",COUNTRY_INFO!O61=0),0,IF(INTRO!$E$39="Non-endemic",IF(AND($E61<>0,$I61=""),IF($F61=0,COUNTRY_INFO!O61*$E61,COUNTRY_INFO!O61*($E61-$D61)),IF(AND($E61<>0,$I61<>0),IF($F61=0,COUNTRY_INFO!O61*$I61,COUNTRY_INFO!O61*($I61-$D61)),0)),IF($I61="",COUNTRY_INFO!O61*$E61,COUNTRY_INFO!O61*$I61))) -> 0 | K61: =MAX(0,IF(OR(COUNTRY_INFO!P61="Unknown",COUNTRY_INFO!P61="Surveillance",COUNTRY_INFO!P61="Not required",COUNTRY_INFO!P61=0),0,IF($E61<>0,IF($D61=0,COUNTRY_INFO!P61*$E61,COUNTRY_INFO!P61*$E61-($F61*COUNTRY_INFO!$P61/(COUNTRY_INFO!$F61+COUNTRY_INFO!$G61)+IF($G61=" ",0,COUNTRY_INFO!$P61/(COUNTRY_INFO!$F61+COUNTRY_INFO!$G61)*$G61*$H61))),0))) -> 0 | M61: =MAX(0,IF(OR(COUNTRY_INFO!Q61="Unknown",COUNTRY_INFO!Q61="Surveillance",COUNTRY_INFO!Q61="Not required",COUNTRY_INFO!Q61=0),0,IF($E61<>0,IF($D61=0,COUNTRY_INFO!Q61*MIN($E61,$L61),COUNTRY_INFO!Q61*MIN($E61,$L61)-($F61*COUNTRY_INFO!$Q61/(COUNTRY_INFO!$F61+COUNTRY_INFO!$G61)+IF($G61=" ",0,COUNTRY_INFO!$Q61/(COUNTRY_INFO!$F61+COUNTRY_INFO!$G61)*$G61*$H61))),0))) -> 0 | N61: 0 | O61: 89049 | Q61: 89049 | R61: 0 | T61: 0 | U61: 0 | W61: 0
A62: =IF(AND(INTRO!$E$37="Non-endemic",INTRO!$E$41="Non-endemic")," ",IF(COUNTRY_INFO!A62=0," ",COUNTRY_INFO!A62)) -> Tchad | B62: =IF(AND(INTRO!$E$37="Non-endemic",INTRO!$E$41="Non-endemic")," ",IF(COUNTRY_INFO!B62=0," ",COUNTRY_INFO!B62)) -> Logone Occidental | C62: =IF(AND(INTRO!$E$37="Non-endemic",INTRO!$E$41="Non-endemic")," ",IF(COUNTRY_INFO!C62=0," ",COUNTRY_INFO!C62)) -> Benoye | D62: =IF(AND(INTRO!$E$37="Non-endemic",INTRO!$E$41="Non-endemic"),0,COUNTRY_INFO!W62) -> 0 | E62: =IF(AND(INTRO!$E$37="Non-endemic",INTRO!$E$41="Non-endemic"),0,COUNTRY_INFO!Y62) -> 0 | F62: =IF($D62=1,IVM!G62,0) -> 0 | G62: =IF($D62=0, " ", IF(COUNTRY_INFO!$H62=1, IF(COUNTRY_INFO!$L62=1, 0," ")," ")) ->  | J62: =IF(OR(COUNTRY_INFO!O62="Unknown",COUNTRY_INFO!O62="Surveillance",COUNTRY_INFO!O62="Not required",COUNTRY_INFO!O62=0),0,IF(INTRO!$E$39="Non-endemic",IF(AND($E62<>0,$I62=""),IF($F62=0,COUNTRY_INFO!O62*$E62,COUNTRY_INFO!O62*($E62-$D62)),IF(AND($E62<>0,$I62<>0),IF($F62=0,COUNTRY_INFO!O62*$I62,COUNTRY_INFO!O62*($I62-$D62)),0)),IF($I62="",COUNTRY_INFO!O62*$E62,COUNTRY_INFO!O62*$I62))) -> 0 | K62: =MAX(0,IF(OR(COUNTRY_INFO!P62="Unknown",COUNTRY_INFO!P62="Surveillance",COUNTRY_INFO!P62="Not required",COUNTRY_INFO!P62=0),0,IF($E62<>0,IF($D62=0,COUNTRY_INFO!P62*$E62,COUNTRY_INFO!P62*$E62-($F62*COUNTRY_INFO!$P62/(COUNTRY_INFO!$F62+COUNTRY_INFO!$G62)+IF($G62=" ",0,COUNTRY_INFO!$P62/(COUNTRY_INFO!$F62+COUNTRY_INFO!$G62)*$G62*$H62))),0))) -> 0 | M62: =MAX(0,IF(OR(COUNTRY_INFO!Q62="Unknown",COUNTRY_INFO!Q62="Surveillance",COUNTRY_INFO!Q62="Not required",COUNTRY_INFO!Q62=0),0,IF($E62<>0,IF($D62=0,COUNTRY_INFO!Q62*MIN($E62,$L62),COUNTRY_INFO!Q62*MIN($E62,$L62)-($F62*COUNTRY_INFO!$Q62/(COUNTRY_INFO!$F62+COUNTRY_INFO!$G62)+IF($G62=" ",0,COUNTRY_INFO!$Q62/(COUNTRY_INFO!$F62+COUNTRY_INFO!$G62)*$G62*$H62))),0))) -> 0 | N62: 0 | O62: 0 | Q62: 0 | R62: 0 | T62: 0 | U62: 0 | W62: 0
A63: =IF(AND(INTRO!$E$37="Non-endemic",INTRO!$E$41="Non-endemic")," ",IF(COUNTRY_INFO!A63=0," ",COUNTRY_INFO!A63)) -> Tchad | B63: =IF(AND(INTRO!$E$37="Non-endemic",INTRO!$E$41="Non-endemic")," ",IF(COUNTRY_INFO!B63=0," ",COUNTRY_INFO!B63)) -> Logone Occidental | C63: =IF(AND(INTRO!$E$37="Non-endemic",INTRO!$E$41="Non-endemic")," ",IF(COUNTRY_INFO!C63=0," ",COUNTRY_INFO!C63)) -> Laokassy | D63: =IF(AND(INTRO!$E$37="Non-endemic",INTRO!$E$41="Non-endemic"),0,COUNTRY_INFO!W63) -> 0 | E63: =IF(AND(INTRO!$E$37="Non-endemic",INTRO!$E$41="Non-endemic"),0,COUNTRY_INFO!Y63) -> 0 | F63: =IF($D63=1,IVM!G63,0) -> 0 | G63: =IF($D63=0, " ", IF(COUNTRY_INFO!$H63=1, IF(COUNTRY_INFO!$L63=1, 0," ")," ")) ->  | J63: =IF(OR(COUNTRY_INFO!O63="Unknown",COUNTRY_INFO!O63="Surveillance",COUNTRY_INFO!O63="Not required",COUNTRY_INFO!O63=0),0,IF(INTRO!$E$39="Non-endemic",IF(AND($E63<>0,$I63=""),IF($F63=0,COUNTRY_INFO!O63*$E63,COUNTRY_INFO!O63*($E63-$D63)),IF(AND($E63<>0,$I63<>0),IF($F63=0,COUNTRY_INFO!O63*$I63,COUNTRY_INFO!O63*($I63-$D63)),0)),IF($I63="",COUNTRY_INFO!O63*$E63,COUNTRY_INFO!O63*$I63))) -> 0 | K63: =MAX(0,IF(OR(COUNTRY_INFO!P63="Unknown",COUNTRY_INFO!P63="Surveillance",COUNTRY_INFO!P63="Not required",COUNTRY_INFO!P63=0),0,IF($E63<>0,IF($D63=0,COUNTRY_INFO!P63*$E63,COUNTRY_INFO!P63*$E63-($F63*COUNTRY_INFO!$P63/(COUNTRY_INFO!$F63+COUNTRY_INFO!$G63)+IF($G63=" ",0,COUNTRY_INFO!$P63/(COUNTRY_INFO!$F63+COUNTRY_INFO!$G63)*$G63*$H63))),0))) -> 0 | M63: =MAX(0,IF(OR(COUNTRY_INFO!Q63="Unknown",COUNTRY_INFO!Q63="Surveillance",COUNTRY_INFO!Q63="Not required",COUNTRY_INFO!Q63=0),0,IF($E63<>0,IF($D63=0,COUNTRY_INFO!Q63*MIN($E63,$L63),COUNTRY_INFO!Q63*MIN($E63,$L63)-($F63*COUNTRY_INFO!$Q63/(COUNTRY_INFO!$F63+COUNTRY_INFO!$G63)+IF($G63=" ",0,COUNTRY_INFO!$Q63/(COUNTRY_INFO!$F63+COUNTRY_INFO!$G63)*$G63*$H63))),0))) -> 0 | N63: 0 | O63: 0 | Q63: 0 | R63: 0 | T63: 0 | U63: 0 | W63: 0
A64: =IF(AND(INTRO!$E$37="Non-endemic",INTRO!$E$41="Non-endemic")," ",IF(COUNTRY_INFO!A64=0," ",COUNTRY_INFO!A64)) -> Tchad | B64: =IF(AND(INTRO!$E$37="Non-endemic",INTRO!$E$41="Non-endemic")," ",IF(COUNTRY_INFO!B64=0," ",COUNTRY_INFO!B64)) -> Logone Occidental | C64: =IF(AND(INTRO!$E$37="Non-endemic",INTRO!$E$41="Non-endemic")," ",IF(COUNTRY_INFO!C64=0," ",COUNTRY_INFO!C64)) -> Moundou | D64: =IF(AND(INTRO!$E$37="Non-endemic",INTRO!$E$41="Non-endemic"),0,COUNTRY_INFO!W64) -> 1 | E64: =IF(AND(INTRO!$E$37="Non-endemic",INTRO!$E$41="Non-endemic"),0,COUNTRY_INFO!Y64) -> 0 | F64: =IF($D64=1,IVM!G64,0) -> 429865 | G64: =IF($D64=0, " ", IF(COUNTRY_INFO!$H64=1, IF(COUNTRY_INFO!$L64=1, 0," ")," ")) ->  | J64: =IF(OR(COUNTRY_INFO!O64="Unknown",COUNTRY_INFO!O64="Surveillance",COUNTRY_INFO!O64="Not required",COUNTRY_INFO!O64=0),0,IF(INTRO!$E$39="Non-endemic",IF(AND($E64<>0,$I64=""),IF($F64=0,COUNTRY_INFO!O64*$E64,COUNTRY_INFO!O64*($E64-$D64)),IF(AND($E64<>0,$I64<>0),IF($F64=0,COUNTRY_INFO!O64*$I64,COUNTRY_INFO!O64*($I64-$D64)),0)),IF($I64="",COUNTRY_INFO!O64*$E64,COUNTRY_INFO!O64*$I64))) -> 0 | K64: =MAX(0,IF(OR(COUNTRY_INFO!P64="Unknown",COUNTRY_INFO!P64="Surveillance",COUNTRY_INFO!P64="Not required",COUNTRY_INFO!P64=0),0,IF($E64<>0,IF($D64=0,COUNTRY_INFO!P64*$E64,COUNTRY_INFO!P64*$E64-($F64*COUNTRY_INFO!$P64/(COUNTRY_INFO!$F64+COUNTRY_INFO!$G64)+IF($G64=" ",0,COUNTRY_INFO!$P64/(COUNTRY_INFO!$F64+COUNTRY_INFO!$G64)*$G64*$H64))),0))) -> 0 | M64: =MAX(0,IF(OR(COUNTRY_INFO!Q64="Unknown",COUNTRY_INFO!Q64="Surveillance",COUNTRY_INFO!Q64="Not required",COUNTRY_INFO!Q64=0),0,IF($E64<>0,IF($D64=0,COUNTRY_INFO!Q64*MIN($E64,$L64),COUNTRY_INFO!Q64*MIN($E64,$L64)-($F64*COUNTRY_INFO!$Q64/(COUNTRY_INFO!$F64+COUNTRY_INFO!$G64)+IF($G64=" ",0,COUNTRY_INFO!$Q64/(COUNTRY_INFO!$F64+COUNTRY_INFO!$G64)*$G64*$H64))),0))) -> 0 | N64: 0 | O64: 429865 | Q64: 429865 | R64: 0 | T64: 0 | U64: 0 | W64: 0
A65: =IF(AND(INTRO!$E$37="Non-endemic",INTRO!$E$41="Non-endemic")," ",IF(COUNTRY_INFO!A65=0," ",COUNTRY_INFO!A65)) -> Tchad | B65: =IF(AND(INTRO!$E$37="Non-endemic",INTRO!$E$41="Non-endemic")," ",IF(COUNTRY_INFO!B65=0," ",COUNTRY_INFO!B65)) -> Logone Orientlal | C65: =IF(AND(INTRO!$E$37="Non-endemic",INTRO!$E$41="Non-endemic")," ",IF(COUNTRY_INFO!C65=0," ",COUNTRY_INFO!C65)) -> Baibokoum | D65: =IF(AND(INTRO!$E$37="Non-endemic",INTRO!$E$41="Non-endemic"),0,COUNTRY_INFO!W65) -> 1 | E65: =IF(AND(INTRO!$E$37="Non-endemic",INTRO!$E$41="Non-endemic"),0,COUNTRY_INFO!Y65) -> 0 | F65: =IF($D65=1,IVM!G65,0) -> 68022 | G65: =IF($D65=0, " ", IF(COUNTRY_INFO!$H65=1, IF(COUNTRY_INFO!$L65=1, 0," ")," ")) ->  | J65: =IF(OR(COUNTRY_INFO!O65="Unknown",COUNTRY_INFO!O65="Surveillance",COUNTRY_INFO!O65="Not required",COUNTRY_INFO!O65=0),0,IF(INTRO!$E$39="Non-endemic",IF(AND($E65<>0,$I65=""),IF($F65=0,COUNTRY_INFO!O65*$E65,COUNTRY_INFO!O65*($E65-$D65)),IF(AND($E65<>0,$I65<>0),IF($F65=0,COUNTRY_INFO!O65*$I65,COUNTRY_INFO!O65*($I65-$D65)),0)),IF($I65="",COUNTRY_INFO!O65*$E65,COUNTRY_INFO!O65*$I65))) -> 0 | K65: =MAX(0,IF(OR(COUNTRY_INFO!P65="Unknown",COUNTRY_INFO!P65="Surveillance",COUNTRY_INFO!P65="Not required",COUNTRY_INFO!P65=0),0,IF($E65<>0,IF($D65=0,COUNTRY_INFO!P65*$E65,COUNTRY_INFO!P65*$E65-($F65*COUNTRY_INFO!$P65/(COUNTRY_INFO!$F65+COUNTRY_INFO!$G65)+IF($G65=" ",0,COUNTRY_INFO!$P65/(COUNTRY_INFO!$F65+COUNTRY_INFO!$G65)*$G65*$H65))),0))) -> 0 | M65: =MAX(0,IF(OR(COUNTRY_INFO!Q65="Unknown",COUNTRY_INFO!Q65="Surveillance",COUNTRY_INFO!Q65="Not required",COUNTRY_INFO!Q65=0),0,IF($E65<>0,IF($D65=0,COUNTRY_INFO!Q65*MIN($E65,$L65),COUNTRY_INFO!Q65*MIN($E65,$L65)-($F65*COUNTRY_INFO!$Q65/(COUNTRY_INFO!$F65+COUNTRY_INFO!$G65)+IF($G65=" ",0,COUNTRY_INFO!$Q65/(COUNTRY_INFO!$F65+COUNTRY_INFO!$G65)*$G65*$H65))),0))) -> 0 | N65: 0 | O65: 68022 | Q65: 68022 | R65: 0 | T65: 0 | U65: 0 | W65: 0
A66: =IF(AND(INTRO!$E$37="Non-endemic",INTRO!$E$41="Non-endemic")," ",IF(COUNTRY_INFO!A66=0," ",COUNTRY_INFO!A66)) -> Tchad | B66: =IF(AND(INTRO!$E$37="Non-endemic",INTRO!$E$41="Non-endemic")," ",IF(COUNTRY_INFO!B66=0," ",COUNTRY_INFO!B66)) -> Logone Orientlal | C66: =IF(AND(INTRO!$E$37="Non-endemic",INTRO!$E$41="Non-endemic")," ",IF(COUNTRY_INFO!C66=0," ",COUNTRY_INFO!C66)) -> Bebedja | D66: =IF(AND(INTRO!$E$37="Non-endemic",INTRO!$E$41="Non-endemic"),0,COUNTRY_INFO!W66) -> 1 | E66: =IF(AND(INTRO!$E$37="Non-endemic",INTRO!$E$41="Non-endemic"),0,COUNTRY_INFO!Y66) -> 0 | F66: =IF($D66=1,IVM!G66,0) -> 169787 | G66: =IF($D66=0, " ", IF(COUNTRY_INFO!$H66=1, IF(COUNTRY_INFO!$L66=1, 0," ")," ")) ->  | J66: =IF(OR(COUNTRY_INFO!O66="Unknown",COUNTRY_INFO!O66="Surveillance",COUNTRY_INFO!O66="Not required",COUNTRY_INFO!O66=0),0,IF(INTRO!$E$39="Non-endemic",IF(AND($E66<>0,$I66=""),IF($F66=0,COUNTRY_INFO!O66*$E66,COUNTRY_INFO!O66*($E66-$D66)),IF(AND($E66<>0,$I66<>0),IF($F66=0,COUNTRY_INFO!O66*$I66,COUNTRY_INFO!O66*($I66-$D66)),0)),IF($I66="",COUNTRY_INFO!O66*$E66,COUNTRY_INFO!O66*$I66))) -> 0 | K66: =MAX(0,IF(OR(COUNTRY_INFO!P66="Unknown",COUNTRY_INFO!P66="Surveillance",COUNTRY_INFO!P66="Not required",COUNTRY_INFO!P66=0),0,IF($E66<>0,IF($D66=0,COUNTRY_INFO!P66*$E66,COUNTRY_INFO!P66*$E66-($F66*COUNTRY_INFO!$P66/(COUNTRY_INFO!$F66+COUNTRY_INFO!$G66)+IF($G66=" ",0,COUNTRY_INFO!$P66/(COUNTRY_INFO!$F66+COUNTRY_INFO!$G66)*$G66*$H66))),0))) -> 0 | M66: =MAX(0,IF(OR(COUNTRY_INFO!Q66="Unknown",COUNTRY_INFO!Q66="Surveillance",COUNTRY_INFO!Q66="Not required",COUNTRY_INFO!Q66=0),0,IF($E66<>0,IF($D66=0,COUNTRY_INFO!Q66*MIN($E66,$L66),COUNTRY_INFO!Q66*MIN($E66,$L66)-($F66*COUNTRY_INFO!$Q66/(COUNTRY_INFO!$F66+COUNTRY_INFO!$G66)+IF($G66=" ",0,COUNTRY_INFO!$Q66/(COUNTRY_INFO!$F66+COUNTRY_INFO!$G66)*$G66*$H66))),0))) -> 0 | N66: 0 | O66: 169787 | Q66: 169787 | R66: 0 | T66: 0 | U66: 0 | W66: 0
A67: =IF(AND(INTRO!$E$37="Non-endemic",INTRO!$E$41="Non-endemic")," ",IF(COUNTRY_INFO!A67=0," ",COUNTRY_INFO!A67)) -> Tchad | B67: =IF(AND(INTRO!$E$37="Non-endemic",INTRO!$E$41="Non-endemic")," ",IF(COUNTRY_INFO!B67=0," ",COUNTRY_INFO!B67)) -> Logone Orientlal | C67: =IF(AND(INTRO!$E$37="Non-endemic",INTRO!$E$41="Non-endemic")," ",IF(COUNTRY_INFO!C67=0," ",COUNTRY_INFO!C67)) -> Beboto | D67: =IF(AND(INTRO!$E$37="Non-endemic",INTRO!$E$41="Non-endemic"),0,COUNTRY_INFO!W67) -> 0 | E67: =IF(AND(INTRO!$E$37="Non-endemic",INTRO!$E$41="Non-endemic"),0,COUNTRY_INFO!Y67) -> 0 | F67: =IF($D67=1,IVM!G67,0) -> 0 | G67: =IF($D67=0, " ", IF(COUNTRY_INFO!$H67=1, IF(COUNTRY_INFO!$L67=1, 0," ")," ")) ->  | J67: =IF(OR(COUNTRY_INFO!O67="Unknown",COUNTRY_INFO!O67="Surveillance",COUNTRY_INFO!O67="Not required",COUNTRY_INFO!O67=0),0,IF(INTRO!$E$39="Non-endemic",IF(AND($E67<>0,$I67=""),IF($F67=0,COUNTRY_INFO!O67*$E67,COUNTRY_INFO!O67*($E67-$D67)),IF(AND($E67<>0,$I67<>0),IF($F67=0,COUNTRY_INFO!O67*$I67,COUNTRY_INFO!O67*($I67-$D67)),0)),IF($I67="",COUNTRY_INFO!O67*$E67,COUNTRY_INFO!O67*$I67))) -> 0 | K67: =MAX(0,IF(OR(COUNTRY_INFO!P67="Unknown",COUNTRY_INFO!P67="Surveillance",COUNTRY_INFO!P67="Not required",COUNTRY_INFO!P67=0),0,IF($E67<>0,IF($D67=0,COUNTRY_INFO!P67*$E67,COUNTRY_INFO!P67*$E67-($F67*COUNTRY_INFO!$P67/(COUNTRY_INFO!$F67+COUNTRY_INFO!$G67)+IF($G67=" ",0,COUNTRY_INFO!$P67/(COUNTRY_INFO!$F67+COUNTRY_INFO!$G67)*$G67*$H67))),0))) -> 0 | M67: =MAX(0,IF(OR(COUNTRY_INFO!Q67="Unknown",COUNTRY_INFO!Q67="Surveillance",COUNTRY_INFO!Q67="Not required",COUNTRY_INFO!Q67=0),0,IF($E67<>0,IF($D67=0,COUNTRY_INFO!Q67*MIN($E67,$L67),COUNTRY_INFO!Q67*MIN($E67,$L67)-($F67*COUNTRY_INFO!$Q67/(COUNTRY_INFO!$F67+COUNTRY_INFO!$G67)+IF($G67=" ",0,COUNTRY_INFO!$Q67/(COUNTRY_INFO!$F67+COUNTRY_INFO!$G67)*$G67*$H67))),0))) -> 0 | N67: 0 | O67: 0 | Q67: 0 | R67: 0 | T67: 0 | U67: 0 | W67: 0
A68: =IF(AND(INTRO!$E$37="Non-endemic",INTRO!$E$41="Non-endemic")," ",IF(COUNTRY_INFO!A68=0," ",COUNTRY_INFO!A68)) -> Tchad | B68: =IF(AND(INTRO!$E$37="Non-endemic",INTRO!$E$41="Non-endemic")," ",IF(COUNTRY_INFO!B68=0," ",COUNTRY_INFO!B68)) -> Logone Orientlal | C68: =IF(AND(INTRO!$E$37="Non-endemic",INTRO!$E$41="Non-endemic")," ",IF(COUNTRY_INFO!C68=0," ",COUNTRY_INFO!C68)) -> Bessao | D68: =IF(AND(INTRO!$E$37="Non-endemic",INTRO!$E$41="Non-endemic"),0,COUNTRY_INFO!W68) -> 0 | E68: =IF(AND(INTRO!$E$37="Non-endemic",INTRO!$E$41="Non-endemic"),0,COUNTRY_INFO!Y68) -> 0 | F68: =IF($D68=1,IVM!G68,0) -> 0 | G68: =IF($D68=0, " ", IF(COUNTRY_INFO!$H68=1, IF(COUNTRY_INFO!$L68=1, 0," ")," ")) ->  | J68: =IF(OR(COUNTRY_INFO!O68="Unknown",COUNTRY_INFO!O68="Surveillance",COUNTRY_INFO!O68="Not required",COUNTRY_INFO!O68=0),0,IF(INTRO!$E$39="Non-endemic",IF(AND($E68<>0,$I68=""),IF($F68=0,COUNTRY_INFO!O68*$E68,COUNTRY_INFO!O68*($E68-$D68)),IF(AND($E68<>0,$I68<>0),IF($F68=0,COUNTRY_INFO!O68*$I68,COUNTRY_INFO!O68*($I68-$D68)),0)),IF($I68="",COUNTRY_INFO!O68*$E68,COUNTRY_INFO!O68*$I68))) -> 0 | K68: =MAX(0,IF(OR(COUNTRY_INFO!P68="Unknown",COUNTRY_INFO!P68="Surveillance",COUNTRY_INFO!P68="Not required",COUNTRY_INFO!P68=0),0,IF($E68<>0,IF($D68=0,COUNTRY_INFO!P68*$E68,COUNTRY_INFO!P68*$E68-($F68*COUNTRY_INFO!$P68/(COUNTRY_INFO!$F68+COUNTRY_INFO!$G68)+IF($G68=" ",0,COUNTRY_INFO!$P68/(COUNTRY_INFO!$F68+COUNTRY_INFO!$G68)*$G68*$H68))),0))) -> 0 | M68: =MAX(0,IF(OR(COUNTRY_INFO!Q68="Unknown",COUNTRY_INFO!Q68="Surveillance",COUNTRY_INFO!Q68="Not required",COUNTRY_INFO!Q68=0),0,IF($E68<>0,IF($D68=0,COUNTRY_INFO!Q68*MIN($E68,$L68),COUNTRY_INFO!Q68*MIN($E68,$L68)-($F68*COUNTRY_INFO!$Q68/(COUNTRY_INFO!$F68+COUNTRY_INFO!$G68)+IF($G68=" ",0,COUNTRY_INFO!$Q68/(COUNTRY_INFO!$F68+COUNTRY_INFO!$G68)*$G68*$H68))),0))) -> 0 | N68: 0 | O68: 0 | Q68: 0 | R68: 0 | T68: 0 | U68: 0 | W68: 0
